Workbook

Sheet Preface and Contents
E2: 2017 Annual Technology Baseline (ATB)
E4: NREL annually documents a realistic and timely set of input assumptions (e.g., technology cost, fuel costs), and a diverse set of potential futures (standard scenarios) to inform electric sector analysis in the United States. The products of this work, including assessments of current and projected technology cost and performance for both renewable and conventional electricity generation technologies, as well as market projections of more than a dozen scenarios produced with NREL's Regional Energy Deployment Systems (ReEDS) model, are applied consistently in NREL's analyses throughout the following year. This annual process is supported by the Office of Strategic Programs of the U.S. Department of Energy’s Office of Energy Efficiency and Renewable Energy (EERE). The specific products from this effort including the following:
E6: * An Annual Technology Baseline (ATB) workbook documenting detailed cost and performance data (both current and projected) for both renewable and conventional technologies.
E7: * An ATB web application describing each of the technologies and providing additional context for their treatment in the workbook.
E8: * A Standard Scenarios Annual Report describing the identified scenarios, associated assumptions (including technology cost and performance assumptions from the ATB), and modeled results using the most recent version of the ReEDS model.
E10: These products can be accessed at atb.nrel.gov.
E12: New to this Edition
E13: Offshore wind power has been updated to include 15 technical resource groups (TRGs).
E14: Two options representing market conditions for project financing: - Current Market Conditions - based on macro-economic indicators from AEO (2017) for the year 2017 as a source for debt rates and return on equity rates. - Long-term Historical Conditions – based on debt interest and return on equity rates representing conditions typical in electric sector modeling analysis using ReEDS.
E16: Contents
E17: Financial Definitions
E18: Wind: Land-based
E19: Wind: Offshore
E20: Solar: PV: Utility
E21: Solar: PV: Commercial
E22: Solar: PV: Residential
E23: Solar: CSP
E24: Geothermal
E25: Hydropower
E26: Natural Gas
E27: Coal
E28: Nuclear
E29: Biopower
E31: Recommended Citation
E32: NREL (National Renewable Energy Laboratory). 2017. 2017 Annual Technology Baseline. Golden, CO: National Renewable Energy Laboratory. http://www.nrel.gov/analysis/data_tech_baseline.html.
E34: Online
B35: atb.nrel.gov | E35: 2017 Annual Technology Baseline (ATB)
B36: www.nrel.gov/analysis/reeds | E36: Regional Energy Deployment Systems
E38: Contact
E39: atb.nrel.gov/electricity/contact
E41: DISCLAIMER AGREEMENT
E42: These detailed electricity generation technology cost and performance data ("Data") are provided by the National Renewable Energy Laboratory ("NREL"), which is operated by the Alliance for Sustainable Energy LLC ("Alliance") for the U.S. Department of Energy (the "DOE").
E44: It is recognized that disclosure of these Data are provided under the following conditions and warnings: (1) these Data have been prepared for reference purposes only; (2) these Data consist of forecasts, estimates, or assumptions made on a best-efforts basis, based upon expectations of current and future conditions at the time they were developed; and (3) these Data were prepared with existing information and are subject to change without notice.
E46: The user understands that DOE/NREL/ALLIANCE are not obligated to provide the user with any support, consulting, training or assistance of any kind with regard to the use of the Data or to provide the user with any updates, revisions or new versions thereof. DOE, NREL, and ALLIANCE do not guarantee or endorse any results generated by use of the Data, and user is entirely responsible for the results and any reliance on the results or the Data in general.
E48: USER AGREES TO INDEMNIFY DOE/NREL/ALLIANCE AND ITS SUBSIDIARIES, AFFILIATES, OFFICERS, AGENTS, AND EMPLOYEES AGAINST ANY CLAIM OR DEMAND, INCLUDING REASONABLE ATTORNEYS' FEES, RELATED TO USER’S USE OF THE DATA. THE DATA ARE PROVIDED BY DOE/NREL/ALLIANCE "AS IS," AND ANY EXPRESS OR IMPLIED WARRANTIES, INCLUDING BUT NOT LIMITED TO THE IMPLIED WARRANTIES OF MERCHANTABILITY AND FITNESS FOR A PARTICULAR PURPOSE ARE DISCLAIMED. IN NO EVENT SHALL DOE/NREL/ALLIANCE BE LIABLE FOR ANY SPECIAL, INDIRECT OR CONSEQUENTIAL DAMAGES OR ANY DAMAGES WHATSOEVER, INCLUDING BUT NOT LIMITED TO CLAIMS ASSOCIATED WITH THE LOSS OF DATA OR PROFITS, THAT MAY RESULT FROM AN ACTION IN CONTRACT, NEGLIGENCE OR OTHER TORTIOUS CLAIM THAT ARISES OUT OF OR IN CONNECTION WITH THE ACCESS, USE OR PERFORMANCE OF THE DATA.

Sheet Financial Definitions
B2: Electricity Generation Technology LCOE equation for Standard Scenarios – ReEDS Model Inputs and Annual Technology Baseline presentation of technology assumptions.
B3: Note: Costs associated with a given year are for systems that come online in that year. For example, the overnight capital cost (OCC) for a technology in 2020 represents the OCC of a system that begins commercial operation in 2020. The capacity factor for a technology in 2020 represents the expected annualized lifetime energy production for a system that begins commercial operation in 2020.
B5: Levelized Cost of Energy ($/MWh) | C5: LCOE = ((FCR * CAPEX + FOM)*1000/(CF * 8760)) + VOM + Fuel
C6: LCOE = ((CRF * ProFinFactor * ConFinFactor * (OCC * CapRegMult + GCC) + FOM) * 1000 / (CF * 8760)) + VOM + Fuel
B8: Fixed Charge Rate | C8: FCR = CRF * ProFinFactor | D8: Amount of revenue per dollar of investment required that must be collected annually from customers to pay the carrying charges on that investment.
B10: CAPEX | C10: CAPEX = ConFinFActor * (OCC * CapRegMult + GCC) | D10: Capital expenditures required to achieve commercial operation of the generation plant
B12: Capital Recovery Factor | C12: CRF = WACC / (1 - (1 / (1 + WACC)^t)) note: WACC real | D12: *ReEDS uses: CRF = (WACC - 1) / (1 - (1 / WACC)^t)
C13: WACC = ((1+((1-DF)*((1+RROE)*(1+i)-1)) + (DF*((1+IR)*(1+i)-1)*(1-TR))) / (1+i)) - 1 | D13: but uses a WACC that is equal to 1 + the WACC rate, and returns a CRF that is 1+CRF
C14: DF = debt fraction | D14: *ReEDS uses: WACC = (1 + ((1 - DF)*(RROE*i - 1)) + (DF*(IR*i - 1)*(1-TR))) / i
C15: RROE = rate of return on equity (real) = 10.24% | D15: but uses RROE, i, and IR that are equal to 1 + the rates, and returns a WACC that is 1+WACC
C16: i = inflation rate = 2.5%
C17: IR = interest rate (real) = 5.4%
B19: Project Finance factor | C19: ProFinFactor = (1 - TR * PVD) / (1 - TR)
C20: TR = combined state/federal tax rate
C21: PVD = present value of depreciation = summation from y=1 to y=M+1 of (FDy * fy)
C22: M = # years in MACRS depreciation schedule
C23: FDy = fraction of capital depreciated in year y
C24: fy = depreciation factor in year y | D24: fy = 1/dy
C25: d = nominal discount rate (8.9%) | D25: d = WACC * i
C26: i = inflation rate
B28: Construction Finance Factor | C28: ConFinFactor = summation from y=0 to y=C-1 of (FCy * AIy)
C29: FCy = fraction of capital spent in year y
C30: AIy =1 + (1 - TR) * ((1 + IDC)(year+0.5) - 1) | D30: *ReEDS uses: AIy =1 + (1 - TR) * (IDC(year+0.5) - 1)
C31: IDC = interest during construction | D31: but uses an IDC that is equal to 1 + the interest rate
C32: y = year index, starting at 0
C33: C = construction duration (years)
B35: Overnight Capital Cost | C35: OCC = input in $/kW
B37: Capital Regional Multiplier | C37: CapRegMult = 1 for ATB | D37: CapRegMult = 1 for ATB
B39: Grid Connection Costs | C39: GCC = GF + OnSpurCost + Off SpurCost
C40: GF | D40: grid feature = 0 for ATB
C41: OnSpurCost | D41: Onshore Spur Line Costs = 0 for ATB
C42: Off SpurCost | D42: Offshore (underwater) Spur Line Costs
B44: Fixed Operating Expenses | C44: FOM = input in $/kW
B46: * 1000 | C46: conversion factor from $/kW inputs to $/MWh output
B48: Capacity Factor | C48: CF = input as %
B50: * 8760 | C50: conversion factor for hours per year
B52: Variable Operating Expenses | C52: VOM = input in $/MWh
B54: Fuel | C54: Fuel = input in $/MWh
B56: Overnight LCOE | C56: =((OCC*CRF*(1-TR*PVD))/(8760*CF*(1-TR))+FOM/(8760*CF))*1000)+VOM | D56: This is similar to the LCOE used in the TCDB (Transparent Cost database)
B58: Definitions:
B59: AI | C59: Accumulated Interest | D59: Accumulated interest is a function of the interest during construction and the tax rate.
B60: C | C60: Construction Duration | D60: Number of years in construction period
B61: CapRegMult | C61: Capital Regional Multiplier | D61: Capital cost multipliers to account for regional variations that affect plant costs, e.g. labor rates, etc. Separate multipliers are applied to land-based and offshore wind plants, PV, CSP, coal, gas, nuclear, etc. No multipliers for geothermal or hydropower due to site specific nature of plant cost estimates.
B62: CF | C62: Capacity Factor (%) | D62: Generally defined as the ratio of actual annual output to output at rated capacity for an entire year.
B63: ConFinFactor | C63: Construction Finance Factor | D63: Portion of all-in capital cost associated with construction period financing. ConFinFactor is a function of C, FC, and IDC.
B64: CRF | C64: Capital Recovery Factor | D64: The ratio of a constant annuity to the present value of receiving that annuity for a given length of time. (Default in ReEDS is 8.89% real); CRF is a function of WACC and t.
B65: d | C65: nominal discount rate (8.9%) | D65: The discount rate is a function of the WACC and inflation.
B66: DF | C66: Debt Fraction | D66: Fraction of capital financed with debt. 1-DF is assumed financed with equity. (50% for all technologies in ReEDS)
B67: f | C67: Depreciation Factor | D67: The depreciation factor is a function of the discount rate.
B68: FC | C68: Capital Fraction | D68: Fraction of capital spent in each year of construction, 1 to C.
B69: FD | C69: Depreciation Fraction | D69: Fraction of capital depreciated in each year, 1 to M.
B70: FOM | C70: Fixed Operation and Maintenance Expenses ($/MW-year) | D70: Annual expenditures to operate and maintain equipment that are not incurred on a per-unit-energy basis.
B71: Fuel | C71: fuel cost ($/MWh) | D71: Fuel costs are converted to $/MWh from various units.
B72: GCC | C72: Grid Connection Costs | D72: Distance-based costs of spur lines over land, offshore wind plant export cable costs and construction-period transit costs
B73: GF | C73: Grid Feature | D73: Point of interconnection at the high voltage transmission network, including substation, transmission lines, load center, or BA center. (Default in ReEDS is $0/kW for substation and load center and $14/kW for others)
B74: i | C74: Inflation Rate | D74: Assumed inflation rate based on historical data. (2.5% in ReEDS)
B75: ICC | C75: Installed Capital Cost ($/MW) | D75: Total capital expenditure to achieve commercial operation up to the plant gate. This intermediate value is used only in presentation of technology cost assumptions with historic market data. It is not required to calculate LCOE.
B76: IDC | C76: Interest During Construction | D76: Interest rate for financing project during construction period.
B77: IR | C77: Interest Rate (real) | D77: Assumed interest rate on debt. (5.4% for all technologies in ReEDS, 8% nominal)
B78: M | C78: Depreciation period (years) | D78: Number of years in MACRS depreciation schedule.
B79: OCC | C79: Overnight Capital Cost ($/MW) | D79: Capital expenditures excluding construction period financing. Includes onsite electrical equipment (e.g., switchyard), a nominal-distance spur line (<1 mi), and necessary upgrades at a transmission substation.
B80: OffDist | C80: Offshore Distance | D80: Total offshore distance covered by the offshore export cables
B81: OffSpurCost | C81: Offshore (underwater) Spur Line Costs | D81: Cost for offshore (underwater) export cables from the offshore wind plant to land; OffSpurCost is a function of OffDist and OffDistFactor.
B82: OffDistFactor | C82: Offshore Distance Factor | D82: Incremental capital expenditure for offshore wind plant export cable length between landfall and offshore wind plant site.
B83: OnDist | C83: Onshore Distance | D83: Total onshore distance covered by the onshore transmission spur lines
B84: OnRegTransMult | C84: Onshore Regional Transmission Multiplier | D84: Transmission cost multipliers to account for regional variations that affect onshore transmission line costs, e.g. labor rates, terrain, siting, etc.
B85: OnSpurCost | C85: Onshore Spur Line Costs | D85: Cost for onshore transmission lines from the plant gate to the grid feature; OnSpurCost is a function of OnDist, OnTransCost, and OnRegTransMult.
B86: OnTransCost | C86: Onshore Transmission Costs (for spur line) | D86: Base onshore transmission line costs (Default in ReEDS is $3922/MW-mile)
B87: ProFinFactor | C87: Project Finance factor | D87: Technology-specific financial multiplier to account for any applicable differences in depreciation schedule, and tax policies. ProFinFactor is a function of TR, WACC, i, M, and FD
B88: PVD | C88: Present Value of Depreciation | D88: PVD is a function of FD, f and y.
B89: RROE | C89: Rate of Return on Equity (real) | D89: Assumed rate of return on the share of assets financed with equity. (10% for all technologies in ReEDS, 13% nominal)
B90: t | C90: Economic Lifetime (years) | D90: Length of time for paying off assets (20 years for all technologies in ReEDS)
B91: TR | C91: Tax Rate | D91: Combined state and federal tax rate (40%)
B92: VOM | C92: Variable Operation and Maintenance Expenses ($/MWh) | D92: Operating and maintenance costs incurred on a per-unit-energy basis.
B93: WACC | C93: Weighted Average Cost of Capital (real) | D93: The average expected rate that is paid to finance assets. (Default in ReEDS is 6.2% real); WACC is a function of DF, RROE, IR, i, and TR.
B94: y | C94: year index, starting at 0
B96: Notes:
B97: CapRegMult = 1 | C97: ATB assumes that all plants represent typical equipment costs and do not include regionally specific labor or material cost increments.
B98: GCC = 0 | C98: ATB assumes that base plant cost includes small spur line to connect with grid for all technologies in overnight capital cost. An exception is made for offshore wind plants where the export cable and construction-period transit costs based on a 30 km distance from shore are represented in GCC. Specific transmission lines based on geographically determined distances between ReEDS regions and existing transmission features for wind and solar are not included in ATB.
B99: Inputs in ATB are in $/kW, in ReEDS they are $/MW

Sheet Land-Based Wind
A1: Land-Based Wind Inputs | L1: https://atb.nrel.gov/electricity/2017/index.html?t=lw
T3: Inputs
J4: Take me to: | T4: Calculated
B10: X | G10: Current Costs
H12: Techno-Economic Cost and Performance Parameters | J12: Net Capacity Factor (%) | K12: TRG 1 | L12: 0.473521712 | O12: Basis Year: | Q12: 2015
K13: TRG 2 | L13: 0.4619642272
K14: TRG 3 | L14: 0.4496939365 | O14: Land-Based Wind Techno-Resource Groups (TRG)
K15: TRG 4 | L15: 0.4352229703 | O15: Techno-Resource Group (TRG) | P15: Wind Speed Range (m/s) | Q15: Weighted Average Wind Speed (m/s) | R15: Weighted Average CAPEX ($/kW) | S15: Weighted Average OPEX ($/kW/yr) | T15: Weighted Average Net CF (%) | U15: Potential Wind Plant Capacity (GW) | V15: Potential Wind Plant Energy (TWh)
K16: TRG 5 | L16: 0.4073064995
K17: TRG 6 | L17: 0.36366572 | O17: TRG1 | P17: 8.2 - 13.5 | Q17: 8.74395513 | R17: 1572.652722 | S17: 51 | T17: 0.473521712 | U17: 99.795 | V17: 413.9546694
K18: TRG 7 | L18: 0.3081779447 | O18: TRG2 | P18: 8.0 - 10.9 | Q18: 8.352409416 | R18: 1592.053935 | S18: 51 | T18: 0.4619642272 | U18: 200.08998 | V18: 809.7254578
K19: TRG 8 | L19: 0.2456560194 | O19: TRG3 | P19: 7.7 - 11.1 | Q19: 8.157716613 | R19: 1598.919076 | S19: 51 | T19: 0.4496939365 | U19: 400.00164 | V19: 1575.734014
K20: TRG 9 | L20: 0.1825154944 | O20: TRG4 | P20: 7.5 - 13.1 | Q20: 7.929743215 | R20: 1605.166697 | S20: 51 | T20: 0.4352229703 | U20: 800.10894 | V20: 3050.457915
K21: TRG 10 | L21: 0.1110495503 | O21: TRG5 | P21: 6.9 - 11.1 | Q21: 7.512173639 | R21: 1615.720396 | S21: 51 | T21: 0.4073064995 | U21: 1599.68424 | V21: 5707.681264
O22: TRG6 | P22: 6.1 - 9.4 | Q22: 6.909267637 | R22: 1641.985248 | S22: 51 | T22: 0.36366572 | U22: 1600.20318 | V22: 5097.786004
J23: Annual Energy Production (kWh/kW) | K23: TRG 1 | L23: =(L12)*8760 -> 4148.050197 | O23: TRG7 | P23: 5.4 - 8.3 | Q23: 6.18657122 | R23: 1677.874701 | S23: 51 | T23: 0.3081779447 | U23: 1600.07226 | V23: 4319.617148
K24: TRG 2 | L24: =(L13)*8760 -> 4046.806631 | O24: TRG8 | P24: 4.7 - 6.9 | Q24: 5.476750039 | R24: 1707.966532 | S24: 51 | T24: 0.2456560194 | U24: 1600.03692 | V24: 3443.194218
K25: TRG 3 | L25: 3939.318883 | O25: TRG9 | P25: 4.0 - 6.0 | Q25: 4.792356022 | R25: 1713.146077 | S25: 51 | T25: 0.1825154944 | U25: 1599.63966 | V25: 2557.561045
K26: TRG 4 | L26: 3812.553219 | O26: TRG10 | P26: 1.0 - 5.3 | Q26: 4.017447322 | R26: 1713.14985 | S26: 51 | T26: 0.1110495503 | U26: 1147.51176 | V26: 1116.292625
K27: TRG 5 | L27: 3568.004936 | O27: Total | U27: =ROUNDUP(10647.14358,0) -> 10648 | V27: 28092.00436
K28: TRG 6 | L28: 3185.711707
K29: TRG 7 | L29: 2699.638795 | O29: Financial Assumptions:
K30: TRG 8 | L30: 2151.94673 | O30: Inflation Rate | S30: 0.025
K31: TRG 9 | L31: 1598.835731 | O31: Economic Lifetime (Years) | S31: 20
K32: TRG 10 | L32: 972.7940608 | O32: Interest Rate - Nominal | S32: 0.04418536
O33: Calculated Interest Rate - Real | S33: =(1+S32)/(1+S30)-1 -> 0.01871742439
J34: CAPEX ($/kW) | K34: TRG 1 | L34: =$S$42 * (L56 + L102) -> 1572.652722 | O34: Interest During Construction - Nominal | S34: 0.044
K35: TRG 2 | L35: =$S$42 * (L57 + L103) -> 1592.053935 | O35: Rate of Return on Equity - Nominal | S35: 0.09468985
K36: TRG 3 | L36: =$S$42 * (L58 + L104) -> 1598.919076 | O36: Calculated Rate of Return on Equity - Real | S36: =(1+S35)/(1+S30) - 1 -> 0.06799009756
K37: TRG 4 | L37: 1605.166697 | O37: Debt Fraction | S37: 0.6
K38: TRG 5 | L38: 1615.720396 | O38: Tax Rate (Federal and State) | S38: 0.4
K39: TRG 6 | L39: 1641.985248 | O39: WACC - Nominal | S39: =IF(S38>0,S37*S32*(1-S38)+(1-S37)*S35,S37*S32+(1-S37)*S35) -> 0.0537826696
K40: TRG 7 | L40: 1677.874701 | O40: WACC - Real | S40: =((1+((1-S37)*((1+S36)*(1+S30)-1)) + (S37*((1+S33)*(1+S30)-1)*(1-S38))) / (1+S30)) - 1 -> 0.02808065327
K41: TRG 8 | L41: 1707.966532 | O41: Depreciation Period | S41: 5
K42: TRG 9 | L42: 1713.146077 | O42: Construction Finance Factor | S42: =SUMPRODUCT(P51:P53,Q51:Q53) -> 1.021268962
K43: TRG 10 | L43: 1713.14985 | O43: Present Value of Depreciation | S43: =SUMPRODUCT(O56:T56,O58:T58) -> 0.8661791251
O44: Project Finance Factor | S44: =(1 - S38 * S43) / (1 - S38) -> 1.089213917
J45: Construction Financing Cost ($/kW) | K45: TRG 1 | L45: =(L56+L102)*($S$42-1) -> 32.75208744 | O45: Capital Recovery Factor (CRF) - Nominal | S45: =S39 / (1 - (1 / (1 + S39)^S31)) -> 0.08283622233
K46: TRG 2 | L46: =(L57+L103)*($S$42-1) -> 33.15613738 | O46: Capital Recovery Factor (CRF) - Real | S46: =S40 / (1 - (1 / (1 + S40)^S31)) -> 0.0660286156 | T46: =S46*S44 -> 0.07191928701
K47: TRG 3 | L47: =(L58+L104)*($S$42-1) -> 33.2991109
K48: TRG 4 | L48: 33.42922393 | O48: Construction Duration yrs | Q48: 3
K49: TRG 5 | L49: 33.64901542 | O49: Year | P49: Capital | Q49: Accumulated
K50: TRG 6 | L50: 34.1960076 | O50: Index | P50: Fraction | Q50: Interest
K51: TRG 7 | L51: 34.94344185 | O51: 0 | P51: 0.8 | Q51: =1+(1-S38)*((1+S34)^(O51+0.5)-1) -> 1.013057909
K52: TRG 8 | L52: 35.57013474 | O52: 1 | P52: 0.1 | Q52: =1+(1-S38)*((1+S34)^(O52+0.5)-1) -> 1.040032457
K53: TRG 9 | L53: 35.67800401 | O53: 2 | P53: 0.1 | Q53: =1+(1-S38)*((1+S34)^(O53+0.5)-1) -> 1.068193885
K54: TRG 10 | L54: 35.67808259
N55: MACRS yr | O55: 1 | P55: 2 | Q55: 3 | R55: 4 | S55: 5 | T55: 6
J56: Overnight Capital Cost (OCC) ($/kW) | K56: TRG 1 | L56: 1539.900635 | N56: Depreciation | O56: 0.2 | P56: 0.32 | Q56: 0.192 | R56: 0.1152 | S56: 0.1152 | T56: 0.0576
K57: TRG 2 | L57: 1558.897798 | N57: Fraction
K58: TRG 3 | L58: 1565.619965 | N58: Depreciation | O58: =1/((1+S40)*(1+S30))^O55 -> 0.9489622755 | P58: =1/((1+S40)*(1+S30))^P55 -> 0.9005294003 | Q58: =1/((1+S40)*(1+S30))^Q55 -> 0.8545684288 | R58: =1/((1+S40)*(1+S30))^R55 -> 0.8109532008 | S58: =1/((1+S40)*(1+S30))^S55 -> 0.7695639947 | T58: =1/((1+S40)*(1+S30))^T55 -> 0.7302871995
K59: TRG 4 | L59: 1571.737473 | N59: Factor
K60: TRG 5 | L60: 1582.071381
K61: TRG 6 | L61: 1607.789241
K62: TRG 7 | L62: 1642.93126
K63: TRG 8 | L63: 1672.396398
K64: TRG 9 | L64: 1677.468073
K65: TRG 10 | L65: 1677.471768
J67: Fixed Operation and Maintenance Expenses ($/kW-year) | K67: TRG 1 | L67: 51.27242931
K68: TRG 2 | L68: 51.27242931
K69: TRG 3 | L69: 51.27242931
K70: TRG 4 | L70: 51.27242931
K71: TRG 5 | L71: 51.27242931
K72: TRG 6 | L72: 51.27242931
K73: TRG 7 | L73: 51.27242931
K74: TRG 8 | L74: 51.27242931
K75: TRG 9 | L75: 51.27242931
K76: TRG 10 | L76: 51.27242931
J78: Variable Operation and Maintenance Expenses ($/MWh) | K78: TRG 1 | L78: 0
K79: TRG 2 | L79: 0
K80: TRG 3 | L80: 0
K81: TRG 4 | L81: 0
K82: TRG 5 | L82: 0
K83: TRG 6 | L83: 0
K84: TRG 7 | L84: 0
K85: TRG 8 | L85: 0
K86: TRG 9 | L86: 0
K87: TRG 10 | L87: 0
H90: Finance | J90: Weighted Average Cost of Capital (WACC) (Nominal) (%) | K90: TRG 1 | L90: =$S$39 -> 0.0537826696
K91: TRG 2 | L91: =$S$39 -> 0.0537826696
K92: TRG 3 | L92: 0.0537826696
K93: TRG 4 | L93: 0.0537826696
K94: TRG 5 | L94: 0.0537826696
K95: TRG 6 | L95: 0.0537826696
K96: TRG 7 | L96: 0.0537826696
K97: TRG 8 | L97: 0.0537826696
K98: TRG 9 | L98: 0.0537826696
K99: TRG 10 | L99: 0.0537826696
H102: Grid Connection Costs | J102: Grid Connection Costs (GCC) ($/kW) | K102: TRG 1 | L102: =L113+L124 -> 0
K103: TRG 2 | L103: =L114+L125 -> 0
K104: TRG 3 | L104: 0
K105: TRG 4 | L105: 0
K106: TRG 5 | L106: 0
K107: TRG 6 | L107: 0
K108: TRG 7 | L108: 0
K109: TRG 8 | L109: 0
K110: TRG 9 | L110: 0
K111: TRG 10 | L111: 0
J113: Grid Feature Costs ($/kW) | K113: TRG 1 | L113: 0
K114: TRG 2 | L114: 0
K115: TRG 3 | L115: 0
K116: TRG 4 | L116: 0
K117: TRG 5 | L117: 0
K118: TRG 6 | L118: 0
K119: TRG 7 | L119: 0
K120: TRG 8 | L120: 0
K121: TRG 9 | L121: 0
K122: TRG 10 | L122: 0
J124: Onshore Spur Line Costs ($/kW) | K124: TRG 1 | L124: 0
K125: TRG 2 | L125: 0
K126: TRG 3 | L126: 0
K127: TRG 4 | L127: 0
K128: TRG 5 | L128: 0
K129: TRG 6 | L129: 0
K130: TRG 7 | L130: 0
K131: TRG 8 | L131: 0
K132: TRG 9 | L132: 0
K133: TRG 10 | L133: 0
H136: LCOE | J136: Levelized Cost of Energy ($/MWh) | K136: TRG 1 | L136: =(($S$46 * $S$44 * $S$42 * (L56 * 1 + L102) +L67) * 1000 / (L12 * 8760)) + L78 + 0 -> 39.62741143
K137: TRG 2 | L137: 40.96361114
K138: TRG 3 | L138: 42.20667434
K139: TRG 4 | L139: 43.72788105
K140: TRG 5 | L140: 46.937684
K141: TRG 6 | L141: 53.16326561
K142: TRG 7 | L142: 63.69147673
K143: TRG 8 | L143: 80.90728367
K144: TRG 9 | L144: 109.1298314
K145: TRG 10 | L145: 179.3606192
J147: Overnight Levelized Cost of Energy ($/MWh) | K147: TRG 1 | L147: =(((L56*$S$46*(1-$S$38*$S$43))/(8760*L12*(1-$S$38))+L67/(8760*L12))*1000)+L78 -> 39.05955264 | M147: * this is similar to the LCOE used in the TCDB (Transparent Cost Database)
K148: TRG 2 | L148: 40.37436486
K149: TRG 3 | L149: 41.59873972
K150: TRG 4 | L150: 43.09727845
K151: TRG 5 | L151: 46.25943012
K152: TRG 6 | L152: 52.39127093
K153: TRG 7 | L153: 62.76057167
K154: TRG 8 | L154: 79.71850948
K155: TRG 9 | L155: 107.5249532
K156: TRG 10 | L156: 176.7229157
H159: ***Note: For future projections, low, mid, and high refer to the resulting low, mid, and high LCOE projections.
D162: X | G162: Future Projections
L163: Basis Year
L164: 2015 | M164: 2016 | N164: 2017 | O164: 2018 | P164: 2019 | Q164: 2020 | R164: 2021 | S164: 2022 | T164: 2023 | U164: 2024 | V164: 2025 | W164: 2026 | X164: 2027 | Y164: 2028 | Z164: 2029 | AA164: 2030 | AB164: 2031 | AC164: 2032 | AD164: 2033 | AE164: 2034 | AF164: 2035 | AG164: 2036 | AH164: 2037 | AI164: 2038 | AJ164: 2039 | AK164: 2040 | AL164: 2041 | AM164: 2042 | AN164: 2043 | AO164: 2044 | AP164: 2045 | AQ164: 2046 | AR164: 2047 | AS164: 2048 | AT164: 2049 | AU164: 2050
H165: Techno-Economic Cost and Performance Parameters | J165: Net Capacity Factor (%) | K165: TRG 1 - Low | L165: 0.473521712 | M165: 0.4795059609 | N165: 0.485319535 | O165: 0.4909624326 | P165: 0.4964346538 | Q165: 0.5017361986 | R165: 0.5068670669 | S165: 0.5118272587 | T165: 0.5166167741 | U165: 0.5212356131 | V165: 0.5256837756 | W165: 0.5299612616 | X165: 0.5340680712 | Y165: 0.5380042044 | Z165: 0.541769661 | AA165: 0.5453644413 | AB165: 0.548788545 | AC165: 0.5520419724 | AD165: 0.5551247232 | AE165: 0.5580367977 | AF165: 0.5607781956 | AG165: 0.5633489172 | AH165: 0.5657489622 | AI165: 0.5679783308 | AJ165: 0.570037023 | AK165: 0.5719250387 | AL165: 0.5736423779 | AM165: 0.5751890407 | AN165: 0.5765650271 | AO165: 0.577770337 | AP165: 0.5788049704 | AQ165: 0.5796689274 | AR165: 0.580362208 | AS165: 0.580884812 | AT165: 0.5812367397 | AU165: 0.5814179909
K166: TRG 1 - Mid | L166: 0.473521712 | M166: 0.476608554 | N166: 0.4796375804 | O166: 0.4826087905 | P166: 0.4855221842 | Q166: 0.4883777617 | R166: 0.4911755228 | S166: 0.4939154677 | T166: 0.4965975962 | U166: 0.4992219085 | V166: 0.5017884044 | W166: 0.5042970841 | X166: 0.5067479475 | Y166: 0.5091409945 | Z166: 0.5114762253 | AA166: 0.5137536397 | AB166: 0.5159732379 | AC166: 0.5181350198 | AD166: 0.5202389853 | AE166: 0.5222851346 | AF166: 0.5242734675 | AG166: 0.5262039842 | AH166: 0.5280766846 | AI166: 0.5298915686 | AJ166: 0.5316486364 | AK166: 0.5333478879 | AL166: 0.534989323 | AM166: 0.5365729419 | AN166: 0.5380987445 | AO166: 0.5395667307 | AP166: 0.5409769007 | AQ166: 0.5423292544 | AR166: 0.5436237917 | AS166: 0.5448605128 | AT166: 0.5460394176 | AU166: 0.5471605061
K167: TRG 1 - High | L167: 0.473521712 | M167: 0.473521712 | N167: 0.473521712 | O167: 0.473521712 | P167: 0.473521712 | Q167: 0.473521712 | R167: 0.473521712 | S167: 0.473521712 | T167: 0.473521712 | U167: 0.473521712 | V167: 0.473521712 | W167: 0.473521712 | X167: 0.473521712 | Y167: 0.473521712 | Z167: 0.473521712 | AA167: 0.473521712 | AB167: 0.473521712 | AC167: 0.473521712 | AD167: 0.473521712 | AE167: 0.473521712 | AF167: 0.473521712 | AG167: 0.473521712 | AH167: 0.473521712 | AI167: 0.473521712 | AJ167: 0.473521712 | AK167: 0.473521712 | AL167: 0.473521712 | AM167: 0.473521712 | AN167: 0.473521712 | AO167: 0.473521712 | AP167: 0.473521712 | AQ167: 0.473521712 | AR167: 0.473521712 | AS167: 0.473521712 | AT167: 0.473521712 | AU167: 0.473521712
K168: TRG 2 - Low | L168: 0.4619642272 | M168: 0.4680562532 | N168: 0.4739745305 | O168: 0.4797190574 | P168: 0.485289834 | Q168: 0.4906868603 | R168: 0.4959101362 | S168: 0.5009596617 | T168: 0.5058354368 | U168: 0.5105374617 | V168: 0.5150657361 | W168: 0.5194202602 | X168: 0.523601034 | Y168: 0.5276080573 | Z168: 0.5314413304 | AA168: 0.535100853 | AB168: 0.5385866253 | AC168: 0.5418986473 | AD168: 0.5450369189 | AE168: 0.5480014401 | AF168: 0.550792211 | AG168: 0.5534092316 | AH168: 0.5558525017 | AI168: 0.5581220216 | AJ168: 0.560217791 | AK168: 0.5621398101 | AL168: 0.5638880789 | AM168: 0.5654625973 | AN168: 0.5668633653 | AO168: 0.568090383 | AP168: 0.5691436503 | AQ168: 0.5700231673 | AR168: 0.5707289339 | AS168: 0.5712609501 | AT168: 0.571619216 | AU168: 0.5718037315
K169: TRG 2 - Mid | L169: 0.4619642272 | M169: 0.4651066637 | N169: 0.4681902432 | O169: 0.4712149651 | P169: 0.4741808295 | Q169: 0.4770878362 | R169: 0.4799359854 | S169: 0.482725277 | T169: 0.485455711 | U169: 0.4881272875 | V169: 0.4907400064 | W169: 0.4932938676 | X169: 0.4957888714 | Y169: 0.4982250175 | Z169: 0.5006023061 | AA169: 0.502920737 | AB169: 0.5051803104 | AC169: 0.5073810263 | AD169: 0.5095228845 | AE169: 0.5116058852 | AF169: 0.5136300282 | AG169: 0.5155953138 | AH169: 0.5175017417 | AI169: 0.519349312 | AJ169: 0.5211380248 | AK169: 0.52286788 | AL169: 0.5245388776 | AM169: 0.5261510177 | AN169: 0.5277043001 | AO169: 0.529198725 | AP169: 0.5306342923 | AQ169: 0.532011002 | AR169: 0.5333288542 | AS169: 0.5345878488 | AT169: 0.5357879858 | AU169: 0.5369292652
K170: TRG 2 - High | L170: 0.4619642272 | M170: 0.4619642272 | N170: 0.4619642272 | O170: 0.4619642272 | P170: 0.4619642272 | Q170: 0.4619642272 | R170: 0.4619642272 | S170: 0.4619642272 | T170: 0.4619642272 | U170: 0.4619642272 | V170: 0.4619642272 | W170: 0.4619642272 | X170: 0.4619642272 | Y170: 0.4619642272 | Z170: 0.4619642272 | AA170: 0.4619642272 | AB170: 0.4619642272 | AC170: 0.4619642272 | AD170: 0.4619642272 | AE170: 0.4619642272 | AF170: 0.4619642272 | AG170: 0.4619642272 | AH170: 0.4619642272 | AI170: 0.4619642272 | AJ170: 0.4619642272 | AK170: 0.4619642272 | AL170: 0.4619642272 | AM170: 0.4619642272 | AN170: 0.4619642272 | AO170: 0.4619642272 | AP170: 0.4619642272 | AQ170: 0.4619642272 | AR170: 0.4619642272 | AS170: 0.4619642272 | AT170: 0.4619642272 | AU170: 0.4619642272
K171: TRG 3 - Low | L171: 0.4496939365 | M171: 0.4566350596 | N171: 0.4633782173 | O171: 0.4699234076 | P171: 0.4762706305 | Q171: 0.482419886 | R171: 0.488371174 | S171: 0.4941244947 | T171: 0.4996798479 | U171: 0.5050372337 | V171: 0.5101966521 | W171: 0.5151581031 | X171: 0.5199215866 | Y171: 0.5244871028 | Z171: 0.5288546515 | AA171: 0.5330242328 | AB171: 0.5369958467 | AC171: 0.5407694932 | AD171: 0.5443451723 | AE171: 0.5477228839 | AF171: 0.5509026282 | AG171: 0.553884405 | AH171: 0.5566682144 | AI171: 0.5592540564 | AJ171: 0.561641931 | AK171: 0.5638318382 | AL171: 0.565823778 | AM171: 0.5676177503 | AN171: 0.5692137552 | AO171: 0.5706117928 | AP171: 0.5718118629 | AQ171: 0.5728139655 | AR171: 0.5736181008 | AS171: 0.5742242687 | AT171: 0.5746324691 | AU171: 0.5748427022
K172: TRG 3 - Mid | L172: 0.4496939365 | M172: 0.4532743609 | N172: 0.456787725 | O172: 0.460234028 | P172: 0.4636132699 | Q172: 0.4669254508 | R172: 0.4701705707 | S172: 0.4733486295 | T172: 0.4764596272 | U172: 0.4795035639 | V172: 0.4824804395 | W172: 0.485390254 | X172: 0.4882330075 | Y172: 0.4910087 | Z172: 0.4937173313 | AA172: 0.4963589017 | AB172: 0.4989334109 | AC172: 0.5014408592 | AD172: 0.5038812463 | AE172: 0.5062545724 | AF172: 0.5085608374 | AG172: 0.5108000414 | AH172: 0.5129721844 | AI172: 0.5150772662 | AJ172: 0.517115287 | AK172: 0.5190862468 | AL172: 0.5209901455 | AM172: 0.5228269831 | AN172: 0.5245967597 | AO172: 0.5262994753 | AP172: 0.5279351297 | AQ172: 0.5295037231 | AR172: 0.5310052555 | AS172: 0.5324397268 | AT172: 0.533807137 | AU172: 0.5351074862
K173: TRG 3 - High | L173: 0.4496939365 | M173: 0.4496939365 | N173: 0.4496939365 | O173: 0.4496939365 | P173: 0.4496939365 | Q173: 0.4496939365 | R173: 0.4496939365 | S173: 0.4496939365 | T173: 0.4496939365 | U173: 0.4496939365 | V173: 0.4496939365 | W173: 0.4496939365 | X173: 0.4496939365 | Y173: 0.4496939365 | Z173: 0.4496939365 | AA173: 0.4496939365 | AB173: 0.4496939365 | AC173: 0.4496939365 | AD173: 0.4496939365 | AE173: 0.4496939365 | AF173: 0.4496939365 | AG173: 0.4496939365 | AH173: 0.4496939365 | AI173: 0.4496939365 | AJ173: 0.4496939365 | AK173: 0.4496939365 | AL173: 0.4496939365 | AM173: 0.4496939365 | AN173: 0.4496939365 | AO173: 0.4496939365 | AP173: 0.4496939365 | AQ173: 0.4496939365 | AR173: 0.4496939365 | AS173: 0.4496939365 | AT173: 0.4496939365 | AU173: 0.4496939365
K174: TRG 4 - Low | L174: 0.4352229703 | M174: 0.4424734818 | N174: 0.4495172039 | O174: 0.4563541345 | P174: 0.4629842737 | Q174: 0.4694076214 | R174: 0.4756241776 | S174: 0.4816339424 | T174: 0.4874369157 | U174: 0.4930330975 | V174: 0.4984224879 | W174: 0.5036050868 | X174: 0.5085808943 | Y174: 0.5133499103 | Z174: 0.5179121348 | AA174: 0.5222675679 | AB174: 0.5264162095 | AC174: 0.5303580596 | AD174: 0.5340931183 | AE174: 0.5376213855 | AF174: 0.5409428613 | AG174: 0.5440575455 | AH174: 0.5469654384 | AI174: 0.5496665397 | AJ174: 0.5521608496 | AK174: 0.554448368 | AL174: 0.556529095 | AM174: 0.5584030305 | AN174: 0.5600701746 | AO174: 0.5615305271 | AP174: 0.5627840883 | AQ174: 0.5638308579 | AR174: 0.5646708361 | AS174: 0.5653040228 | AT174: 0.5657304181 | AU174: 0.5659500219
K175: TRG 4 - Mid | L175: 0.4352229703 | M175: 0.4389629858 | N175: 0.4426329519 | O175: 0.4462328678 | P175: 0.4497627335 | Q175: 0.4532225491 | R175: 0.4566123144 | S175: 0.4599320296 | T175: 0.4631816945 | U175: 0.4663613093 | V175: 0.4694708739 | W175: 0.4725103883 | X175: 0.4754798526 | Y175: 0.4783792666 | Z175: 0.4812086305 | AA175: 0.4839679441 | AB175: 0.4866572076 | AC175: 0.4892764209 | AD175: 0.4918255841 | AE175: 0.494304697 | AF175: 0.4967137597 | AG175: 0.4990527723 | AH175: 0.5013217347 | AI175: 0.5035206469 | AJ175: 0.5056495089 | AK175: 0.5077083207 | AL175: 0.5096970823 | AM175: 0.5116157937 | AN175: 0.513464455 | AO175: 0.5152430661 | AP175: 0.516951627 | AQ175: 0.5185901377 | AR175: 0.5201585982 | AS175: 0.5216570085 | AT175: 0.5230853687 | AU175: 0.5244436786
K176: TRG 4 - High | L176: 0.4352229703 | M176: 0.4352229703 | N176: 0.4352229703 | O176: 0.4352229703 | P176: 0.4352229703 | Q176: 0.4352229703 | R176: 0.4352229703 | S176: 0.4352229703 | T176: 0.4352229703 | U176: 0.4352229703 | V176: 0.4352229703 | W176: 0.4352229703 | X176: 0.4352229703 | Y176: 0.4352229703 | Z176: 0.4352229703 | AA176: 0.4352229703 | AB176: 0.4352229703 | AC176: 0.4352229703 | AD176: 0.4352229703 | AE176: 0.4352229703 | AF176: 0.4352229703 | AG176: 0.4352229703 | AH176: 0.4352229703 | AI176: 0.4352229703 | AJ176: 0.4352229703 | AK176: 0.4352229703 | AL176: 0.4352229703 | AM176: 0.4352229703 | AN176: 0.4352229703 | AO176: 0.4352229703 | AP176: 0.4352229703 | AQ176: 0.4352229703 | AR176: 0.4352229703 | AS176: 0.4352229703 | AT176: 0.4352229703 | AU176: 0.4352229703
K177: TRG 5 - Low | L177: 0.4073064995 | M177: 0.4157968207 | N177: 0.4240449923 | O177: 0.4320510119 | P177: 0.4398148794 | Q177: 0.447336595 | R177: 0.4546161585 | S177: 0.4616535701 | T177: 0.4684488296 | U177: 0.4750019371 | V177: 0.4813128926 | W177: 0.4873816961 | X177: 0.4932083476 | Y177: 0.498792847 | Z177: 0.5041351945 | AA177: 0.5092353899 | AB177: 0.5140934333 | AC177: 0.5187093247 | AD177: 0.5230830641 | AE177: 0.5272146515 | AF177: 0.5311040869 | AG177: 0.5347513703 | AH177: 0.5381565016 | AI177: 0.541319481 | AJ177: 0.5442403083 | AK177: 0.5469189836 | AL177: 0.549355507 | AM177: 0.5515498782 | AN177: 0.5535020975 | AO177: 0.5552121648 | AP177: 0.5566800801 | AQ177: 0.5579058433 | AR177: 0.5588894546 | AS177: 0.5596309138 | AT177: 0.560130221 | AU177: 0.5603873762
K178: TRG 5 - Mid | L178: 0.4073064995 | M178: 0.4116860434 | N178: 0.4159835596 | O178: 0.4201990474 | P178: 0.4243325066 | Q178: 0.4283839373 | R178: 0.4323533396 | S178: 0.4362407133 | T178: 0.4400460585 | U178: 0.4437693753 | V178: 0.4474106635 | W178: 0.4509699232 | X178: 0.4544471545 | Y178: 0.4578423572 | Z178: 0.4611555315 | AA178: 0.4643866772 | AB178: 0.4675357945 | AC178: 0.4706028832 | AD178: 0.4735879434 | AE178: 0.4764909752 | AF178: 0.4793119784 | AG178: 0.4820509532 | AH178: 0.4847078994 | AI178: 0.4872828172 | AJ178: 0.4897757064 | AK178: 0.4921865672 | AL178: 0.4945153994 | AM178: 0.4967622032 | AN178: 0.4989269785 | AO178: 0.5010097252 | AP178: 0.5030104435 | AQ178: 0.5049291332 | AR178: 0.5067657945 | AS178: 0.5085204272 | AT178: 0.5101930315 | AU178: 0.5117836073
K179: TRG 5 - High | L179: 0.4073064995 | M179: 0.4073064995 | N179: 0.4073064995 | O179: 0.4073064995 | P179: 0.4073064995 | Q179: 0.4073064995 | R179: 0.4073064995 | S179: 0.4073064995 | T179: 0.4073064995 | U179: 0.4073064995 | V179: 0.4073064995 | W179: 0.4073064995 | X179: 0.4073064995 | Y179: 0.4073064995 | Z179: 0.4073064995 | AA179: 0.4073064995 | AB179: 0.4073064995 | AC179: 0.4073064995 | AD179: 0.4073064995 | AE179: 0.4073064995 | AF179: 0.4073064995 | AG179: 0.4073064995 | AH179: 0.4073064995 | AI179: 0.4073064995 | AJ179: 0.4073064995 | AK179: 0.4073064995 | AL179: 0.4073064995 | AM179: 0.4073064995 | AN179: 0.4073064995 | AO179: 0.4073064995 | AP179: 0.4073064995 | AQ179: 0.4073064995 | AR179: 0.4073064995 | AS179: 0.4073064995 | AT179: 0.4073064995 | AU179: 0.4073064995
K180: TRG 6 - Low | L180: 0.36366572 | M180: 0.3737919698 | N180: 0.3836294123 | O180: 0.3931780445 | P180: 0.4024378665 | Q180: 0.4114088782 | R180: 0.4200910796 | S180: 0.4284844709 | T180: 0.4365890518 | U180: 0.4444048226 | V180: 0.451931783 | W180: 0.4591699333 | X180: 0.4661192732 | Y180: 0.472779803 | Z180: 0.4791515225 | AA180: 0.4852344317 | AB180: 0.4910285307 | AC180: 0.4965338194 | AD180: 0.5017502979 | AE180: 0.5066779662 | AF180: 0.5113168241 | AG180: 0.5156668719 | AH180: 0.5197281094 | AI180: 0.5235005367 | AJ180: 0.5269841537 | AK180: 0.5301789604 | AL180: 0.5330849569 | AM180: 0.5357021432 | AN180: 0.5380305192 | AO180: 0.540070085 | AP180: 0.5418208405 | AQ180: 0.5432827858 | AR180: 0.5444559208 | AS180: 0.5453402456 | AT180: 0.5459357601 | AU180: 0.5462424644
K181: TRG 6 - Mid | L181: 0.36366572 | M181: 0.3688891214 | N181: 0.3740146899 | O181: 0.3790424246 | P181: 0.3839723253 | Q181: 0.3888043922 | R181: 0.3935386252 | S181: 0.3981750243 | T181: 0.4027135895 | U181: 0.4071543209 | V181: 0.4114972183 | W181: 0.4157422819 | X181: 0.4198895116 | Y181: 0.4239389074 | Z181: 0.4278904694 | AA181: 0.4317441975 | AB181: 0.4355000916 | AC181: 0.4391581519 | AD181: 0.4427183784 | AE181: 0.4461807709 | AF181: 0.4495453295 | AG181: 0.4528120543 | AH181: 0.4559809452 | AI181: 0.4590520022 | AJ181: 0.4620252254 | AK181: 0.4649006146 | AL181: 0.46767817 | AM181: 0.4703578915 | AN181: 0.4729397791 | AO181: 0.4754238328 | AP181: 0.4778100526 | AQ181: 0.4800984386 | AR181: 0.4822889907 | AS181: 0.4843817089 | AT181: 0.4863765932 | AU181: 0.4882736436
K182: TRG 6 - High | L182: 0.36366572 | M182: 0.36366572 | N182: 0.36366572 | O182: 0.36366572 | P182: 0.36366572 | Q182: 0.36366572 | R182: 0.36366572 | S182: 0.36366572 | T182: 0.36366572 | U182: 0.36366572 | V182: 0.36366572 | W182: 0.36366572 | X182: 0.36366572 | Y182: 0.36366572 | Z182: 0.36366572 | AA182: 0.36366572 | AB182: 0.36366572 | AC182: 0.36366572 | AD182: 0.36366572 | AE182: 0.36366572 | AF182: 0.36366572 | AG182: 0.36366572 | AH182: 0.36366572 | AI182: 0.36366572 | AJ182: 0.36366572 | AK182: 0.36366572 | AL182: 0.36366572 | AM182: 0.36366572 | AN182: 0.36366572 | AO182: 0.36366572 | AP182: 0.36366572 | AQ182: 0.36366572 | AR182: 0.36366572 | AS182: 0.36366572 | AT182: 0.36366572 | AU182: 0.36366572
K183: TRG 7 - Low | L183: 0.3081779447 | M183: 0.3186839455 | N183: 0.3288903081 | O183: 0.3387970297 | P183: 0.3484041102 | Q183: 0.3577115495 | R183: 0.3667193478 | S183: 0.3754275049 | T183: 0.383836021 | U183: 0.3919448959 | V183: 0.3997541297 | W183: 0.4072637224 | X183: 0.4144736741 | Y183: 0.4213839846 | Z183: 0.427994654 | AA183: 0.4343056823 | AB183: 0.4403170695 | AC183: 0.4460288156 | AD183: 0.4514409206 | AE183: 0.4565533844 | AF183: 0.4613662072 | AG183: 0.4658793889 | AH183: 0.4700929294 | AI183: 0.4740068289 | AJ183: 0.4776210873 | AK183: 0.4809357045 | AL183: 0.4839506806 | AM183: 0.4866660157 | AN183: 0.4890817096 | AO183: 0.4911977624 | AP183: 0.4930141742 | AQ183: 0.4945309448 | AR183: 0.4957480743 | AS183: 0.4966655627 | AT183: 0.49728341 | AU183: 0.4976016162
K184: TRG 7 - Mid | L184: 0.3081779447 | M184: 0.3135972322 | N184: 0.3189150179 | O184: 0.3241313008 | P184: 0.329246081 | Q184: 0.3342593583 | R184: 0.3391711327 | S184: 0.3439814044 | T184: 0.3486901733 | U184: 0.3532974393 | V184: 0.3578032026 | W184: 0.362207463 | X184: 0.3665102206 | Y184: 0.3707114754 | Z184: 0.3748112274 | AA184: 0.3788094766 | AB184: 0.382706223 | AC184: 0.3865014665 | AD184: 0.3901952073 | AE184: 0.3937874452 | AF184: 0.3972781803 | AG184: 0.4006674126 | AH184: 0.4039551421 | AI184: 0.4071413688 | AJ184: 0.4102260927 | AK184: 0.4132093137 | AL184: 0.416091032 | AM184: 0.4188712474 | AN184: 0.42154996 | AO184: 0.4241271699 | AP184: 0.4266028769 | AQ184: 0.428977081 | AR184: 0.4312497824 | AS184: 0.433420981 | AT184: 0.4354906767 | AU184: 0.4374588697
K185: TRG 7 - High | L185: 0.3081779447 | M185: 0.3081779447 | N185: 0.3081779447 | O185: 0.3081779447 | P185: 0.3081779447 | Q185: 0.3081779447 | R185: 0.3081779447 | S185: 0.3081779447 | T185: 0.3081779447 | U185: 0.3081779447 | V185: 0.3081779447 | W185: 0.3081779447 | X185: 0.3081779447 | Y185: 0.3081779447 | Z185: 0.3081779447 | AA185: 0.3081779447 | AB185: 0.3081779447 | AC185: 0.3081779447 | AD185: 0.3081779447 | AE185: 0.3081779447 | AF185: 0.3081779447 | AG185: 0.3081779447 | AH185: 0.3081779447 | AI185: 0.3081779447 | AJ185: 0.3081779447 | AK185: 0.3081779447 | AL185: 0.3081779447 | AM185: 0.3081779447 | AN185: 0.3081779447 | AO185: 0.3081779447 | AP185: 0.3081779447 | AQ185: 0.3081779447 | AR185: 0.3081779447 | AS185: 0.3081779447 | AT185: 0.3081779447 | AU185: 0.3081779447
K186: TRG 8 - Low | L186: 0.2456560194 | M186: 0.2549525473 | N186: 0.263983932 | O186: 0.2727501709 | P186: 0.281251264 | Q186: 0.2894872114 | R186: 0.2974580129 | S186: 0.3051636687 | T186: 0.3126041786 | U186: 0.3197795428 | V186: 0.3266897612 | W186: 0.3333348338 | X186: 0.3397147606 | Y186: 0.3458295416 | Z186: 0.3516791768 | AA186: 0.3572636663 | AB186: 0.3625830099 | AC186: 0.3676372077 | AD186: 0.3724262598 | AE186: 0.3769501661 | AF186: 0.3812089266 | AG186: 0.3852025413 | AH186: 0.3889310101 | AI186: 0.3923943333 | AJ186: 0.3955925106 | AK186: 0.3985255421 | AL186: 0.4011934278 | AM186: 0.4035961678 | AN186: 0.4057337619 | AO186: 0.4076062103 | AP186: 0.4092135129 | AQ186: 0.4105556697 | AR186: 0.4116326807 | AS186: 0.4124445459 | AT186: 0.4129912653 | AU186: 0.4132728389
K187: TRG 8 - Mid | L187: 0.2456560194 | M187: 0.2504514272 | N187: 0.2551570182 | O187: 0.2597727917 | P187: 0.2642987475 | Q187: 0.2687348858 | R187: 0.2730812064 | S187: 0.2773377095 | T187: 0.281504395 | U187: 0.2855812629 | V187: 0.2895683131 | W187: 0.2934655458 | X187: 0.2972729609 | Y187: 0.3009905584 | Z187: 0.3046183383 | AA187: 0.3081563007 | AB187: 0.3116044454 | AC187: 0.3149627725 | AD187: 0.318231282 | AE187: 0.321409974 | AF187: 0.3244988483 | AG187: 0.327497905 | AH187: 0.3304071442 | AI187: 0.3332265658 | AJ187: 0.3359561697 | AK187: 0.3385959561 | AL187: 0.3411459249 | AM187: 0.343606076 | AN187: 0.3459764096 | AO187: 0.3482569256 | AP187: 0.350447624 | AQ187: 0.3525485048 | AR187: 0.354559568 | AS187: 0.3564808136 | AT187: 0.3583122416 | AU187: 0.3600538521
K188: TRG 8 - High | L188: 0.2456560194 | M188: 0.2456560194 | N188: 0.2456560194 | O188: 0.2456560194 | P188: 0.2456560194 | Q188: 0.2456560194 | R188: 0.2456560194 | S188: 0.2456560194 | T188: 0.2456560194 | U188: 0.2456560194 | V188: 0.2456560194 | W188: 0.2456560194 | X188: 0.2456560194 | Y188: 0.2456560194 | Z188: 0.2456560194 | AA188: 0.2456560194 | AB188: 0.2456560194 | AC188: 0.2456560194 | AD188: 0.2456560194 | AE188: 0.2456560194 | AF188: 0.2456560194 | AG188: 0.2456560194 | AH188: 0.2456560194 | AI188: 0.2456560194 | AJ188: 0.2456560194 | AK188: 0.2456560194 | AL188: 0.2456560194 | AM188: 0.2456560194 | AN188: 0.2456560194 | AO188: 0.2456560194 | AP188: 0.2456560194 | AQ188: 0.2456560194 | AR188: 0.2456560194 | AS188: 0.2456560194 | AT188: 0.2456560194 | AU188: 0.2456560194
K189: TRG 9 - Low | L189: 0.1825154944 | M189: 0.1920293448 | N189: 0.2012718539 | O189: 0.210243019 | P189: 0.21894284 | Q189: 0.2273713169 | R189: 0.2355284499 | S189: 0.2434142388 | T189: 0.2510286837 | U189: 0.2583717845 | V189: 0.2654435413 | W189: 0.2722439541 | X189: 0.2787730228 | Y189: 0.2850307475 | Z189: 0.2910171281 | AA189: 0.2967321648 | AB189: 0.3021758574 | AC189: 0.3073482059 | AD189: 0.3122492104 | AE189: 0.3168788709 | AF189: 0.3212371873 | AG189: 0.3253241597 | AH189: 0.3291397881 | AI189: 0.3326840724 | AJ189: 0.3359570127 | AK189: 0.338958609 | AL189: 0.3416888612 | AM189: 0.3441477694 | AN189: 0.3463353336 | AO189: 0.3482515537 | AP189: 0.3498964298 | AQ189: 0.3512699618 | AR189: 0.3523721498 | AS189: 0.3532029938 | AT189: 0.3537624937 | AU189: 0.3540506496
K190: TRG 9 - Mid | L190: 0.1825154944 | M190: 0.1874230031 | N190: 0.1922385956 | O190: 0.1969622708 | P190: 0.2015940288 | Q190: 0.2061338695 | R190: 0.210581793 | S190: 0.2149377993 | T190: 0.2192018883 | U190: 0.2233740601 | V190: 0.2274543146 | W190: 0.2314426519 | X190: 0.235339072 | Y190: 0.2391435748 | Z190: 0.2428561604 | AA190: 0.2464768288 | AB190: 0.2500055799 | AC190: 0.2534424138 | AD190: 0.2567873304 | AE190: 0.2600403298 | AF190: 0.263201412 | AG190: 0.2662705769 | AH190: 0.2692478246 | AI190: 0.2721331551 | AJ190: 0.2749265683 | AK190: 0.2776280643 | AL190: 0.280237643 | AM190: 0.2827553045 | AN190: 0.2851810488 | AO190: 0.2875148758 | AP190: 0.2897567856 | AQ190: 0.2919067782 | AR190: 0.2939648535 | AS190: 0.2959310116 | AT190: 0.2978052524 | AU190: 0.299587576
K191: TRG 9 - High | L191: 0.1825154944 | M191: 0.1825154944 | N191: 0.1825154944 | O191: 0.1825154944 | P191: 0.1825154944 | Q191: 0.1825154944 | R191: 0.1825154944 | S191: 0.1825154944 | T191: 0.1825154944 | U191: 0.1825154944 | V191: 0.1825154944 | W191: 0.1825154944 | X191: 0.1825154944 | Y191: 0.1825154944 | Z191: 0.1825154944 | AA191: 0.1825154944 | AB191: 0.1825154944 | AC191: 0.1825154944 | AD191: 0.1825154944 | AE191: 0.1825154944 | AF191: 0.1825154944 | AG191: 0.1825154944 | AH191: 0.1825154944 | AI191: 0.1825154944 | AJ191: 0.1825154944 | AK191: 0.1825154944 | AL191: 0.1825154944 | AM191: 0.1825154944 | AN191: 0.1825154944 | AO191: 0.1825154944 | AP191: 0.1825154944 | AQ191: 0.1825154944 | AR191: 0.1825154944 | AS191: 0.1825154944 | AT191: 0.1825154944 | AU191: 0.1825154944
K192: TRG 10 - Low | L192: 0.1110495503 | M192: 0.1178968658 | N192: 0.1245488912 | O192: 0.1310056247 | P192: 0.1372670663 | Q192: 0.143333216 | R192: 0.1492040737 | S192: 0.1548796395 | T192: 0.1603599134 | U192: 0.1656448953 | V192: 0.1707345854 | W192: 0.1756289834 | X192: 0.1803280896 | Y192: 0.1848319038 | Z192: 0.1891404261 | AA192: 0.1932536565 | AB192: 0.1971715949 | AC192: 0.2008942414 | AD192: 0.204421596 | AE192: 0.2077536587 | AF192: 0.2108904294 | AG192: 0.2138319082 | AH192: 0.216578095 | AI192: 0.21912899 | AJ192: 0.221484593 | AK192: 0.223644904 | AL192: 0.2256099232 | AM192: 0.2273796504 | AN192: 0.2289540857 | AO192: 0.230333229 | AP192: 0.2315170804 | AQ192: 0.2325056399 | AR192: 0.2332989075 | AS192: 0.2338968831 | AT192: 0.2342995668 | AU192: 0.2345069586
K193: TRG 10 - Mid | L193: 0.1110495503 | M193: 0.1145815861 | N193: 0.1180474679 | O193: 0.1214471949 | P193: 0.1247807672 | Q193: 0.1280481847 | R193: 0.1312494474 | S193: 0.1343845555 | T193: 0.1374535088 | U193: 0.1404563073 | V193: 0.1433929511 | W193: 0.1462634402 | X193: 0.1490677745 | Y193: 0.1518059541 | Z193: 0.1544779789 | AA193: 0.157083849 | AB193: 0.1596235644 | AC193: 0.162097125 | AD193: 0.1645045309 | AE193: 0.166845782 | AF193: 0.1691208784 | AG193: 0.17132982 | AH193: 0.173472607 | AI193: 0.1755492391 | AJ193: 0.1775597165 | AK193: 0.1795040392 | AL193: 0.1813822071 | AM193: 0.1831942203 | AN193: 0.1849400788 | AO193: 0.1866197825 | AP193: 0.1882333315 | AQ193: 0.1897807257 | AR193: 0.1912619652 | AS193: 0.1926770499 | AT193: 0.1940259799 | AU193: 0.1953087552
K194: TRG 10 - High | L194: 0.1110495503 | M194: 0.1110495503 | N194: 0.1110495503 | O194: 0.1110495503 | P194: 0.1110495503 | Q194: 0.1110495503 | R194: 0.1110495503 | S194: 0.1110495503 | T194: 0.1110495503 | U194: 0.1110495503 | V194: 0.1110495503 | W194: 0.1110495503 | X194: 0.1110495503 | Y194: 0.1110495503 | Z194: 0.1110495503 | AA194: 0.1110495503 | AB194: 0.1110495503 | AC194: 0.1110495503 | AD194: 0.1110495503 | AE194: 0.1110495503 | AF194: 0.1110495503 | AG194: 0.1110495503 | AH194: 0.1110495503 | AI194: 0.1110495503 | AJ194: 0.1110495503 | AK194: 0.1110495503 | AL194: 0.1110495503 | AM194: 0.1110495503 | AN194: 0.1110495503 | AO194: 0.1110495503 | AP194: 0.1110495503 | AQ194: 0.1110495503 | AR194: 0.1110495503 | AS194: 0.1110495503 | AT194: 0.1110495503 | AU194: 0.1110495503
L196: 2015 | M196: 2016 | N196: 2017 | O196: 2018 | P196: 2019 | Q196: 2020 | R196: 2021 | S196: 2022 | T196: 2023 | U196: 2024 | V196: 2025 | W196: 2026 | X196: 2027 | Y196: 2028 | Z196: 2029 | AA196: 2030 | AB196: 2031 | AC196: 2032 | AD196: 2033 | AE196: 2034 | AF196: 2035 | AG196: 2036 | AH196: 2037 | AI196: 2038 | AJ196: 2039 | AK196: 2040 | AL196: 2041 | AM196: 2042 | AN196: 2043 | AO196: 2044 | AP196: 2045 | AQ196: 2046 | AR196: 2047 | AS196: 2048 | AT196: 2049 | AU196: 2050
J197: Annual Energy Production (kWh/kW) | K197: TRG 1 - Low | L197: =(L165)*8760 -> 4148.050197 | M197: 4200.472217 | N197: 4251.399126 | O197: 4300.83091 | P197: 4348.767568 | Q197: 4395.2091 | R197: 4440.155506 | S197: 4483.606787 | T197: 4525.562942 | U197: 4566.023971 | V197: 4604.989874 | W197: 4642.460652 | X197: 4678.436304 | Y197: 4712.91683 | Z197: 4745.902231 | AA197: 4777.392506 | AB197: 4807.387655 | AC197: 4835.887678 | AD197: 4862.892576 | AE197: 4888.402348 | AF197: 4912.416994 | AG197: 4934.936514 | AH197: 4955.960909 | AI197: 4975.490178 | AJ197: 4993.524321 | AK197: 5010.063339 | AL197: 5025.107231 | AM197: 5038.655997 | AN197: 5050.709637 | AO197: 5061.268152 | AP197: 5070.331541 | AQ197: 5077.899804 | AR197: 5083.972942 | AS197: 5088.550954 | AT197: 5091.63384 | AU197: 5093.2216
K198: TRG 1 - Mid | L198: 4148.050197 | M198: 4175.090933 | N198: 4201.625204 | O198: 4227.653004 | P198: 4253.174334 | Q198: 4278.189192 | R198: 4302.69758 | S198: 4326.699497 | T198: 4350.194943 | U198: 4373.183918 | V198: 4395.666423 | W198: 4417.642457 | X198: 4439.11202 | Y198: 4460.075112 | Z198: 4480.531733 | AA198: 4500.481884 | AB198: 4519.925564 | AC198: 4538.862773 | AD198: 4557.293511 | AE198: 4575.217779 | AF198: 4592.635576 | AG198: 4609.546902 | AH198: 4625.951757 | AI198: 4641.850141 | AJ198: 4657.242055 | AK198: 4672.127498 | AL198: 4686.50647 | AM198: 4700.378971 | AN198: 4713.745002 | AO198: 4726.604561 | AP198: 4738.95765 | AQ198: 4750.804268 | AR198: 4762.144416 | AS198: 4772.978092 | AT198: 4783.305298 | AU198: 4793.126033
K199: TRG 1 - High | L199: 4148.050197 | M199: 4148.050197 | N199: 4148.050197 | O199: 4148.050197 | P199: 4148.050197 | Q199: 4148.050197 | R199: 4148.050197 | S199: 4148.050197 | T199: 4148.050197 | U199: 4148.050197 | V199: 4148.050197 | W199: 4148.050197 | X199: 4148.050197 | Y199: 4148.050197 | Z199: 4148.050197 | AA199: 4148.050197 | AB199: 4148.050197 | AC199: 4148.050197 | AD199: 4148.050197 | AE199: 4148.050197 | AF199: 4148.050197 | AG199: 4148.050197 | AH199: 4148.050197 | AI199: 4148.050197 | AJ199: 4148.050197 | AK199: 4148.050197 | AL199: 4148.050197 | AM199: 4148.050197 | AN199: 4148.050197 | AO199: 4148.050197 | AP199: 4148.050197 | AQ199: 4148.050197 | AR199: 4148.050197 | AS199: 4148.050197 | AT199: 4148.050197 | AU199: 4148.050197
K200: TRG 2 - Low | L200: 4046.806631 | M200: 4100.172778 | N200: 4152.016887 | O200: 4202.338943 | P200: 4251.138946 | Q200: 4298.416896 | R200: 4344.172793 | S200: 4388.406636 | T200: 4431.118427 | U200: 4472.308164 | V200: 4511.975848 | W200: 4550.121479 | X200: 4586.745057 | Y200: 4621.846582 | Z200: 4655.426054 | AA200: 4687.483473 | AB200: 4718.018838 | AC200: 4747.03215 | AD200: 4774.52341 | AE200: 4800.492616 | AF200: 4824.939769 | AG200: 4847.864869 | AH200: 4869.267915 | AI200: 4889.148909 | AJ200: 4907.507849 | AK200: 4924.344737 | AL200: 4939.659571 | AM200: 4953.452352 | AN200: 4965.72308 | AO200: 4976.471755 | AP200: 4985.698377 | AQ200: 4993.402945 | AR200: 4999.585461 | AS200: 5004.245923 | AT200: 5007.384332 | AU200: 5009.000688
K201: TRG 2 - Mid | L201: 4046.806631 | M201: 4074.334374 | N201: 4101.346531 | O201: 4127.843095 | P201: 4153.824066 | Q201: 4179.289445 | R201: 4204.239232 | S201: 4228.673427 | T201: 4252.592029 | U201: 4275.995038 | V201: 4298.882456 | W201: 4321.254281 | X201: 4343.110513 | Y201: 4364.451153 | Z201: 4385.276201 | AA201: 4405.585656 | AB201: 4425.379519 | AC201: 4444.65779 | AD201: 4463.420468 | AE201: 4481.667554 | AF201: 4499.399047 | AG201: 4516.614948 | AH201: 4533.315257 | AI201: 4549.499973 | AJ201: 4565.169097 | AK201: 4580.322629 | AL201: 4594.960568 | AM201: 4609.082915 | AN201: 4622.689669 | AO201: 4635.780831 | AP201: 4648.356401 | AQ201: 4660.416378 | AR201: 4671.960763 | AS201: 4682.989555 | AT201: 4693.502755 | AU201: 4703.500363
K202: TRG 2 - High | L202: 4046.806631 | M202: 4046.806631 | N202: 4046.806631 | O202: 4046.806631 | P202: 4046.806631 | Q202: 4046.806631 | R202: 4046.806631 | S202: 4046.806631 | T202: 4046.806631 | U202: 4046.806631 | V202: 4046.806631 | W202: 4046.806631 | X202: 4046.806631 | Y202: 4046.806631 | Z202: 4046.806631 | AA202: 4046.806631 | AB202: 4046.806631 | AC202: 4046.806631 | AD202: 4046.806631 | AE202: 4046.806631 | AF202: 4046.806631 | AG202: 4046.806631 | AH202: 4046.806631 | AI202: 4046.806631 | AJ202: 4046.806631 | AK202: 4046.806631 | AL202: 4046.806631 | AM202: 4046.806631 | AN202: 4046.806631 | AO202: 4046.806631 | AP202: 4046.806631 | AQ202: 4046.806631 | AR202: 4046.806631 | AS202: 4046.806631 | AT202: 4046.806631 | AU202: 4046.806631
K203: TRG 3 - Low | L203: 3939.318883 | M203: 4000.123122 | N203: 4059.193184 | O203: 4116.529051 | P203: 4172.130723 | Q203: 4225.998201 | R203: 4278.131484 | S203: 4328.530573 | T203: 4377.195467 | U203: 4424.126167 | V203: 4469.322672 | W203: 4512.784983 | X203: 4554.513099 | Y203: 4594.50702 | Z203: 4632.766747 | AA203: 4669.292279 | AB203: 4704.083617 | AC203: 4737.140761 | AD203: 4768.463709 | AE203: 4798.052463 | AF203: 4825.907023 | AG203: 4852.027388 | AH203: 4876.413559 | AI203: 4899.065534 | AJ203: 4919.983316 | AK203: 4939.166903 | AL203: 4956.616295 | AM203: 4972.331493 | AN203: 4986.312496 | AO203: 4998.559305 | AP203: 5009.071919 | AQ203: 5017.850338 | AR203: =(AR171)*8760 -> 5024.894563 | AS203: 5030.204594 | AT203: 5033.78043 | AU203: 5035.622071
K204: TRG 3 - Mid | L204: =(L172)*8760 -> 3939.318883 | M204: 3970.683402 | N204: 4001.460471 | O204: 4031.650085 | P204: 4061.252245 | Q204: 4090.266949 | R204: 4118.694199 | S204: 4146.533994 | T204: 4173.786334 | U204: 4200.451219 | V204: 4226.52865 | W204: 4252.018625 | X204: 4276.921146 | Y204: 4301.236212 | Z204: 4324.963823 | AA204: 4348.103979 | AB204: 4370.65668 | AC204: 4392.621926 | AD204: 4413.999718 | AE204: 4434.790054 | AF204: 4454.992936 | AG204: 4474.608363 | AH204: 4493.636335 | AI204: 4512.076852 | AJ204: 4529.929915 | AK204: 4547.195522 | AL204: 4563.873675 | AM204: 4579.964372 | AN204: 4595.467615 | AO204: 4610.383403 | AP204: 4624.711736 | AQ204: 4638.452615 | AR204: 4651.606038 | AS204: 4664.172007 | AT204: 4676.15052 | AU204: 4687.541579
K205: TRG 3 - High | L205: 3939.318883 | M205: 3939.318883 | N205: 3939.318883 | O205: 3939.318883 | P205: 3939.318883 | Q205: 3939.318883 | R205: 3939.318883 | S205: 3939.318883 | T205: 3939.318883 | U205: 3939.318883 | V205: 3939.318883 | W205: 3939.318883 | X205: 3939.318883 | Y205: 3939.318883 | Z205: 3939.318883 | AA205: 3939.318883 | AB205: 3939.318883 | AC205: 3939.318883 | AD205: 3939.318883 | AE205: 3939.318883 | AF205: 3939.318883 | AG205: 3939.318883 | AH205: 3939.318883 | AI205: 3939.318883 | AJ205: 3939.318883 | AK205: 3939.318883 | AL205: 3939.318883 | AM205: 3939.318883 | AN205: 3939.318883 | AO205: 3939.318883 | AP205: 3939.318883 | AQ205: 3939.318883 | AR205: 3939.318883 | AS205: 3939.318883 | AT205: 3939.318883 | AU205: 3939.318883
K206: TRG 4 - Low | L206: 3812.553219 | M206: 3876.0677 | N206: 3937.770706 | O206: 3997.662218 | P206: 4055.742237 | Q206: 4112.010763 | R206: 4166.467796 | S206: 4219.113335 | T206: 4269.947381 | U206: 4318.969934 | V206: 4366.180994 | W206: 4411.580561 | X206: 4455.168634 | Y206: 4496.945214 | Z206: 4536.910301 | AA206: 4575.063895 | AB206: 4611.405995 | AC206: 4645.936602 | AD206: 4678.655716 | AE206: 4709.563337 | AF206: 4738.659465 | AG206: 4765.944099 | AH206: 4791.41724 | AI206: 4815.078888 | AJ206: 4836.929043 | AK206: 4856.967704 | AL206: 4875.194872 | AM206: 4891.610547 | AN206: 4906.214729 | AO206: 4919.007418 | AP206: 4929.988613 | AQ206: 4939.158315 | AR206: 4946.516524 | AS206: 4952.06324 | AT206: 4955.798462 | AU206: 4957.722192
K207: TRG 4 - Mid | L207: 3812.553219 | M207: 3845.315756 | N207: 3877.464659 | O207: 3908.999922 | P207: 3939.921546 | Q207: 3970.22953 | R207: 3999.923874 | S207: 4029.004579 | T207: 4057.471644 | U207: 4085.32507 | V207: 4112.564856 | W207: 4139.191002 | X207: 4165.203508 | Y207: 4190.602376 | Z207: 4215.387603 | AA207: 4239.559191 | AB207: 4263.117139 | AC207: 4286.061447 | AD207: 4308.392116 | AE207: 4330.109146 | AF207: 4351.212535 | AG207: 4371.702285 | AH207: 4391.578396 | AI207: 4410.840866 | AJ207: 4429.489698 | AK207: 4447.524889 | AL207: 4464.946441 | AM207: 4481.754353 | AN207: 4497.948626 | AO207: 4513.529259 | AP207: 4528.496252 | AQ207: 4542.849606 | AR207: 4556.58932 | AS207: 4569.715395 | AT207: 4582.22783 | AU207: 4594.126625
K208: TRG 4 - High | L208: 3812.553219 | M208: 3812.553219 | N208: 3812.553219 | O208: 3812.553219 | P208: 3812.553219 | Q208: 3812.553219 | R208: 3812.553219 | S208: 3812.553219 | T208: 3812.553219 | U208: 3812.553219 | V208: 3812.553219 | W208: 3812.553219 | X208: 3812.553219 | Y208: 3812.553219 | Z208: 3812.553219 | AA208: 3812.553219 | AB208: 3812.553219 | AC208: 3812.553219 | AD208: 3812.553219 | AE208: 3812.553219 | AF208: 3812.553219 | AG208: 3812.553219 | AH208: 3812.553219 | AI208: 3812.553219 | AJ208: 3812.553219 | AK208: 3812.553219 | AL208: 3812.553219 | AM208: 3812.553219 | AN208: 3812.553219 | AO208: 3812.553219 | AP208: 3812.553219 | AQ208: 3812.553219 | AR208: 3812.553219 | AS208: 3812.553219 | AT208: 3812.553219 | AU208: 3812.553219
K209: TRG 5 - Low | L209: 3568.004936 | M209: 3642.380149 | N209: 3714.634132 | O209: 3784.766864 | P209: 3852.778344 | Q209: 3918.668572 | R209: 3982.437549 | S209: 4044.085274 | T209: 4103.611747 | U209: 4161.016969 | V209: 4216.300939 | W209: 4269.463658 | X209: 4320.505125 | Y209: 4369.42534 | Z209: 4416.224304 | AA209: 4460.902016 | AB209: 4503.458476 | AC209: 4543.893685 | AD209: 4582.207642 | AE209: 4618.400347 | AF209: 4652.471801 | AG209: 4684.422004 | AH209: 4714.250954 | AI209: 4741.958653 | AJ209: 4767.545101 | AK209: 4791.010297 | AL209: 4812.354241 | AM209: 4831.576933 | AN209: 4848.678374 | AO209: 4863.658564 | AP209: 4876.517501 | AQ209: 4887.255188 | AR209: 4895.871622 | AS209: 4902.366805 | AT209: 4906.740736 | AU209: 4908.993416
K210: TRG 5 - Mid | L210: 3568.004936 | M210: 3606.36974 | N210: 3644.015982 | O210: 3680.943655 | P210: 3717.152758 | Q210: 3752.643291 | R210: 3787.415255 | S210: 3821.468648 | T210: 3854.803473 | U210: 3887.419727 | V210: 3919.317412 | W210: 3950.496528 | X210: 3980.957073 | Y210: 4010.699049 | Z210: 4039.722456 | AA210: 4068.027292 | AB210: 4095.613559 | AC210: 4122.481257 | AD210: 4148.630385 | AE210: 4174.060943 | AF210: 4198.772931 | AG210: 4222.76635 | AH210: 4246.041199 | AI210: 4268.597479 | AJ210: 4290.435188 | AK210: 4311.554329 | AL210: 4331.954899 | AM210: 4351.6369 | AN210: 4370.600331 | AO210: 4388.845193 | AP210: 4406.371485 | AQ210: 4423.179207 | AR210: 4439.26836 | AS210: 4454.638943 | AT210: 4469.290956 | AU210: 4483.2244
K211: TRG 5 - High | L211: 3568.004936 | M211: 3568.004936 | N211: 3568.004936 | O211: 3568.004936 | P211: 3568.004936 | Q211: 3568.004936 | R211: 3568.004936 | S211: 3568.004936 | T211: 3568.004936 | U211: 3568.004936 | V211: 3568.004936 | W211: 3568.004936 | X211: 3568.004936 | Y211: 3568.004936 | Z211: 3568.004936 | AA211: 3568.004936 | AB211: 3568.004936 | AC211: 3568.004936 | AD211: 3568.004936 | AE211: 3568.004936 | AF211: 3568.004936 | AG211: 3568.004936 | AH211: 3568.004936 | AI211: =(AI179)*8760 -> 3568.004936 | AJ211: 3568.004936 | AK211: 3568.004936 | AL211: 3568.004936 | AM211: 3568.004936 | AN211: 3568.004936 | AO211: 3568.004936 | AP211: 3568.004936 | AQ211: 3568.004936 | AR211: 3568.004936 | AS211: 3568.004936 | AT211: 3568.004936 | AU211: 3568.004936
K212: TRG 6 - Low | L212: =(L180)*8760 -> 3185.711707 | M212: 3274.417656 | N212: 3360.593652 | O212: 3444.23967 | P212: 3525.35571 | Q212: 3603.941773 | R212: 3679.997858 | S212: 3753.523965 | T212: 3824.520094 | U212: 3892.986246 | V212: 3958.922419 | W212: 4022.328615 | X212: 4083.204834 | Y212: 4141.551074 | Z212: 4197.367337 | AA212: 4250.653622 | AB212: 4301.409929 | AC212: 4349.636258 | AD212: 4395.33261 | AE212: 4438.498983 | AF212: 4479.13538 | AG212: 4517.241798 | AH212: 4552.818238 | AI212: 4585.864701 | AJ212: 4616.381186 | AK212: 4644.367693 | AL212: 4669.824223 | AM212: 4692.750774 | AN212: 4713.147348 | AO212: 4731.013944 | AP212: 4746.350563 | AQ212: 4759.157203 | AR212: 4769.433866 | AS212: 4777.180551 | AT212: 4782.397258 | AU212: 4785.083988
K213: TRG 6 - Mid | L213: 3185.711707 | M213: 3231.468704 | N213: 3276.368684 | O213: 3320.411639 | P213: 3363.59757 | Q213: 3405.926476 | R213: 3447.398357 | S213: 3488.013213 | T213: 3527.771044 | U213: 3566.671851 | V213: 3604.715633 | W213: 3641.90239 | X213: 3678.232122 | Y213: 3713.704829 | Z213: 3748.320512 | AA213: 3782.07917 | AB213: 3814.980803 | AC213: 3847.025411 | AD213: 3878.212994 | AE213: 3908.543553 | AF213: 3938.017087 | AG213: 3966.633596 | AH213: 3994.39308 | AI213: 4021.295539 | AJ213: 4047.340974 | AK213: 4072.529384 | AL213: 4096.860769 | AM213: 4120.335129 | AN213: 4142.952465 | AO213: 4164.712775 | AP213: 4185.616061 | AQ213: 4205.662322 | AR213: 4224.851558 | AS213: 4243.18377 | AT213: 4260.658956 | AU213: 4277.277118
K214: TRG 6 - High | L214: 3185.711707 | M214: 3185.711707 | N214: 3185.711707 | O214: 3185.711707 | P214: 3185.711707 | Q214: 3185.711707 | R214: 3185.711707 | S214: 3185.711707 | T214: 3185.711707 | U214: 3185.711707 | V214: 3185.711707 | W214: 3185.711707 | X214: 3185.711707 | Y214: 3185.711707 | Z214: 3185.711707 | AA214: 3185.711707 | AB214: 3185.711707 | AC214: 3185.711707 | AD214: 3185.711707 | AE214: 3185.711707 | AF214: 3185.711707 | AG214: 3185.711707 | AH214: 3185.711707 | AI214: 3185.711707 | AJ214: 3185.711707 | AK214: 3185.711707 | AL214: 3185.711707 | AM214: 3185.711707 | AN214: 3185.711707 | AO214: 3185.711707 | AP214: 3185.711707 | AQ214: 3185.711707 | AR214: 3185.711707 | AS214: 3185.711707 | AT214: 3185.711707 | AU214: 3185.711707
K215: TRG 7 - Low | L215: 2699.638795 | M215: 2791.671362 | N215: 2881.079099 | O215: 2967.86198 | P215: 3052.020005 | Q215: 3133.553174 | R215: 3212.461486 | S215: 3288.744943 | T215: 3362.403544 | U215: 3433.437288 | V215: 3501.846176 | W215: 3567.630209 | X215: 3630.789385 | Y215: 3691.323705 | Z215: 3749.233169 | AA215: 3804.517777 | AB215: 3857.177529 | AC215: 3907.212424 | AD215: 3954.622464 | AE215: 3999.407648 | AF215: 4041.567975 | AG215: 4081.103447 | AH215: 4118.014062 | AI215: 4152.299821 | AJ215: 4183.960724 | AK215: 4212.996771 | AL215: 4239.407962 | AM215: 4263.194297 | AN215: 4284.355776 | AO215: 4302.892399 | AP215: 4318.804166 | AQ215: 4332.091076 | AR215: 4342.753131 | AS215: 4350.790329 | AT215: 4356.202671 | AU215: 4358.990158
K216: TRG 7 - Mid | L216: 2699.638795 | M216: 2747.111754 | N216: 2793.695557 | O216: 2839.390195 | P216: 2884.195669 | Q216: 2928.111978 | R216: 2971.139123 | S216: 3013.277103 | T216: 3054.525918 | U216: 3094.885569 | V216: 3134.356055 | W216: 3172.937376 | X216: 3210.629533 | Y216: 3247.432525 | Z216: 3283.346352 | AA216: 3318.371015 | AB216: 3352.506513 | AC216: 3385.752847 | AD216: 3418.110016 | AE216: 3449.57802 | AF216: 3480.15686 | AG216: 3509.846535 | AH216: 3538.647045 | AI216: 3566.558391 | AJ216: 3593.580572 | AK216: 3619.713588 | AL216: 3644.95744 | AM216: 3669.312127 | AN216: 3692.77765 | AO216: 3715.354008 | AP216: 3737.041201 | AQ216: 3757.83923 | AR216: 3777.748094 | AS216: 3796.767793 | AT216: 3814.898328 | AU216: 3832.139698
K217: TRG 7 - High | L217: 2699.638795 | M217: 2699.638795 | N217: 2699.638795 | O217: 2699.638795 | P217: 2699.638795 | Q217: 2699.638795 | R217: 2699.638795 | S217: 2699.638795 | T217: 2699.638795 | U217: 2699.638795 | V217: 2699.638795 | W217: 2699.638795 | X217: 2699.638795 | Y217: 2699.638795 | Z217: 2699.638795 | AA217: 2699.638795 | AB217: 2699.638795 | AC217: 2699.638795 | AD217: 2699.638795 | AE217: 2699.638795 | AF217: 2699.638795 | AG217: 2699.638795 | AH217: 2699.638795 | AI217: 2699.638795 | AJ217: 2699.638795 | AK217: 2699.638795 | AL217: 2699.638795 | AM217: 2699.638795 | AN217: 2699.638795 | AO217: 2699.638795 | AP217: 2699.638795 | AQ217: 2699.638795 | AR217: 2699.638795 | AS217: 2699.638795 | AT217: 2699.638795 | AU217: 2699.638795
K218: TRG 8 - Low | L218: 2151.94673 | M218: 2233.384314 | N218: 2312.499244 | O218: 2389.291497 | P218: 2463.761073 | Q218: 2535.907972 | R218: 2605.732193 | S218: 2673.233738 | T218: 2738.412605 | U218: 2801.268795 | V218: 2861.802308 | W218: 2920.013144 | X218: 2975.901303 | Y218: 3029.466784 | Z218: 3080.709589 | AA218: 3129.629716 | AB218: 3176.227167 | AC218: 3220.50194 | AD218: 3262.454036 | AE218: 3302.083455 | AF218: 3339.390197 | AG218: 3374.374261 | AH218: 3407.035649 | AI218: 3437.374359 | AJ218: 3465.390393 | AK218: 3491.083749 | AL218: 3514.454428 | AM218: 3535.50243 | AN218: 3554.227755 | AO218: 3570.630402 | AP218: 3584.710373 | AQ218: 3596.467666 | AR218: 3605.902283 | AS218: 3613.014222 | AT218: 3617.803484 | AU218: 3620.270069
K219: TRG 8 - Mid | L219: 2151.94673 | M219: 2193.954502 | N219: 2235.17548 | O219: 2275.609655 | P219: 2315.257028 | Q219: 2354.117599 | R219: 2392.191368 | S219: 2429.478335 | T219: 2465.9785 | U219: 2501.691863 | V219: 2536.618423 | W219: 2570.758182 | X219: 2604.111138 | Y219: 2636.677292 | Z219: 2668.456644 | AA219: 2699.449194 | AB219: 2729.654941 | AC219: 2759.073887 | AD219: 2787.706031 | AE219: 2815.551372 | AF219: 2842.609911 | AG219: 2868.881648 | AH219: 2894.366583 | AI219: =(AI187)*8760 -> 2919.064716 | AJ219: 2942.976047 | AK219: 2966.100575 | AL219: 2988.438302 | AM219: 3009.989226 | AN219: 3030.753348 | AO219: 3050.730668 | AP219: 3069.921186 | AQ219: 3088.324902 | AR219: 3105.941816 | AS219: 3122.771927 | AT219: 3138.815237 | AU219: 3154.071744
K220: TRG 8 - High | L220: =(L188)*8760 -> 2151.94673 | M220: 2151.94673 | N220: 2151.94673 | O220: 2151.94673 | P220: 2151.94673 | Q220: 2151.94673 | R220: 2151.94673 | S220: 2151.94673 | T220: 2151.94673 | U220: 2151.94673 | V220: 2151.94673 | W220: 2151.94673 | X220: 2151.94673 | Y220: 2151.94673 | Z220: 2151.94673 | AA220: 2151.94673 | AB220: 2151.94673 | AC220: 2151.94673 | AD220: 2151.94673 | AE220: 2151.94673 | AF220: 2151.94673 | AG220: 2151.94673 | AH220: 2151.94673 | AI220: 2151.94673 | AJ220: 2151.94673 | AK220: 2151.94673 | AL220: 2151.94673 | AM220: 2151.94673 | AN220: 2151.94673 | AO220: 2151.94673 | AP220: 2151.94673 | AQ220: 2151.94673 | AR220: =(AR188)*8760 -> 2151.94673 | AS220: 2151.94673 | AT220: 2151.94673 | AU220: 2151.94673
K221: TRG 9 - Low | L221: 1598.835731 | M221: 1682.177061 | N221: 1763.14144 | O221: 1841.728846 | P221: 1917.939278 | Q221: 1991.772736 | R221: 2063.229221 | S221: 2132.308732 | T221: 2199.011269 | U221: 2263.336832 | V221: 2325.285422 | W221: 2384.857038 | X221: 2442.05168 | Y221: 2496.869348 | Z221: 2549.310043 | AA221: 2599.373763 | AB221: 2647.06051 | AC221: 2692.370284 | AD221: 2735.303083 | AE221: 2775.858909 | AF221: 2814.037761 | AG221: 2849.839639 | AH221: 2883.264544 | AI221: 2914.312475 | AJ221: 2942.983432 | AK221: 2969.277415 | AL221: 2993.194424 | AM221: 3014.73446 | AN221: 3033.897522 | AO221: 3050.68361 | AP221: 3065.092725 | AQ221: 3077.124865 | AR221: 3086.780032 | AS221: 3094.058225 | AT221: 3098.959445 | AU221: 3101.483691
K222: TRG 9 - Mid | L222: 1598.835731 | M222: 1641.825507 | N222: 1684.010097 | O222: 1725.389492 | P222: 1765.963692 | Q222: 1805.732697 | R222: 1844.696507 | S222: 1882.855121 | T222: 1920.208541 | U222: 1956.756766 | V222: 1992.499796 | W222: 2027.437631 | X222: 2061.570271 | Y222: 2094.897715 | Z222: 2127.419965 | AA222: 2159.13702 | AB222: 2190.04888 | AC222: 2220.155545 | AD222: 2249.457014 | AE222: 2277.953289 | AF222: 2305.644369 | AG222: 2332.530254 | AH222: 2358.610944 | AI222: 2383.886439 | AJ222: 2408.356738 | AK222: 2432.021843 | AL222: 2454.881753 | AM222: 2476.936468 | AN222: 2498.185988 | AO222: 2518.630312 | AP222: 2538.269442 | AQ222: 2557.103377 | AR222: 2575.132117 | AS222: 2592.355662 | AT222: 2608.774011 | AU222: 2624.387166
K223: TRG 9 - High | L223: 1598.835731 | M223: 1598.835731 | N223: 1598.835731 | O223: 1598.835731 | P223: 1598.835731 | Q223: 1598.835731 | R223: 1598.835731 | S223: 1598.835731 | T223: 1598.835731 | U223: 1598.835731 | V223: 1598.835731 | W223: 1598.835731 | X223: 1598.835731 | Y223: 1598.835731 | Z223: 1598.835731 | AA223: 1598.835731 | AB223: 1598.835731 | AC223: 1598.835731 | AD223: 1598.835731 | AE223: 1598.835731 | AF223: 1598.835731 | AG223: 1598.835731 | AH223: 1598.835731 | AI223: 1598.835731 | AJ223: 1598.835731 | AK223: 1598.835731 | AL223: 1598.835731 | AM223: 1598.835731 | AN223: 1598.835731 | AO223: 1598.835731 | AP223: 1598.835731 | AQ223: 1598.835731 | AR223: 1598.835731 | AS223: 1598.835731 | AT223: 1598.835731 | AU223: 1598.835731
... 268 more rows

Sheet Offshore Wind
A1: Offshore Wind Inputs | L1: https://atb.nrel.gov/electricity/2017/index.html?t=ow
T3: Inputs
J4: Take me to: | T4: Calculated
B10: X | G10: Current Costs
H12: Techno-Economic Cost and Performance Parameters | J12: Net Capacity Factor (%) | K12: TRG 1 - Offshore Fixed | L12: 0.451100156 | O12: Basis Year: | Q12: 2015
K13: TRG 2 - Offshore Fixed | L13: 0.4272421175
K14: TRG 3 - Offshore Fixed | L14: 0.4162599538 | O14: Offshore Wind Techno-Resource Groups (TRG)
K15: TRG 4 - Offshore Fixed | L15: 0.4034800306 | O15: TRG | Q15: LCOE Range ($/MWh) | R15: Wind Speed Range (m/s) | S15: Weighted Average Wind Speed (m/s) | T15: Weighted Water Depth (m) | U15: Weighted Distance Site to Cable Landfall (km) | V15: Weighted Average CAPEX ($/kW) | W15: Weighted Average OPEX ($/kW/yr) | X15: Weighted Average Net CF (%) | Y15: Potential Wind Plant Capacity (GW) | Z15: Potential Wind Plant Energy (TWh)
K16: TRG 5 - Offshore Fixed | L16: 0.3659005996 | O16: Fixed-Bottom | P16: TRG 1 | Q16: LCOE <= 141 | R16: 8.5 - 9.0 | S16: 8.612760188 | T16: 13.35123828 | U16: 5.581137979 | V16: 3891.060895 | W16: 135.7240795 | X16: 0.451100156 | Y16: 12.49126972 | Z16: 48.52452621
K17: TRG 6 - Offshore Floating | L17: 0.5026840331 | P17: TRG 2 | Q17: LCOE <= 149 | R17: 8.0 - 8.5 | S17: 8.439396108 | T17: 16.01184865 | U17: 8.776756937 | V17: 3981.64015 | W17: 141.1534166 | X17: 0.4272421175 | Y17: 24.98253944 | Z17: 94.15286983
K18: TRG 7 - Offshore Floating | L18: 0.4958801676 | P18: TRG 3 | Q18: LCOE <= 157 | R18: 8.0 - 8.5 | S18: 8.347430581 | T18: 18.60071337 | U18: 14.94434475 | V18: 4120.963473 | W18: 143.2512238 | X18: 0.4162599538 | Y18: 49.96507889 | Z18: 182.0082662
K19: TRG 8 - Offshore Floating | L19: 0.4844806297 | P19: TRG 4 | Q19: LCOE <= 192 | R19: 8.0 - 8.5 | S19: 8.312053617 | T19: 25.63068703 | U19: 35.56791869 | V19: 4657.294257 | W19: 150.0607187 | X19: 0.4034800306 | Y19: 320 | Z19: 1131.291118
K20: TRG 9 - Offshore Floating | L20: 0.472838345 | P20: TRG 5 | Q20: LCOE <= 306 | R20: 7.5 - 8.0 | S20: 7.87131557 | T20: 35.58455267 | U20: 72.31642695 | V20: 5442.490252 | W20: 157.4687346 | X20: 0.3659005996 | Y20: 320 | Z20: 1023.32834
K21: TRG 10 - Offshore Floating | L21: 0.4460311838 | O21: Floating | P21: TRG 6 | Q21: LCOE <= 166 | R21: 9.5 - 10 | S21: 9.695769674 | T21: 130.2815378 | U21: 23.58940317 | V21: 6077.732226 | W21: 104.5189209 | X21: 0.5026840331 | Y21: 12.49126972 | Z21: 54.99282088
K22: TRG 11 - Offshore Floating | L22: 0.4150336905 | P22: TRG 7 | Q22: LCOE <= 175 | R22: 9.5 - 10 | S22: 9.6795547 | T22: 144.921048 | U22: 39.99755051 | V22: 6337.772648 | W22: 106.4315451 | X22: 0.4958801676 | Y22: 24.98253944 | Z22: 107.6368838
K23: TRG 12 - Offshore Floating | L23: 0.3720656756 | P23: TRG 8 | Q23: LCOE <= 188 | R23: 9.5 - 10 | S23: 9.468606074 | T23: 139.3788592 | U23: 49.74945175 | V23: 6500.696333 | W23: 110.1780165 | X23: 0.4844806297 | Y23: 49.96507889 | Z23: 212.3111635
K24: TRG 13 - Offshore Floating | L24: 0.3509554251 | P24: TRG 9 | Q24: LCOE <= 206 | R24: 9.0 - 9.5 | S24: 9.42057817 | T24: 135.5475179 | U24: 70.42621598 | V24: 6815.912465 | W24: 121.1293284 | X24: 0.472838345 | Y24: 99.93015778 | Z24: 413.9412981
K25: TRG 14 - Offshore Floating | L25: 0.3229448046 | P25: TRG 10 | Q25: LCOE <= 229 | R25: 9.0 - 9.5 | S25: 9.090636822 | T25: 139.6626904 | U25: 93.76275064 | V25: 7063.095898 | W25: 127.6553214 | X25: 0.4460311838 | Y25: 199.8603156 | Z25: 780.8058478
K26: TRG 15 - Offshore Floating | L26: 0.3104414587 | P26: TRG 11 | Q26: LCOE <= 252 | R26: 8.5 - 9.0 | S26: 8.702809292 | T26: 322.9476203 | U26: 117.7679161 | V26: 7345.249641 | W26: 132.2113874 | X26: 0.4150336905 | Y26: 199.8603156 | Z26: 726.8045418
P27: TRG 12 | Q27: LCOE <= 274 | R27: 8.0 - 8.5 | S27: 8.133205068 | T27: 403.5639146 | U27: 123.3720829 | V27: 7351.404835 | W27: 133.6657308 | X27: 0.3720656756 | Y27: 199.8603156 | Z27: 651.0194693
J28: Annual Energy Production (kWh/kW) | K28: TRG 1 - Offshore Fixed | L28: =(L12)*8760 -> 3951.637366 | P28: TRG 13 | Q28: LCOE <= 299 | R28: 7.5 - 8.0 | S28: 7.774459751 | T28: 473.7989147 | U28: 138.1098489 | V28: 7537.58178 | W28: 134.6887984 | X28: 0.3509554251 | Y28: 199.8603156 | Z28: 614.5910627
K29: TRG 2 - Offshore Fixed | L29: 3742.640949 | P29: TRG 14 | Q29: LCOE <= 341 | R29: 7.0 - 7.5 | S29: 7.434080106 | T29: 615.190406 | U29: 129.5688784 | V29: 7728.282027 | W29: 129.9960307 | X29: 0.3229448046 | Y29: 199.8603156 | Z29: 565.6306895
K30: TRG 3 - Offshore Fixed | L30: 3646.437195 | P30: TRG 15 | Q30: LCOE <= 438 | R30: 7.5 - 8.0 | S30: 7.461690666 | T30: 797.4204188 | U30: 199.0658125 | V30: 8331.171628 | W30: 136.6988108 | X30: 0.3104414587 | Y30: 143.3997764 | Z30: 390.2620324
K31: TRG 4 - Offshore Fixed | L31: 3534.485068 | O31: Total | Y31: 2057.509288 | Z31: 6997.30093
K32: TRG 5 - Offshore Fixed | L32: 3205.289253
K33: TRG 6 - Offshore Floating | L33: 4403.51213
K34: TRG 7 - Offshore Floating | L34: 4343.910268 | O34: Financial Assumptions:
K35: TRG 8 - Offshore Floating | L35: 4244.050316 | O35: Inflation Rate | S35: 0.025
K36: TRG 9 - Offshore Floating | L36: 4142.063902 | O36: Economic Lifetime (Years) | S36: 20
K37: TRG 10 - Offshore Floating | L37: 3907.23317 | O37: Interest Rate - Nominal | S37: 0.04418536
K38: TRG 11 - Offshore Floating | L38: 3635.695129 | O38: Calculated Interest Rate - Real | S38: =(1+S37)/(1+S35)-1 -> 0.01871742439
K39: TRG 12 - Offshore Floating | L39: 3259.295319 | O39: Interest During Construction - Nominal | S39: 0.044
K40: TRG 13 - Offshore Floating | L40: 3074.369524 | O40: Rate of Return on Equity - Nominal | S40: 0.09468985
K41: TRG 14 - Offshore Floating | L41: 2828.996488 | O41: Calculated Rate of Return on Equity - Real | S41: =(1+S40)/(1+S35) - 1 -> 0.06799009756
K42: TRG 15 - Offshore Floating | L42: 2719.467178 | O42: Debt Fraction | S42: 0.6
O43: Tax Rate (Federal and State) | S43: 0.4
J44: CAPEX ($/kW) | K44: TRG 1 - Offshore Fixed | L44: =$S$47 * (L76 + L142) -> 3891.060895 | O44: WACC - Nominal | S44: =IF(S43>0,S42*S37*(1-S43)+(1-S42)*S40,S42*S37+(1-S42)*S40) -> 0.0537826696
K45: TRG 2 - Offshore Fixed | L45: =$S$47 * (L77 + L143) -> 3981.64015 | O45: WACC - Real | S45: =((1+((1-S42)*((1+S41)*(1+S35)-1)) + (S42*((1+S38)*(1+S35)-1)*(1-S43))) / (1+S35)) - 1 -> 0.02808065327
K46: TRG 3 - Offshore Fixed | L46: 4120.963473 | O46: Depreciation Period | S46: 5
K47: TRG 4 - Offshore Fixed | L47: 4657.294257 | O47: Construction Finance Factor | S47: =SUMPRODUCT(P56:P58,Q56:Q58) -> 1.034874924
K48: TRG 5 - Offshore Fixed | L48: 5442.490252 | O48: Present Value of Depreciation | S48: =SUMPRODUCT(O76:T76,O78:T78) -> 0.8661791251
K49: TRG 6 - Offshore Floating | L49: 6077.732226 | O49: Project Finance Factor | S49: =(1 - S43 * S48) / (1 - S43) -> 1.089213917
K50: TRG 7 - Offshore Floating | L50: 6337.772648 | O50: Capital Recovery Factor (CRF) - Nominal | S50: =S44 / (1 - (1 / (1 + S44)^S36)) -> 0.08283622233
K51: TRG 8 - Offshore Floating | L51: 6500.696333 | O51: Capital Recovery Factor (CRF) - Real | S51: =S45 / (1 - (1 / (1 + S45)^S36)) -> 0.0660286156
K52: TRG 9 - Offshore Floating | L52: 6815.912465
K53: TRG 10 - Offshore Floating | L53: 7063.095898 | O53: Construction Duration yrs | Q53: 3
K54: TRG 11 - Offshore Floating | L54: 7345.249641 | O54: Year | P54: Capital | Q54: Accumulated
K55: TRG 12 - Offshore Floating | L55: 7351.404835 | O55: Index | P55: Fraction | Q55: Interest
K56: TRG 13 - Offshore Floating | L56: 7537.58178 | O56: 0 | P56: 0.4 | Q56: =1+(1-S43)*((1+S39)^(O56+0.5)-1) -> 1.013057909
K57: TRG 14 - Offshore Floating | L57: 7728.282027 | O57: 1 | P57: 0.4 | Q57: =1+(1-S43)*((1+S39)^(O57+0.5)-1) -> 1.040032457
K58: TRG 15 - Offshore Floating | L58: 8331.171628 | O58: 2 | P58: 0.2 | Q58: =1+(1-S43)*((1+S39)^(O58+0.5)-1) -> 1.068193885
J60: Construction Financing Cost ($/kW) | K60: TRG 1 - Offshore Fixed | L60: =(L76+L142)*($S$47-1) -> 131.1273936
K61: TRG 2 - Offshore Fixed | L61: 134.1798829
K62: TRG 3 - Offshore Fixed | L62: 138.8750302
K63: TRG 4 - Offshore Fixed | L63: 156.9491904
K64: TRG 5 - Offshore Fixed | L64: 183.4100212
K65: TRG 6 - Offshore Floating | L65: 204.817454
K66: TRG 7 - Offshore Floating | L66: 213.5807254
K67: TRG 8 - Offshore Floating | L67: 219.0711967
K68: TRG 9 - Offshore Floating | L68: 229.6938703
K69: TRG 10 - Offshore Floating | L69: 238.0238657
K70: TRG 11 - Offshore Floating | L70: 247.5323483
K71: TRG 12 - Offshore Floating | L71: 247.7397762
K72: TRG 13 - Offshore Floating | L72: 254.0138742
K73: TRG 14 - Offshore Floating | L73: 260.440406
K74: TRG 15 - Offshore Floating | L74: 280.757575
N75: MACRS yr | O75: 1 | P75: 2 | Q75: 3 | R75: 4 | S75: 5 | T75: 6
J76: Overnight Capital Cost (OCC) ($/kW) | K76: TRG 1 - Offshore Fixed | L76: 3535.238433 | N76: Depreciation | O76: 0.2 | P76: 0.32 | Q76: 0.192 | R76: 0.1152 | S76: 0.1152 | T76: 0.0576
K77: TRG 2 - Offshore Fixed | L77: 3577.42447 | N77: Fraction
K78: TRG 3 - Offshore Fixed | L78: 3630.883801 | N78: Depreciation | O78: =1/((1+S45)*(1+S35))^O75 -> 0.9489622755 | P78: =1/((1+S45)*(1+S35))^P75 -> 0.9005294003 | Q78: =1/((1+S45)*(1+S35))^Q75 -> 0.8545684288 | R78: =1/((1+S45)*(1+S35))^R75 -> 0.8109532008 | S78: =1/((1+S45)*(1+S35))^S75 -> 0.7695639947 | T78: =1/((1+S45)*(1+S35))^T75 -> 0.7302871995
K79: TRG 4 - Offshore Fixed | L79: 3919.524656 | N79: Factor
K80: TRG 5 - Offshore Fixed | L80: 4383.23455
K81: TRG 6 - Offshore Floating | L81: 5400.322975
K82: TRG 7 - Offshore Floating | L82: 5475.659366
K83: TRG 8 - Offshore Floating | L83: 5561.289935
K84: TRG 9 - Offshore Floating | L84: 5705.729858
K85: TRG 10 - Offshore Floating | L85: 5799.960493
K86: TRG 11 - Offshore Floating | L86: 5963.52757
K87: TRG 12 - Offshore Floating | L87: 5987.984403
K88: TRG 13 - Offshore Floating | L88: 6108.721833
K89: TRG 14 - Offshore Floating | L89: 6279.665747
K90: TRG 15 - Offshore Floating | L90: 6612.405535
J92: Fixed Operation and Maintenance Expenses ($/kW-year) | K92: TRG 1 - Offshore Fixed | L92: 135.7240795
K93: TRG 2 - Offshore Fixed | L93: 141.1534166
K94: TRG 3 - Offshore Fixed | L94: 143.2512238
K95: TRG 4 - Offshore Fixed | L95: 150.0607187
K96: TRG 5 - Offshore Fixed | L96: 157.4687346
K97: TRG 6 - Offshore Floating | L97: 104.5189209
K98: TRG 7 - Offshore Floating | L98: 106.4315451
K99: TRG 8 - Offshore Floating | L99: 110.1780165
K100: TRG 9 - Offshore Floating | L100: 121.1293284
K101: TRG 10 - Offshore Floating | L101: 127.6553214
K102: TRG 11 - Offshore Floating | L102: 132.2113874
K103: TRG 12 - Offshore Floating | L103: 133.6657308
K104: TRG 13 - Offshore Floating | L104: 134.6887984
K105: TRG 14 - Offshore Floating | L105: 129.9960307
K106: TRG 15 - Offshore Floating | L106: 136.6988108
J108: Variable Operation and Maintenance Expenses ($/MWh) | K108: TRG 1 - Offshore Fixed | L108: 0
K109: TRG 2 - Offshore Fixed | L109: 0
K110: TRG 3 - Offshore Fixed | L110: 0
K111: TRG 4 - Offshore Fixed | L111: 0
K112: TRG 5 - Offshore Fixed | L112: 0
K113: TRG 6 - Offshore Floating | L113: 0
K114: TRG 7 - Offshore Floating | L114: 0
K115: TRG 8 - Offshore Floating | L115: 0
K116: TRG 9 - Offshore Floating | L116: 0
K117: TRG 10 - Offshore Floating | L117: 0
K118: TRG 11 - Offshore Floating | L118: 0
K119: TRG 12 - Offshore Floating | L119: 0
K120: TRG 13 - Offshore Floating | L120: 0
K121: TRG 14 - Offshore Floating | L121: 0
K122: TRG 15 - Offshore Floating | L122: 0
H125: Finance | J125: Weighted Average Cost of Capital (WACC) (Nominal) (%) | K125: TRG 1 - Offshore Fixed | L125: =$S$44 -> 0.0537826696
K126: TRG 2 - Offshore Fixed | L126: 0.0537826696
K127: TRG 3 - Offshore Fixed | L127: 0.0537826696
K128: TRG 4 - Offshore Fixed | L128: 0.0537826696
K129: TRG 5 - Offshore Fixed | L129: 0.0537826696
K130: TRG 6 - Offshore Floating | L130: 0.0537826696
K131: TRG 7 - Offshore Floating | L131: 0.0537826696
K132: TRG 8 - Offshore Floating | L132: 0.0537826696
K133: TRG 9 - Offshore Floating | L133: 0.0537826696
K134: TRG 10 - Offshore Floating | L134: 0.0537826696
K135: TRG 11 - Offshore Floating | L135: 0.0537826696
K136: TRG 12 - Offshore Floating | L136: 0.0537826696
K137: TRG 13 - Offshore Floating | L137: 0.0537826696
K138: TRG 14 - Offshore Floating | L138: 0.0537826696
K139: TRG 15 - Offshore Floating | L139: 0.0537826696
H142: Grid Connection Costs | J142: Grid Connection Costs (GCC) ($/kW) | K142: TRG 1 - Offshore Fixed | L142: =L158+L174+L190 -> 224.6950682
K143: TRG 2 - Offshore Fixed | L143: 270.0357975
K144: TRG 3 - Offshore Fixed | L144: 351.2046419
K145: TRG 4 - Offshore Fixed | L145: 580.8204106
K146: TRG 5 - Offshore Fixed | L146: 875.8456806
K147: TRG 6 - Offshore Floating | L147: 472.5917974
K148: TRG 7 - Offshore Floating | L148: 648.5325567
K149: TRG 8 - Offshore Floating | L149: 720.3352017
K150: TRG 9 - Offshore Floating | L150: 880.4887373
K151: TRG 10 - Offshore Floating | L151: 1025.111539
K152: TRG 11 - Offshore Floating | L152: 1134.189723
K153: TRG 12 - Offshore Floating | L153: 1115.680656
K154: TRG 13 - Offshore Floating | L154: 1174.846072
K155: TRG 14 - Offshore Floating | L155: 1188.175874
K156: TRG 15 - Offshore Floating | L156: 1438.008518
J158: Grid Feature Costs ($/kW) | K158: TRG 1 - Offshore Fixed | L158: 0
K159: TRG 2 - Offshore Fixed | L159: 0
K160: TRG 3 - Offshore Fixed | L160: 0
K161: TRG 4 - Offshore Fixed | L161: 0
K162: TRG 5 - Offshore Fixed | L162: 0
K163: TRG 6 - Offshore Floating | L163: 0
K164: TRG 7 - Offshore Floating | L164: 0
K165: TRG 8 - Offshore Floating | L165: 0
K166: TRG 9 - Offshore Floating | L166: 0
K167: TRG 10 - Offshore Floating | L167: 0
K168: TRG 11 - Offshore Floating | L168: 0
K169: TRG 12 - Offshore Floating | L169: 0
K170: TRG 13 - Offshore Floating | L170: 0
K171: TRG 14 - Offshore Floating | L171: 0
K172: TRG 15 - Offshore Floating | L172: 0
J174: Onshore Spur Line Costs ($/kW) | K174: TRG 1 - Offshore Fixed | L174: 0
K175: TRG 2 - Offshore Fixed | L175: 0
K176: TRG 3 - Offshore Fixed | L176: 0
K177: TRG 4 - Offshore Fixed | L177: 0
K178: TRG 5 - Offshore Fixed | L178: 0
K179: TRG 6 - Offshore Floating | L179: 0
K180: TRG 7 - Offshore Floating | L180: 0
K181: TRG 8 - Offshore Floating | L181: 0
K182: TRG 9 - Offshore Floating | L182: 0
K183: TRG 10 - Offshore Floating | L183: 0
K184: TRG 11 - Offshore Floating | L184: 0
K185: TRG 12 - Offshore Floating | L185: 0
K186: TRG 13 - Offshore Floating | L186: 0
K187: TRG 14 - Offshore Floating | L187: 0
K188: TRG 15 - Offshore Floating | L188: 0
J190: Offshore Spur Line Costs ($/kW) | K190: TRG 1 - Offshore Fixed | L190: 224.6950682
K191: TRG 2 - Offshore Fixed | L191: 270.0357975
K192: TRG 3 - Offshore Fixed | L192: 351.2046419
K193: TRG 4 - Offshore Fixed | L193: 580.8204106
K194: TRG 5 - Offshore Fixed | L194: 875.8456806
K195: TRG 6 - Offshore Floating | L195: 472.5917974
K196: TRG 7 - Offshore Floating | L196: 648.5325567
K197: TRG 8 - Offshore Floating | L197: 720.3352017
K198: TRG 9 - Offshore Floating | L198: 880.4887373
K199: TRG 10 - Offshore Floating | L199: 1025.111539
K200: TRG 11 - Offshore Floating | L200: 1134.189723
K201: TRG 12 - Offshore Floating | L201: 1115.680656
K202: TRG 13 - Offshore Floating | L202: 1174.846072
K203: TRG 14 - Offshore Floating | L203: 1188.175874
K204: TRG 15 - Offshore Floating | L204: 1438.008518
H208: LCOE | J208: Levelized Cost of Energy ($/MWh) | K208: TRG 1 - Offshore Fixed | L208: =(($S$51 * $S$49 * $S$47 * (L76 * 1 + L142) +L92) * 1000 / (L12 * 8760)) + L108 + 0 -> 105.1630922
K209: TRG 2 - Offshore Fixed | L209: 114.2268636
K210: TRG 3 - Offshore Fixed | L210: 120.5637051
K211: TRG 4 - Offshore Fixed | L211: 137.2222521
K212: TRG 5 - Offshore Fixed | L212: 171.2446864
K213: TRG 6 - Offshore Floating | L213: 122.9984324
K214: TRG 7 - Offshore Floating | L214: 129.4316872
K215: TRG 8 - Offshore Floating | L215: 136.1207853
K216: TRG 9 - Offshore Floating | L216: 147.5894404
K217: TRG 10 - Offshore Floating | L217: 162.6798593
K218: TRG 11 - Offshore Floating | L218: 181.6644358
K219: TRG 12 - Offshore Floating | L219: 203.2259922
K220: TRG 13 - Offshore Floating | L220: 220.1382432
... 543 more rows

Sheet Solar - Utility PV
A1: Solar Utility PV Inputs | L1: https://atb.nrel.gov/electricity/2017/index.html?t=su
T3: Inputs
J4: Take me to: | T4: Calculated
B10: X | G10: Current Costs
H12: Techno-Economic Cost and Performance Parameters | J12: Net Capacity Factor (%) | K12: Utility PV - 14% | L12: 0.1346922557 | O12: Basis Year: | Q12: 2015
K13: Utility PV - 20% | L13: 0.1924175082
K14: Utility PV - 28% | L14: 0.2693845114 | O14: Utility Scale Solar Photovoltaic
O15: Representative plant is Single Axis tracking with capacity of 100 MW
J16: Annual Energy Production (kWh/kW) | K16: Utility PV - 14% | L16: =L12*8760 -> 1179.90416 | O16: Overnight Capital Cost, Fixed O&M, and Variable O&M costs represent $/kW DC;
K17: Utility PV - 20% | L17: =L13*8760 -> 1685.577372 | O17: Capacity factor includes a conversion to AC. Therefore LCOE reflects $/MWh AC.
K18: Utility PV - 28% | L18: =L14*8760 -> 2359.80832 | O18: Capacity factors chosen here to reflect range across the continental U.S. in ReEDS.
S19: Available | T19: Available
J20: CAPEX ($/kW) | K20: Utility PV - 14% | L20: =L24+L28 -> 2014.323356 | S20: Capacity | T20: Generation
K21: Utility PV - 20% | L21: =L25+L29 -> 2014.323356 | S21: (GW) | T21: (GWh)
K22: Utility PV - 28% | L22: =L26+L30 -> 2014.323356 | S22: 176965
O23: Utility PV - 14% | Q23: Capacity factor labels based on ReEDS minimum, average and maximum first year energy production. ATB values reflect annual average capacity factor over life of plant including estimated degradation of 0.5% per year.
J24: Construction Financing Cost ($/kW) | K24: Utility PV - 14% | L24: =(L28+L46)*($S$40-1) -> 25.96381825 | O24: Utility PV - 20%
K25: Utility PV - 20% | L25: =(L29+L47)*($S$40-1) -> 25.96381825 | O25: Utility PV - 28%
K26: Utility PV - 28% | L26: =(L30+L48)*($S$40-1) -> 25.96381825
O27: Financial Assumptions:
J28: Overnight Capital Cost ($/kW) | K28: Utility PV - 14% | L28: =$L$119 -> 1988.359538 | O28: Inflation Rate | S28: 0.025
K29: Utility PV - 20% | L29: =$L$122 -> 1988.359538 | O29: Economic Lifetime (Years) | S29: 20
K30: Utility PV - 28% | L30: =$L$125 -> 1988.359538 | O30: Interest Rate - Nominal | S30: 0.04418536
O31: Calculated Interest Rate - Real | S31: =(1+S30)/(1+S28)-1 -> 0.01871742439
J32: Fixed Operation and Maintenance Expenses ($/kW-yr) | K32: Utility PV - 14% | L32: 13 | O32: Interest During Construction - Nominal | S32: 0.044
K33: Utility PV - 20% | L33: 13 | O33: Rate of Return on Equity - Nominal | S33: 0.09468985
K34: Utility PV - 28% | L34: 13 | O34: Calculated Rate of Return on Equity - Real | S34: =(1+S33)/(1+S28) - 1 -> 0.06799009756
O35: Debt Fraction | S35: 0.6
J36: Variable Operation and Maintenance Expenses ($/MWh) | K36: Utility PV - 14% | L36: 0 | O36: Tax Rate (Federal and State) | S36: 0.4
K37: Utility PV - 20% | L37: 0 | O37: WACC - Nominal | S37: =IF(S36>0,S35*S30*(1-S36)+(1-S35)*S33,S35*S30+(1-S35)*S33) -> 0.0537826696
K38: Utility PV - 28% | L38: 0 | O38: WACC - Real | S38: =((1+((1-S35)*((1+S34)*(1+S28)-1)) + (S35*((1+S31)*(1+S28)-1)*(1-S36))) / (1+S28)) - 1 -> 0.02808065327
O39: Depreciation Period | S39: 5
O40: Construction Finance Factor | S40: =SUMPRODUCT(P49:P51,Q49:Q51) -> 1.013057909
H41: Finance | J41: Weighted Average Cost of Capital (WACC) (Nominal) (%) | K41: Utility PV - 14% | L41: =$S$37 -> 0.0537826696 | O41: Present Value of Depreciation | S41: =SUMPRODUCT(O54:T54,O56:T56) -> 0.8661791251
K42: Utility PV - 20% | L42: =$S$37 -> 0.0537826696 | O42: Project Finance Factor | S42: =(1 - S36 * S41) / (1 - S36) -> 1.089213917
K43: Utility PV - 28% | L43: =$S$37 -> 0.0537826696 | O43: Capital Recovery Factor (CRF) - Nominal | S43: =S37 / (1 - (1 / (1 + S37)^S29)) -> 0.08283622233
O44: Capital Recovery Factor (CRF) - Real | S44: =S38 / (1 - (1 / (1 + S38)^S29)) -> 0.0660286156
H46: Grid Connection Costs | J46: Grid Connection Costs (GCC) ($/kW) | K46: Utility PV - 14% | L46: =L50+L54 -> 0 | O46: Construction Duration yrs | Q46: 1
K47: Utility PV - 20% | L47: =L51+L55 -> 0 | O47: Year | P47: Capital | Q47: Accumulated
K48: Utility PV - 28% | L48: =L52+L56 -> 0 | O48: Index | P48: Fraction | Q48: Interest
O49: 0 | P49: 1 | Q49: =1+(1-S36)*((1+S32)^(O49+0.5)-1) -> 1.013057909
J50: Grid Feature Costs ($/kW) | K50: Utility PV - 14% | L50: 0 | O50: 1 | P50: 0 | Q50: =1+(1-S36)*((1+S32)^(O50+0.5)-1) -> 1.040032457
K51: Utility PV - 20% | L51: 0 | O51: 2 | P51: 0 | Q51: =1+(1-S36)*((1+S32)^(O51+0.5)-1) -> 1.068193885
K52: Utility PV - 28% | L52: 0
N53: MACRS yr | O53: 1 | P53: 2 | Q53: 3 | R53: 4 | S53: 5 | T53: 6
J54: Onshore Spur Line Costs ($/kW) | K54: Utility PV - 14% | L54: 0 | N54: Depreciation | O54: 0.2 | P54: 0.32 | Q54: 0.192 | R54: 0.1152 | S54: 0.1152 | T54: 0.0576
K55: Utility PV - 20% | L55: 0 | N55: Fraction
K56: Utility PV - 28% | L56: 0 | N56: Depreciation | O56: =1/((1+S38)*(1+S28))^O53 -> 0.9489622755 | P56: =1/((1+S38)*(1+S28))^P53 -> 0.9005294003 | Q56: =1/((1+S38)*(1+S28))^Q53 -> 0.8545684288 | R56: =1/((1+S38)*(1+S28))^R53 -> 0.8109532008 | S56: =1/((1+S38)*(1+S28))^S53 -> 0.7695639947 | T56: =1/((1+S38)*(1+S28))^T53 -> 0.7302871995
N57: Factor
H59: LCOE | J59: Levelized Cost of Energy ($/MWh) | K59: Utility PV - 14% | L59: =(($S$44 * $S$42 * $S$40 * (L28 * 1 + L46) +L32) * 1000 / (L12 * 8760)) + L36 + 0 -> 133.7979006
K60: Utility PV - 20% | L60: =(($S$44 * $S$42 * $S$40 * (L29 * 1 + L47) +L33) * 1000 / (L13 * 8760)) + L37 + 0 -> 93.65853044
K61: Utility PV - 28% | L61: =(($S$44 * $S$42 * $S$40 * (L30 * 1 + L48) +L34) * 1000 / (L14 * 8760)) + L38 + 0 -> 66.89895032
J63: Overnight Levelized Cost of Energy ($/MWh) | K63: Utility PV - 14% | L63: =(((L28*$S$44*(1-$S$36*$S$41))/(8760*L12*(1-$S$36))+L32/(8760*L12))*1000)+L36 -> 132.2153151 | M63: * this is similar to the LCOE used in the TCDB (Transparent Cost Database)
K64: Utility PV - 20% | L64: =(((L29*$S$44*(1-$S$36*$S$41))/(8760*L13*(1-$S$36))+L33/(8760*L13))*1000)+L37 -> 92.55072055
K65: Utility PV - 28% | L65: =(((L30*$S$44*(1-$S$36*$S$41))/(8760*L14*(1-$S$36))+L34/(8760*L14))*1000)+L38 -> 66.10765753
H68: ***Note: For future projections, low, mid, and high refer to the resulting low, mid, and high LCOE projections.
D71: X | G71: Future Projections
L72: Basis Year
L73: 2015 | M73: 2016 | N73: 2017 | O73: 2018 | P73: 2019 | Q73: 2020 | R73: 2021 | S73: 2022 | T73: 2023 | U73: 2024 | V73: 2025 | W73: 2026 | X73: 2027 | Y73: 2028 | Z73: 2029 | AA73: 2030 | AB73: 2031 | AC73: 2032 | AD73: 2033 | AE73: 2034 | AF73: 2035 | AG73: 2036 | AH73: 2037 | AI73: 2038 | AJ73: 2039 | AK73: 2040 | AL73: 2041 | AM73: 2042 | AN73: 2043 | AO73: 2044 | AP73: 2045 | AQ73: 2046 | AR73: 2047 | AS73: 2048 | AT73: 2049 | AU73: 2050
H74: Techno-Economic Cost and Performance Parameters | J74: Net Capacity Factor (%) | K74: Utility PV - 14% - Low | L74: =L12 -> 0.1346922557 | M74: =L74 -> 0.1346922557 | N74: =M74 -> 0.1346922557 | O74: 0.1346922557 | P74: 0.1346922557 | Q74: 0.1346922557 | R74: 0.1346922557 | S74: 0.1346922557 | T74: 0.1346922557 | U74: 0.1346922557 | V74: 0.1346922557 | W74: 0.1346922557 | X74: 0.1346922557 | Y74: 0.1346922557 | Z74: 0.1346922557 | AA74: 0.1346922557 | AB74: 0.1346922557 | AC74: 0.1346922557 | AD74: 0.1346922557 | AE74: 0.1346922557 | AF74: 0.1346922557 | AG74: 0.1346922557 | AH74: 0.1346922557 | AI74: 0.1346922557 | AJ74: 0.1346922557 | AK74: 0.1346922557 | AL74: 0.1346922557 | AM74: 0.1346922557 | AN74: 0.1346922557 | AO74: 0.1346922557 | AP74: 0.1346922557 | AQ74: 0.1346922557 | AR74: 0.1346922557 | AS74: 0.1346922557 | AT74: 0.1346922557 | AU74: 0.1346922557
K75: Utility PV - 14% - Mid | L75: =L74 -> 0.1346922557 | M75: =L75 -> 0.1346922557 | N75: 0.1346922557 | O75: 0.1346922557 | P75: 0.1346922557 | Q75: 0.1346922557 | R75: 0.1346922557 | S75: 0.1346922557 | T75: 0.1346922557 | U75: 0.1346922557 | V75: 0.1346922557 | W75: 0.1346922557 | X75: 0.1346922557 | Y75: 0.1346922557 | Z75: 0.1346922557 | AA75: 0.1346922557 | AB75: 0.1346922557 | AC75: 0.1346922557 | AD75: 0.1346922557 | AE75: 0.1346922557 | AF75: 0.1346922557 | AG75: 0.1346922557 | AH75: 0.1346922557 | AI75: 0.1346922557 | AJ75: 0.1346922557 | AK75: 0.1346922557 | AL75: 0.1346922557 | AM75: 0.1346922557 | AN75: 0.1346922557 | AO75: 0.1346922557 | AP75: 0.1346922557 | AQ75: 0.1346922557 | AR75: 0.1346922557 | AS75: 0.1346922557 | AT75: 0.1346922557 | AU75: 0.1346922557
K76: Utility PV - 14% - High | L76: =L75 -> 0.1346922557 | M76: =L76 -> 0.1346922557 | N76: 0.1346922557 | O76: 0.1346922557 | P76: 0.1346922557 | Q76: 0.1346922557 | R76: 0.1346922557 | S76: 0.1346922557 | T76: 0.1346922557 | U76: 0.1346922557 | V76: 0.1346922557 | W76: 0.1346922557 | X76: 0.1346922557 | Y76: 0.1346922557 | Z76: 0.1346922557 | AA76: 0.1346922557 | AB76: 0.1346922557 | AC76: 0.1346922557 | AD76: 0.1346922557 | AE76: 0.1346922557 | AF76: 0.1346922557 | AG76: 0.1346922557 | AH76: 0.1346922557 | AI76: 0.1346922557 | AJ76: 0.1346922557 | AK76: 0.1346922557 | AL76: 0.1346922557 | AM76: 0.1346922557 | AN76: 0.1346922557 | AO76: 0.1346922557 | AP76: 0.1346922557 | AQ76: 0.1346922557 | AR76: 0.1346922557 | AS76: 0.1346922557 | AT76: 0.1346922557 | AU76: 0.1346922557
K77: Utility PV - 20% - Low | L77: =L13 -> 0.1924175082 | M77: =L77 -> 0.1924175082 | N77: =M77 -> 0.1924175082 | O77: 0.1924175082 | P77: 0.1924175082 | Q77: 0.1924175082 | R77: 0.1924175082 | S77: 0.1924175082 | T77: 0.1924175082 | U77: 0.1924175082 | V77: 0.1924175082 | W77: 0.1924175082 | X77: 0.1924175082 | Y77: 0.1924175082 | Z77: 0.1924175082 | AA77: 0.1924175082 | AB77: 0.1924175082 | AC77: 0.1924175082 | AD77: 0.1924175082 | AE77: 0.1924175082 | AF77: 0.1924175082 | AG77: 0.1924175082 | AH77: 0.1924175082 | AI77: 0.1924175082 | AJ77: 0.1924175082 | AK77: 0.1924175082 | AL77: 0.1924175082 | AM77: 0.1924175082 | AN77: 0.1924175082 | AO77: 0.1924175082 | AP77: 0.1924175082 | AQ77: 0.1924175082 | AR77: 0.1924175082 | AS77: 0.1924175082 | AT77: 0.1924175082 | AU77: 0.1924175082
K78: Utility PV - 20% - Mid | L78: =L77 -> 0.1924175082 | M78: =L78 -> 0.1924175082 | N78: 0.1924175082 | O78: 0.1924175082 | P78: 0.1924175082 | Q78: 0.1924175082 | R78: 0.1924175082 | S78: 0.1924175082 | T78: 0.1924175082 | U78: 0.1924175082 | V78: 0.1924175082 | W78: 0.1924175082 | X78: 0.1924175082 | Y78: 0.1924175082 | Z78: 0.1924175082 | AA78: 0.1924175082 | AB78: 0.1924175082 | AC78: 0.1924175082 | AD78: 0.1924175082 | AE78: 0.1924175082 | AF78: 0.1924175082 | AG78: 0.1924175082 | AH78: 0.1924175082 | AI78: 0.1924175082 | AJ78: 0.1924175082 | AK78: 0.1924175082 | AL78: 0.1924175082 | AM78: 0.1924175082 | AN78: 0.1924175082 | AO78: 0.1924175082 | AP78: 0.1924175082 | AQ78: 0.1924175082 | AR78: 0.1924175082 | AS78: 0.1924175082 | AT78: 0.1924175082 | AU78: 0.1924175082
K79: Utility PV - 20% - High | L79: =L78 -> 0.1924175082 | M79: =L79 -> 0.1924175082 | N79: 0.1924175082 | O79: 0.1924175082 | P79: 0.1924175082 | Q79: 0.1924175082 | R79: 0.1924175082 | S79: 0.1924175082 | T79: 0.1924175082 | U79: 0.1924175082 | V79: 0.1924175082 | W79: 0.1924175082 | X79: 0.1924175082 | Y79: 0.1924175082 | Z79: 0.1924175082 | AA79: 0.1924175082 | AB79: 0.1924175082 | AC79: 0.1924175082 | AD79: 0.1924175082 | AE79: 0.1924175082 | AF79: 0.1924175082 | AG79: 0.1924175082 | AH79: 0.1924175082 | AI79: 0.1924175082 | AJ79: 0.1924175082 | AK79: 0.1924175082 | AL79: 0.1924175082 | AM79: 0.1924175082 | AN79: 0.1924175082 | AO79: 0.1924175082 | AP79: 0.1924175082 | AQ79: 0.1924175082 | AR79: 0.1924175082 | AS79: 0.1924175082 | AT79: 0.1924175082 | AU79: 0.1924175082
K80: Utility PV - 28% - Low | L80: =L14 -> 0.2693845114 | M80: =L80 -> 0.2693845114 | N80: =M80 -> 0.2693845114 | O80: 0.2693845114 | P80: 0.2693845114 | Q80: 0.2693845114 | R80: 0.2693845114 | S80: 0.2693845114 | T80: 0.2693845114 | U80: 0.2693845114 | V80: 0.2693845114 | W80: 0.2693845114 | X80: 0.2693845114 | Y80: 0.2693845114 | Z80: 0.2693845114 | AA80: 0.2693845114 | AB80: 0.2693845114 | AC80: 0.2693845114 | AD80: 0.2693845114 | AE80: 0.2693845114 | AF80: 0.2693845114 | AG80: 0.2693845114 | AH80: 0.2693845114 | AI80: 0.2693845114 | AJ80: 0.2693845114 | AK80: 0.2693845114 | AL80: 0.2693845114 | AM80: 0.2693845114 | AN80: 0.2693845114 | AO80: 0.2693845114 | AP80: 0.2693845114 | AQ80: 0.2693845114 | AR80: 0.2693845114 | AS80: 0.2693845114 | AT80: 0.2693845114 | AU80: 0.2693845114
K81: Utility PV - 28% - Mid | L81: =L80 -> 0.2693845114 | M81: =L81 -> 0.2693845114 | N81: 0.2693845114 | O81: 0.2693845114 | P81: 0.2693845114 | Q81: 0.2693845114 | R81: 0.2693845114 | S81: 0.2693845114 | T81: 0.2693845114 | U81: 0.2693845114 | V81: 0.2693845114 | W81: 0.2693845114 | X81: 0.2693845114 | Y81: 0.2693845114 | Z81: 0.2693845114 | AA81: 0.2693845114 | AB81: 0.2693845114 | AC81: 0.2693845114 | AD81: 0.2693845114 | AE81: 0.2693845114 | AF81: 0.2693845114 | AG81: 0.2693845114 | AH81: 0.2693845114 | AI81: 0.2693845114 | AJ81: 0.2693845114 | AK81: 0.2693845114 | AL81: 0.2693845114 | AM81: 0.2693845114 | AN81: 0.2693845114 | AO81: 0.2693845114 | AP81: 0.2693845114 | AQ81: 0.2693845114 | AR81: 0.2693845114 | AS81: 0.2693845114 | AT81: 0.2693845114 | AU81: 0.2693845114
K82: Utility PV - 28% - High | L82: =L81 -> 0.2693845114 | M82: =L82 -> 0.2693845114 | N82: 0.2693845114 | O82: 0.2693845114 | P82: 0.2693845114 | Q82: 0.2693845114 | R82: 0.2693845114 | S82: 0.2693845114 | T82: 0.2693845114 | U82: 0.2693845114 | V82: 0.2693845114 | W82: 0.2693845114 | X82: 0.2693845114 | Y82: 0.2693845114 | Z82: 0.2693845114 | AA82: 0.2693845114 | AB82: 0.2693845114 | AC82: 0.2693845114 | AD82: 0.2693845114 | AE82: 0.2693845114 | AF82: 0.2693845114 | AG82: 0.2693845114 | AH82: 0.2693845114 | AI82: 0.2693845114 | AJ82: 0.2693845114 | AK82: 0.2693845114 | AL82: 0.2693845114 | AM82: 0.2693845114 | AN82: 0.2693845114 | AO82: 0.2693845114 | AP82: 0.2693845114 | AQ82: 0.2693845114 | AR82: 0.2693845114 | AS82: 0.2693845114 | AT82: 0.2693845114 | AU82: 0.2693845114
L84: 2015 | M84: 2016 | N84: 2017 | O84: 2018 | P84: 2019 | Q84: 2020 | R84: 2021 | S84: 2022 | T84: 2023 | U84: 2024 | V84: 2025 | W84: 2026 | X84: 2027 | Y84: 2028 | Z84: 2029 | AA84: 2030 | AB84: 2031 | AC84: 2032 | AD84: 2033 | AE84: 2034 | AF84: 2035 | AG84: 2036 | AH84: 2037 | AI84: 2038 | AJ84: 2039 | AK84: 2040 | AL84: 2041 | AM84: 2042 | AN84: 2043 | AO84: 2044 | AP84: 2045 | AQ84: 2046 | AR84: 2047 | AS84: 2048 | AT84: 2049 | AU84: 2050
J85: Annual Energy Production (kWh/kW) | K85: Utility PV - 14% - Low | L85: =L74*8760 -> 1179.90416 | M85: 1179.90416 | N85: 1179.90416 | O85: 1179.90416 | P85: 1179.90416 | Q85: 1179.90416 | R85: 1179.90416 | S85: 1179.90416 | T85: 1179.90416 | U85: 1179.90416 | V85: 1179.90416 | W85: 1179.90416 | X85: 1179.90416 | Y85: 1179.90416 | Z85: 1179.90416 | AA85: 1179.90416 | AB85: 1179.90416 | AC85: 1179.90416 | AD85: 1179.90416 | AE85: 1179.90416 | AF85: 1179.90416 | AG85: 1179.90416 | AH85: 1179.90416 | AI85: 1179.90416 | AJ85: 1179.90416 | AK85: 1179.90416 | AL85: 1179.90416 | AM85: 1179.90416 | AN85: 1179.90416 | AO85: 1179.90416 | AP85: 1179.90416 | AQ85: 1179.90416 | AR85: 1179.90416 | AS85: 1179.90416 | AT85: 1179.90416 | AU85: 1179.90416
K86: Utility PV - 14% - Mid | L86: 1179.90416 | M86: 1179.90416 | N86: 1179.90416 | O86: 1179.90416 | P86: 1179.90416 | Q86: 1179.90416 | R86: 1179.90416 | S86: 1179.90416 | T86: 1179.90416 | U86: 1179.90416 | V86: 1179.90416 | W86: 1179.90416 | X86: 1179.90416 | Y86: 1179.90416 | Z86: 1179.90416 | AA86: 1179.90416 | AB86: 1179.90416 | AC86: 1179.90416 | AD86: 1179.90416 | AE86: 1179.90416 | AF86: 1179.90416 | AG86: 1179.90416 | AH86: 1179.90416 | AI86: 1179.90416 | AJ86: 1179.90416 | AK86: 1179.90416 | AL86: 1179.90416 | AM86: 1179.90416 | AN86: 1179.90416 | AO86: 1179.90416 | AP86: 1179.90416 | AQ86: 1179.90416 | AR86: 1179.90416 | AS86: 1179.90416 | AT86: 1179.90416 | AU86: 1179.90416
K87: Utility PV - 14% - High | L87: 1179.90416 | M87: 1179.90416 | N87: 1179.90416 | O87: 1179.90416 | P87: 1179.90416 | Q87: 1179.90416 | R87: 1179.90416 | S87: 1179.90416 | T87: 1179.90416 | U87: 1179.90416 | V87: 1179.90416 | W87: 1179.90416 | X87: 1179.90416 | Y87: 1179.90416 | Z87: 1179.90416 | AA87: 1179.90416 | AB87: 1179.90416 | AC87: 1179.90416 | AD87: 1179.90416 | AE87: 1179.90416 | AF87: 1179.90416 | AG87: 1179.90416 | AH87: 1179.90416 | AI87: 1179.90416 | AJ87: 1179.90416 | AK87: 1179.90416 | AL87: 1179.90416 | AM87: 1179.90416 | AN87: 1179.90416 | AO87: 1179.90416 | AP87: 1179.90416 | AQ87: 1179.90416 | AR87: 1179.90416 | AS87: 1179.90416 | AT87: 1179.90416 | AU87: 1179.90416
K88: Utility PV - 20% - Low | L88: 1685.577372 | M88: 1685.577372 | N88: 1685.577372 | O88: 1685.577372 | P88: 1685.577372 | Q88: 1685.577372 | R88: 1685.577372 | S88: 1685.577372 | T88: 1685.577372 | U88: 1685.577372 | V88: 1685.577372 | W88: 1685.577372 | X88: 1685.577372 | Y88: 1685.577372 | Z88: 1685.577372 | AA88: 1685.577372 | AB88: 1685.577372 | AC88: 1685.577372 | AD88: 1685.577372 | AE88: 1685.577372 | AF88: 1685.577372 | AG88: 1685.577372 | AH88: 1685.577372 | AI88: 1685.577372 | AJ88: 1685.577372 | AK88: 1685.577372 | AL88: 1685.577372 | AM88: 1685.577372 | AN88: 1685.577372 | AO88: 1685.577372 | AP88: 1685.577372 | AQ88: 1685.577372 | AR88: 1685.577372 | AS88: 1685.577372 | AT88: 1685.577372 | AU88: 1685.577372
K89: Utility PV - 20% - Mid | L89: 1685.577372 | M89: 1685.577372 | N89: 1685.577372 | O89: 1685.577372 | P89: 1685.577372 | Q89: 1685.577372 | R89: 1685.577372 | S89: 1685.577372 | T89: 1685.577372 | U89: 1685.577372 | V89: 1685.577372 | W89: 1685.577372 | X89: 1685.577372 | Y89: 1685.577372 | Z89: 1685.577372 | AA89: 1685.577372 | AB89: 1685.577372 | AC89: 1685.577372 | AD89: 1685.577372 | AE89: 1685.577372 | AF89: 1685.577372 | AG89: 1685.577372 | AH89: 1685.577372 | AI89: 1685.577372 | AJ89: 1685.577372 | AK89: 1685.577372 | AL89: 1685.577372 | AM89: 1685.577372 | AN89: 1685.577372 | AO89: 1685.577372 | AP89: 1685.577372 | AQ89: 1685.577372 | AR89: 1685.577372 | AS89: 1685.577372 | AT89: 1685.577372 | AU89: 1685.577372
K90: Utility PV - 20% - High | L90: 1685.577372 | M90: 1685.577372 | N90: 1685.577372 | O90: 1685.577372 | P90: 1685.577372 | Q90: 1685.577372 | R90: 1685.577372 | S90: 1685.577372 | T90: 1685.577372 | U90: 1685.577372 | V90: 1685.577372 | W90: 1685.577372 | X90: 1685.577372 | Y90: 1685.577372 | Z90: 1685.577372 | AA90: 1685.577372 | AB90: 1685.577372 | AC90: 1685.577372 | AD90: 1685.577372 | AE90: 1685.577372 | AF90: 1685.577372 | AG90: 1685.577372 | AH90: 1685.577372 | AI90: 1685.577372 | AJ90: 1685.577372 | AK90: 1685.577372 | AL90: 1685.577372 | AM90: 1685.577372 | AN90: 1685.577372 | AO90: 1685.577372 | AP90: 1685.577372 | AQ90: 1685.577372 | AR90: 1685.577372 | AS90: 1685.577372 | AT90: 1685.577372 | AU90: 1685.577372
K91: Utility PV - 28% - Low | L91: 2359.80832 | M91: 2359.80832 | N91: 2359.80832 | O91: 2359.80832 | P91: 2359.80832 | Q91: 2359.80832 | R91: 2359.80832 | S91: 2359.80832 | T91: 2359.80832 | U91: 2359.80832 | V91: 2359.80832 | W91: 2359.80832 | X91: 2359.80832 | Y91: 2359.80832 | Z91: 2359.80832 | AA91: 2359.80832 | AB91: 2359.80832 | AC91: 2359.80832 | AD91: 2359.80832 | AE91: 2359.80832 | AF91: 2359.80832 | AG91: 2359.80832 | AH91: 2359.80832 | AI91: 2359.80832 | AJ91: 2359.80832 | AK91: 2359.80832 | AL91: 2359.80832 | AM91: 2359.80832 | AN91: 2359.80832 | AO91: 2359.80832 | AP91: 2359.80832 | AQ91: 2359.80832 | AR91: 2359.80832 | AS91: 2359.80832 | AT91: 2359.80832 | AU91: 2359.80832
K92: Utility PV - 28% - Mid | L92: 2359.80832 | M92: 2359.80832 | N92: 2359.80832 | O92: =O81*8760 -> 2359.80832 | P92: 2359.80832 | Q92: 2359.80832 | R92: 2359.80832 | S92: 2359.80832 | T92: 2359.80832 | U92: 2359.80832 | V92: 2359.80832 | W92: 2359.80832 | X92: 2359.80832 | Y92: 2359.80832 | Z92: 2359.80832 | AA92: 2359.80832 | AB92: 2359.80832 | AC92: 2359.80832 | AD92: 2359.80832 | AE92: 2359.80832 | AF92: 2359.80832 | AG92: 2359.80832 | AH92: 2359.80832 | AI92: 2359.80832 | AJ92: 2359.80832 | AK92: 2359.80832 | AL92: 2359.80832 | AM92: 2359.80832 | AN92: 2359.80832 | AO92: 2359.80832 | AP92: 2359.80832 | AQ92: 2359.80832 | AR92: 2359.80832 | AS92: 2359.80832 | AT92: 2359.80832 | AU92: 2359.80832
K93: Utility PV - 28% - High | L93: =L82*8760 -> 2359.80832 | M93: 2359.80832 | N93: 2359.80832 | O93: 2359.80832 | P93: 2359.80832 | Q93: 2359.80832 | R93: 2359.80832 | S93: 2359.80832 | T93: 2359.80832 | U93: 2359.80832 | V93: 2359.80832 | W93: 2359.80832 | X93: 2359.80832 | Y93: 2359.80832 | Z93: 2359.80832 | AA93: 2359.80832 | AB93: 2359.80832 | AC93: 2359.80832 | AD93: 2359.80832 | AE93: 2359.80832 | AF93: 2359.80832 | AG93: 2359.80832 | AH93: 2359.80832 | AI93: 2359.80832 | AJ93: 2359.80832 | AK93: 2359.80832 | AL93: 2359.80832 | AM93: 2359.80832 | AN93: 2359.80832 | AO93: 2359.80832 | AP93: 2359.80832 | AQ93: 2359.80832 | AR93: 2359.80832 | AS93: 2359.80832 | AT93: 2359.80832 | AU93: 2359.80832
L95: 2015 | M95: 2016 | N95: 2017 | O95: 2018 | P95: 2019 | Q95: 2020 | R95: 2021 | S95: 2022 | T95: 2023 | U95: 2024 | V95: 2025 | W95: 2026 | X95: 2027 | Y95: 2028 | Z95: 2029 | AA95: 2030 | AB95: 2031 | AC95: 2032 | AD95: 2033 | AE95: 2034 | AF95: 2035 | AG95: 2036 | AH95: 2037 | AI95: 2038 | AJ95: 2039 | AK95: 2040 | AL95: 2041 | AM95: 2042 | AN95: 2043 | AO95: 2044 | AP95: 2045 | AQ95: 2046 | AR95: 2047 | AS95: 2048 | AT95: 2049 | AU95: 2050
J96: CAPEX ($/kW) | K96: Utility PV - 14% - Low | L96: =$S$40*(L118+L164) -> 2014.323356 | M96: 1513.417409 | N96: 1187.418654 | O96: 1054.050773 | P96: 956.4880486 | Q96: 911.0598216 | R96: 887.0091559 | S96: 862.9584902 | T96: 838.9078245 | U96: 814.8571588 | V96: 790.8064931 | W96: 766.7558274 | X96: 742.7051617 | Y96: 718.654496 | Z96: 694.6038303 | AA96: 670.5531646 | AB96: 657.132148 | AC96: 643.7111315 | AD96: 630.2901149 | AE96: 616.8690983 | AF96: 603.4480818 | AG96: 590.0270652 | AH96: 576.6060487 | AI96: 563.1850321 | AJ96: 549.7640155 | AK96: 536.342999 | AL96: 522.9995056 | AM96: 509.6560123 | AN96: 496.3125189 | AO96: 482.9690256 | AP96: 469.6255322 | AQ96: 456.2820389 | AR96: 442.9385456 | AS96: 429.5950522 | AT96: 416.2515589 | AU96: 402.9080655
K97: Utility PV - 14% - Mid | L97: 2014.323356 | M97: 1513.417409 | N97: 1219.338545 | O97: 1148.21927 | P97: 1107.579684 | Q97: 1046.469333 | R97: 1033.940846 | S97: 1021.412358 | T97: 1008.883871 | U97: 996.3553842 | V97: 983.8268971 | W97: 971.29841 | X97: 958.7699229 | Y97: 946.2414358 | Z97: 933.7129487 | AA97: 921.1844617 | AB97: 910.9490787 | AC97: 900.7136958 | AD97: 890.4783129 | AE97: 880.24293 | AF97: 870.0075471 | AG97: 859.7721642 | AH97: 849.5367813 | AI97: 839.3013984 | AJ97: 829.0660155 | AK97: 818.8306326 | AL97: 809.5047782 | AM97: 800.1789237 | AN97: 790.8530693 | AO97: 781.5272149 | AP97: 772.2013604 | AQ97: 762.875506 | AR97: 753.5496516 | AS97: 744.2237972 | AT97: 734.8979427 | AU97: 725.5720883
K98: Utility PV - 14% - High | L98: 2014.323356 | M98: 1513.417409 | N98: 1513.417409 | O98: 1513.417409 | P98: 1513.417409 | Q98: 1513.417409 | R98: 1513.417409 | S98: 1513.417409 | T98: 1513.417409 | U98: 1513.417409 | V98: 1513.417409 | W98: 1513.417409 | X98: 1513.417409 | Y98: 1513.417409 | Z98: 1513.417409 | AA98: 1513.417409 | AB98: 1513.417409 | AC98: 1513.417409 | AD98: 1513.417409 | AE98: 1513.417409 | AF98: 1513.417409 | AG98: 1513.417409 | AH98: 1513.417409 | AI98: 1513.417409 | AJ98: 1513.417409 | AK98: 1513.417409 | AL98: 1513.417409 | AM98: 1513.417409 | AN98: 1513.417409 | AO98: 1513.417409 | AP98: 1513.417409 | AQ98: 1513.417409 | AR98: 1513.417409 | AS98: 1513.417409 | AT98: 1513.417409 | AU98: 1513.417409
K99: Utility PV - 20% - Low | L99: 2014.323356 | M99: 1513.417409 | N99: 1187.418654 | O99: 1054.050773 | P99: 956.4880486 | Q99: 911.0598216 | R99: 887.0091559 | S99: 862.9584902 | T99: 838.9078245 | U99: 814.8571588 | V99: 790.8064931 | W99: 766.7558274 | X99: 742.7051617 | Y99: 718.654496 | Z99: 694.6038303 | AA99: 670.5531646 | AB99: 657.132148 | AC99: 643.7111315 | AD99: 630.2901149 | AE99: 616.8690983 | AF99: 603.4480818 | AG99: 590.0270652 | AH99: 576.6060487 | AI99: 563.1850321 | AJ99: 549.7640155 | AK99: 536.342999 | AL99: 522.9995056 | AM99: 509.6560123 | AN99: 496.3125189 | AO99: 482.9690256 | AP99: 469.6255322 | AQ99: 456.2820389 | AR99: 442.9385456 | AS99: 429.5950522 | AT99: 416.2515589 | AU99: 402.9080655
K100: Utility PV - 20% - Mid | L100: 2014.323356 | M100: 1513.417409 | N100: 1219.338545 | O100: 1148.21927 | P100: 1107.579684 | Q100: 1046.469333 | R100: 1033.940846 | S100: 1021.412358 | T100: 1008.883871 | U100: 996.3553842 | V100: 983.8268971 | W100: 971.29841 | X100: 958.7699229 | Y100: 946.2414358 | Z100: 933.7129487 | AA100: 921.1844617 | AB100: 910.9490787 | AC100: 900.7136958 | AD100: 890.4783129 | AE100: 880.24293 | AF100: 870.0075471 | AG100: 859.7721642 | AH100: 849.5367813 | AI100: 839.3013984 | AJ100: 829.0660155 | AK100: 818.8306326 | AL100: 809.5047782 | AM100: 800.1789237 | AN100: 790.8530693 | AO100: 781.5272149 | AP100: 772.2013604 | AQ100: 762.875506 | AR100: 753.5496516 | AS100: 744.2237972 | AT100: 734.8979427 | AU100: 725.5720883
K101: Utility PV - 20% - High | L101: 2014.323356 | M101: 1513.417409 | N101: 1513.417409 | O101: 1513.417409 | P101: 1513.417409 | Q101: 1513.417409 | R101: 1513.417409 | S101: 1513.417409 | T101: 1513.417409 | U101: 1513.417409 | V101: 1513.417409 | W101: 1513.417409 | X101: 1513.417409 | Y101: 1513.417409 | Z101: 1513.417409 | AA101: 1513.417409 | AB101: 1513.417409 | AC101: 1513.417409 | AD101: 1513.417409 | AE101: 1513.417409 | AF101: 1513.417409 | AG101: 1513.417409 | AH101: 1513.417409 | AI101: 1513.417409 | AJ101: 1513.417409 | AK101: 1513.417409 | AL101: 1513.417409 | AM101: 1513.417409 | AN101: 1513.417409 | AO101: 1513.417409 | AP101: 1513.417409 | AQ101: 1513.417409 | AR101: 1513.417409 | AS101: 1513.417409 | AT101: 1513.417409 | AU101: 1513.417409
K102: Utility PV - 28% - Low | L102: 2014.323356 | M102: 1513.417409 | N102: 1187.418654 | O102: 1054.050773 | P102: 956.4880486 | Q102: 911.0598216 | R102: 887.0091559 | S102: 862.9584902 | T102: 838.9078245 | U102: 814.8571588 | V102: 790.8064931 | W102: 766.7558274 | X102: 742.7051617 | Y102: 718.654496 | Z102: 694.6038303 | AA102: 670.5531646 | AB102: 657.132148 | AC102: 643.7111315 | AD102: 630.2901149 | AE102: 616.8690983 | AF102: 603.4480818 | AG102: 590.0270652 | AH102: 576.6060487 | AI102: 563.1850321 | AJ102: 549.7640155 | AK102: 536.342999 | AL102: 522.9995056 | AM102: 509.6560123 | AN102: 496.3125189 | AO102: 482.9690256 | AP102: 469.6255322 | AQ102: 456.2820389 | AR102: 442.9385456 | AS102: 429.5950522 | AT102: 416.2515589 | AU102: 402.9080655
K103: Utility PV - 28% - Mid | L103: 2014.323356 | M103: 1513.417409 | N103: 1219.338545 | O103: =$S$40*(O125+O171) -> 1148.21927 | P103: 1107.579684 | Q103: 1046.469333 | R103: 1033.940846 | S103: 1021.412358 | T103: 1008.883871 | U103: 996.3553842 | V103: 983.8268971 | W103: 971.29841 | X103: 958.7699229 | Y103: 946.2414358 | Z103: 933.7129487 | AA103: 921.1844617 | AB103: 910.9490787 | AC103: 900.7136958 | AD103: 890.4783129 | AE103: 880.24293 | AF103: 870.0075471 | AG103: 859.7721642 | AH103: 849.5367813 | AI103: 839.3013984 | AJ103: 829.0660155 | AK103: 818.8306326 | AL103: 809.5047782 | AM103: 800.1789237 | AN103: 790.8530693 | AO103: 781.5272149 | AP103: 772.2013604 | AQ103: 762.875506 | AR103: 753.5496516 | AS103: 744.2237972 | AT103: 734.8979427 | AU103: 725.5720883
K104: Utility PV - 28% - High | L104: =$S$40*(L126+L172) -> 2014.323356 | M104: 1513.417409 | N104: 1513.417409 | O104: 1513.417409 | P104: 1513.417409 | Q104: 1513.417409 | R104: 1513.417409 | S104: 1513.417409 | T104: 1513.417409 | U104: 1513.417409 | V104: 1513.417409 | W104: 1513.417409 | X104: 1513.417409 | Y104: 1513.417409 | Z104: 1513.417409 | AA104: 1513.417409 | AB104: 1513.417409 | AC104: 1513.417409 | AD104: 1513.417409 | AE104: 1513.417409 | AF104: 1513.417409 | AG104: 1513.417409 | AH104: 1513.417409 | AI104: 1513.417409 | AJ104: 1513.417409 | AK104: 1513.417409 | AL104: 1513.417409 | AM104: 1513.417409 | AN104: 1513.417409 | AO104: 1513.417409 | AP104: 1513.417409 | AQ104: 1513.417409 | AR104: 1513.417409 | AS104: 1513.417409 | AT104: 1513.417409 | AU104: 1513.417409
L106: 2015 | M106: 2016 | N106: 2017 | O106: 2018 | P106: 2019 | Q106: 2020 | R106: 2021 | S106: 2022 | T106: 2023 | U106: 2024 | V106: 2025 | W106: 2026 | X106: 2027 | Y106: 2028 | Z106: 2029 | AA106: 2030 | AB106: 2031 | AC106: 2032 | AD106: 2033 | AE106: 2034 | AF106: 2035 | AG106: 2036 | AH106: 2037 | AI106: 2038 | AJ106: 2039 | AK106: 2040 | AL106: 2041 | AM106: 2042 | AN106: 2043 | AO106: 2044 | AP106: 2045 | AQ106: 2046 | AR106: 2047 | AS106: 2048 | AT106: 2049 | AU106: 2050
J107: Construction Financing Cost ($/kW) | K107: Utility PV - 14% - Low | L107: =(L118+L164)*($S$40-1) -> 25.96381825 | M107: 19.50734197 | N107: 15.30534908 | O107: 13.5862907 | P107: 12.32874641 | Q107: 11.74319483 | R107: 11.43319142 | S107: 11.12318801 | T107: 10.81318459 | U107: 10.50318118 | V107: 10.19317777 | W107: 9.883174359 | X107: 9.573170947 | Y107: 9.263167535 | Z107: 8.953164123 | AA107: 8.643160712 | AB107: 8.470169204 | AC107: 8.297177696 | AD107: 8.124186188 | AE107: 7.95119468 | AF107: 7.778203172 | AG107: 7.605211664 | AH107: 7.432220156 | AI107: 7.259228649 | AJ107: 7.086237141 | AK107: 6.913245633 | AL107: 6.741253368 | AM107: 6.569261103 | AN107: 6.397268838 | AO107: 6.225276574 | AP107: 6.053284309 | AQ107: 5.881292044 | AR107: 5.709299779 | AS107: 5.537307514 | AT107: 5.36531525 | AU107: 5.193322985
K108: Utility PV - 14% - Mid | L108: 25.96381825 | M108: 19.50734197 | N108: 15.71678364 | O108: 14.80008477 | P108: 14.27625685 | Q108: 13.48856899 | R108: 13.32708183 | S108: 13.16559467 | T108: 13.0041075 | U108: 12.84262034 | V108: 12.68113318 | W108: 12.51964602 | X108: 12.35815886 | Y108: 12.19667169 | Z108: 12.03518453 | AA108: 11.87369737 | AB108: 11.7417674 | AC108: 11.60983743 | AD108: 11.47790746 | AE108: 11.34597749 | AF108: 11.21404752 | AG108: 11.08211755 | AH108: 10.95018757 | AI108: 10.8182576 | AJ108: 10.68632763 | AK108: 10.55439766 | AL108: 10.43419115 | AM108: 10.31398463 | AN108: 10.19377812 | AO108: 10.07357161 | AP108: 9.953365091 | AQ108: 9.833158577 | AR108: 9.712952062 | AS108: 9.592745548 | AT108: 9.472539034 | AU108: 9.352332519
K109: Utility PV - 14% - High | L109: 25.96381825 | M109: 19.50734197 | N109: 19.50734197 | O109: 19.50734197 | P109: 19.50734197 | Q109: 19.50734197 | R109: 19.50734197 | S109: 19.50734197 | T109: 19.50734197 | U109: 19.50734197 | V109: 19.50734197 | W109: 19.50734197 | X109: 19.50734197 | Y109: 19.50734197 | Z109: 19.50734197 | AA109: 19.50734197 | AB109: 19.50734197 | AC109: 19.50734197 | AD109: 19.50734197 | AE109: 19.50734197 | AF109: 19.50734197 | AG109: 19.50734197 | AH109: 19.50734197 | AI109: 19.50734197 | AJ109: 19.50734197 | AK109: 19.50734197 | AL109: 19.50734197 | AM109: 19.50734197 | AN109: 19.50734197 | AO109: 19.50734197 | AP109: 19.50734197 | AQ109: 19.50734197 | AR109: 19.50734197 | AS109: 19.50734197 | AT109: 19.50734197 | AU109: 19.50734197
K110: Utility PV - 20% - Low | L110: 25.96381825 | M110: 19.50734197 | N110: 15.30534908 | O110: 13.5862907 | P110: 12.32874641 | Q110: 11.74319483 | R110: 11.43319142 | S110: 11.12318801 | T110: 10.81318459 | U110: 10.50318118 | V110: 10.19317777 | W110: 9.883174359 | X110: 9.573170947 | Y110: 9.263167535 | Z110: 8.953164123 | AA110: 8.643160712 | AB110: 8.470169204 | AC110: 8.297177696 | AD110: 8.124186188 | AE110: 7.95119468 | AF110: 7.778203172 | AG110: 7.605211664 | AH110: 7.432220156 | AI110: 7.259228649 | AJ110: 7.086237141 | AK110: 6.913245633 | AL110: 6.741253368 | AM110: 6.569261103 | AN110: 6.397268838 | AO110: 6.225276574 | AP110: 6.053284309 | AQ110: 5.881292044 | AR110: 5.709299779 | AS110: 5.537307514 | AT110: 5.36531525 | AU110: 5.193322985
K111: Utility PV - 20% - Mid | L111: 25.96381825 | M111: 19.50734197 | N111: 15.71678364 | O111: 14.80008477 | P111: 14.27625685 | Q111: 13.48856899 | R111: 13.32708183 | S111: 13.16559467 | T111: 13.0041075 | U111: 12.84262034 | V111: 12.68113318 | W111: 12.51964602 | X111: 12.35815886 | Y111: 12.19667169 | Z111: 12.03518453 | AA111: 11.87369737 | AB111: 11.7417674 | AC111: 11.60983743 | AD111: 11.47790746 | AE111: 11.34597749 | AF111: 11.21404752 | AG111: 11.08211755 | AH111: 10.95018757 | AI111: 10.8182576 | AJ111: 10.68632763 | AK111: 10.55439766 | AL111: 10.43419115 | AM111: 10.31398463 | AN111: 10.19377812 | AO111: 10.07357161 | AP111: 9.953365091 | AQ111: 9.833158577 | AR111: 9.712952062 | AS111: 9.592745548 | AT111: 9.472539034 | AU111: 9.352332519
K112: Utility PV - 20% - High | L112: 25.96381825 | M112: 19.50734197 | N112: 19.50734197 | O112: 19.50734197 | P112: 19.50734197 | Q112: 19.50734197 | R112: 19.50734197 | S112: 19.50734197 | T112: 19.50734197 | U112: 19.50734197 | V112: 19.50734197 | W112: 19.50734197 | X112: 19.50734197 | Y112: 19.50734197 | Z112: 19.50734197 | AA112: 19.50734197 | AB112: 19.50734197 | AC112: 19.50734197 | AD112: 19.50734197 | AE112: 19.50734197 | AF112: 19.50734197 | AG112: 19.50734197 | AH112: 19.50734197 | AI112: 19.50734197 | AJ112: 19.50734197 | AK112: 19.50734197 | AL112: 19.50734197 | AM112: 19.50734197 | AN112: 19.50734197 | AO112: 19.50734197 | AP112: 19.50734197 | AQ112: 19.50734197 | AR112: 19.50734197 | AS112: 19.50734197 | AT112: 19.50734197 | AU112: 19.50734197
K113: Utility PV - 28% - Low | L113: 25.96381825 | M113: 19.50734197 | N113: 15.30534908 | O113: 13.5862907 | P113: 12.32874641 | Q113: 11.74319483 | R113: 11.43319142 | S113: 11.12318801 | T113: 10.81318459 | U113: 10.50318118 | V113: 10.19317777 | W113: 9.883174359 | X113: 9.573170947 | Y113: 9.263167535 | Z113: 8.953164123 | AA113: 8.643160712 | AB113: 8.470169204 | AC113: 8.297177696 | AD113: 8.124186188 | AE113: 7.95119468 | AF113: 7.778203172 | AG113: 7.605211664 | AH113: 7.432220156 | AI113: 7.259228649 | AJ113: 7.086237141 | AK113: 6.913245633 | AL113: 6.741253368 | AM113: 6.569261103 | AN113: 6.397268838 | AO113: 6.225276574 | AP113: 6.053284309 | AQ113: 5.881292044 | AR113: 5.709299779 | AS113: 5.537307514 | AT113: 5.36531525 | AU113: 5.193322985
K114: Utility PV - 28% - Mid | L114: 25.96381825 | M114: 19.50734197 | N114: 15.71678364 | O114: =(O125+O171)*($S$40-1) -> 14.80008477 | P114: 14.27625685 | Q114: 13.48856899 | R114: 13.32708183 | S114: 13.16559467 | T114: 13.0041075 | U114: 12.84262034 | V114: 12.68113318 | W114: 12.51964602 | X114: 12.35815886 | Y114: 12.19667169 | Z114: 12.03518453 | AA114: 11.87369737 | AB114: 11.7417674 | AC114: 11.60983743 | AD114: 11.47790746 | AE114: 11.34597749 | AF114: 11.21404752 | AG114: 11.08211755 | AH114: 10.95018757 | AI114: 10.8182576 | AJ114: 10.68632763 | AK114: 10.55439766 | AL114: 10.43419115 | AM114: 10.31398463 | AN114: 10.19377812 | AO114: 10.07357161 | AP114: 9.953365091 | AQ114: 9.833158577 | AR114: 9.712952062 | AS114: 9.592745548 | AT114: 9.472539034 | AU114: 9.352332519
K115: Utility PV - 28% - High | L115: =(L126+L172)*($S$40-1) -> 25.96381825 | M115: 19.50734197 | N115: 19.50734197 | O115: 19.50734197 | P115: 19.50734197 | Q115: 19.50734197 | R115: 19.50734197 | S115: 19.50734197 | T115: 19.50734197 | U115: 19.50734197 | V115: 19.50734197 | W115: 19.50734197 | X115: 19.50734197 | Y115: 19.50734197 | Z115: 19.50734197 | AA115: 19.50734197 | AB115: 19.50734197 | AC115: 19.50734197 | AD115: 19.50734197 | AE115: 19.50734197 | AF115: 19.50734197 | AG115: 19.50734197 | AH115: 19.50734197 | AI115: 19.50734197 | AJ115: 19.50734197 | AK115: 19.50734197 | AL115: 19.50734197 | AM115: 19.50734197 | AN115: 19.50734197 | AO115: 19.50734197 | AP115: 19.50734197 | AQ115: 19.50734197 | AR115: 19.50734197 | AS115: 19.50734197 | AT115: 19.50734197 | AU115: 19.50734197
L117: 2015 | M117: 2016 | N117: 2017 | O117: 2018 | P117: 2019 | Q117: 2020 | R117: 2021 | S117: 2022 | T117: 2023 | U117: 2024 | V117: 2025 | W117: 2026 | X117: 2027 | Y117: 2028 | Z117: 2029 | AA117: 2030 | AB117: 2031 | AC117: 2032 | AD117: 2033 | AE117: 2034 | AF117: 2035 | AG117: 2036 | AH117: 2037 | AI117: 2038 | AJ117: 2039 | AK117: 2040 | AL117: 2041 | AM117: 2042 | AN117: 2043 | AO117: 2044 | AP117: 2045 | AQ117: 2046 | AR117: 2047 | AS117: 2048 | AT117: 2049 | AU117: 2050
J118: Overnight Capital Cost ($/kW) | K118: Utility PV - 14% - Low | L118: 1988.359538 | M118: 1493.910067 | N118: 1172.113305 | O118: 1040.464482 | P118: 944.1593022 | Q118: 899.3166268 | R118: 875.5759645 | S118: 851.8353022 | T118: 828.0946399 | U118: 804.3539776 | V118: 780.6133153 | W118: 756.872653 | X118: 733.1319907 | Y118: 709.3913285 | Z118: 685.6506662 | AA118: 661.9100039 | AB118: 648.6619788 | AC118: 635.4139538 | AD118: 622.1659287 | AE118: 608.9179037 | AF118: 595.6698786 | AG118: 582.4218536 | AH118: 569.1738285 | AI118: 555.9258034 | AJ118: 542.6777784 | AK118: 529.4297533 | AL118: 516.2582523 | AM118: 503.0867512 | AN118: 489.9152501 | AO118: 476.743749 | AP118: 463.5722479 | AQ118: 450.4007469 | AR118: 437.2292458 | AS118: 424.0577447 | AT118: 410.8862436 | AU118: 397.7147425
K119: Utility PV - 14% - Mid | L119: 1988.359538 | M119: 1493.910067 | N119: 1203.621761 | O119: 1133.419185 | P119: 1093.303427 | Q119: 1032.980764 | R119: 1020.613764 | S119: 1008.246764 | T119: 995.8797638 | U119: 983.5127639 | V119: 971.145764 | W119: 958.778764 | X119: 946.4117641 | Y119: 934.0447642 | Z119: 921.6777642 | AA119: 909.3107643 | AB119: 899.2073113 | AC119: 889.1038584 | AD119: 879.0004055 | AE119: 868.8969525 | AF119: 858.7934996 | AG119: 848.6900467 | AH119: 838.5865937 | AI119: 828.4831408 | AJ119: 818.3796879 | AK119: 808.2762349 | AL119: 799.070587 | AM119: 789.8649391 | AN119: 780.6592912 | AO119: 771.4536433 | AP119: 762.2479954 | AQ119: 753.0423474 | AR119: 743.8366995 | AS119: 734.6310516 | AT119: 725.4254037 | AU119: 716.2197558
K120: Utility PV - 14% - High | L120: 1988.359538 | M120: 1493.910067 | N120: 1493.910067 | O120: 1493.910067 | P120: 1493.910067 | Q120: 1493.910067 | R120: 1493.910067 | S120: 1493.910067 | T120: 1493.910067 | U120: 1493.910067 | V120: 1493.910067 | W120: 1493.910067 | X120: 1493.910067 | Y120: 1493.910067 | Z120: 1493.910067 | AA120: 1493.910067 | AB120: 1493.910067 | AC120: 1493.910067 | AD120: 1493.910067 | AE120: 1493.910067 | AF120: 1493.910067 | AG120: 1493.910067 | AH120: 1493.910067 | AI120: 1493.910067 | AJ120: 1493.910067 | AK120: 1493.910067 | AL120: 1493.910067 | AM120: 1493.910067 | AN120: 1493.910067 | AO120: 1493.910067 | AP120: 1493.910067 | AQ120: 1493.910067 | AR120: 1493.910067 | AS120: 1493.910067 | AT120: 1493.910067 | AU120: 1493.910067
K121: Utility PV - 20% - Low | L121: 1988.359538 | M121: 1493.910067 | N121: 1172.113305 | O121: 1040.464482 | P121: 944.1593022 | Q121: 899.3166268 | R121: 875.5759645 | S121: 851.8353022 | T121: 828.0946399 | U121: 804.3539776 | V121: 780.6133153 | W121: 756.872653 | X121: 733.1319907 | Y121: 709.3913285 | Z121: 685.6506662 | AA121: 661.9100039 | AB121: 648.6619788 | AC121: 635.4139538 | AD121: 622.1659287 | AE121: 608.9179037 | AF121: 595.6698786 | AG121: 582.4218536 | AH121: 569.1738285 | AI121: 555.9258034 | AJ121: 542.6777784 | AK121: 529.4297533 | AL121: 516.2582523 | AM121: 503.0867512 | AN121: 489.9152501 | AO121: 476.743749 | AP121: 463.5722479 | AQ121: 450.4007469 | AR121: 437.2292458 | AS121: 424.0577447 | AT121: 410.8862436 | AU121: 397.7147425
K122: Utility PV - 20% - Mid | L122: 1988.359538 | M122: 1493.910067 | N122: 1203.621761 | O122: 1133.419185 | P122: 1093.303427 | Q122: 1032.980764 | R122: 1020.613764 | S122: 1008.246764 | T122: 995.8797638 | U122: 983.5127639 | V122: 971.145764 | W122: 958.778764 | X122: 946.4117641 | Y122: 934.0447642 | Z122: 921.6777642 | AA122: 909.3107643 | AB122: 899.2073113 | AC122: 889.1038584 | AD122: 879.0004055 | AE122: 868.8969525 | AF122: 858.7934996 | AG122: 848.6900467 | AH122: 838.5865937 | AI122: 828.4831408 | AJ122: 818.3796879 | AK122: 808.2762349 | AL122: 799.070587 | AM122: 789.8649391 | AN122: 780.6592912 | AO122: 771.4536433 | AP122: 762.2479954 | AQ122: 753.0423474 | AR122: 743.8366995 | AS122: 734.6310516 | AT122: 725.4254037 | AU122: 716.2197558
K123: Utility PV - 20% - High | L123: 1988.359538 | M123: 1493.910067 | N123: 1493.910067 | O123: 1493.910067 | P123: 1493.910067 | Q123: 1493.910067 | R123: 1493.910067 | S123: 1493.910067 | T123: 1493.910067 | U123: 1493.910067 | V123: 1493.910067 | W123: 1493.910067 | X123: 1493.910067 | Y123: 1493.910067 | Z123: 1493.910067 | AA123: 1493.910067 | AB123: 1493.910067 | AC123: 1493.910067 | AD123: 1493.910067 | AE123: 1493.910067 | AF123: 1493.910067 | AG123: 1493.910067 | AH123: 1493.910067 | AI123: 1493.910067 | AJ123: 1493.910067 | AK123: 1493.910067 | AL123: 1493.910067 | AM123: 1493.910067 | AN123: 1493.910067 | AO123: 1493.910067 | AP123: 1493.910067 | AQ123: 1493.910067 | AR123: 1493.910067 | AS123: 1493.910067 | AT123: 1493.910067 | AU123: 1493.910067
K124: Utility PV - 28% - Low | L124: 1988.359538 | M124: 1493.910067 | N124: 1172.113305 | O124: 1040.464482 | P124: 944.1593022 | Q124: 899.3166268 | R124: 875.5759645 | S124: 851.8353022 | T124: 828.0946399 | U124: 804.3539776 | V124: 780.6133153 | W124: 756.872653 | X124: 733.1319907 | Y124: 709.3913285 | Z124: 685.6506662 | AA124: 661.9100039 | AB124: 648.6619788 | AC124: 635.4139538 | AD124: 622.1659287 | AE124: 608.9179037 | AF124: 595.6698786 | AG124: 582.4218536 | AH124: 569.1738285 | AI124: 555.9258034 | AJ124: 542.6777784 | AK124: 529.4297533 | AL124: 516.2582523 | AM124: 503.0867512 | AN124: 489.9152501 | AO124: 476.743749 | AP124: 463.5722479 | AQ124: 450.4007469 | AR124: 437.2292458 | AS124: 424.0577447 | AT124: 410.8862436 | AU124: 397.7147425
K125: Utility PV - 28% - Mid | L125: 1988.359538 | M125: 1493.910067 | N125: 1203.621761 | O125: 1133.419185 | P125: 1093.303427 | Q125: 1032.980764 | R125: 1020.613764 | S125: 1008.246764 | T125: 995.8797638 | U125: 983.5127639 | V125: 971.145764 | W125: 958.778764 | X125: 946.4117641 | Y125: 934.0447642 | Z125: 921.6777642 | AA125: 909.3107643 | AB125: 899.2073113 | AC125: 889.1038584 | AD125: 879.0004055 | AE125: 868.8969525 | AF125: 858.7934996 | AG125: 848.6900467 | AH125: 838.5865937 | AI125: 828.4831408 | AJ125: 818.3796879 | AK125: 808.2762349 | AL125: 799.070587 | AM125: 789.8649391 | AN125: 780.6592912 | AO125: 771.4536433 | AP125: 762.2479954 | AQ125: 753.0423474 | AR125: 743.8366995 | AS125: 734.6310516 | AT125: 725.4254037 | AU125: 716.2197558
K126: Utility PV - 28% - High | L126: 1988.359538 | M126: 1493.910067 | N126: 1493.910067 | O126: 1493.910067 | P126: 1493.910067 | Q126: 1493.910067 | R126: 1493.910067 | S126: 1493.910067 | T126: 1493.910067 | U126: 1493.910067 | V126: 1493.910067 | W126: 1493.910067 | X126: 1493.910067 | Y126: 1493.910067 | Z126: 1493.910067 | AA126: 1493.910067 | AB126: 1493.910067 | AC126: 1493.910067 | AD126: 1493.910067 | AE126: 1493.910067 | AF126: 1493.910067 | AG126: 1493.910067 | AH126: 1493.910067 | AI126: 1493.910067 | AJ126: 1493.910067 | AK126: 1493.910067 | AL126: 1493.910067 | AM126: 1493.910067 | AN126: 1493.910067 | AO126: 1493.910067 | AP126: 1493.910067 | AQ126: 1493.910067 | AR126: 1493.910067 | AS126: 1493.910067 | AT126: 1493.910067 | AU126: 1493.910067
L128: 2015 | M128: 2016 | N128: 2017 | O128: 2018 | P128: 2019 | Q128: 2020 | R128: 2021 | S128: 2022 | T128: 2023 | U128: 2024 | V128: 2025 | W128: 2026 | X128: 2027 | Y128: 2028 | Z128: 2029 | AA128: 2030 | AB128: 2031 | AC128: 2032 | AD128: 2033 | AE128: 2034 | AF128: 2035 | AG128: 2036 | AH128: 2037 | AI128: 2038 | AJ128: 2039 | AK128: 2040 | AL128: 2041 | AM128: 2042 | AN128: 2043 | AO128: 2044 | AP128: 2045 | AQ128: 2046 | AR128: 2047 | AS128: 2048 | AT128: 2049 | AU128: 2050
J129: Fixed Operation and Maintenance Expenses ($/kW-yr) | K129: Utility PV - 14% - Low | L129: 13 | M129: 12.4 | N129: 11.8 | O129: 11.2 | P129: 10.6 | Q129: 10 | R129: 10 | S129: 10 | T129: 10 | U129: 10 | V129: 10 | W129: 10 | X129: 10 | Y129: 10 | Z129: 10 | AA129: 10 | AB129: 10 | AC129: 10 | AD129: 10 | AE129: 10 | AF129: 10 | AG129: 10 | AH129: 10 | AI129: 10 | AJ129: 10 | AK129: 10 | AL129: 10 | AM129: 10 | AN129: 10 | AO129: 10 | AP129: 10 | AQ129: 10 | AR129: 10 | AS129: 10 | AT129: 10 | AU129: 10
K130: Utility PV - 14% - Mid | L130: 13 | M130: 12.7 | N130: 12.4 | O130: 12.1 | P130: 11.8 | Q130: 11.5 | R130: 11.2 | S130: 10.9 | T130: 10.6 | U130: 10.3 | V130: 10 | W130: 10 | X130: 10 | Y130: 10 | Z130: 10 | AA130: 10 | AB130: 10 | AC130: 10 | AD130: 10 | AE130: 10 | AF130: 10 | AG130: 10 | AH130: 10 | AI130: 10 | AJ130: 10 | AK130: 10 | AL130: 10 | AM130: 10 | AN130: 10 | AO130: 10 | AP130: 10 | AQ130: 10 | AR130: 10 | AS130: 10 | AT130: 10 | AU130: 10
K131: Utility PV - 14% - High | L131: 13 | M131: 13 | N131: 13 | O131: 13 | P131: 13 | Q131: 13 | R131: 13 | S131: 13 | T131: 13 | U131: 13 | V131: 13 | W131: 13 | X131: 13 | Y131: 13 | Z131: 13 | AA131: 13 | AB131: 13 | AC131: 13 | AD131: 13 | AE131: 13 | AF131: 13 | AG131: 13 | AH131: 13 | AI131: 13 | AJ131: 13 | AK131: 13 | AL131: 13 | AM131: 13 | AN131: 13 | AO131: 13 | AP131: 13 | AQ131: 13 | AR131: 13 | AS131: 13 | AT131: 13 | AU131: 13
K132: Utility PV - 20% - Low | L132: 13 | M132: 12.4 | N132: 11.8 | O132: 11.2 | P132: 10.6 | Q132: 10 | R132: 10 | S132: 10 | T132: 10 | U132: 10 | V132: 10 | W132: 10 | X132: 10 | Y132: 10 | Z132: 10 | AA132: 10 | AB132: 10 | AC132: 10 | AD132: 10 | AE132: 10 | AF132: 10 | AG132: 10 | AH132: 10 | AI132: 10 | AJ132: 10 | AK132: 10 | AL132: 10 | AM132: 10 | AN132: 10 | AO132: 10 | AP132: 10 | AQ132: 10 | AR132: 10 | AS132: 10 | AT132: 10 | AU132: 10
K133: Utility PV - 20% - Mid | L133: 13 | M133: 12.7 | N133: 12.4 | O133: 12.1 | P133: 11.8 | Q133: 11.5 | R133: 11.2 | S133: 10.9 | T133: 10.6 | U133: 10.3 | V133: 10 | W133: 10 | X133: 10 | Y133: 10 | Z133: 10 | AA133: 10 | AB133: 10 | AC133: 10 | AD133: 10 | AE133: 10 | AF133: 10 | AG133: 10 | AH133: 10 | AI133: 10 | AJ133: 10 | AK133: 10 | AL133: 10 | AM133: 10 | AN133: 10 | AO133: 10 | AP133: 10 | AQ133: 10 | AR133: 10 | AS133: 10 | AT133: 10 | AU133: 10
K134: Utility PV - 20% - High | L134: 13 | M134: 13 | N134: 13 | O134: 13 | P134: 13 | Q134: 13 | R134: 13 | S134: 13 | T134: 13 | U134: 13 | V134: 13 | W134: 13 | X134: 13 | Y134: 13 | Z134: 13 | AA134: 13 | AB134: 13 | AC134: 13 | AD134: 13 | AE134: 13 | AF134: 13 | AG134: 13 | AH134: 13 | AI134: 13 | AJ134: 13 | AK134: 13 | AL134: 13 | AM134: 13 | AN134: 13 | AO134: 13 | AP134: 13 | AQ134: 13 | AR134: 13 | AS134: 13 | AT134: 13 | AU134: 13
K135: Utility PV - 28% - Low | L135: 13 | M135: 12.4 | N135: 11.8 | O135: 11.2 | P135: 10.6 | Q135: 10 | R135: 10 | S135: 10 | T135: 10 | U135: 10 | V135: 10 | W135: 10 | X135: 10 | Y135: 10 | Z135: 10 | AA135: 10 | AB135: 10 | AC135: 10 | AD135: 10 | AE135: 10 | AF135: 10 | AG135: 10 | AH135: 10 | AI135: 10 | AJ135: 10 | AK135: 10 | AL135: 10 | AM135: 10 | AN135: 10 | AO135: 10 | AP135: 10 | AQ135: 10 | AR135: 10 | AS135: 10 | AT135: 10 | AU135: 10
K136: Utility PV - 28% - Mid | L136: 13 | M136: 12.7 | N136: 12.4 | O136: 12.1 | P136: 11.8 | Q136: 11.5 | R136: 11.2 | S136: 10.9 | T136: 10.6 | U136: 10.3 | V136: 10 | W136: 10 | X136: 10 | Y136: 10 | Z136: 10 | AA136: 10 | AB136: 10 | AC136: 10 | AD136: 10 | AE136: 10 | AF136: 10 | AG136: 10 | AH136: 10 | AI136: 10 | AJ136: 10 | AK136: 10 | AL136: 10 | AM136: 10 | AN136: 10 | AO136: 10 | AP136: 10 | AQ136: 10 | AR136: 10 | AS136: 10 | AT136: 10 | AU136: 10
K137: Utility PV - 28% - High | L137: 13 | M137: 13 | N137: 13 | O137: 13 | P137: 13 | Q137: 13 | R137: 13 | S137: 13 | T137: 13 | U137: 13 | V137: 13 | W137: 13 | X137: 13 | Y137: 13 | Z137: 13 | AA137: 13 | AB137: 13 | AC137: 13 | AD137: 13 | AE137: 13 | AF137: 13 | AG137: 13 | AH137: 13 | AI137: 13 | AJ137: 13 | AK137: 13 | AL137: 13 | AM137: 13 | AN137: 13 | AO137: 13 | AP137: 13 | AQ137: 13 | AR137: 13 | AS137: 13 | AT137: 13 | AU137: 13
L139: 2015 | M139: 2016 | N139: 2017 | O139: 2018 | P139: 2019 | Q139: 2020 | R139: 2021 | S139: 2022 | T139: 2023 | U139: 2024 | V139: 2025 | W139: 2026 | X139: 2027 | Y139: 2028 | Z139: 2029 | AA139: 2030 | AB139: 2031 | AC139: 2032 | AD139: 2033 | AE139: 2034 | AF139: 2035 | AG139: 2036 | AH139: 2037 | AI139: 2038 | AJ139: 2039 | AK139: 2040 | AL139: 2041 | AM139: 2042 | AN139: 2043 | AO139: 2044 | AP139: 2045 | AQ139: 2046 | AR139: 2047 | AS139: 2048 | AT139: 2049 | AU139: 2050
J140: Variable Operation and Maintenance Expenses ($/MWh) | K140: Utility PV - 14% - Low | L140: 0 | M140: 0 | N140: 0 | O140: 0 | P140: 0 | Q140: 0 | R140: 0 | S140: 0 | T140: 0 | U140: 0 | V140: 0 | W140: 0 | X140: 0 | Y140: 0 | Z140: 0 | AA140: 0 | AB140: 0 | AC140: 0 | AD140: 0 | AE140: 0 | AF140: 0 | AG140: 0 | AH140: 0 | AI140: 0 | AJ140: 0 | AK140: 0 | AL140: 0 | AM140: 0 | AN140: 0 | AO140: 0 | AP140: 0 | AQ140: 0 | AR140: 0 | AS140: 0 | AT140: 0 | AU140: 0
K141: Utility PV - 14% - Mid | L141: 0 | M141: 0 | N141: 0 | O141: 0 | P141: 0 | Q141: 0 | R141: 0 | S141: 0 | T141: 0 | U141: 0 | V141: 0 | W141: 0 | X141: 0 | Y141: 0 | Z141: 0 | AA141: 0 | AB141: 0 | AC141: 0 | AD141: 0 | AE141: 0 | AF141: 0 | AG141: 0 | AH141: 0 | AI141: 0 | AJ141: 0 | AK141: 0 | AL141: 0 | AM141: 0 | AN141: 0 | AO141: 0 | AP141: 0 | AQ141: 0 | AR141: 0 | AS141: 0 | AT141: 0 | AU141: 0
K142: Utility PV - 14% - High | L142: 0 | M142: 0 | N142: 0 | O142: 0 | P142: 0 | Q142: 0 | R142: 0 | S142: 0 | T142: 0 | U142: 0 | V142: 0 | W142: 0 | X142: 0 | Y142: 0 | Z142: 0 | AA142: 0 | AB142: 0 | AC142: 0 | AD142: 0 | AE142: 0 | AF142: 0 | AG142: 0 | AH142: 0 | AI142: 0 | AJ142: 0 | AK142: 0 | AL142: 0 | AM142: 0 | AN142: 0 | AO142: 0 | AP142: 0 | AQ142: 0 | AR142: 0 | AS142: 0 | AT142: 0 | AU142: 0
K143: Utility PV - 20% - Low | L143: 0 | M143: 0 | N143: 0 | O143: 0 | P143: 0 | Q143: 0 | R143: 0 | S143: 0 | T143: 0 | U143: 0 | V143: 0 | W143: 0 | X143: 0 | Y143: 0 | Z143: 0 | AA143: 0 | AB143: 0 | AC143: 0 | AD143: 0 | AE143: 0 | AF143: 0 | AG143: 0 | AH143: 0 | AI143: 0 | AJ143: 0 | AK143: 0 | AL143: 0 | AM143: 0 | AN143: 0 | AO143: 0 | AP143: 0 | AQ143: 0 | AR143: 0 | AS143: 0 | AT143: 0 | AU143: 0
K144: Utility PV - 20% - Mid | L144: 0 | M144: 0 | N144: 0 | O144: 0 | P144: 0 | Q144: 0 | R144: 0 | S144: 0 | T144: 0 | U144: 0 | V144: 0 | W144: 0 | X144: 0 | Y144: 0 | Z144: 0 | AA144: 0 | AB144: 0 | AC144: 0 | AD144: 0 | AE144: 0 | AF144: 0 | AG144: 0 | AH144: 0 | AI144: 0 | AJ144: 0 | AK144: 0 | AL144: 0 | AM144: 0 | AN144: 0 | AO144: 0 | AP144: 0 | AQ144: 0 | AR144: 0 | AS144: 0 | AT144: 0 | AU144: 0
K145: Utility PV - 20% - High | L145: 0 | M145: 0 | N145: 0 | O145: 0 | P145: 0 | Q145: 0 | R145: 0 | S145: 0 | T145: 0 | U145: 0 | V145: 0 | W145: 0 | X145: 0 | Y145: 0 | Z145: 0 | AA145: 0 | AB145: 0 | AC145: 0 | AD145: 0 | AE145: 0 | AF145: 0 | AG145: 0 | AH145: 0 | AI145: 0 | AJ145: 0 | AK145: 0 | AL145: 0 | AM145: 0 | AN145: 0 | AO145: 0 | AP145: 0 | AQ145: 0 | AR145: 0 | AS145: 0 | AT145: 0 | AU145: 0
K146: Utility PV - 28% - Low | L146: 0 | M146: 0 | N146: 0 | O146: 0 | P146: 0 | Q146: 0 | R146: 0 | S146: 0 | T146: 0 | U146: 0 | V146: 0 | W146: 0 | X146: 0 | Y146: 0 | Z146: 0 | AA146: 0 | AB146: 0 | AC146: 0 | AD146: 0 | AE146: 0 | AF146: 0 | AG146: 0 | AH146: 0 | AI146: 0 | AJ146: 0 | AK146: 0 | AL146: 0 | AM146: 0 | AN146: 0 | AO146: 0 | AP146: 0 | AQ146: 0 | AR146: 0 | AS146: 0 | AT146: 0 | AU146: 0
K147: Utility PV - 28% - Mid | L147: 0 | M147: 0 | N147: 0 | O147: 0 | P147: 0 | Q147: 0 | R147: 0 | S147: 0 | T147: 0 | U147: 0 | V147: 0 | W147: 0 | X147: 0 | Y147: 0 | Z147: 0 | AA147: 0 | AB147: 0 | AC147: 0 | AD147: 0 | AE147: 0 | AF147: 0 | AG147: 0 | AH147: 0 | AI147: 0 | AJ147: 0 | AK147: 0 | AL147: 0 | AM147: 0 | AN147: 0 | AO147: 0 | AP147: 0 | AQ147: 0 | AR147: 0 | AS147: 0 | AT147: 0 | AU147: 0
K148: Utility PV - 28% - High | L148: 0 | M148: 0 | N148: 0 | O148: 0 | P148: 0 | Q148: 0 | R148: 0 | S148: 0 | T148: 0 | U148: 0 | V148: 0 | W148: 0 | X148: 0 | Y148: 0 | Z148: 0 | AA148: 0 | AB148: 0 | AC148: 0 | AD148: 0 | AE148: 0 | AF148: 0 | AG148: 0 | AH148: 0 | AI148: 0 | AJ148: 0 | AK148: 0 | AL148: 0 | AM148: 0 | AN148: 0 | AO148: 0 | AP148: 0 | AQ148: 0 | AR148: 0 | AS148: 0 | AT148: 0 | AU148: 0
L151: 2015 | M151: 2016 | N151: 2017 | O151: 2018 | P151: 2019 | Q151: 2020 | R151: 2021 | S151: 2022 | T151: 2023 | U151: 2024 | V151: 2025 | W151: 2026 | X151: 2027 | Y151: 2028 | Z151: 2029 | AA151: 2030 | AB151: 2031 | AC151: 2032 | AD151: 2033 | AE151: 2034 | AF151: 2035 | AG151: 2036 | AH151: 2037 | AI151: 2038 | AJ151: 2039 | AK151: 2040 | AL151: 2041 | AM151: 2042 | AN151: 2043 | AO151: 2044 | AP151: 2045 | AQ151: 2046 | AR151: 2047 | AS151: 2048 | AT151: 2049 | AU151: 2050
H152: Finance | J152: Weighted Average Cost of Capital (WACC) (Nominal) (%) | K152: Utility PV - 14% - Low | L152: =$S$37 -> 0.0537826696 | M152: 0.0537826696 | N152: 0.0537826696 | O152: 0.0537826696 | P152: 0.0537826696 | Q152: 0.0537826696 | R152: 0.0537826696 | S152: 0.0537826696 | T152: 0.0537826696 | U152: 0.0537826696 | V152: 0.0537826696 | W152: 0.0537826696 | X152: 0.0537826696 | Y152: 0.0537826696 | Z152: 0.0537826696 | AA152: 0.0537826696 | AB152: =$S$37 -> 0.0537826696 | AC152: 0.0537826696 | AD152: 0.0537826696 | AE152: 0.0537826696 | AF152: 0.0537826696 | AG152: 0.0537826696 | AH152: 0.0537826696 | AI152: 0.0537826696 | AJ152: 0.0537826696 | AK152: 0.0537826696 | AL152: 0.0537826696 | AM152: 0.0537826696 | AN152: 0.0537826696 | AO152: 0.0537826696 | AP152: 0.0537826696 | AQ152: 0.0537826696 | AR152: =$S$37 -> 0.0537826696 | AS152: 0.0537826696 | AT152: 0.0537826696 | AU152: 0.0537826696
K153: Utility PV - 14% - Mid | L153: 0.0537826696 | M153: 0.0537826696 | N153: 0.0537826696 | O153: 0.0537826696 | P153: 0.0537826696 | Q153: 0.0537826696 | R153: 0.0537826696 | S153: 0.0537826696 | T153: 0.0537826696 | U153: 0.0537826696 | V153: 0.0537826696 | W153: 0.0537826696 | X153: 0.0537826696 | Y153: 0.0537826696 | Z153: 0.0537826696 | AA153: 0.0537826696 | AB153: 0.0537826696 | AC153: 0.0537826696 | AD153: 0.0537826696 | AE153: 0.0537826696 | AF153: 0.0537826696 | AG153: 0.0537826696 | AH153: 0.0537826696 | AI153: 0.0537826696 | AJ153: 0.0537826696 | AK153: 0.0537826696 | AL153: 0.0537826696 | AM153: 0.0537826696 | AN153: 0.0537826696 | AO153: 0.0537826696 | AP153: 0.0537826696 | AQ153: 0.0537826696 | AR153: 0.0537826696 | AS153: 0.0537826696 | AT153: 0.0537826696 | AU153: 0.0537826696
K154: Utility PV - 14% - High | L154: 0.0537826696 | M154: 0.0537826696 | N154: 0.0537826696 | O154: 0.0537826696 | P154: 0.0537826696 | Q154: 0.0537826696 | R154: 0.0537826696 | S154: 0.0537826696 | T154: 0.0537826696 | U154: 0.0537826696 | V154: 0.0537826696 | W154: 0.0537826696 | X154: 0.0537826696 | Y154: 0.0537826696 | Z154: 0.0537826696 | AA154: 0.0537826696 | AB154: 0.0537826696 | AC154: 0.0537826696 | AD154: 0.0537826696 | AE154: 0.0537826696 | AF154: 0.0537826696 | AG154: 0.0537826696 | AH154: 0.0537826696 | AI154: 0.0537826696 | AJ154: 0.0537826696 | AK154: 0.0537826696 | AL154: 0.0537826696 | AM154: 0.0537826696 | AN154: 0.0537826696 | AO154: 0.0537826696 | AP154: 0.0537826696 | AQ154: 0.0537826696 | AR154: 0.0537826696 | AS154: 0.0537826696 | AT154: 0.0537826696 | AU154: 0.0537826696
K155: Utility PV - 20% - Low | L155: 0.0537826696 | M155: 0.0537826696 | N155: 0.0537826696 | O155: 0.0537826696 | P155: 0.0537826696 | Q155: 0.0537826696 | R155: 0.0537826696 | S155: 0.0537826696 | T155: 0.0537826696 | U155: 0.0537826696 | V155: 0.0537826696 | W155: 0.0537826696 | X155: 0.0537826696 | Y155: 0.0537826696 | Z155: 0.0537826696 | AA155: 0.0537826696 | AB155: 0.0537826696 | AC155: 0.0537826696 | AD155: 0.0537826696 | AE155: 0.0537826696 | AF155: 0.0537826696 | AG155: 0.0537826696 | AH155: 0.0537826696 | AI155: 0.0537826696 | AJ155: 0.0537826696 | AK155: 0.0537826696 | AL155: 0.0537826696 | AM155: 0.0537826696 | AN155: 0.0537826696 | AO155: 0.0537826696 | AP155: 0.0537826696 | AQ155: 0.0537826696 | AR155: 0.0537826696 | AS155: 0.0537826696 | AT155: 0.0537826696 | AU155: 0.0537826696
K156: Utility PV - 20% - Mid | L156: 0.0537826696 | M156: 0.0537826696 | N156: 0.0537826696 | O156: 0.0537826696 | P156: 0.0537826696 | Q156: 0.0537826696 | R156: 0.0537826696 | S156: 0.0537826696 | T156: 0.0537826696 | U156: 0.0537826696 | V156: 0.0537826696 | W156: 0.0537826696 | X156: 0.0537826696 | Y156: 0.0537826696 | Z156: 0.0537826696 | AA156: 0.0537826696 | AB156: 0.0537826696 | AC156: 0.0537826696 | AD156: 0.0537826696 | AE156: 0.0537826696 | AF156: 0.0537826696 | AG156: 0.0537826696 | AH156: 0.0537826696 | AI156: 0.0537826696 | AJ156: 0.0537826696 | AK156: 0.0537826696 | AL156: 0.0537826696 | AM156: 0.0537826696 | AN156: 0.0537826696 | AO156: 0.0537826696 | AP156: 0.0537826696 | AQ156: 0.0537826696 | AR156: 0.0537826696 | AS156: 0.0537826696 | AT156: 0.0537826696 | AU156: 0.0537826696
K157: Utility PV - 20% - High | L157: 0.0537826696 | M157: 0.0537826696 | N157: 0.0537826696 | O157: 0.0537826696 | P157: 0.0537826696 | Q157: 0.0537826696 | R157: 0.0537826696 | S157: 0.0537826696 | T157: 0.0537826696 | U157: 0.0537826696 | V157: 0.0537826696 | W157: 0.0537826696 | X157: 0.0537826696 | Y157: 0.0537826696 | Z157: 0.0537826696 | AA157: 0.0537826696 | AB157: 0.0537826696 | AC157: 0.0537826696 | AD157: 0.0537826696 | AE157: 0.0537826696 | AF157: 0.0537826696 | AG157: 0.0537826696 | AH157: 0.0537826696 | AI157: 0.0537826696 | AJ157: 0.0537826696 | AK157: 0.0537826696 | AL157: 0.0537826696 | AM157: 0.0537826696 | AN157: 0.0537826696 | AO157: 0.0537826696 | AP157: 0.0537826696 | AQ157: 0.0537826696 | AR157: 0.0537826696 | AS157: 0.0537826696 | AT157: 0.0537826696 | AU157: 0.0537826696
K158: Utility PV - 28% - Low | L158: 0.0537826696 | M158: 0.0537826696 | N158: 0.0537826696 | O158: 0.0537826696 | P158: 0.0537826696 | Q158: 0.0537826696 | R158: 0.0537826696 | S158: 0.0537826696 | T158: 0.0537826696 | U158: 0.0537826696 | V158: 0.0537826696 | W158: 0.0537826696 | X158: 0.0537826696 | Y158: 0.0537826696 | Z158: 0.0537826696 | AA158: 0.0537826696 | AB158: 0.0537826696 | AC158: 0.0537826696 | AD158: 0.0537826696 | AE158: 0.0537826696 | AF158: 0.0537826696 | AG158: 0.0537826696 | AH158: 0.0537826696 | AI158: 0.0537826696 | AJ158: 0.0537826696 | AK158: 0.0537826696 | AL158: 0.0537826696 | AM158: 0.0537826696 | AN158: 0.0537826696 | AO158: 0.0537826696 | AP158: 0.0537826696 | AQ158: 0.0537826696 | AR158: 0.0537826696 | AS158: 0.0537826696 | AT158: 0.0537826696 | AU158: 0.0537826696
K159: Utility PV - 28% - Mid | L159: 0.0537826696 | M159: 0.0537826696 | N159: 0.0537826696 | O159: 0.0537826696 | P159: 0.0537826696 | Q159: 0.0537826696 | R159: 0.0537826696 | S159: 0.0537826696 | T159: 0.0537826696 | U159: 0.0537826696 | V159: 0.0537826696 | W159: 0.0537826696 | X159: 0.0537826696 | Y159: 0.0537826696 | Z159: 0.0537826696 | AA159: 0.0537826696 | AB159: 0.0537826696 | AC159: 0.0537826696 | AD159: 0.0537826696 | AE159: 0.0537826696 | AF159: 0.0537826696 | AG159: 0.0537826696 | AH159: 0.0537826696 | AI159: 0.0537826696 | AJ159: 0.0537826696 | AK159: 0.0537826696 | AL159: 0.0537826696 | AM159: 0.0537826696 | AN159: 0.0537826696 | AO159: 0.0537826696 | AP159: 0.0537826696 | AQ159: 0.0537826696 | AR159: 0.0537826696 | AS159: 0.0537826696 | AT159: 0.0537826696 | AU159: 0.0537826696
K160: Utility PV - 28% - High | L160: 0.0537826696 | M160: 0.0537826696 | N160: 0.0537826696 | O160: 0.0537826696 | P160: 0.0537826696 | Q160: 0.0537826696 | R160: 0.0537826696 | S160: 0.0537826696 | T160: 0.0537826696 | U160: 0.0537826696 | V160: 0.0537826696 | W160: 0.0537826696 | X160: 0.0537826696 | Y160: 0.0537826696 | Z160: 0.0537826696 | AA160: 0.0537826696 | AB160: 0.0537826696 | AC160: 0.0537826696 | AD160: 0.0537826696 | AE160: 0.0537826696 | AF160: 0.0537826696 | AG160: 0.0537826696 | AH160: 0.0537826696 | AI160: 0.0537826696 | AJ160: 0.0537826696 | AK160: 0.0537826696 | AL160: 0.0537826696 | AM160: 0.0537826696 | AN160: 0.0537826696 | AO160: 0.0537826696 | AP160: 0.0537826696 | AQ160: 0.0537826696 | AR160: 0.0537826696 | AS160: 0.0537826696 | AT160: 0.0537826696 | AU160: 0.0537826696
L163: 2015 | M163: 2016 | N163: 2017 | O163: 2018 | P163: 2019 | Q163: 2020 | R163: 2021 | S163: 2022 | T163: 2023 | U163: 2024 | V163: 2025 | W163: 2026 | X163: 2027 | Y163: 2028 | Z163: 2029 | AA163: 2030 | AB163: 2031 | AC163: 2032 | AD163: 2033 | AE163: 2034 | AF163: 2035 | AG163: 2036 | AH163: 2037 | AI163: 2038 | AJ163: 2039 | AK163: 2040 | AL163: 2041 | AM163: 2042 | AN163: 2043 | AO163: 2044 | AP163: 2045 | AQ163: 2046 | AR163: 2047 | AS163: 2048 | AT163: 2049 | AU163: 2050
H164: Grid Connection Costs | J164: Grid Connection Costs (GCC) ($/kW) | K164: Utility PV - 14% - Low | L164: 0 | M164: 0 | N164: 0 | O164: 0 | P164: 0 | Q164: 0 | R164: 0 | S164: 0 | T164: 0 | U164: 0 | V164: 0 | W164: 0 | X164: 0 | Y164: 0 | Z164: 0 | AA164: 0 | AB164: 0 | AC164: 0 | AD164: 0 | AE164: 0 | AF164: 0 | AG164: 0 | AH164: 0 | AI164: 0 | AJ164: 0 | AK164: 0 | AL164: 0 | AM164: 0 | AN164: 0 | AO164: 0 | AP164: 0 | AQ164: 0 | AR164: 0 | AS164: 0 | AT164: 0 | AU164: 0
K165: Utility PV - 14% - Mid | L165: 0 | M165: 0 | N165: 0 | O165: 0 | P165: 0 | Q165: 0 | R165: 0 | S165: 0 | T165: 0 | U165: 0 | V165: 0 | W165: 0 | X165: 0 | Y165: 0 | Z165: 0 | AA165: 0 | AB165: 0 | AC165: 0 | AD165: 0 | AE165: 0 | AF165: 0 | AG165: 0 | AH165: 0 | AI165: 0 | AJ165: 0 | AK165: 0 | AL165: 0 | AM165: 0 | AN165: 0 | AO165: 0 | AP165: 0 | AQ165: 0 | AR165: 0 | AS165: 0 | AT165: 0 | AU165: 0
K166: Utility PV - 14% - High | L166: 0 | M166: 0 | N166: 0 | O166: 0 | P166: 0 | Q166: 0 | R166: 0 | S166: 0 | T166: 0 | U166: 0 | V166: 0 | W166: 0 | X166: 0 | Y166: 0 | Z166: 0 | AA166: 0 | AB166: 0 | AC166: 0 | AD166: 0 | AE166: 0 | AF166: 0 | AG166: 0 | AH166: 0 | AI166: 0 | AJ166: 0 | AK166: 0 | AL166: 0 | AM166: 0 | AN166: 0 | AO166: 0 | AP166: 0 | AQ166: 0 | AR166: 0 | AS166: 0 | AT166: 0 | AU166: 0
K167: Utility PV - 20% - Low | L167: 0 | M167: 0 | N167: 0 | O167: 0 | P167: 0 | Q167: 0 | R167: 0 | S167: 0 | T167: 0 | U167: 0 | V167: 0 | W167: 0 | X167: 0 | Y167: 0 | Z167: 0 | AA167: 0 | AB167: 0 | AC167: 0 | AD167: 0 | AE167: 0 | AF167: 0 | AG167: 0 | AH167: 0 | AI167: 0 | AJ167: 0 | AK167: 0 | AL167: 0 | AM167: 0 | AN167: 0 | AO167: 0 | AP167: 0 | AQ167: 0 | AR167: 0 | AS167: 0 | AT167: 0 | AU167: 0
K168: Utility PV - 20% - Mid | L168: 0 | M168: 0 | N168: 0 | O168: 0 | P168: 0 | Q168: 0 | R168: 0 | S168: 0 | T168: 0 | U168: 0 | V168: 0 | W168: 0 | X168: 0 | Y168: 0 | Z168: 0 | AA168: 0 | AB168: 0 | AC168: 0 | AD168: 0 | AE168: 0 | AF168: 0 | AG168: 0 | AH168: 0 | AI168: 0 | AJ168: 0 | AK168: 0 | AL168: 0 | AM168: 0 | AN168: 0 | AO168: 0 | AP168: 0 | AQ168: 0 | AR168: 0 | AS168: 0 | AT168: 0 | AU168: 0
K169: Utility PV - 20% - High | L169: 0 | M169: 0 | N169: 0 | O169: 0 | P169: 0 | Q169: 0 | R169: 0 | S169: 0 | T169: 0 | U169: 0 | V169: 0 | W169: 0 | X169: 0 | Y169: 0 | Z169: 0 | AA169: 0 | AB169: 0 | AC169: 0 | AD169: 0 | AE169: 0 | AF169: 0 | AG169: 0 | AH169: 0 | AI169: 0 | AJ169: 0 | AK169: 0 | AL169: 0 | AM169: 0 | AN169: 0 | AO169: 0 | AP169: 0 | AQ169: 0 | AR169: 0 | AS169: 0 | AT169: 0 | AU169: 0
K170: Utility PV - 28% - Low | L170: 0 | M170: 0 | N170: 0 | O170: 0 | P170: 0 | Q170: 0 | R170: 0 | S170: 0 | T170: 0 | U170: 0 | V170: 0 | W170: 0 | X170: 0 | Y170: 0 | Z170: 0 | AA170: 0 | AB170: 0 | AC170: 0 | AD170: 0 | AE170: 0 | AF170: 0 | AG170: 0 | AH170: 0 | AI170: 0 | AJ170: 0 | AK170: 0 | AL170: 0 | AM170: 0 | AN170: 0 | AO170: 0 | AP170: 0 | AQ170: 0 | AR170: 0 | AS170: 0 | AT170: 0 | AU170: 0
K171: Utility PV - 28% - Mid | L171: 0 | M171: 0 | N171: 0 | O171: 0 | P171: 0 | Q171: 0 | R171: 0 | S171: 0 | T171: 0 | U171: 0 | V171: 0 | W171: 0 | X171: 0 | Y171: 0 | Z171: 0 | AA171: 0 | AB171: 0 | AC171: 0 | AD171: 0 | AE171: 0 | AF171: 0 | AG171: 0 | AH171: 0 | AI171: 0 | AJ171: 0 | AK171: 0 | AL171: 0 | AM171: 0 | AN171: 0 | AO171: 0 | AP171: 0 | AQ171: 0 | AR171: 0 | AS171: 0 | AT171: 0 | AU171: 0
K172: Utility PV - 28% - High | L172: 0 | M172: 0 | N172: 0 | O172: 0 | P172: 0 | Q172: 0 | R172: 0 | S172: 0 | T172: 0 | U172: 0 | V172: 0 | W172: 0 | X172: 0 | Y172: 0 | Z172: 0 | AA172: 0 | AB172: 0 | AC172: 0 | AD172: 0 | AE172: 0 | AF172: 0 | AG172: 0 | AH172: 0 | AI172: 0 | AJ172: 0 | AK172: 0 | AL172: 0 | AM172: 0 | AN172: 0 | AO172: 0 | AP172: 0 | AQ172: 0 | AR172: 0 | AS172: 0 | AT172: 0 | AU172: 0
L175: 2015 | M175: 2016 | N175: 2017 | O175: 2018 | P175: 2019 | Q175: 2020 | R175: 2021 | S175: 2022 | T175: 2023 | U175: 2024 | V175: 2025 | W175: 2026 | X175: 2027 | Y175: 2028 | Z175: 2029 | AA175: 2030 | AB175: 2031 | AC175: 2032 | AD175: 2033 | AE175: 2034 | AF175: 2035 | AG175: 2036 | AH175: 2037 | AI175: 2038 | AJ175: 2039 | AK175: 2040 | AL175: 2041 | AM175: 2042 | AN175: 2043 | AO175: 2044 | AP175: 2045 | AQ175: 2046 | AR175: 2047 | AS175: 2048 | AT175: 2049 | AU175: 2050
H176: LCOE | J176: Levelized Cost of Energy ($/MWh) | K176: Utility PV - 14% - Low | L176: =(($S$44 * $S$42 * $S$40 * (L118 * 1 + L164) +L129) * 1000 / (L74 * 8760)) + L140 + 0 -> 133.7979006 | M176: 102.7574146 | N176: 82.378134 | O176: 73.74037907 | P176: 67.28507379 | Q176: 64.00754853 | R176: 62.5415763 | S176: 61.07560408 | T176: 59.60963185 | U176: 58.14365962 | V176: 56.67768739 | W176: 55.21171517 | X176: 53.74574294 | Y176: 52.27977071 | Z176: 50.81379849 | AA176: 49.34782626 | AB176: 48.52976834 | AC176: 47.71171042 | AD176: 46.8936525 | AE176: 46.07559458 | AF176: 45.25753666 | AG176: 44.43947875 | AH176: 43.62142083 | AI176: 42.80336291 | AJ176: 41.98530499 | AK176: 41.16724707 | AL176: 40.35391446 | AM176: 39.54058185 | AN176: 38.72724924 | AO176: 37.91391664 | AP176: 37.10058403 | AQ176: 36.28725142 | AR176: 35.47391881 | AS176: 34.66058621 | AT176: 33.8472536 | AU176: 33.03392099
K177: Utility PV - 14% - Mid | L177: 133.7979006 | M177: 103.0116726 | N177: 84.83227889 | O177: 80.24305229 | P177: 77.5116694 | Q177: 73.53252172 | R177: 72.51460865 | S177: 71.49669559 | T177: 70.47878252 | U177: 69.46086946 | V177: 68.44295639 | W177: 67.67930127 | X177: 66.91564614 | Y177: 66.15199102 | Z177: 65.38833589 | AA177: 64.62468077 | AB177: 64.00079837 | AC177: 63.37691596 | AD177: 62.75303356 | AE177: 62.12915116 | AF177: 61.50526876 | AG177: 60.88138636 | AH177: 60.25750396 | AI177: 59.63362155 | AJ177: 59.00973915 | AK177: 58.38585675 | AL177: 57.81741329 | AM177: 57.24896984 | AN177: 56.68052638 | AO177: 56.11208292 | AP177: 55.54363946 | AQ177: 54.975196 | AR177: 54.40675254 | AS177: 53.83830909 | AT177: 53.26986563 | AU177: 52.70142217
K178: Utility PV - 14% - High | L178: 133.7979006 | M178: 103.2659305 | N178: 103.2659305 | O178: 103.2659305 | P178: 103.2659305 | Q178: 103.2659305 | R178: 103.2659305 | S178: 103.2659305 | T178: 103.2659305 | U178: 103.2659305 | V178: 103.2659305 | W178: 103.2659305 | X178: 103.2659305 | Y178: 103.2659305 | Z178: 103.2659305 | AA178: 103.2659305 | AB178: 103.2659305 | AC178: 103.2659305 | AD178: 103.2659305 | AE178: 103.2659305 | AF178: 103.2659305 | AG178: 103.2659305 | AH178: 103.2659305 | AI178: 103.2659305 | AJ178: 103.2659305 | AK178: 103.2659305 | AL178: 103.2659305 | AM178: 103.2659305 | AN178: 103.2659305 | AO178: 103.2659305 | AP178: 103.2659305 | AQ178: 103.2659305 | AR178: 103.2659305 | AS178: 103.2659305 | AT178: 103.2659305 | AU178: 103.2659305
K179: Utility PV - 20% - Low | L179: 93.65853044 | M179: 71.93019023 | N179: 57.6646938 | O179: 51.61826535 | P179: 47.09955166 | Q179: 44.80528397 | R179: 43.77910341 | S179: 42.75292285 | T179: 41.72674229 | U179: 40.70056174 | V179: 39.67438118 | W179: 38.64820062 | X179: 37.62202006 | Y179: 36.5958395 | Z179: 35.56965894 | AA179: 34.54347838 | AB179: 33.97083784 | AC179: 33.3981973 | AD179: 32.82555675 | AE179: 32.25291621 | AF179: 31.68027566 | AG179: 31.10763512 | AH179: 30.53499458 | AI179: 29.96235403 | AJ179: 29.38971349 | AK179: 28.81707295 | AL179: 28.24774012 | AM179: 27.6784073 | AN179: 27.10907447 | AO179: 26.53974165 | AP179: 25.97040882 | AQ179: 25.40107599 | AR179: 24.83174317 | AS179: 24.26241034 | AT179: 23.69307752 | AU179: 23.12374469
K180: Utility PV - 20% - Mid | L180: 93.65853044 | M180: 72.10817079 | N180: 59.38259522 | O180: 56.1701366 | P180: 54.25816858 | Q180: 51.4727652 | R180: 50.76022606 | S180: 50.04768691 | T180: 49.33514777 | U180: 48.62260862 | V180: 47.91006948 | W180: 47.37551089 | X180: 46.8409523 | Y180: 46.30639371 | Z180: 45.77183512 | AA180: 45.23727654 | AB180: 44.80055886 | AC180: 44.36384117 | AD180: 43.92712349 | AE180: 43.49040581 | AF180: 43.05368813 | AG180: 42.61697045 | AH180: 42.18025277 | AI180: 41.74353509 | AJ180: 41.30681741 | AK180: 40.87009973 | AL180: 40.47218931 | AM180: 40.07427888 | AN180: 39.67636846 | AO180: 39.27845804 | AP180: 38.88054762 | AQ180: 38.4826372 | AR180: 38.08472678 | AS180: 37.68681636 | AT180: 37.28890594 | AU180: 36.89099552
K181: Utility PV - 20% - High | L181: 93.65853044 | M181: 72.28615135 | N181: 72.28615135 | O181: 72.28615135 | P181: 72.28615135 | Q181: 72.28615135 | R181: 72.28615135 | S181: 72.28615135 | T181: 72.28615135 | U181: 72.28615135 | V181: 72.28615135 | W181: 72.28615135 | X181: 72.28615135 | Y181: 72.28615135 | Z181: 72.28615135 | AA181: 72.28615135 | AB181: 72.28615135 | AC181: 72.28615135 | AD181: 72.28615135 | AE181: 72.28615135 | AF181: 72.28615135 | AG181: 72.28615135 | AH181: 72.28615135 | AI181: 72.28615135 | AJ181: 72.28615135 | AK181: 72.28615135 | AL181: 72.28615135 | AM181: 72.28615135 | AN181: 72.28615135 | AO181: 72.28615135 | AP181: 72.28615135 | AQ181: 72.28615135 | AR181: 72.28615135 | AS181: 72.28615135 | AT181: 72.28615135 | AU181: 72.28615135
K182: Utility PV - 28% - Low | L182: 66.89895032 | M182: 51.37870731 | N182: 41.189067 | O182: 36.87018953 | P182: 33.6425369 | Q182: 32.00377426 | R182: 31.27078815 | S182: 30.53780204 | T182: 29.80481592 | U182: 29.07182981 | V182: 28.3388437 | W182: 27.60585758 | X182: 26.87287147 | Y182: 26.13988536 | Z182: 25.40689924 | AA182: 24.67391313 | AB182: 24.26488417 | AC182: 23.85585521 | AD182: 23.44682625 | AE182: 23.03779729 | AF182: 22.62876833 | AG182: 22.21973937 | AH182: 21.81071041 | AI182: 21.40168145 | AJ182: 20.99265249 | AK182: 20.58362353 | AL182: 20.17695723 | AM182: 19.77029093 | AN182: 19.36362462 | AO182: 18.95695832 | AP182: 18.55029201 | AQ182: 18.14362571 | AR182: 17.73695941 | AS182: 17.3302931 | AT182: 16.9236268 | AU182: 16.51696049
K183: Utility PV - 28% - Mid | L183: 66.89895032 | M183: 51.50583628 | N183: 42.41613944 | O183: =(($S$44 * $S$42 * $S$40 * (O125 * 1 + O171) +O136) * 1000 / (O81 * 8760)) + O147 + 0 -> 40.12152615 | P183: 38.7558347 | Q183: 36.76626086 | R183: 36.25730433 | S183: 35.74834779 | T183: 35.23939126 | U183: 34.73043473 | V183: 34.2214782 | W183: 33.83965063 | X183: 33.45782307 | Y183: 33.07599551 | Z183: 32.69416795 | AA183: 32.31234038 | AB183: 32.00039918 | AC183: 31.68845798 | AD183: 31.37651678 | AE183: 31.06457558 | AF183: 30.75263438 | AG183: 30.44069318 | AH183: 30.12875198 | AI183: 29.81681078 | AJ183: 29.50486958 | AK183: 29.19292838 | AL183: 28.90870665 | AM183: 28.62448492 | AN183: 28.34026319 | AO183: 28.05604146 | AP183: 27.77181973 | AQ183: 27.487598 | AR183: 27.20337627 | AS183: 26.91915454 | AT183: 26.63493281 | AU183: 26.35071109
K184: Utility PV - 28% - High | L184: =(($S$44 * $S$42 * $S$40 * (L126 * 1 + L172) +L137) * 1000 / (L82 * 8760)) + L148 + 0 -> 66.89895032 | M184: 51.63296525 | N184: 51.63296525 | O184: 51.63296525 | P184: 51.63296525 | Q184: 51.63296525 | R184: 51.63296525 | S184: 51.63296525 | T184: 51.63296525 | U184: 51.63296525 | V184: 51.63296525 | W184: 51.63296525 | X184: 51.63296525 | Y184: 51.63296525 | Z184: 51.63296525 | AA184: 51.63296525 | AB184: 51.63296525 | AC184: 51.63296525 | AD184: 51.63296525 | AE184: 51.63296525 | AF184: 51.63296525 | AG184: 51.63296525 | AH184: 51.63296525 | AI184: 51.63296525 | AJ184: 51.63296525 | AK184: 51.63296525 | AL184: 51.63296525 | AM184: 51.63296525 | AN184: 51.63296525 | AO184: 51.63296525 | AP184: 51.63296525 | AQ184: 51.63296525 | AR184: 51.63296525 | AS184: 51.63296525 | AT184: 51.63296525 | AU184: 51.63296525
E189: X | G189: Graphics
AB381: x
C403: X | G403: Data Sources for Default Inputs
H405: Current Costs:
H406: Available Capacity (GW) | M406: U.S. Renewable Energy Technical Potentials - A GIS-Based Analysis 2012
H407: Net Capacity Factor (%) | M407: National Renewable Energy Laboratory. Regional Energy Deployment System (ReEDS). Representative of national range of capacity factors.
H408: Overnight Capital Cost ($/kW) | M408: Feldman et al (2015) Photovoltaic System Pricing Trends: 2015 Edition. NREL/PR-6A20-64898
H409: Fixed Operating Expenses ($/kW-yr) | M409: Bolinger, M.; Seel, J. (2015). Utility-Scale Solar 2014: An Empirical Analysis of Project Cost, Performance, and Pricing Trends in the United States. Berkeley, CA: Lawrence Berkeley National Laboratory.
H410: Variable Operating Expenses ($/MWh) | M410: US Department of Energy. SunShot Vision Study: February 2012. NREL Report No. BK5200-47927.
H411: Grid Feature Cost ($/kW) | M411: N/A
H412: Spur Line Cost ($/kW) | M412: N/A
H414: Future Projections Costs:
H415: Net Capacity Factor (%) | M415: National Renewable Energy Laboratory. Regional Energy Deployment System (ReEDS). Representative of national range of capacity factors.
H416: Overnight Capital Cost ($/kW) | M416: Literature review of UPV capital cost projections. See accompanying ATB presentation for more information.
H417: Fixed Operating Expenses ($/kW-yr) | M417: US Department of Energy. SunShot Vision Study: February 2012. NREL Report No. BK5200-47927.
H418: Variable Operating Expenses ($/MWh) | M418: US Department of Energy. SunShot Vision Study: February 2012. NREL Report No. BK5200-47927.
H419: Grid Connection Cost ($/kW) | M419: N/A

Sheet Solar - PV Dist. Comm
A1: Solar Distributed Commercial PV Inputs | L1: https://atb.nrel.gov/electricity/2017/index.html?t=sd
T3: Inputs
J4: Take me to: | T4: Calculated
B10: X | G10: Current Costs
H12: Techno-Economic Cost and Performance Parameters | J12: Net Capacity Factor (%) | K12: Comm PV - 11.4% | L12: 0.1096779797 | O12: Basis Year: | Q12: 2015
K13: Comm PV - 14.5% | L13: 0.1395026934
K14: Comm PV - 18.7% | L14: 0.1799103701 | O14: Commercial Solar Photovoltaic
O15: Representative Dist. Commercial system is fixed-tilt roof mounted with capacity of 300 kW
J16: Annual Energy Production (kWh/kW) | K16: Comm PV - 11.4% | L16: =L12*8760 -> 960.7791018 | O16: Overnight Capital Cost, Fixed O&M, and Variable O&M costs represent $/kW DC;
K17: Comm PV - 14.5% | L17: =L13*8760 -> 1222.043594 | O17: Capacity factor includes a conversion to AC. Therefore LCOE reflects $/MWh AC.
K18: Comm PV - 18.7% | L18: =L14*8760 -> 1576.014842 | O18: Capacity factors chosen here to reflect range across the continental U.S. using NREL PVWATTS
S19: Available | T19: Available
J20: CAPEX ($/kW) | K20: Comm PV - 11.4% | L20: =$S$40 * (L28 + L46) -> 2464.680204 | S20: Capacity | T20: Generation
K21: Comm PV - 14.5% | L21: =$S$40 * (L29 + L47) -> 2464.680204 | S21: (GW) | T21: (GWh)
K22: Comm PV - 18.7% | L22: =$S$40 * (L30 + L48) -> 2464.680204 | S22: 386 | T22: 506000
O23: Commercial PV - 11.4% | Q23: Capacity factor labels based on dSolar minimum, average and maximum first year energy production. ATB values reflect annual average capacity factor over life of plant including estimated degradation of 0.5% per year.
J24: Construction Financing Cost ($/kW) | K24: Comm PV - 11.4% | L24: =(L28+L46)*($S$40-1) -> 31.76873696 | O24: Commercial PV - 14.5%
K25: Comm PV - 14.5% | L25: =(L29+L47)*($S$40-1) -> 31.76873696 | O25: Commercial PV - 18.7%
K26: Comm PV - 18.7% | L26: =(L30+L48)*($S$40-1) -> 31.76873696
O27: Financial Assumptions:
J28: Overnight Capital Cost ($/kW) | K28: Comm PV - 11.4% | L28: =$L$108 -> 2432.911467 | O28: Inflation Rate | S28: 0.025
K29: Comm PV - 14.5% | L29: =$L$111 -> 2432.911467 | O29: Economic Lifetime (Years) | S29: 20
K30: Comm PV - 18.7% | L30: =$L$114 -> 2432.911467 | O30: InteCommt Rate - Nominal | S30: 0.04418536
O31: Calculated Interest Rate - Real | S31: =(1+S30)/(1+S28)-1 -> 0.01871742439
J32: Fixed Operation and Maintenance Expenses ($/kW/yr) | K32: Comm PV - 11.4% | L32: =15+PMT(0.08,30,PV(0.08,15,0,0.12*1000)) -> 18.36025339 | O32: Interest During Construction - Nominal | S32: 0.044
K33: Comm PV - 14.5% | L33: =15+PMT(0.08,30,PV(0.08,15,0,0.12*1000)) -> 18.36025339 | O33: Customer Equity Discount Rate - Nominal | S33: 0.09468985
K34: Comm PV - 18.7% | L34: =15+PMT(0.08,30,PV(0.08,15,0,0.12*1000)) -> 18.36025339 | O34: Calculated Equity Discount Rate - Real | S34: =(1+S33)/(1+S28) - 1 -> 0.06799009756
O35: Debt Fraction | S35: 0.6
J36: Variable Operation and Maintenance Expenses ($/MWh) | K36: Comm PV - 11.4% | L36: 0 | O36: Tax Rate (Federal and State) | S36: 0.4
K37: Comm PV - 14.5% | L37: 0 | O37: WACC - Nominal | S37: =IF(S36>0,S35*S30*(1-S36)+(1-S35)*S33,S35*S30+(1-S35)*S33) -> 0.0537826696
K38: Comm PV - 18.7% | L38: 0 | O38: WACC - Real | S38: =((1+((1-S35)*((1+S34)*(1+S28)-1)) + (S35*((1+S31)*(1+S28)-1)*(1-S36))) / (1+S28)) - 1 -> 0.02808065327
O39: Depreciation Period | S39: 5
O40: Construction Finance Factor | S40: =SUMPRODUCT(P49:P51,Q49:Q51) -> 1.013057909
H41: Finance | J41: Weighted Average Cost of Capital (WACC) (Nominal) (%) | K41: Comm PV - 11.4% | L41: =$S$37 -> 0.0537826696 | O41: Present Value of Depreciation | S41: =SUMPRODUCT(O54:T54,O56:T56) -> 0.8661791251
K42: Comm PV - 14.5% | L42: =$S$37 -> 0.0537826696 | O42: Project Finance Factor | S42: =(1 - S36 * S41) / (1 - S36) -> 1.089213917
K43: Comm PV - 18.7% | L43: =$S$37 -> 0.0537826696 | O43: Capital Recovery Factor (CRF) - Nominal | S43: =S37 / (1 - (1 / (1 + S37)^S29)) -> 0.08283622233
O44: Capital Recovery Factor (CRF) - Real | S44: =S38 / (1 - (1 / (1 + S38)^S29)) -> 0.0660286156
H46: Grid Connection Costs | J46: Grid Connection Costs (GCC) ($/kW) | K46: Comm PV - 11.4% | L46: =L50+L54 -> 0 | O46: Construction Duration yrs | Q46: 1
K47: Comm PV - 14.5% | L47: =L51+L55 -> 0 | O47: Year | P47: Capital | Q47: Accumulated
K48: Comm PV - 18.7% | L48: =L52+L56 -> 0 | O48: Index | P48: Fraction | Q48: Interest
O49: 0 | P49: 1 | Q49: =1+(1-S36)*((1+S32)^(O49+0.5)-1) -> 1.013057909
J50: Grid Feature Costs ($/kW) | K50: Comm PV - 11.4% | L50: 0 | O50: 1 | P50: 0 | Q50: =1+(1-S36)*((1+S32)^(O50+0.5)-1) -> 1.040032457
K51: Comm PV - 14.5% | L51: 0 | O51: 2 | P51: 0 | Q51: =1+(1-S36)*((1+S32)^(O51+0.5)-1) -> 1.068193885
K52: Comm PV - 18.7% | L52: 0
N53: MACRS yr | O53: 1 | P53: 2 | Q53: 3 | R53: 4 | S53: 5 | T53: 6
J54: Onshore Spur Line Costs ($/kW) | K54: Comm PV - 11.4% | L54: 0 | N54: Depreciation | O54: 0.2 | P54: 0.32 | Q54: 0.192 | R54: 0.1152 | S54: 0.1152 | T54: 0.0576
K55: Comm PV - 14.5% | L55: 0 | N55: Fraction
K56: Comm PV - 18.7% | L56: 0 | N56: Depreciation | O56: =1/((1+$S$38)*(1+$S$28))^O53 -> 0.9489622755 | P56: 0.9005294003 | Q56: 0.8545684288 | R56: 0.8109532008 | S56: 0.7695639947 | T56: 0.7302871995
N57: Factor
H59: LCOE | J59: Levelized Cost of Energy ($/MWh) | K59: Comm PV - 11.4% | L59: =(($S$44 * $S$42 * $S$40 * (L28 * 1 + L46) +L32) * 1000 / (L12 * 8760)) + L36 + 0 -> 203.6038211
K60: Comm PV - 14.5% | L60: =(($S$44 * $S$42 * $S$40 * (L29 * 1 + L47) +L33) * 1000 / (L13 * 8760)) + L37 + 0 -> 160.0747283
K61: Comm PV - 18.7% | L61: =(($S$44 * $S$42 * $S$40 * (L30 * 1 + L48) +L34) * 1000 / (L14 * 8760)) + L38 + 0 -> 124.1221155
J63: Overnight Levelized Cost of Energy ($/MWh) | K63: Comm PV - 11.4% | L63: =(((L28*$S$44*(1-$S$36*$S$41))/(8760*L12*(1-$S$36))+L32/(8760*L12))*1000)+L36 -> 201.2257668
K64: Comm PV - 14.5% | L64: =(((L29*$S$44*(1-$S$36*$S$41))/(8760*L13*(1-$S$36))+L33/(8760*L13))*1000)+L37 -> 158.2050856
K65: Comm PV - 18.7% | L65: =(((L30*$S$44*(1-$S$36*$S$41))/(8760*L14*(1-$S$36))+L34/(8760*L14))*1000)+L38 -> 122.6723926
H68: ***Note: For future projections, low, mid, and high refer to the resulting low, mid, and high LCOE projections.
D71: X | G71: Future Projections
L72: Basis Year
L73: 2015 | M73: 2016 | N73: 2017 | O73: 2018 | P73: 2019 | Q73: 2020 | R73: 2021 | S73: 2022 | T73: 2023 | U73: 2024 | V73: 2025 | W73: 2026 | X73: 2027 | Y73: 2028 | Z73: 2029 | AA73: 2030 | AB73: 2031 | AC73: 2032 | AD73: 2033 | AE73: 2034 | AF73: 2035 | AG73: 2036 | AH73: 2037 | AI73: 2038 | AJ73: 2039 | AK73: 2040 | AL73: 2041 | AM73: 2042 | AN73: 2043 | AO73: 2044 | AP73: 2045 | AQ73: 2046 | AR73: 2047 | AS73: 2048 | AT73: 2049 | AU73: 2050
H74: Techno-Economic Cost and Performance Parameters | J74: Net Capacity Factor (%) | K74: Comm PV - 11.4% - Low | L74: =$L$12 -> 0.1096779797 | M74: 0.1096779797 | N74: 0.1096779797 | O74: 0.1096779797 | P74: 0.1096779797 | Q74: 0.1096779797 | R74: 0.1096779797 | S74: 0.1096779797 | T74: 0.1096779797 | U74: 0.1096779797 | V74: 0.1096779797 | W74: 0.1096779797 | X74: 0.1096779797 | Y74: 0.1096779797 | Z74: 0.1096779797 | AA74: 0.1096779797 | AB74: 0.1096779797 | AC74: 0.1096779797 | AD74: 0.1096779797 | AE74: 0.1096779797 | AF74: 0.1096779797 | AG74: 0.1096779797 | AH74: 0.1096779797 | AI74: 0.1096779797 | AJ74: 0.1096779797 | AK74: 0.1096779797 | AL74: 0.1096779797 | AM74: 0.1096779797 | AN74: 0.1096779797 | AO74: 0.1096779797 | AP74: 0.1096779797 | AQ74: 0.1096779797 | AR74: 0.1096779797 | AS74: 0.1096779797 | AT74: 0.1096779797 | AU74: 0.1096779797
K75: Comm PV - 11.4% - Mid | L75: 0.1096779797 | M75: 0.1096779797 | N75: 0.1096779797 | O75: 0.1096779797 | P75: 0.1096779797 | Q75: 0.1096779797 | R75: 0.1096779797 | S75: 0.1096779797 | T75: 0.1096779797 | U75: 0.1096779797 | V75: 0.1096779797 | W75: 0.1096779797 | X75: 0.1096779797 | Y75: 0.1096779797 | Z75: 0.1096779797 | AA75: 0.1096779797 | AB75: 0.1096779797 | AC75: 0.1096779797 | AD75: 0.1096779797 | AE75: 0.1096779797 | AF75: 0.1096779797 | AG75: 0.1096779797 | AH75: 0.1096779797 | AI75: 0.1096779797 | AJ75: 0.1096779797 | AK75: 0.1096779797 | AL75: 0.1096779797 | AM75: 0.1096779797 | AN75: 0.1096779797 | AO75: 0.1096779797 | AP75: 0.1096779797 | AQ75: 0.1096779797 | AR75: 0.1096779797 | AS75: 0.1096779797 | AT75: 0.1096779797 | AU75: 0.1096779797
K76: Comm PV - 11.4% - High | L76: 0.1096779797 | M76: =$L$12 -> 0.1096779797 | N76: 0.1096779797 | O76: 0.1096779797 | P76: 0.1096779797 | Q76: 0.1096779797 | R76: 0.1096779797 | S76: 0.1096779797 | T76: 0.1096779797 | U76: 0.1096779797 | V76: 0.1096779797 | W76: 0.1096779797 | X76: 0.1096779797 | Y76: 0.1096779797 | Z76: 0.1096779797 | AA76: 0.1096779797 | AB76: 0.1096779797 | AC76: 0.1096779797 | AD76: 0.1096779797 | AE76: 0.1096779797 | AF76: 0.1096779797 | AG76: 0.1096779797 | AH76: 0.1096779797 | AI76: 0.1096779797 | AJ76: 0.1096779797 | AK76: 0.1096779797 | AL76: 0.1096779797 | AM76: 0.1096779797 | AN76: 0.1096779797 | AO76: 0.1096779797 | AP76: 0.1096779797 | AQ76: 0.1096779797 | AR76: 0.1096779797 | AS76: 0.1096779797 | AT76: 0.1096779797 | AU76: 0.1096779797
K77: Comm PV - 14.5% - Low | L77: =$L$13 -> 0.1395026934 | M77: 0.1395026934 | N77: 0.1395026934 | O77: 0.1395026934 | P77: 0.1395026934 | Q77: 0.1395026934 | R77: 0.1395026934 | S77: 0.1395026934 | T77: 0.1395026934 | U77: 0.1395026934 | V77: 0.1395026934 | W77: 0.1395026934 | X77: 0.1395026934 | Y77: 0.1395026934 | Z77: 0.1395026934 | AA77: 0.1395026934 | AB77: 0.1395026934 | AC77: 0.1395026934 | AD77: 0.1395026934 | AE77: 0.1395026934 | AF77: 0.1395026934 | AG77: 0.1395026934 | AH77: 0.1395026934 | AI77: 0.1395026934 | AJ77: 0.1395026934 | AK77: 0.1395026934 | AL77: 0.1395026934 | AM77: 0.1395026934 | AN77: 0.1395026934 | AO77: 0.1395026934 | AP77: 0.1395026934 | AQ77: 0.1395026934 | AR77: 0.1395026934 | AS77: 0.1395026934 | AT77: 0.1395026934 | AU77: 0.1395026934
K78: Comm PV - 14.5% - Mid | L78: 0.1395026934 | M78: 0.1395026934 | N78: 0.1395026934 | O78: 0.1395026934 | P78: 0.1395026934 | Q78: 0.1395026934 | R78: 0.1395026934 | S78: 0.1395026934 | T78: 0.1395026934 | U78: 0.1395026934 | V78: 0.1395026934 | W78: 0.1395026934 | X78: 0.1395026934 | Y78: 0.1395026934 | Z78: 0.1395026934 | AA78: 0.1395026934 | AB78: 0.1395026934 | AC78: 0.1395026934 | AD78: 0.1395026934 | AE78: 0.1395026934 | AF78: 0.1395026934 | AG78: 0.1395026934 | AH78: 0.1395026934 | AI78: 0.1395026934 | AJ78: 0.1395026934 | AK78: 0.1395026934 | AL78: 0.1395026934 | AM78: 0.1395026934 | AN78: 0.1395026934 | AO78: 0.1395026934 | AP78: 0.1395026934 | AQ78: 0.1395026934 | AR78: 0.1395026934 | AS78: 0.1395026934 | AT78: 0.1395026934 | AU78: 0.1395026934
K79: Comm PV - 14.5% - High | L79: 0.1395026934 | M79: 0.1395026934 | N79: 0.1395026934 | O79: 0.1395026934 | P79: 0.1395026934 | Q79: 0.1395026934 | R79: 0.1395026934 | S79: 0.1395026934 | T79: 0.1395026934 | U79: 0.1395026934 | V79: 0.1395026934 | W79: 0.1395026934 | X79: 0.1395026934 | Y79: 0.1395026934 | Z79: 0.1395026934 | AA79: 0.1395026934 | AB79: 0.1395026934 | AC79: 0.1395026934 | AD79: 0.1395026934 | AE79: 0.1395026934 | AF79: 0.1395026934 | AG79: 0.1395026934 | AH79: 0.1395026934 | AI79: 0.1395026934 | AJ79: 0.1395026934 | AK79: 0.1395026934 | AL79: 0.1395026934 | AM79: 0.1395026934 | AN79: 0.1395026934 | AO79: 0.1395026934 | AP79: 0.1395026934 | AQ79: 0.1395026934 | AR79: 0.1395026934 | AS79: 0.1395026934 | AT79: 0.1395026934 | AU79: 0.1395026934
K80: Comm PV - 18.7% - Low | L80: =$L$14 -> 0.1799103701 | M80: 0.1799103701 | N80: 0.1799103701 | O80: 0.1799103701 | P80: 0.1799103701 | Q80: 0.1799103701 | R80: 0.1799103701 | S80: 0.1799103701 | T80: 0.1799103701 | U80: 0.1799103701 | V80: 0.1799103701 | W80: 0.1799103701 | X80: 0.1799103701 | Y80: 0.1799103701 | Z80: 0.1799103701 | AA80: 0.1799103701 | AB80: 0.1799103701 | AC80: 0.1799103701 | AD80: 0.1799103701 | AE80: 0.1799103701 | AF80: 0.1799103701 | AG80: 0.1799103701 | AH80: 0.1799103701 | AI80: 0.1799103701 | AJ80: 0.1799103701 | AK80: 0.1799103701 | AL80: 0.1799103701 | AM80: 0.1799103701 | AN80: 0.1799103701 | AO80: 0.1799103701 | AP80: 0.1799103701 | AQ80: 0.1799103701 | AR80: 0.1799103701 | AS80: 0.1799103701 | AT80: 0.1799103701 | AU80: 0.1799103701
K81: Comm PV - 18.7% - Mid | L81: 0.1799103701 | M81: 0.1799103701 | N81: 0.1799103701 | O81: 0.1799103701 | P81: 0.1799103701 | Q81: 0.1799103701 | R81: 0.1799103701 | S81: 0.1799103701 | T81: 0.1799103701 | U81: 0.1799103701 | V81: 0.1799103701 | W81: 0.1799103701 | X81: 0.1799103701 | Y81: 0.1799103701 | Z81: 0.1799103701 | AA81: 0.1799103701 | AB81: 0.1799103701 | AC81: 0.1799103701 | AD81: 0.1799103701 | AE81: 0.1799103701 | AF81: 0.1799103701 | AG81: 0.1799103701 | AH81: 0.1799103701 | AI81: 0.1799103701 | AJ81: 0.1799103701 | AK81: 0.1799103701 | AL81: 0.1799103701 | AM81: 0.1799103701 | AN81: 0.1799103701 | AO81: 0.1799103701 | AP81: 0.1799103701 | AQ81: 0.1799103701 | AR81: 0.1799103701 | AS81: 0.1799103701 | AT81: 0.1799103701 | AU81: 0.1799103701
K82: Comm PV - 18.7% - High | L82: 0.1799103701 | M82: 0.1799103701 | N82: 0.1799103701 | O82: 0.1799103701 | P82: 0.1799103701 | Q82: 0.1799103701 | R82: 0.1799103701 | S82: 0.1799103701 | T82: 0.1799103701 | U82: 0.1799103701 | V82: 0.1799103701 | W82: 0.1799103701 | X82: 0.1799103701 | Y82: 0.1799103701 | Z82: 0.1799103701 | AA82: 0.1799103701 | AB82: 0.1799103701 | AC82: 0.1799103701 | AD82: 0.1799103701 | AE82: 0.1799103701 | AF82: 0.1799103701 | AG82: 0.1799103701 | AH82: 0.1799103701 | AI82: 0.1799103701 | AJ82: 0.1799103701 | AK82: 0.1799103701 | AL82: 0.1799103701 | AM82: 0.1799103701 | AN82: 0.1799103701 | AO82: 0.1799103701 | AP82: 0.1799103701 | AQ82: 0.1799103701 | AR82: 0.1799103701 | AS82: 0.1799103701 | AT82: 0.1799103701 | AU82: 0.1799103701
L84: 2015 | M84: 2016 | N84: 2017 | O84: 2018 | P84: 2019 | Q84: 2020 | R84: 2021 | S84: 2022 | T84: 2023 | U84: 2024 | V84: 2025 | W84: 2026 | X84: 2027 | Y84: 2028 | Z84: 2029 | AA84: 2030 | AB84: 2031 | AC84: 2032 | AD84: 2033 | AE84: 2034 | AF84: 2035 | AG84: 2036 | AH84: 2037 | AI84: 2038 | AJ84: 2039 | AK84: 2040 | AL84: 2041 | AM84: 2042 | AN84: 2043 | AO84: 2044 | AP84: 2045 | AQ84: 2046 | AR84: 2047 | AS84: 2048 | AT84: 2049 | AU84: 2050
J85: Annual Energy Production (kWh/kW) | K85: Comm PV - 11.4% - Low | L85: =L74*8760 -> 960.7791018 | M85: 960.7791018 | N85: 960.7791018 | O85: 960.7791018 | P85: 960.7791018 | Q85: 960.7791018 | R85: 960.7791018 | S85: 960.7791018 | T85: 960.7791018 | U85: 960.7791018 | V85: 960.7791018 | W85: 960.7791018 | X85: 960.7791018 | Y85: 960.7791018 | Z85: 960.7791018 | AA85: 960.7791018 | AB85: 960.7791018 | AC85: 960.7791018 | AD85: 960.7791018 | AE85: 960.7791018 | AF85: 960.7791018 | AG85: 960.7791018 | AH85: 960.7791018 | AI85: 960.7791018 | AJ85: 960.7791018 | AK85: 960.7791018 | AL85: 960.7791018 | AM85: 960.7791018 | AN85: 960.7791018 | AO85: 960.7791018 | AP85: 960.7791018 | AQ85: 960.7791018 | AR85: 960.7791018 | AS85: 960.7791018 | AT85: 960.7791018 | AU85: 960.7791018
K86: Comm PV - 11.4% - Mid | L86: 960.7791018 | M86: 960.7791018 | N86: 960.7791018 | O86: 960.7791018 | P86: 960.7791018 | Q86: 960.7791018 | R86: 960.7791018 | S86: 960.7791018 | T86: 960.7791018 | U86: 960.7791018 | V86: 960.7791018 | W86: 960.7791018 | X86: 960.7791018 | Y86: 960.7791018 | Z86: 960.7791018 | AA86: 960.7791018 | AB86: 960.7791018 | AC86: 960.7791018 | AD86: 960.7791018 | AE86: 960.7791018 | AF86: 960.7791018 | AG86: 960.7791018 | AH86: 960.7791018 | AI86: 960.7791018 | AJ86: 960.7791018 | AK86: 960.7791018 | AL86: 960.7791018 | AM86: 960.7791018 | AN86: 960.7791018 | AO86: 960.7791018 | AP86: 960.7791018 | AQ86: 960.7791018 | AR86: 960.7791018 | AS86: 960.7791018 | AT86: 960.7791018 | AU86: 960.7791018
K87: Comm PV - 11.4% - High | L87: 960.7791018 | M87: 960.7791018 | N87: 960.7791018 | O87: 960.7791018 | P87: 960.7791018 | Q87: 960.7791018 | R87: 960.7791018 | S87: 960.7791018 | T87: 960.7791018 | U87: 960.7791018 | V87: 960.7791018 | W87: 960.7791018 | X87: 960.7791018 | Y87: 960.7791018 | Z87: 960.7791018 | AA87: 960.7791018 | AB87: 960.7791018 | AC87: 960.7791018 | AD87: 960.7791018 | AE87: 960.7791018 | AF87: 960.7791018 | AG87: 960.7791018 | AH87: 960.7791018 | AI87: 960.7791018 | AJ87: 960.7791018 | AK87: 960.7791018 | AL87: 960.7791018 | AM87: 960.7791018 | AN87: 960.7791018 | AO87: 960.7791018 | AP87: 960.7791018 | AQ87: 960.7791018 | AR87: 960.7791018 | AS87: 960.7791018 | AT87: 960.7791018 | AU87: 960.7791018
K88: Comm PV - 14.5% - Low | L88: 1222.043594 | M88: 1222.043594 | N88: 1222.043594 | O88: 1222.043594 | P88: 1222.043594 | Q88: 1222.043594 | R88: 1222.043594 | S88: 1222.043594 | T88: 1222.043594 | U88: 1222.043594 | V88: 1222.043594 | W88: 1222.043594 | X88: 1222.043594 | Y88: 1222.043594 | Z88: 1222.043594 | AA88: 1222.043594 | AB88: 1222.043594 | AC88: 1222.043594 | AD88: 1222.043594 | AE88: 1222.043594 | AF88: 1222.043594 | AG88: 1222.043594 | AH88: 1222.043594 | AI88: 1222.043594 | AJ88: 1222.043594 | AK88: 1222.043594 | AL88: 1222.043594 | AM88: 1222.043594 | AN88: 1222.043594 | AO88: 1222.043594 | AP88: 1222.043594 | AQ88: 1222.043594 | AR88: 1222.043594 | AS88: 1222.043594 | AT88: 1222.043594 | AU88: 1222.043594
K89: Comm PV - 14.5% - Mid | L89: 1222.043594 | M89: 1222.043594 | N89: 1222.043594 | O89: 1222.043594 | P89: 1222.043594 | Q89: 1222.043594 | R89: 1222.043594 | S89: 1222.043594 | T89: 1222.043594 | U89: 1222.043594 | V89: 1222.043594 | W89: 1222.043594 | X89: 1222.043594 | Y89: 1222.043594 | Z89: 1222.043594 | AA89: 1222.043594 | AB89: 1222.043594 | AC89: 1222.043594 | AD89: 1222.043594 | AE89: 1222.043594 | AF89: 1222.043594 | AG89: 1222.043594 | AH89: 1222.043594 | AI89: 1222.043594 | AJ89: 1222.043594 | AK89: 1222.043594 | AL89: 1222.043594 | AM89: 1222.043594 | AN89: 1222.043594 | AO89: 1222.043594 | AP89: 1222.043594 | AQ89: 1222.043594 | AR89: 1222.043594 | AS89: 1222.043594 | AT89: 1222.043594 | AU89: 1222.043594
K90: Comm PV - 14.5% - High | L90: 1222.043594 | M90: 1222.043594 | N90: 1222.043594 | O90: 1222.043594 | P90: 1222.043594 | Q90: 1222.043594 | R90: 1222.043594 | S90: 1222.043594 | T90: 1222.043594 | U90: 1222.043594 | V90: 1222.043594 | W90: 1222.043594 | X90: 1222.043594 | Y90: 1222.043594 | Z90: 1222.043594 | AA90: 1222.043594 | AB90: 1222.043594 | AC90: 1222.043594 | AD90: 1222.043594 | AE90: 1222.043594 | AF90: 1222.043594 | AG90: 1222.043594 | AH90: 1222.043594 | AI90: 1222.043594 | AJ90: 1222.043594 | AK90: 1222.043594 | AL90: 1222.043594 | AM90: 1222.043594 | AN90: 1222.043594 | AO90: 1222.043594 | AP90: 1222.043594 | AQ90: 1222.043594 | AR90: 1222.043594 | AS90: 1222.043594 | AT90: 1222.043594 | AU90: 1222.043594
K91: Comm PV - 18.7% - Low | L91: 1576.014842 | M91: 1576.014842 | N91: 1576.014842 | O91: 1576.014842 | P91: 1576.014842 | Q91: 1576.014842 | R91: 1576.014842 | S91: 1576.014842 | T91: 1576.014842 | U91: 1576.014842 | V91: 1576.014842 | W91: 1576.014842 | X91: 1576.014842 | Y91: 1576.014842 | Z91: 1576.014842 | AA91: 1576.014842 | AB91: 1576.014842 | AC91: 1576.014842 | AD91: 1576.014842 | AE91: 1576.014842 | AF91: 1576.014842 | AG91: 1576.014842 | AH91: 1576.014842 | AI91: 1576.014842 | AJ91: 1576.014842 | AK91: 1576.014842 | AL91: 1576.014842 | AM91: 1576.014842 | AN91: 1576.014842 | AO91: 1576.014842 | AP91: 1576.014842 | AQ91: 1576.014842 | AR91: 1576.014842 | AS91: 1576.014842 | AT91: 1576.014842 | AU91: 1576.014842
K92: Comm PV - 18.7% - Mid | L92: 1576.014842 | M92: 1576.014842 | N92: 1576.014842 | O92: =O81*8760 -> 1576.014842 | P92: 1576.014842 | Q92: 1576.014842 | R92: 1576.014842 | S92: 1576.014842 | T92: 1576.014842 | U92: 1576.014842 | V92: 1576.014842 | W92: 1576.014842 | X92: 1576.014842 | Y92: 1576.014842 | Z92: 1576.014842 | AA92: 1576.014842 | AB92: 1576.014842 | AC92: 1576.014842 | AD92: 1576.014842 | AE92: 1576.014842 | AF92: 1576.014842 | AG92: 1576.014842 | AH92: 1576.014842 | AI92: 1576.014842 | AJ92: 1576.014842 | AK92: 1576.014842 | AL92: 1576.014842 | AM92: 1576.014842 | AN92: 1576.014842 | AO92: 1576.014842 | AP92: 1576.014842 | AQ92: 1576.014842 | AR92: 1576.014842 | AS92: 1576.014842 | AT92: 1576.014842 | AU92: 1576.014842
K93: Comm PV - 18.7% - High | L93: =L82*8760 -> 1576.014842 | M93: 1576.014842 | N93: 1576.014842 | O93: 1576.014842 | P93: 1576.014842 | Q93: 1576.014842 | R93: 1576.014842 | S93: 1576.014842 | T93: 1576.014842 | U93: 1576.014842 | V93: 1576.014842 | W93: 1576.014842 | X93: 1576.014842 | Y93: 1576.014842 | Z93: 1576.014842 | AA93: 1576.014842 | AB93: 1576.014842 | AC93: 1576.014842 | AD93: 1576.014842 | AE93: 1576.014842 | AF93: 1576.014842 | AG93: 1576.014842 | AH93: 1576.014842 | AI93: 1576.014842 | AJ93: 1576.014842 | AK93: 1576.014842 | AL93: 1576.014842 | AM93: 1576.014842 | AN93: 1576.014842 | AO93: 1576.014842 | AP93: 1576.014842 | AQ93: 1576.014842 | AR93: 1576.014842 | AS93: 1576.014842 | AT93: 1576.014842 | AU93: 1576.014842
L95: 2015 | M95: 2016 | N95: 2017 | O95: 2018 | P95: 2019 | Q95: 2020 | R95: 2021 | S95: 2022 | T95: 2023 | U95: 2024 | V95: 2025 | W95: 2026 | X95: 2027 | Y95: 2028 | Z95: 2029 | AA95: 2030 | AB95: 2031 | AC95: 2032 | AD95: 2033 | AE95: 2034 | AF95: 2035 | AG95: 2036 | AH95: 2037 | AI95: 2038 | AJ95: 2039 | AK95: 2040 | AL95: 2041 | AM95: 2042 | AN95: 2043 | AO95: 2044 | AP95: 2045 | AQ95: 2046 | AR95: 2047 | AS95: 2048 | AT95: 2049 | AU95: 2050
J96: CAPEX ($/kW) | K96: Comm PV - 11.4% - Low | L96: =$S$40*(L107+L152) -> 2464.680204 | M96: 2180.198259 | N96: 1637.661265 | O96: =$S$40*(O107+O152) -> 1507.844198 | P96: 1392.043403 | Q96: 1279.422863 | R96: 1137.307717 | S96: 1115.077855 | T96: 1092.847994 | U96: 1070.618133 | V96: 1048.388271 | W96: 1026.15841 | X96: 1003.928549 | Y96: 981.6986875 | Z96: 959.4688262 | AA96: 937.2389649 | AB96: 932.0320818 | AC96: 926.8251986 | AD96: 921.6183155 | AE96: 916.4114324 | AF96: 911.2045492 | AG96: 905.9976661 | AH96: 900.7907829 | AI96: 895.5838998 | AJ96: 890.3770167 | AK96: 885.1701335 | AL96: 879.9632504 | AM96: 874.7563672 | AN96: 869.5494841 | AO96: 864.342601 | AP96: 859.1357178 | AQ96: 853.9288347 | AR96: 848.7219516 | AS96: 843.5150684 | AT96: 838.3081853 | AU96: 833.1013021
K97: Comm PV - 11.4% - Mid | L97: 2464.680204 | M97: 2180.198259 | N97: 2077.78273 | O97: 1955.780063 | P97: 1874.500892 | Q97: 1777.981876 | R97: 1712.7729 | S97: 1647.563925 | T97: 1582.354949 | U97: 1517.145973 | V97: 1451.936998 | W97: 1386.728022 | X97: 1321.519047 | Y97: 1256.310071 | Z97: 1191.101095 | AA97: 1125.89212 | AB97: 1115.656737 | AC97: 1105.421354 | AD97: 1095.185971 | AE97: 1084.950588 | AF97: 1074.715205 | AG97: 1064.479822 | AH97: 1054.244439 | AI97: 1044.009057 | AJ97: 1033.773674 | AK97: 1023.538291 | AL97: 1018.420599 | AM97: 1013.302908 | AN97: 1008.185216 | AO97: 1003.067525 | AP97: 997.9498335 | AQ97: 992.832142 | AR97: 987.7144505 | AS97: 982.5967591 | AT97: 977.4790676 | AU97: 972.3613762
K98: Comm PV - 11.4% - High | L98: 2464.680204 | M98: 2180.198259 | N98: 2180.198259 | O98: 2180.198259 | P98: 2180.198259 | Q98: 2180.198259 | R98: 2180.198259 | S98: 2180.198259 | T98: 2180.198259 | U98: 2180.198259 | V98: 2180.198259 | W98: 2180.198259 | X98: 2180.198259 | Y98: 2180.198259 | Z98: 2180.198259 | AA98: 2180.198259 | AB98: 2180.198259 | AC98: 2180.198259 | AD98: 2180.198259 | AE98: 2180.198259 | AF98: 2180.198259 | AG98: 2180.198259 | AH98: 2180.198259 | AI98: 2180.198259 | AJ98: 2180.198259 | AK98: 2180.198259 | AL98: 2180.198259 | AM98: 2180.198259 | AN98: 2180.198259 | AO98: 2180.198259 | AP98: 2180.198259 | AQ98: 2180.198259 | AR98: 2180.198259 | AS98: 2180.198259 | AT98: 2180.198259 | AU98: 2180.198259
K99: Comm PV - 14.5% - Low | L99: 2464.680204 | M99: 2180.198259 | N99: 1637.661265 | O99: 1507.844198 | P99: 1392.043403 | Q99: 1279.422863 | R99: 1137.307717 | S99: 1115.077855 | T99: 1092.847994 | U99: 1070.618133 | V99: 1048.388271 | W99: 1026.15841 | X99: 1003.928549 | Y99: 981.6986875 | Z99: 959.4688262 | AA99: 937.2389649 | AB99: 932.0320818 | AC99: 926.8251986 | AD99: 921.6183155 | AE99: 916.4114324 | AF99: 911.2045492 | AG99: 905.9976661 | AH99: 900.7907829 | AI99: 895.5838998 | AJ99: 890.3770167 | AK99: 885.1701335 | AL99: 879.9632504 | AM99: 874.7563672 | AN99: 869.5494841 | AO99: 864.342601 | AP99: 859.1357178 | AQ99: 853.9288347 | AR99: 848.7219516 | AS99: 843.5150684 | AT99: 838.3081853 | AU99: 833.1013021
K100: Comm PV - 14.5% - Mid | L100: 2464.680204 | M100: 2180.198259 | N100: 2077.78273 | O100: 1955.780063 | P100: 1874.500892 | Q100: 1777.981876 | R100: 1712.7729 | S100: 1647.563925 | T100: 1582.354949 | U100: 1517.145973 | V100: 1451.936998 | W100: 1386.728022 | X100: 1321.519047 | Y100: 1256.310071 | Z100: 1191.101095 | AA100: 1125.89212 | AB100: 1115.656737 | AC100: 1105.421354 | AD100: 1095.185971 | AE100: 1084.950588 | AF100: 1074.715205 | AG100: 1064.479822 | AH100: 1054.244439 | AI100: 1044.009057 | AJ100: 1033.773674 | AK100: 1023.538291 | AL100: 1018.420599 | AM100: 1013.302908 | AN100: 1008.185216 | AO100: 1003.067525 | AP100: 997.9498335 | AQ100: 992.832142 | AR100: 987.7144505 | AS100: 982.5967591 | AT100: 977.4790676 | AU100: 972.3613762
K101: Comm PV - 14.5% - High | L101: 2464.680204 | M101: 2180.198259 | N101: 2180.198259 | O101: 2180.198259 | P101: 2180.198259 | Q101: 2180.198259 | R101: 2180.198259 | S101: 2180.198259 | T101: 2180.198259 | U101: 2180.198259 | V101: 2180.198259 | W101: 2180.198259 | X101: 2180.198259 | Y101: 2180.198259 | Z101: 2180.198259 | AA101: 2180.198259 | AB101: 2180.198259 | AC101: 2180.198259 | AD101: 2180.198259 | AE101: 2180.198259 | AF101: 2180.198259 | AG101: 2180.198259 | AH101: 2180.198259 | AI101: 2180.198259 | AJ101: 2180.198259 | AK101: 2180.198259 | AL101: 2180.198259 | AM101: 2180.198259 | AN101: 2180.198259 | AO101: 2180.198259 | AP101: 2180.198259 | AQ101: 2180.198259 | AR101: 2180.198259 | AS101: 2180.198259 | AT101: 2180.198259 | AU101: 2180.198259
K102: Comm PV - 18.7% - Low | L102: 2464.680204 | M102: 2180.198259 | N102: 1637.661265 | O102: 1507.844198 | P102: 1392.043403 | Q102: 1279.422863 | R102: 1137.307717 | S102: 1115.077855 | T102: 1092.847994 | U102: 1070.618133 | V102: 1048.388271 | W102: 1026.15841 | X102: 1003.928549 | Y102: 981.6986875 | Z102: 959.4688262 | AA102: 937.2389649 | AB102: 932.0320818 | AC102: 926.8251986 | AD102: 921.6183155 | AE102: 916.4114324 | AF102: 911.2045492 | AG102: 905.9976661 | AH102: 900.7907829 | AI102: 895.5838998 | AJ102: 890.3770167 | AK102: 885.1701335 | AL102: 879.9632504 | AM102: 874.7563672 | AN102: 869.5494841 | AO102: 864.342601 | AP102: 859.1357178 | AQ102: 853.9288347 | AR102: 848.7219516 | AS102: 843.5150684 | AT102: 838.3081853 | AU102: 833.1013021
K103: Comm PV - 18.7% - Mid | L103: 2464.680204 | M103: 2180.198259 | N103: 2077.78273 | O103: 1955.780063 | P103: =$S$40*(P114+P159) -> 1874.500892 | Q103: 1777.981876 | R103: 1712.7729 | S103: 1647.563925 | T103: 1582.354949 | U103: 1517.145973 | V103: 1451.936998 | W103: 1386.728022 | X103: 1321.519047 | Y103: 1256.310071 | Z103: 1191.101095 | AA103: 1125.89212 | AB103: 1115.656737 | AC103: 1105.421354 | AD103: 1095.185971 | AE103: 1084.950588 | AF103: 1074.715205 | AG103: 1064.479822 | AH103: 1054.244439 | AI103: 1044.009057 | AJ103: 1033.773674 | AK103: 1023.538291 | AL103: 1018.420599 | AM103: 1013.302908 | AN103: 1008.185216 | AO103: 1003.067525 | AP103: 997.9498335 | AQ103: 992.832142 | AR103: 987.7144505 | AS103: 982.5967591 | AT103: 977.4790676 | AU103: 972.3613762
K104: Comm PV - 18.7% - High | L104: =$S$40*(L115+L160) -> 2464.680204 | M104: 2180.198259 | N104: 2180.198259 | O104: 2180.198259 | P104: 2180.198259 | Q104: 2180.198259 | R104: 2180.198259 | S104: 2180.198259 | T104: 2180.198259 | U104: 2180.198259 | V104: 2180.198259 | W104: 2180.198259 | X104: 2180.198259 | Y104: 2180.198259 | Z104: 2180.198259 | AA104: 2180.198259 | AB104: 2180.198259 | AC104: 2180.198259 | AD104: 2180.198259 | AE104: 2180.198259 | AF104: 2180.198259 | AG104: 2180.198259 | AH104: 2180.198259 | AI104: 2180.198259 | AJ104: 2180.198259 | AK104: 2180.198259 | AL104: 2180.198259 | AM104: 2180.198259 | AN104: 2180.198259 | AO104: 2180.198259 | AP104: 2180.198259 | AQ104: 2180.198259 | AR104: 2180.198259 | AS104: 2180.198259 | AT104: 2180.198259 | AU104: 2180.198259
L106: 2015 | M106: 2016 | N106: 2017 | O106: 2018 | P106: 2019 | Q106: 2020 | R106: 2021 | S106: 2022 | T106: 2023 | U106: 2024 | V106: 2025 | W106: 2026 | X106: 2027 | Y106: 2028 | Z106: 2029 | AA106: 2030 | AB106: 2031 | AC106: 2032 | AD106: 2033 | AE106: 2034 | AF106: 2035 | AG106: 2036 | AH106: 2037 | AI106: 2038 | AJ106: 2039 | AK106: 2040 | AL106: 2041 | AM106: 2042 | AN106: 2043 | AO106: 2044 | AP106: 2045 | AQ106: 2046 | AR106: 2047 | AS106: 2048 | AT106: 2049 | AU106: 2050
J107: Overnight Capital Cost ($/kW) | K107: Comm PV - 11.4% - Low | L107: 2432.911467 | M107: 2152.09638 | N107: 1616.55247 | O107: 1488.408692 | P107: 1374.100523 | Q107: 1262.931617 | R107: 1122.648277 | S107: 1100.70495 | T107: 1078.761623 | U107: 1056.818295 | V107: 1034.874968 | W107: 1012.931641 | X107: 990.9883134 | Y107: 969.0449861 | Z107: 947.1016588 | AA107: 925.1583314 | AB107: 920.0185629 | AC107: 914.8787944 | AD107: 909.7390259 | AE107: 904.5992574 | AF107: 899.4594889 | AG107: 894.3197204 | AH107: 889.1799519 | AI107: 884.0401834 | AJ107: 878.9004149 | AK107: 873.7606464 | AL107: 868.6208779 | AM107: 863.4811093 | AN107: 858.3413408 | AO107: 853.2015723 | AP107: 848.0618038 | AQ107: 842.9220353 | AR107: 837.7822668 | AS107: 832.6424983 | AT107: 827.5027298 | AU107: 822.3629613
K108: Comm PV - 11.4% - Mid | L108: 2432.911467 | M108: 2152.09638 | N108: 2051.000946 | O108: 1930.570845 | P108: 1850.339329 | Q108: 1755.064404 | R108: 1690.695946 | S108: 1626.327488 | T108: 1561.95903 | U108: 1497.590572 | V108: 1433.222114 | W108: 1368.853655 | X108: 1304.485197 | Y108: 1240.116739 | Z108: 1175.748281 | AA108: 1111.379823 | AB108: 1101.27637 | AC108: 1091.172917 | AD108: 1081.069464 | AE108: 1070.966011 | AF108: 1060.862558 | AG108: 1050.759105 | AH108: 1040.655652 | AI108: 1030.5522 | AJ108: 1020.448747 | AK108: 1010.345294 | AL108: 1005.293567 | AM108: 1000.241841 | AN108: 995.1901142 | AO108: 990.1383878 | AP108: 985.0866613 | AQ108: 980.0349348 | AR108: 974.9832084 | AS108: 969.9314819 | AT108: 964.8797554 | AU108: 959.828029
K109: Comm PV - 11.4% - High | L109: 2432.911467 | M109: 2152.09638 | N109: 2152.09638 | O109: 2152.09638 | P109: 2152.09638 | Q109: 2152.09638 | R109: 2152.09638 | S109: 2152.09638 | T109: 2152.09638 | U109: 2152.09638 | V109: 2152.09638 | W109: 2152.09638 | X109: 2152.09638 | Y109: 2152.09638 | Z109: 2152.09638 | AA109: 2152.09638 | AB109: 2152.09638 | AC109: 2152.09638 | AD109: 2152.09638 | AE109: 2152.09638 | AF109: 2152.09638 | AG109: 2152.09638 | AH109: 2152.09638 | AI109: 2152.09638 | AJ109: 2152.09638 | AK109: 2152.09638 | AL109: 2152.09638 | AM109: 2152.09638 | AN109: 2152.09638 | AO109: 2152.09638 | AP109: 2152.09638 | AQ109: 2152.09638 | AR109: 2152.09638 | AS109: 2152.09638 | AT109: 2152.09638 | AU109: 2152.09638
K110: Comm PV - 14.5% - Low | L110: 2432.911467 | M110: 2152.09638 | N110: 1616.55247 | O110: 1488.408692 | P110: 1374.100523 | Q110: 1262.931617 | R110: 1122.648277 | S110: 1100.70495 | T110: 1078.761623 | U110: 1056.818295 | V110: 1034.874968 | W110: 1012.931641 | X110: 990.9883134 | Y110: 969.0449861 | Z110: 947.1016588 | AA110: 925.1583314 | AB110: 920.0185629 | AC110: 914.8787944 | AD110: 909.7390259 | AE110: 904.5992574 | AF110: 899.4594889 | AG110: 894.3197204 | AH110: 889.1799519 | AI110: 884.0401834 | AJ110: 878.9004149 | AK110: 873.7606464 | AL110: 868.6208779 | AM110: 863.4811093 | AN110: 858.3413408 | AO110: 853.2015723 | AP110: 848.0618038 | AQ110: 842.9220353 | AR110: 837.7822668 | AS110: 832.6424983 | AT110: 827.5027298 | AU110: 822.3629613
K111: Comm PV - 14.5% - Mid | L111: 2432.911467 | M111: 2152.09638 | N111: 2051.000946 | O111: 1930.570845 | P111: 1850.339329 | Q111: 1755.064404 | R111: 1690.695946 | S111: 1626.327488 | T111: 1561.95903 | U111: 1497.590572 | V111: 1433.222114 | W111: 1368.853655 | X111: 1304.485197 | Y111: 1240.116739 | Z111: 1175.748281 | AA111: 1111.379823 | AB111: 1101.27637 | AC111: 1091.172917 | AD111: 1081.069464 | AE111: 1070.966011 | AF111: 1060.862558 | AG111: 1050.759105 | AH111: 1040.655652 | AI111: 1030.5522 | AJ111: 1020.448747 | AK111: 1010.345294 | AL111: 1005.293567 | AM111: 1000.241841 | AN111: 995.1901142 | AO111: 990.1383878 | AP111: 985.0866613 | AQ111: 980.0349348 | AR111: 974.9832084 | AS111: 969.9314819 | AT111: 964.8797554 | AU111: 959.828029
K112: Comm PV - 14.5% - High | L112: 2432.911467 | M112: 2152.09638 | N112: 2152.09638 | O112: 2152.09638 | P112: 2152.09638 | Q112: 2152.09638 | R112: 2152.09638 | S112: 2152.09638 | T112: 2152.09638 | U112: 2152.09638 | V112: 2152.09638 | W112: 2152.09638 | X112: 2152.09638 | Y112: 2152.09638 | Z112: 2152.09638 | AA112: 2152.09638 | AB112: 2152.09638 | AC112: 2152.09638 | AD112: 2152.09638 | AE112: 2152.09638 | AF112: 2152.09638 | AG112: 2152.09638 | AH112: 2152.09638 | AI112: 2152.09638 | AJ112: 2152.09638 | AK112: 2152.09638 | AL112: 2152.09638 | AM112: 2152.09638 | AN112: 2152.09638 | AO112: 2152.09638 | AP112: 2152.09638 | AQ112: 2152.09638 | AR112: 2152.09638 | AS112: 2152.09638 | AT112: 2152.09638 | AU112: 2152.09638
K113: Comm PV - 18.7% - Low | L113: 2432.911467 | M113: 2152.09638 | N113: 1616.55247 | O113: 1488.408692 | P113: 1374.100523 | Q113: 1262.931617 | R113: 1122.648277 | S113: 1100.70495 | T113: 1078.761623 | U113: 1056.818295 | V113: 1034.874968 | W113: 1012.931641 | X113: 990.9883134 | Y113: 969.0449861 | Z113: 947.1016588 | AA113: 925.1583314 | AB113: 920.0185629 | AC113: 914.8787944 | AD113: 909.7390259 | AE113: 904.5992574 | AF113: 899.4594889 | AG113: 894.3197204 | AH113: 889.1799519 | AI113: 884.0401834 | AJ113: 878.9004149 | AK113: 873.7606464 | AL113: 868.6208779 | AM113: 863.4811093 | AN113: 858.3413408 | AO113: 853.2015723 | AP113: 848.0618038 | AQ113: 842.9220353 | AR113: 837.7822668 | AS113: 832.6424983 | AT113: 827.5027298 | AU113: 822.3629613
K114: Comm PV - 18.7% - Mid | L114: 2432.911467 | M114: 2152.09638 | N114: 2051.000946 | O114: 1930.570845 | P114: 1850.339329 | Q114: 1755.064404 | R114: 1690.695946 | S114: 1626.327488 | T114: 1561.95903 | U114: 1497.590572 | V114: 1433.222114 | W114: 1368.853655 | X114: 1304.485197 | Y114: 1240.116739 | Z114: 1175.748281 | AA114: 1111.379823 | AB114: 1101.27637 | AC114: 1091.172917 | AD114: 1081.069464 | AE114: 1070.966011 | AF114: 1060.862558 | AG114: 1050.759105 | AH114: 1040.655652 | AI114: 1030.5522 | AJ114: 1020.448747 | AK114: 1010.345294 | AL114: 1005.293567 | AM114: 1000.241841 | AN114: 995.1901142 | AO114: 990.1383878 | AP114: 985.0866613 | AQ114: 980.0349348 | AR114: 974.9832084 | AS114: 969.9314819 | AT114: 964.8797554 | AU114: 959.828029
K115: Comm PV - 18.7% - High | L115: 2432.911467 | M115: 2152.09638 | N115: 2152.09638 | O115: 2152.09638 | P115: 2152.09638 | Q115: 2152.09638 | R115: 2152.09638 | S115: 2152.09638 | T115: 2152.09638 | U115: 2152.09638 | V115: 2152.09638 | W115: 2152.09638 | X115: 2152.09638 | Y115: 2152.09638 | Z115: 2152.09638 | AA115: 2152.09638 | AB115: 2152.09638 | AC115: 2152.09638 | AD115: 2152.09638 | AE115: 2152.09638 | AF115: 2152.09638 | AG115: 2152.09638 | AH115: 2152.09638 | AI115: 2152.09638 | AJ115: 2152.09638 | AK115: 2152.09638 | AL115: 2152.09638 | AM115: 2152.09638 | AN115: 2152.09638 | AO115: 2152.09638 | AP115: 2152.09638 | AQ115: 2152.09638 | AR115: 2152.09638 | AS115: 2152.09638 | AT115: 2152.09638 | AU115: 2152.09638
L117: 2015 | M117: 2016 | N117: 2017 | O117: 2018 | P117: 2019 | Q117: 2020 | R117: 2021 | S117: 2022 | T117: 2023 | U117: 2024 | V117: 2025 | W117: 2026 | X117: 2027 | Y117: 2028 | Z117: 2029 | AA117: 2030 | AB117: 2031 | AC117: 2032 | AD117: 2033 | AE117: 2034 | AF117: 2035 | AG117: 2036 | AH117: 2037 | AI117: 2038 | AJ117: 2039 | AK117: 2040 | AL117: 2041 | AM117: 2042 | AN117: 2043 | AO117: 2044 | AP117: 2045 | AQ117: 2046 | AR117: 2047 | AS117: 2048 | AT117: 2049 | AU117: 2050
J118: Fixed Operation and Maintenance Expenses ($/kW-yr) | K118: Comm PV - 11.4% - Low | L118: 18.36025339 | M118: 16.18820271 | N118: 14.01615203 | O118: 11.84410135 | P118: 9.672050677 | Q118: 7.5 | R118: 7.5 | S118: 7.5 | T118: 7.5 | U118: 7.5 | V118: 7.5 | W118: 7.5 | X118: 7.5 | Y118: 7.5 | Z118: 7.5 | AA118: 7.5 | AB118: 7.5 | AC118: 7.5 | AD118: 7.5 | AE118: 7.5 | AF118: 7.5 | AG118: 7.5 | AH118: 7.5 | AI118: 7.5 | AJ118: 7.5 | AK118: 7.5 | AL118: 7.5 | AM118: 7.5 | AN118: 7.5 | AO118: 7.5 | AP118: 7.5 | AQ118: 7.5 | AR118: 7.5 | AS118: 7.5 | AT118: 7.5 | AU118: 7.5
K119: Comm PV - 11.4% - Mid | L119: 18.36025339 | M119: 17.27422805 | N119: 16.18820271 | O119: 15.10217737 | P119: 14.01615203 | Q119: 12.93012669 | R119: 11.84410135 | S119: 10.75807602 | T119: 9.672050677 | U119: 8.586025339 | V119: 7.5 | W119: 7.5 | X119: 7.5 | Y119: 7.5 | Z119: 7.5 | AA119: 7.5 | AB119: 7.5 | AC119: 7.5 | AD119: 7.5 | AE119: 7.5 | AF119: 7.5 | AG119: 7.5 | AH119: 7.5 | AI119: 7.5 | AJ119: 7.5 | AK119: 7.5 | AL119: 7.5 | AM119: 7.5 | AN119: 7.5 | AO119: 7.5 | AP119: 7.5 | AQ119: 7.5 | AR119: 7.5 | AS119: 7.5 | AT119: 7.5 | AU119: 7.5
K120: Comm PV - 11.4% - High | L120: 18.36025339 | M120: 18.36025339 | N120: 18.36025339 | O120: 18.36025339 | P120: 18.36025339 | Q120: 18.36025339 | R120: 18.36025339 | S120: 18.36025339 | T120: 18.36025339 | U120: 18.36025339 | V120: 18.36025339 | W120: 18.36025339 | X120: 18.36025339 | Y120: 18.36025339 | Z120: 18.36025339 | AA120: 18.36025339 | AB120: 18.36025339 | AC120: 18.36025339 | AD120: 18.36025339 | AE120: 18.36025339 | AF120: 18.36025339 | AG120: 18.36025339 | AH120: 18.36025339 | AI120: 18.36025339 | AJ120: 18.36025339 | AK120: 18.36025339 | AL120: 18.36025339 | AM120: 18.36025339 | AN120: 18.36025339 | AO120: 18.36025339 | AP120: 18.36025339 | AQ120: 18.36025339 | AR120: 18.36025339 | AS120: 18.36025339 | AT120: 18.36025339 | AU120: 18.36025339
K121: Comm PV - 14.5% - Low | L121: 18.36025339 | M121: 16.18820271 | N121: 14.01615203 | O121: 11.84410135 | P121: 9.672050677 | Q121: 7.5 | R121: 7.5 | S121: 7.5 | T121: 7.5 | U121: 7.5 | V121: 7.5 | W121: 7.5 | X121: 7.5 | Y121: 7.5 | Z121: 7.5 | AA121: 7.5 | AB121: 7.5 | AC121: 7.5 | AD121: 7.5 | AE121: 7.5 | AF121: 7.5 | AG121: 7.5 | AH121: 7.5 | AI121: 7.5 | AJ121: 7.5 | AK121: 7.5 | AL121: 7.5 | AM121: 7.5 | AN121: 7.5 | AO121: 7.5 | AP121: 7.5 | AQ121: 7.5 | AR121: 7.5 | AS121: 7.5 | AT121: 7.5 | AU121: 7.5
K122: Comm PV - 14.5% - Mid | L122: 18.36025339 | M122: 17.27422805 | N122: 16.18820271 | O122: 15.10217737 | P122: 14.01615203 | Q122: 12.93012669 | R122: 11.84410135 | S122: 10.75807602 | T122: 9.672050677 | U122: 8.586025339 | V122: 7.5 | W122: 7.5 | X122: 7.5 | Y122: 7.5 | Z122: 7.5 | AA122: 7.5 | AB122: 7.5 | AC122: 7.5 | AD122: 7.5 | AE122: 7.5 | AF122: 7.5 | AG122: 7.5 | AH122: 7.5 | AI122: 7.5 | AJ122: 7.5 | AK122: 7.5 | AL122: 7.5 | AM122: 7.5 | AN122: 7.5 | AO122: 7.5 | AP122: 7.5 | AQ122: 7.5 | AR122: 7.5 | AS122: 7.5 | AT122: 7.5 | AU122: 7.5
K123: Comm PV - 14.5% - High | L123: 18.36025339 | M123: 18.36025339 | N123: 18.36025339 | O123: 18.36025339 | P123: 18.36025339 | Q123: 18.36025339 | R123: 18.36025339 | S123: 18.36025339 | T123: 18.36025339 | U123: 18.36025339 | V123: 18.36025339 | W123: 18.36025339 | X123: 18.36025339 | Y123: 18.36025339 | Z123: 18.36025339 | AA123: 18.36025339 | AB123: 18.36025339 | AC123: 18.36025339 | AD123: 18.36025339 | AE123: 18.36025339 | AF123: 18.36025339 | AG123: 18.36025339 | AH123: 18.36025339 | AI123: 18.36025339 | AJ123: 18.36025339 | AK123: 18.36025339 | AL123: 18.36025339 | AM123: 18.36025339 | AN123: 18.36025339 | AO123: 18.36025339 | AP123: 18.36025339 | AQ123: 18.36025339 | AR123: 18.36025339 | AS123: 18.36025339 | AT123: 18.36025339 | AU123: 18.36025339
K124: Comm PV - 18.7% - Low | L124: 18.36025339 | M124: 16.18820271 | N124: 14.01615203 | O124: 11.84410135 | P124: 9.672050677 | Q124: 7.5 | R124: 7.5 | S124: 7.5 | T124: 7.5 | U124: 7.5 | V124: 7.5 | W124: 7.5 | X124: 7.5 | Y124: 7.5 | Z124: 7.5 | AA124: 7.5 | AB124: 7.5 | AC124: 7.5 | AD124: 7.5 | AE124: 7.5 | AF124: 7.5 | AG124: 7.5 | AH124: 7.5 | AI124: 7.5 | AJ124: 7.5 | AK124: 7.5 | AL124: 7.5 | AM124: 7.5 | AN124: 7.5 | AO124: 7.5 | AP124: 7.5 | AQ124: 7.5 | AR124: 7.5 | AS124: 7.5 | AT124: 7.5 | AU124: 7.5
K125: Comm PV - 18.7% - Mid | L125: 18.36025339 | M125: 17.27422805 | N125: 16.18820271 | O125: 15.10217737 | P125: 14.01615203 | Q125: 12.93012669 | R125: 11.84410135 | S125: 10.75807602 | T125: 9.672050677 | U125: 8.586025339 | V125: 7.5 | W125: 7.5 | X125: 7.5 | Y125: 7.5 | Z125: 7.5 | AA125: 7.5 | AB125: 7.5 | AC125: 7.5 | AD125: 7.5 | AE125: 7.5 | AF125: 7.5 | AG125: 7.5 | AH125: 7.5 | AI125: 7.5 | AJ125: 7.5 | AK125: 7.5 | AL125: 7.5 | AM125: 7.5 | AN125: 7.5 | AO125: 7.5 | AP125: 7.5 | AQ125: 7.5 | AR125: 7.5 | AS125: 7.5 | AT125: 7.5 | AU125: 7.5
K126: Comm PV - 18.7% - High | L126: 18.36025339 | M126: 18.36025339 | N126: 18.36025339 | O126: 18.36025339 | P126: 18.36025339 | Q126: 18.36025339 | R126: 18.36025339 | S126: 18.36025339 | T126: 18.36025339 | U126: 18.36025339 | V126: 18.36025339 | W126: 18.36025339 | X126: 18.36025339 | Y126: 18.36025339 | Z126: 18.36025339 | AA126: 18.36025339 | AB126: 18.36025339 | AC126: 18.36025339 | AD126: 18.36025339 | AE126: 18.36025339 | AF126: 18.36025339 | AG126: 18.36025339 | AH126: 18.36025339 | AI126: 18.36025339 | AJ126: 18.36025339 | AK126: 18.36025339 | AL126: 18.36025339 | AM126: 18.36025339 | AN126: 18.36025339 | AO126: 18.36025339 | AP126: 18.36025339 | AQ126: 18.36025339 | AR126: 18.36025339 | AS126: 18.36025339 | AT126: 18.36025339 | AU126: 18.36025339
L128: 2015 | M128: 2016 | N128: 2017 | O128: 2018 | P128: 2019 | Q128: 2020 | R128: 2021 | S128: 2022 | T128: 2023 | U128: 2024 | V128: 2025 | W128: 2026 | X128: 2027 | Y128: 2028 | Z128: 2029 | AA128: 2030 | AB128: 2031 | AC128: 2032 | AD128: 2033 | AE128: 2034 | AF128: 2035 | AG128: 2036 | AH128: 2037 | AI128: 2038 | AJ128: 2039 | AK128: 2040 | AL128: 2041 | AM128: 2042 | AN128: 2043 | AO128: 2044 | AP128: 2045 | AQ128: 2046 | AR128: 2047 | AS128: 2048 | AT128: 2049 | AU128: 2050
J129: Variable Operation and Maintenance Expenses ($/MWh) | K129: Comm PV - 11.4% - Low | L129: 0 | M129: 0 | N129: 0 | O129: 0 | P129: 0 | Q129: 0 | R129: 0 | S129: 0 | T129: 0 | U129: 0 | V129: 0 | W129: 0 | X129: 0 | Y129: 0 | Z129: 0 | AA129: 0 | AB129: 0 | AC129: 0 | AD129: 0 | AE129: 0 | AF129: 0 | AG129: 0 | AH129: 0 | AI129: 0 | AJ129: 0 | AK129: 0 | AL129: 0 | AM129: 0 | AN129: 0 | AO129: 0 | AP129: 0 | AQ129: 0 | AR129: 0 | AS129: 0 | AT129: 0 | AU129: 0
K130: Comm PV - 11.4% - Mid | L130: 0 | M130: 0 | N130: 0 | O130: 0 | P130: 0 | Q130: 0 | R130: 0 | S130: 0 | T130: 0 | U130: 0 | V130: 0 | W130: 0 | X130: 0 | Y130: 0 | Z130: 0 | AA130: 0 | AB130: 0 | AC130: 0 | AD130: 0 | AE130: 0 | AF130: 0 | AG130: 0 | AH130: 0 | AI130: 0 | AJ130: 0 | AK130: 0 | AL130: 0 | AM130: 0 | AN130: 0 | AO130: 0 | AP130: 0 | AQ130: 0 | AR130: 0 | AS130: 0 | AT130: 0 | AU130: 0
K131: Comm PV - 11.4% - High | L131: 0 | M131: 0 | N131: 0 | O131: 0 | P131: 0 | Q131: 0 | R131: 0 | S131: 0 | T131: 0 | U131: 0 | V131: 0 | W131: 0 | X131: 0 | Y131: 0 | Z131: 0 | AA131: 0 | AB131: 0 | AC131: 0 | AD131: 0 | AE131: 0 | AF131: 0 | AG131: 0 | AH131: 0 | AI131: 0 | AJ131: 0 | AK131: 0 | AL131: 0 | AM131: 0 | AN131: 0 | AO131: 0 | AP131: 0 | AQ131: 0 | AR131: 0 | AS131: 0 | AT131: 0 | AU131: 0
K132: Comm PV - 14.5% - Low | L132: 0 | M132: 0 | N132: 0 | O132: 0 | P132: 0 | Q132: 0 | R132: 0 | S132: 0 | T132: 0 | U132: 0 | V132: 0 | W132: 0 | X132: 0 | Y132: 0 | Z132: 0 | AA132: 0 | AB132: 0 | AC132: 0 | AD132: 0 | AE132: 0 | AF132: 0 | AG132: 0 | AH132: 0 | AI132: 0 | AJ132: 0 | AK132: 0 | AL132: 0 | AM132: 0 | AN132: 0 | AO132: 0 | AP132: 0 | AQ132: 0 | AR132: 0 | AS132: 0 | AT132: 0 | AU132: 0
K133: Comm PV - 14.5% - Mid | L133: 0 | M133: 0 | N133: 0 | O133: 0 | P133: 0 | Q133: 0 | R133: 0 | S133: 0 | T133: 0 | U133: 0 | V133: 0 | W133: 0 | X133: 0 | Y133: 0 | Z133: 0 | AA133: 0 | AB133: 0 | AC133: 0 | AD133: 0 | AE133: 0 | AF133: 0 | AG133: 0 | AH133: 0 | AI133: 0 | AJ133: 0 | AK133: 0 | AL133: 0 | AM133: 0 | AN133: 0 | AO133: 0 | AP133: 0 | AQ133: 0 | AR133: 0 | AS133: 0 | AT133: 0 | AU133: 0
K134: Comm PV - 14.5% - High | L134: 0 | M134: 0 | N134: 0 | O134: 0 | P134: 0 | Q134: 0 | R134: 0 | S134: 0 | T134: 0 | U134: 0 | V134: 0 | W134: 0 | X134: 0 | Y134: 0 | Z134: 0 | AA134: 0 | AB134: 0 | AC134: 0 | AD134: 0 | AE134: 0 | AF134: 0 | AG134: 0 | AH134: 0 | AI134: 0 | AJ134: 0 | AK134: 0 | AL134: 0 | AM134: 0 | AN134: 0 | AO134: 0 | AP134: 0 | AQ134: 0 | AR134: 0 | AS134: 0 | AT134: 0 | AU134: 0
K135: Comm PV - 18.7% - Low | L135: 0 | M135: 0 | N135: 0 | O135: 0 | P135: 0 | Q135: 0 | R135: 0 | S135: 0 | T135: 0 | U135: 0 | V135: 0 | W135: 0 | X135: 0 | Y135: 0 | Z135: 0 | AA135: 0 | AB135: 0 | AC135: 0 | AD135: 0 | AE135: 0 | AF135: 0 | AG135: 0 | AH135: 0 | AI135: 0 | AJ135: 0 | AK135: 0 | AL135: 0 | AM135: 0 | AN135: 0 | AO135: 0 | AP135: 0 | AQ135: 0 | AR135: 0 | AS135: 0 | AT135: 0 | AU135: 0
K136: Comm PV - 18.7% - Mid | L136: 0 | M136: 0 | N136: 0 | O136: 0 | P136: 0 | Q136: 0 | R136: 0 | S136: 0 | T136: 0 | U136: 0 | V136: 0 | W136: 0 | X136: 0 | Y136: 0 | Z136: 0 | AA136: 0 | AB136: 0 | AC136: 0 | AD136: 0 | AE136: 0 | AF136: 0 | AG136: 0 | AH136: 0 | AI136: 0 | AJ136: 0 | AK136: 0 | AL136: 0 | AM136: 0 | AN136: 0 | AO136: 0 | AP136: 0 | AQ136: 0 | AR136: 0 | AS136: 0 | AT136: 0 | AU136: 0
K137: Comm PV - 18.7% - High | L137: 0 | M137: 0 | N137: 0 | O137: 0 | P137: 0 | Q137: 0 | R137: 0 | S137: 0 | T137: 0 | U137: 0 | V137: 0 | W137: 0 | X137: 0 | Y137: 0 | Z137: 0 | AA137: 0 | AB137: 0 | AC137: 0 | AD137: 0 | AE137: 0 | AF137: 0 | AG137: 0 | AH137: 0 | AI137: 0 | AJ137: 0 | AK137: 0 | AL137: 0 | AM137: 0 | AN137: 0 | AO137: 0 | AP137: 0 | AQ137: 0 | AR137: 0 | AS137: 0 | AT137: 0 | AU137: 0
L140: 2015 | M140: 2016 | N140: 2017 | O140: 2018 | P140: 2019 | Q140: 2020 | R140: 2021 | S140: 2022 | T140: 2023 | U140: 2024 | V140: 2025 | W140: 2026 | X140: 2027 | Y140: 2028 | Z140: 2029 | AA140: 2030 | AB140: 2031 | AC140: 2032 | AD140: 2033 | AE140: 2034 | AF140: 2035 | AG140: 2036 | AH140: 2037 | AI140: 2038 | AJ140: 2039 | AK140: 2040 | AL140: 2041 | AM140: 2042 | AN140: 2043 | AO140: 2044 | AP140: 2045 | AQ140: 2046 | AR140: 2047 | AS140: 2048 | AT140: 2049 | AU140: 2050
H141: Finance | J141: Weighted Average Cost of Capital (WACC) (Nominal) (%) | K141: Comm PV - 11.4% - Low | L141: =$S$37 -> 0.0537826696 | M141: 0.0537826696 | N141: 0.0537826696 | O141: 0.0537826696 | P141: 0.0537826696 | Q141: 0.0537826696 | R141: 0.0537826696 | S141: 0.0537826696 | T141: 0.0537826696 | U141: 0.0537826696 | V141: 0.0537826696 | W141: 0.0537826696 | X141: 0.0537826696 | Y141: 0.0537826696 | Z141: 0.0537826696 | AA141: 0.0537826696 | AB141: =$S$37 -> 0.0537826696 | AC141: 0.0537826696 | AD141: 0.0537826696 | AE141: 0.0537826696 | AF141: 0.0537826696 | AG141: 0.0537826696 | AH141: 0.0537826696 | AI141: 0.0537826696 | AJ141: 0.0537826696 | AK141: 0.0537826696 | AL141: 0.0537826696 | AM141: 0.0537826696 | AN141: 0.0537826696 | AO141: 0.0537826696 | AP141: 0.0537826696 | AQ141: 0.0537826696 | AR141: =$S$37 -> 0.0537826696 | AS141: 0.0537826696 | AT141: 0.0537826696 | AU141: 0.0537826696
K142: Comm PV - 11.4% - Mid | L142: 0.0537826696 | M142: 0.0537826696 | N142: 0.0537826696 | O142: 0.0537826696 | P142: 0.0537826696 | Q142: 0.0537826696 | R142: 0.0537826696 | S142: 0.0537826696 | T142: 0.0537826696 | U142: 0.0537826696 | V142: 0.0537826696 | W142: 0.0537826696 | X142: 0.0537826696 | Y142: 0.0537826696 | Z142: 0.0537826696 | AA142: 0.0537826696 | AB142: 0.0537826696 | AC142: 0.0537826696 | AD142: 0.0537826696 | AE142: 0.0537826696 | AF142: 0.0537826696 | AG142: 0.0537826696 | AH142: 0.0537826696 | AI142: 0.0537826696 | AJ142: 0.0537826696 | AK142: 0.0537826696 | AL142: 0.0537826696 | AM142: 0.0537826696 | AN142: 0.0537826696 | AO142: 0.0537826696 | AP142: 0.0537826696 | AQ142: 0.0537826696 | AR142: 0.0537826696 | AS142: 0.0537826696 | AT142: 0.0537826696 | AU142: 0.0537826696
K143: Comm PV - 11.4% - High | L143: 0.0537826696 | M143: 0.0537826696 | N143: 0.0537826696 | O143: 0.0537826696 | P143: 0.0537826696 | Q143: 0.0537826696 | R143: 0.0537826696 | S143: 0.0537826696 | T143: 0.0537826696 | U143: 0.0537826696 | V143: 0.0537826696 | W143: 0.0537826696 | X143: 0.0537826696 | Y143: 0.0537826696 | Z143: 0.0537826696 | AA143: 0.0537826696 | AB143: 0.0537826696 | AC143: 0.0537826696 | AD143: 0.0537826696 | AE143: 0.0537826696 | AF143: 0.0537826696 | AG143: 0.0537826696 | AH143: 0.0537826696 | AI143: 0.0537826696 | AJ143: 0.0537826696 | AK143: 0.0537826696 | AL143: 0.0537826696 | AM143: 0.0537826696 | AN143: 0.0537826696 | AO143: 0.0537826696 | AP143: 0.0537826696 | AQ143: 0.0537826696 | AR143: 0.0537826696 | AS143: 0.0537826696 | AT143: 0.0537826696 | AU143: 0.0537826696
K144: Comm PV - 14.5% - Low | L144: 0.0537826696 | M144: 0.0537826696 | N144: 0.0537826696 | O144: 0.0537826696 | P144: 0.0537826696 | Q144: 0.0537826696 | R144: 0.0537826696 | S144: 0.0537826696 | T144: 0.0537826696 | U144: 0.0537826696 | V144: 0.0537826696 | W144: 0.0537826696 | X144: 0.0537826696 | Y144: 0.0537826696 | Z144: 0.0537826696 | AA144: 0.0537826696 | AB144: 0.0537826696 | AC144: 0.0537826696 | AD144: 0.0537826696 | AE144: 0.0537826696 | AF144: 0.0537826696 | AG144: 0.0537826696 | AH144: 0.0537826696 | AI144: 0.0537826696 | AJ144: 0.0537826696 | AK144: 0.0537826696 | AL144: 0.0537826696 | AM144: 0.0537826696 | AN144: 0.0537826696 | AO144: 0.0537826696 | AP144: 0.0537826696 | AQ144: 0.0537826696 | AR144: 0.0537826696 | AS144: 0.0537826696 | AT144: 0.0537826696 | AU144: 0.0537826696
K145: Comm PV - 14.5% - Mid | L145: 0.0537826696 | M145: 0.0537826696 | N145: 0.0537826696 | O145: 0.0537826696 | P145: 0.0537826696 | Q145: 0.0537826696 | R145: 0.0537826696 | S145: 0.0537826696 | T145: 0.0537826696 | U145: 0.0537826696 | V145: 0.0537826696 | W145: 0.0537826696 | X145: 0.0537826696 | Y145: 0.0537826696 | Z145: 0.0537826696 | AA145: 0.0537826696 | AB145: 0.0537826696 | AC145: 0.0537826696 | AD145: 0.0537826696 | AE145: 0.0537826696 | AF145: 0.0537826696 | AG145: 0.0537826696 | AH145: 0.0537826696 | AI145: 0.0537826696 | AJ145: 0.0537826696 | AK145: 0.0537826696 | AL145: 0.0537826696 | AM145: 0.0537826696 | AN145: 0.0537826696 | AO145: 0.0537826696 | AP145: 0.0537826696 | AQ145: 0.0537826696 | AR145: 0.0537826696 | AS145: 0.0537826696 | AT145: 0.0537826696 | AU145: 0.0537826696
K146: Comm PV - 14.5% - High | L146: 0.0537826696 | M146: 0.0537826696 | N146: 0.0537826696 | O146: 0.0537826696 | P146: 0.0537826696 | Q146: 0.0537826696 | R146: 0.0537826696 | S146: 0.0537826696 | T146: 0.0537826696 | U146: 0.0537826696 | V146: 0.0537826696 | W146: 0.0537826696 | X146: 0.0537826696 | Y146: 0.0537826696 | Z146: 0.0537826696 | AA146: 0.0537826696 | AB146: 0.0537826696 | AC146: 0.0537826696 | AD146: 0.0537826696 | AE146: 0.0537826696 | AF146: 0.0537826696 | AG146: 0.0537826696 | AH146: 0.0537826696 | AI146: 0.0537826696 | AJ146: 0.0537826696 | AK146: 0.0537826696 | AL146: 0.0537826696 | AM146: 0.0537826696 | AN146: 0.0537826696 | AO146: 0.0537826696 | AP146: 0.0537826696 | AQ146: 0.0537826696 | AR146: 0.0537826696 | AS146: 0.0537826696 | AT146: 0.0537826696 | AU146: 0.0537826696
K147: Comm PV - 18.7% - Low | L147: 0.0537826696 | M147: 0.0537826696 | N147: 0.0537826696 | O147: 0.0537826696 | P147: 0.0537826696 | Q147: 0.0537826696 | R147: 0.0537826696 | S147: 0.0537826696 | T147: 0.0537826696 | U147: 0.0537826696 | V147: 0.0537826696 | W147: 0.0537826696 | X147: 0.0537826696 | Y147: 0.0537826696 | Z147: 0.0537826696 | AA147: 0.0537826696 | AB147: 0.0537826696 | AC147: 0.0537826696 | AD147: 0.0537826696 | AE147: 0.0537826696 | AF147: 0.0537826696 | AG147: 0.0537826696 | AH147: 0.0537826696 | AI147: 0.0537826696 | AJ147: 0.0537826696 | AK147: 0.0537826696 | AL147: 0.0537826696 | AM147: 0.0537826696 | AN147: 0.0537826696 | AO147: 0.0537826696 | AP147: 0.0537826696 | AQ147: 0.0537826696 | AR147: 0.0537826696 | AS147: 0.0537826696 | AT147: 0.0537826696 | AU147: 0.0537826696
K148: Comm PV - 18.7% - Mid | L148: 0.0537826696 | M148: 0.0537826696 | N148: 0.0537826696 | O148: 0.0537826696 | P148: 0.0537826696 | Q148: 0.0537826696 | R148: 0.0537826696 | S148: 0.0537826696 | T148: 0.0537826696 | U148: 0.0537826696 | V148: 0.0537826696 | W148: 0.0537826696 | X148: 0.0537826696 | Y148: 0.0537826696 | Z148: 0.0537826696 | AA148: 0.0537826696 | AB148: 0.0537826696 | AC148: 0.0537826696 | AD148: 0.0537826696 | AE148: 0.0537826696 | AF148: 0.0537826696 | AG148: 0.0537826696 | AH148: 0.0537826696 | AI148: 0.0537826696 | AJ148: 0.0537826696 | AK148: 0.0537826696 | AL148: 0.0537826696 | AM148: 0.0537826696 | AN148: 0.0537826696 | AO148: 0.0537826696 | AP148: 0.0537826696 | AQ148: 0.0537826696 | AR148: 0.0537826696 | AS148: 0.0537826696 | AT148: 0.0537826696 | AU148: 0.0537826696
K149: Comm PV - 18.7% - High | L149: 0.0537826696 | M149: 0.0537826696 | N149: 0.0537826696 | O149: 0.0537826696 | P149: 0.0537826696 | Q149: 0.0537826696 | R149: 0.0537826696 | S149: 0.0537826696 | T149: 0.0537826696 | U149: 0.0537826696 | V149: 0.0537826696 | W149: 0.0537826696 | X149: 0.0537826696 | Y149: 0.0537826696 | Z149: 0.0537826696 | AA149: 0.0537826696 | AB149: 0.0537826696 | AC149: 0.0537826696 | AD149: 0.0537826696 | AE149: 0.0537826696 | AF149: 0.0537826696 | AG149: 0.0537826696 | AH149: 0.0537826696 | AI149: 0.0537826696 | AJ149: 0.0537826696 | AK149: 0.0537826696 | AL149: 0.0537826696 | AM149: 0.0537826696 | AN149: 0.0537826696 | AO149: 0.0537826696 | AP149: 0.0537826696 | AQ149: 0.0537826696 | AR149: 0.0537826696 | AS149: 0.0537826696 | AT149: 0.0537826696 | AU149: 0.0537826696
L151: 2015 | M151: 2016 | N151: 2017 | O151: 2018 | P151: 2019 | Q151: 2020 | R151: 2021 | S151: 2022 | T151: 2023 | U151: 2024 | V151: 2025 | W151: 2026 | X151: 2027 | Y151: 2028 | Z151: 2029 | AA151: 2030 | AB151: 2031 | AC151: 2032 | AD151: 2033 | AE151: 2034 | AF151: 2035 | AG151: 2036 | AH151: 2037 | AI151: 2038 | AJ151: 2039 | AK151: 2040 | AL151: 2041 | AM151: 2042 | AN151: 2043 | AO151: 2044 | AP151: 2045 | AQ151: 2046 | AR151: 2047 | AS151: 2048 | AT151: 2049 | AU151: 2050
H152: Grid Connection Costs | J152: Grid Connection Costs (GCC) ($/kW) | K152: Comm PV - 11.4% - Low | L152: 0 | M152: 0 | N152: 0 | O152: 0 | P152: 0 | Q152: 0 | R152: 0 | S152: 0 | T152: 0 | U152: 0 | V152: 0 | W152: 0 | X152: 0 | Y152: 0 | Z152: 0 | AA152: 0 | AB152: 0 | AC152: 0 | AD152: 0 | AE152: 0 | AF152: 0 | AG152: 0 | AH152: 0 | AI152: 0 | AJ152: 0 | AK152: 0 | AL152: 0 | AM152: 0 | AN152: 0 | AO152: 0 | AP152: 0 | AQ152: 0 | AR152: 0 | AS152: 0 | AT152: 0 | AU152: 0
K153: Comm PV - 11.4% - Mid | L153: 0 | M153: 0 | N153: 0 | O153: 0 | P153: 0 | Q153: 0 | R153: 0 | S153: 0 | T153: 0 | U153: 0 | V153: 0 | W153: 0 | X153: 0 | Y153: 0 | Z153: 0 | AA153: 0 | AB153: 0 | AC153: 0 | AD153: 0 | AE153: 0 | AF153: 0 | AG153: 0 | AH153: 0 | AI153: 0 | AJ153: 0 | AK153: 0 | AL153: 0 | AM153: 0 | AN153: 0 | AO153: 0 | AP153: 0 | AQ153: 0 | AR153: 0 | AS153: 0 | AT153: 0 | AU153: 0
K154: Comm PV - 11.4% - High | L154: 0 | M154: 0 | N154: 0 | O154: 0 | P154: 0 | Q154: 0 | R154: 0 | S154: 0 | T154: 0 | U154: 0 | V154: 0 | W154: 0 | X154: 0 | Y154: 0 | Z154: 0 | AA154: 0 | AB154: 0 | AC154: 0 | AD154: 0 | AE154: 0 | AF154: 0 | AG154: 0 | AH154: 0 | AI154: 0 | AJ154: 0 | AK154: 0 | AL154: 0 | AM154: 0 | AN154: 0 | AO154: 0 | AP154: 0 | AQ154: 0 | AR154: 0 | AS154: 0 | AT154: 0 | AU154: 0
K155: Comm PV - 14.5% - Low | L155: 0 | M155: 0 | N155: 0 | O155: 0 | P155: 0 | Q155: 0 | R155: 0 | S155: 0 | T155: 0 | U155: 0 | V155: 0 | W155: 0 | X155: 0 | Y155: 0 | Z155: 0 | AA155: 0 | AB155: 0 | AC155: 0 | AD155: 0 | AE155: 0 | AF155: 0 | AG155: 0 | AH155: 0 | AI155: 0 | AJ155: 0 | AK155: 0 | AL155: 0 | AM155: 0 | AN155: 0 | AO155: 0 | AP155: 0 | AQ155: 0 | AR155: 0 | AS155: 0 | AT155: 0 | AU155: 0
K156: Comm PV - 14.5% - Mid | L156: 0 | M156: 0 | N156: 0 | O156: 0 | P156: 0 | Q156: 0 | R156: 0 | S156: 0 | T156: 0 | U156: 0 | V156: 0 | W156: 0 | X156: 0 | Y156: 0 | Z156: 0 | AA156: 0 | AB156: 0 | AC156: 0 | AD156: 0 | AE156: 0 | AF156: 0 | AG156: 0 | AH156: 0 | AI156: 0 | AJ156: 0 | AK156: 0 | AL156: 0 | AM156: 0 | AN156: 0 | AO156: 0 | AP156: 0 | AQ156: 0 | AR156: 0 | AS156: 0 | AT156: 0 | AU156: 0
K157: Comm PV - 14.5% - High | L157: 0 | M157: 0 | N157: 0 | O157: 0 | P157: 0 | Q157: 0 | R157: 0 | S157: 0 | T157: 0 | U157: 0 | V157: 0 | W157: 0 | X157: 0 | Y157: 0 | Z157: 0 | AA157: 0 | AB157: 0 | AC157: 0 | AD157: 0 | AE157: 0 | AF157: 0 | AG157: 0 | AH157: 0 | AI157: 0 | AJ157: 0 | AK157: 0 | AL157: 0 | AM157: 0 | AN157: 0 | AO157: 0 | AP157: 0 | AQ157: 0 | AR157: 0 | AS157: 0 | AT157: 0 | AU157: 0
K158: Comm PV - 18.7% - Low | L158: 0 | M158: 0 | N158: 0 | O158: 0 | P158: 0 | Q158: 0 | R158: 0 | S158: 0 | T158: 0 | U158: 0 | V158: 0 | W158: 0 | X158: 0 | Y158: 0 | Z158: 0 | AA158: 0 | AB158: 0 | AC158: 0 | AD158: 0 | AE158: 0 | AF158: 0 | AG158: 0 | AH158: 0 | AI158: 0 | AJ158: 0 | AK158: 0 | AL158: 0 | AM158: 0 | AN158: 0 | AO158: 0 | AP158: 0 | AQ158: 0 | AR158: 0 | AS158: 0 | AT158: 0 | AU158: 0
K159: Comm PV - 18.7% - Mid | L159: 0 | M159: 0 | N159: 0 | O159: 0 | P159: 0 | Q159: 0 | R159: 0 | S159: 0 | T159: 0 | U159: 0 | V159: 0 | W159: 0 | X159: 0 | Y159: 0 | Z159: 0 | AA159: 0 | AB159: 0 | AC159: 0 | AD159: 0 | AE159: 0 | AF159: 0 | AG159: 0 | AH159: 0 | AI159: 0 | AJ159: 0 | AK159: 0 | AL159: 0 | AM159: 0 | AN159: 0 | AO159: 0 | AP159: 0 | AQ159: 0 | AR159: 0 | AS159: 0 | AT159: 0 | AU159: 0
K160: Comm PV - 18.7% - High | L160: 0 | M160: 0 | N160: 0 | O160: 0 | P160: 0 | Q160: 0 | R160: 0 | S160: 0 | T160: 0 | U160: 0 | V160: 0 | W160: 0 | X160: 0 | Y160: 0 | Z160: 0 | AA160: 0 | AB160: 0 | AC160: 0 | AD160: 0 | AE160: 0 | AF160: 0 | AG160: 0 | AH160: 0 | AI160: 0 | AJ160: 0 | AK160: 0 | AL160: 0 | AM160: 0 | AN160: 0 | AO160: 0 | AP160: 0 | AQ160: 0 | AR160: 0 | AS160: 0 | AT160: 0 | AU160: 0
L162: 2015 | M162: 2016 | N162: 2017 | O162: 2018 | P162: 2019 | Q162: 2020 | R162: 2021 | S162: 2022 | T162: 2023 | U162: 2024 | V162: 2025 | W162: 2026 | X162: 2027 | Y162: 2028 | Z162: 2029 | AA162: 2030 | AB162: 2031 | AC162: 2032 | AD162: 2033 | AE162: 2034 | AF162: 2035 | AG162: 2036 | AH162: 2037 | AI162: 2038 | AJ162: 2039 | AK162: 2040 | AL162: 2041 | AM162: 2042 | AN162: 2043 | AO162: 2044 | AP162: 2045 | AQ162: 2046 | AR162: 2047 | AS162: 2048 | AT162: 2049 | AU162: 2050
H163: LCOE | J163: Levelized Cost of Energy ($/MWh) | K163: Comm PV - 11.4% - Low | L163: =(($S$44 * $S$42 * $S$40 * (L107 * 1 + L152) +L118) * 1000 / (L74 * 8760)) + L129 + 0 -> 203.6038211 | M163: 180.0481575 | N163: 137.1757382 | O163: 125.197541 | P163: 114.2685342 | Q163: 103.5775861 | R163: 92.93953201 | S163: 91.27551187 | T163: 89.61149173 | U163: 87.94747159 | V163: 86.28345145 | W163: 84.61943131 | X163: 82.95541117 | Y163: 81.29139103 | Z163: 79.62737089 | AA163: 77.96335075 | AB163: 77.57358861 | AC163: 77.18382646 | AD163: 76.79406432 | AE163: 76.40430218 | AF163: 76.01454003 | AG163: 75.62477789 | AH163: 75.23501574 | AI163: 74.8452536 | AJ163: 74.45549145 | AK163: 74.06572931 | AL163: 73.67596717 | AM163: 73.28620502 | AN163: 72.89644288 | AO163: 72.50668073 | AP163: 72.11691859 | AQ163: 71.72715645 | AR163: 71.3373943 | AS163: 70.94763216 | AT163: 70.55787001 | AU163: 70.16810787
K164: Comm PV - 11.4% - Mid | L164: 203.6038211 | M164: 181.1785165 | N164: 172.3818252 | O164: 162.1189353 | P164: 154.9044098 | Q164: 146.549103 | R164: 140.5375147 | S164: 134.5259264 | T164: 128.5143382 | U164: 122.5027499 | V164: 116.4911617 | W164: 111.6099324 | X164: 106.7287032 | Y164: 101.847474 | Z164: 96.96624475 | AA164: 92.08501552 | AB164: 91.31884415 | AC164: 90.55267278 | AD164: 89.78650141 | AE164: 89.02033004 | AF164: 88.25415867 | AG164: 87.4879873 | AH164: 86.72181593 | AI164: 85.95564456 | AJ164: 85.18947319 | AK164: 84.42330182 | AL164: 84.04021613 | AM164: 83.65713045 | AN164: 83.27404476 | AO164: 82.89095908 | AP164: 82.50787339 | AQ164: 82.12478771 | AR164: 81.74170202 | AS164: 81.35861634 | AT164: 80.97553065 | AU164: 80.59244497
K165: Comm PV - 11.4% - High | L165: 203.6038211 | M165: 182.3088756 | N165: 182.3088756 | O165: 182.3088756 | P165: 182.3088756 | Q165: 182.3088756 | R165: 182.3088756 | S165: 182.3088756 | T165: 182.3088756 | U165: 182.3088756 | V165: 182.3088756 | W165: 182.3088756 | X165: 182.3088756 | Y165: 182.3088756 | Z165: 182.3088756 | AA165: 182.3088756 | AB165: 182.3088756 | AC165: 182.3088756 | AD165: 182.3088756 | AE165: 182.3088756 | AF165: 182.3088756 | AG165: 182.3088756 | AH165: 182.3088756 | AI165: 182.3088756 | AJ165: 182.3088756 | AK165: 182.3088756 | AL165: 182.3088756 | AM165: 182.3088756 | AN165: 182.3088756 | AO165: 182.3088756 | AP165: 182.3088756 | AQ165: 182.3088756 | AR165: 182.3088756 | AS165: 182.3088756 | AT165: 182.3088756 | AU165: 182.3088756
K166: Comm PV - 14.5% - Low | L166: 160.0747283 | M166: 141.5551031 | N166: 107.8485114 | O166: 98.43117014 | P166: 89.83870967 | Q166: 81.4334125 | R166: 73.06970103 | S166: 71.76143692 | T166: 70.45317281 | U166: 69.1449087 | V166: 67.83664459 | W166: 66.52838048 | X166: 65.22011637 | Y166: 63.91185226 | Z166: 62.60358815 | AA166: 61.29532404 | AB166: 60.98889035 | AC166: 60.68245667 | AD166: 60.37602298 | AE166: 60.0695893 | AF166: 59.76315561 | AG166: 59.45672193 | AH166: 59.15028824 | AI166: 58.84385455 | AJ166: 58.53742087 | AK166: 58.23098718 | AL166: 57.9245535 | AM166: 57.61811981 | AN166: 57.31168612 | AO166: 57.00525244 | AP166: 56.69881875 | AQ166: 56.39238507 | AR166: 56.08595138 | AS166: 55.7795177 | AT166: 55.47308401 | AU166: 55.16665032
K167: Comm PV - 14.5% - Mid | L167: 160.0747283 | M167: 142.4437992 | N167: 135.5277798 | O167: 127.459025 | P167: 121.7869153 | Q167: 115.2179154 | R167: 110.4915633 | S167: 105.7652111 | T167: 101.038859 | U167: 96.31250683 | V167: 91.58615468 | W167: 87.7484986 | X167: 83.91084251 | Y167: 80.07318643 | Z167: 76.23553035 | AA167: 72.39787427 | AB167: 71.79550506 | AC167: 71.19313584 | AD167: 70.59076663 | AE167: 69.98839741 | AF167: 69.38602819 | AG167: 68.78365898 | AH167: 68.18128976 | AI167: 67.57892055 | AJ167: 66.97655133 | AK167: 66.37418212 | AL167: 66.07299751 | AM167: 65.7718129 | AN167: 65.4706283 | AO167: 65.16944369 | AP167: 64.86825908 | AQ167: 64.56707447 | AR167: 64.26588987 | AS167: 63.96470526 | AT167: 63.66352065 | AU167: 63.36233604
K168: Comm PV - 14.5% - High | L168: 160.0747283 | M168: 143.3324953 | N168: 143.3324953 | O168: 143.3324953 | P168: 143.3324953 | Q168: 143.3324953 | R168: 143.3324953 | S168: 143.3324953 | T168: 143.3324953 | U168: 143.3324953 | V168: 143.3324953 | W168: 143.3324953 | X168: 143.3324953 | Y168: 143.3324953 | Z168: 143.3324953 | AA168: 143.3324953 | AB168: 143.3324953 | AC168: 143.3324953 | AD168: 143.3324953 | AE168: 143.3324953 | AF168: 143.3324953 | AG168: 143.3324953 | AH168: 143.3324953 | AI168: 143.3324953 | AJ168: 143.3324953 | AK168: 143.3324953 | AL168: 143.3324953 | AM168: 143.3324953 | AN168: 143.3324953 | AO168: 143.3324953 | AP168: 143.3324953 | AQ168: 143.3324953 | AR168: 143.3324953 | AS168: 143.3324953 | AT168: 143.3324953 | AU168: 143.3324953
K169: Comm PV - 18.7% - Low | L169: 124.1221155 | M169: 109.7619784 | N169: 83.62585112 | O169: 76.3236346 | P169: 69.66103156 | Q169: 63.14355515 | R169: 56.65832433 | S169: 55.64389494 | T169: 54.62946555 | U169: 53.61503616 | V169: 52.60060677 | W169: 51.58617738 | X169: 50.57174799 | Y169: 49.5573186 | Z169: 48.54288921 | AA169: 47.52845982 | AB169: 47.29085081 | AC169: 47.0532418 | AD169: 46.81563279 | AE169: 46.57802379 | AF169: 46.34041478 | AG169: 46.10280577 | AH169: 45.86519676 | AI169: 45.62758776 | AJ169: 45.38997875 | AK169: 45.15236974 | AL169: 44.91476073 | AM169: 44.67715172 | AN169: 44.43954272 | AO169: 44.20193371 | AP169: 43.9643247 | AQ169: 43.72671569 | AR169: 43.48910669 | AS169: 43.25149768 | AT169: 43.01388867 | AU169: 42.77627966
K170: Comm PV - 18.7% - Mid | L170: 124.1221155 | M170: 110.4510743 | N170: 105.0883854 | O170: =(($S$44 * $S$42 * $S$40 * (O114 * 1 + O159) +O125) * 1000 / (O81 * 8760)) + O136 + 0 -> 98.83186432 | P170: 94.43370434 | Q170: 89.34009485 | R170: 85.67527634 | S170: 82.01045783 | T170: 78.34563931 | U170: 74.6808208 | V170: 71.01600229 | W170: 68.04027966 | X170: 65.06455703 | Y170: 62.0888344 | Z170: 59.11311177 | AA170: 56.13738914 | AB170: 55.67031141 | AC170: 55.20323367 | AD170: 54.73615594 | AE170: 54.26907821 | AF170: 53.80200047 | AG170: 53.33492274 | AH170: 52.867845 | AI170: 52.40076727 | AJ170: 51.93368954 | AK170: 51.4666118 | AL170: 51.23307294 | AM170: 50.99953407 | AN170: 50.7659952 | AO170: 50.53245634 | AP170: 50.29891747 | AQ170: 50.0653786 | AR170: 49.83183974 | AS170: 49.59830087 | AT170: 49.364762 | AU170: 49.13122313
K171: Comm PV - 18.7% - High | L171: =(($S$44 * $S$42 * $S$40 * (L115 * 1 + L160) +L126) * 1000 / (L82 * 8760)) + L137 + 0 -> 124.1221155 | M171: 111.1401701 | N171: 111.1401701 | O171: 111.1401701 | P171: 111.1401701 | Q171: 111.1401701 | R171: 111.1401701 | S171: 111.1401701 | T171: 111.1401701 | U171: 111.1401701 | V171: 111.1401701 | W171: 111.1401701 | X171: 111.1401701 | Y171: 111.1401701 | Z171: 111.1401701 | AA171: 111.1401701 | AB171: 111.1401701 | AC171: 111.1401701 | AD171: 111.1401701 | AE171: 111.1401701 | AF171: 111.1401701 | AG171: 111.1401701 | AH171: 111.1401701 | AI171: 111.1401701 | AJ171: 111.1401701 | AK171: 111.1401701 | AL171: 111.1401701 | AM171: 111.1401701 | AN171: 111.1401701 | AO171: 111.1401701 | AP171: 111.1401701 | AQ171: 111.1401701 | AR171: 111.1401701 | AS171: 111.1401701 | AT171: 111.1401701 | AU171: 111.1401701
E179: X | G179: Graphics
C390: X | H390: Data Sources for Default Inputs
I393: Current Costs:
I394: Available Capacity (GW) | N394: Pieter Gagnon, Robert Margolis, Jennifer Melius, Caleb Phillips, Ryan Elmore. (2016). Rooftop Solar Photovoltaic Technical Potential in the United States: A Detailed Assessment. NREL TP-6A20-65298
I395: Net Capacity Factor (%) | N395: National Renewable Energy Laboratory. PVWATTS v5. Representative of national range of capacity factors.
I396: Overnight Capital Cost ($/kW) | N396: Feldman et al (2015) Photovoltaic System Pricing Trends: 2015 Edition. NREL/PR-6A20-64898
I397: Fixed Operating Expenses ($/kW-yr) | N397: Jones-Albertus, R et al (2015). Technology Advances Needed for Photovoltaics to Achieve Widespread Grid Price Parity. Jones-Albertus, R et al (2015). Technology Advances Needed for Photovoltaics to Achieve Widespread Grid Price Parity. Jones-Albertus, R et al (2015). Technology Advances Needed for Photovoltaics to Achieve Widespread Grid Price Parity.
I398: Variable Operating Expenses ($/MWh) | N398: Jones-Albertus, R et al (2015). Technology Advances Needed for Photovoltaics to Achieve Widespread Grid Price Parity.
I399: Grid Feature Cost ($/kW) | N399: N/A
I400: Spur Line Cost ($/kW) | N400: N/A
I402: Future Projections Costs:
I403: Net Capacity Factor (%) | N403: Jones-Albertus, R et al (2015). Technology Advances Needed for Photovoltaics to Achieve Widespread Grid Price Parity.
I404: Overnight Capital Cost ($/kW) | N404: Feldman et al (2015) Photovoltaic System Pricing Trends: 2015 Edition. NREL/PR-6A20-64898
I405: Fixed Operating Expenses ($/kW-yr) | N405: Jones-Albertus, R et al (2015). Technology Advances Needed for Photovoltaics to Achieve Widespread Grid Price Parity.
I406: Variable Operating Expenses ($/MWh) | N406: Jones-Albertus, R et al (2015). Technology Advances Needed for Photovoltaics to Achieve Widespread Grid Price Parity.
I407: Grid Connection Cost ($/kW) | N407: N/A

Sheet Solar - PV Dist. Res
A1: Solar Distributed Residential PV Inputs | L1: https://atb.nrel.gov/electricity/2017/index.html?t=sr
T3: Inputs
J4: Take me to: | T4: Calculated
B10: X | G10: Current Costs
H12: Techno-Economic Cost and Performance Parameters | J12: Net Capacity Factor (%) | K12: Res PV - 12.5% | L12: 0.1202609426 | O12: Basis Year: | Q12: 2015
K13: Res PV - 16.1% | L13: 0.1548960941
K14: Res PV - 20.7% | L14: 0.199152121 | O14: Residential Solar Photovoltaic
O15: Representative Dist. Res system is fixed-tilt roof mounted with capacity of 5 kW
J16: Annual Energy Production (kWh/kW) | K16: Res PV - 12.5% | L16: =L12*8760 -> 1053.485857 | O16: Overnight Capital Cost, Fixed O&M, and Variable O&M costs represent $/kW DC;
K17: Res PV - 16.1% | L17: =L13*8760 -> 1356.889784 | O17: Capacity factor includes a conversion to AC. Therefore LCOE reflects $/MWh AC.
K18: Res PV - 20.7% | L18: =L14*8760 -> 1744.57258 | O18: Capacity factors chosen here to reflect range of across the continental U.S. using NREL PVWATTS
S19: Available | T19: Available
J20: CAPEX ($/kW) | K20: Res PV - 12.5% | L20: =$S$40 * (L28 + L46) -> 4024.774529 | S20: Capacity | T20: Generation
K21: Res PV - 16.1% | L21: =$S$40 * (L29 + L47) -> 4024.774529 | S21: (GW) | T21: (GWh)
K22: Res PV - 20.7% | L22: =$S$40 * (L30 + L48) -> 4024.774529 | S22: 731 | T22: 926000
O23: Residential PV - 12.5% | Q23: Capacity factor labels based on dSolar minimum, average and maximum first year energy production. ATB values reflect annual average capacity factor over life of plant including estimated degradation of 0.5% per year.
J24: Construction Financing Cost ($/kW) | K24: Res PV - 12.5% | L24: =(L28+L46)*($S$40-1) -> 0 | O24: Residential PV - 16.1%
K25: Res PV - 16.1% | L25: =(L29+L47)*($S$40-1) -> 0 | O25: Residential PV - 20.7%
K26: Res PV - 20.7% | L26: =(L30+L48)*($S$40-1) -> 0
O27: Financial Assumptions:
J28: Overnight Capital Cost ($/kW) | K28: Res PV - 12.5% | L28: =$L$108 -> 4024.774529 | O28: Inflation Rate | S28: 0.025
K29: Res PV - 16.1% | L29: =$L$111 -> 4024.774529 | O29: Economic Lifetime (Years) | S29: 20
K30: Res PV - 20.7% | L30: =$L$114 -> 4024.774529 | O30: Interest Rate - Nominal | S30: 0.04418536
O31: Calculated Interest Rate - Real | S31: =(1+S30)/(1+S28)-1 -> 0.01871742439
J32: Fixed Operation and Maintenance Expenses ($/kW/yr) | K32: Res PV - 12.5% | L32: =20+PMT(0.08,30,PV(0.08,15,0,0.15*1000)) -> 24.20031673 | O32: Interest During Construction - Nominal | S32: 0.044
K33: Res PV - 16.1% | L33: =L32 -> 24.20031673 | O33: Customer Equity Discount Rate - Nominal | S33: 0.09468985
K34: Res PV - 20.7% | L34: =L33 -> 24.20031673 | O34: Calculated Equity Discount Rate - Real | S34: =(1+S33)/(1+S28) - 1 -> 0.06799009756
O35: Debt Fraction | S35: 0.6
J36: Variable Operation and Maintenance Expenses ($/MWh) | K36: Res PV - 12.5% | L36: 0 | O36: Tax Rate (Federal and State) | S36: 0.4
K37: Res PV - 16.1% | L37: 0 | O37: WACC - Nominal | S37: =IF(S36>0,S35*S30*(1-S36)+(1-S35)*S33,S35*S30+(1-S35)*S33) -> 0.0537826696
K38: Res PV - 20.7% | L38: 0 | O38: WACC - Real | S38: =((1+((1-S35)*((1+S34)*(1+S28)-1)) + (S35*((1+S31)*(1+S28)-1)*(1-S36))) / (1+S28)) - 1 -> 0.02808065327
O39: Depreciation Period | S39: 5
O40: Construction Finance Factor | S40: 1
H41: Finance | J41: Weighted Average Cost of Capital (WACC) (Nominal) (%) | K41: Res PV - 12.5% | L41: =$S$37 -> 0.0537826696 | O41: Present Value of Depreciation | S41: =SUMPRODUCT(O54:T54,O56:T56) -> 0.8661791251
K42: Res PV - 16.1% | L42: =$S$37 -> 0.0537826696 | O42: Project Finance Factor | S42: =(1 - S36 * S41) / (1 - S36) -> 1.089213917
K43: Res PV - 20.7% | L43: =$S$37 -> 0.0537826696 | O43: Capital Recovery Factor (CRF) - Nominal | S43: =S37 / (1 - (1 / (1 + S37)^S29)) -> 0.08283622233
O44: Capital Recovery Factor (CRF) - Real | S44: =S38 / (1 - (1 / (1 + S38)^S29)) -> 0.0660286156
H46: Grid Connection Costs | J46: Grid Connection Costs (GCC) ($/kW) | K46: Res PV - 12.5% | L46: =L50+L54 -> 0 | O46: Construction Duration yrs | Q46: 0
K47: Res PV - 16.1% | L47: =L51+L55 -> 0 | O47: Year | P47: Capital | Q47: Accumulated
K48: Res PV - 20.7% | L48: =L52+L56 -> 0 | O48: Index | P48: Fraction | Q48: Interest
O49: 0 | P49: 1 | Q49: =1+(1-S36)*((1+S32)^(O49+0.5)-1) -> 1.013057909
J50: Grid Feature Costs ($/kW) | K50: Res PV - 12.5% | L50: 0 | O50: 1 | P50: 0 | Q50: =1+(1-S36)*((1+S32)^(O50+0.5)-1) -> 1.040032457
K51: Res PV - 16.1% | L51: 0 | O51: 2 | P51: 0 | Q51: =1+(1-S36)*((1+S32)^(O51+0.5)-1) -> 1.068193885
K52: Res PV - 20.7% | L52: 0
N53: MACRS yr | O53: 1 | P53: 2 | Q53: 3 | R53: 4 | S53: 5 | T53: 6
J54: Onshore Spur Line Costs ($/kW) | K54: Res PV - 12.5% | L54: 0 | N54: Depreciation | O54: 0.2 | P54: 0.32 | Q54: 0.192 | R54: 0.1152 | S54: 0.1152 | T54: 0.0576
K55: Res PV - 16.1% | L55: 0 | N55: Fraction
K56: Res PV - 20.7% | L56: 0 | N56: Depreciation | O56: =1/((1+$S$38)*(1+$S$28))^O53 -> 0.9489622755 | P56: 0.9005294003 | Q56: 0.8545684288 | R56: 0.8109532008 | S56: 0.7695639947 | T56: 0.7302871995
N57: Factor
H59: LCOE | J59: Levelized Cost of Energy ($/MWh) | K59: Res PV - 12.5% | L59: =(($S$44 * $S$42 * $S$40 * (L28 * 1 + L46) +L32) * 1000 / (L12 * 8760)) + L36 + 0 -> 297.7346388
K60: Res PV - 16.1% | L60: =(($S$44 * $S$42 * $S$40 * (L29 * 1 + L47) +L33) * 1000 / (L13 * 8760)) + L37 + 0 -> 231.1604339
K61: Res PV - 20.7% | L61: =(($S$44 * $S$42 * $S$40 * (L30 * 1 + L48) +L34) * 1000 / (L14 * 8760)) + L38 + 0 -> 179.7914486
J63: Overnight Levelized Cost of Energy ($/MWh) | K63: Res PV - 12.5% | L63: =(((L28*$S$44*(1-$S$36*$S$41))/(8760*L12*(1-$S$36))+L32/(8760*L12))*1000)+L36 -> 297.7346388
K64: Res PV - 16.1% | L64: =(((L29*$S$44*(1-$S$36*$S$41))/(8760*L13*(1-$S$36))+L33/(8760*L13))*1000)+L37 -> 231.1604339
K65: Res PV - 20.7% | L65: =(((L30*$S$44*(1-$S$36*$S$41))/(8760*L14*(1-$S$36))+L34/(8760*L14))*1000)+L38 -> 179.7914486
H68: ***Note: For future projections, low, mid, and high refer to the resulting low, mid, and high LCOE projections.
D71: X | G71: Future Projections
L72: Basis Year
L73: 2015 | M73: 2016 | N73: 2017 | O73: 2018 | P73: 2019 | Q73: 2020 | R73: 2021 | S73: 2022 | T73: 2023 | U73: 2024 | V73: 2025 | W73: 2026 | X73: 2027 | Y73: 2028 | Z73: 2029 | AA73: 2030 | AB73: 2031 | AC73: 2032 | AD73: 2033 | AE73: 2034 | AF73: 2035 | AG73: 2036 | AH73: 2037 | AI73: 2038 | AJ73: 2039 | AK73: 2040 | AL73: 2041 | AM73: 2042 | AN73: 2043 | AO73: 2044 | AP73: 2045 | AQ73: 2046 | AR73: 2047 | AS73: 2048 | AT73: 2049 | AU73: 2050
H74: Techno-Economic Cost and Performance Parameters | J74: Net Capacity Factor (%) | K74: Res PV - 12.5% - Low | L74: =$L$12 -> 0.1202609426 | M74: 0.1202609426 | N74: 0.1202609426 | O74: 0.1202609426 | P74: 0.1202609426 | Q74: 0.1202609426 | R74: 0.1202609426 | S74: 0.1202609426 | T74: 0.1202609426 | U74: 0.1202609426 | V74: 0.1202609426 | W74: 0.1202609426 | X74: 0.1202609426 | Y74: 0.1202609426 | Z74: 0.1202609426 | AA74: 0.1202609426 | AB74: 0.1202609426 | AC74: 0.1202609426 | AD74: 0.1202609426 | AE74: 0.1202609426 | AF74: 0.1202609426 | AG74: 0.1202609426 | AH74: 0.1202609426 | AI74: 0.1202609426 | AJ74: 0.1202609426 | AK74: 0.1202609426 | AL74: 0.1202609426 | AM74: 0.1202609426 | AN74: 0.1202609426 | AO74: 0.1202609426 | AP74: 0.1202609426 | AQ74: 0.1202609426 | AR74: 0.1202609426 | AS74: 0.1202609426 | AT74: 0.1202609426 | AU74: 0.1202609426
K75: Res PV - 12.5% - Mid | L75: 0.1202609426 | M75: 0.1202609426 | N75: 0.1202609426 | O75: 0.1202609426 | P75: 0.1202609426 | Q75: 0.1202609426 | R75: 0.1202609426 | S75: 0.1202609426 | T75: 0.1202609426 | U75: 0.1202609426 | V75: 0.1202609426 | W75: 0.1202609426 | X75: 0.1202609426 | Y75: 0.1202609426 | Z75: 0.1202609426 | AA75: 0.1202609426 | AB75: 0.1202609426 | AC75: 0.1202609426 | AD75: 0.1202609426 | AE75: 0.1202609426 | AF75: 0.1202609426 | AG75: 0.1202609426 | AH75: 0.1202609426 | AI75: 0.1202609426 | AJ75: 0.1202609426 | AK75: 0.1202609426 | AL75: 0.1202609426 | AM75: 0.1202609426 | AN75: 0.1202609426 | AO75: 0.1202609426 | AP75: 0.1202609426 | AQ75: 0.1202609426 | AR75: 0.1202609426 | AS75: 0.1202609426 | AT75: 0.1202609426 | AU75: 0.1202609426
K76: Res PV - 12.5% - High | L76: 0.1202609426 | M76: 0.1202609426 | N76: 0.1202609426 | O76: 0.1202609426 | P76: 0.1202609426 | Q76: 0.1202609426 | R76: 0.1202609426 | S76: 0.1202609426 | T76: 0.1202609426 | U76: 0.1202609426 | V76: 0.1202609426 | W76: 0.1202609426 | X76: 0.1202609426 | Y76: 0.1202609426 | Z76: 0.1202609426 | AA76: 0.1202609426 | AB76: 0.1202609426 | AC76: 0.1202609426 | AD76: 0.1202609426 | AE76: 0.1202609426 | AF76: 0.1202609426 | AG76: 0.1202609426 | AH76: 0.1202609426 | AI76: 0.1202609426 | AJ76: 0.1202609426 | AK76: 0.1202609426 | AL76: 0.1202609426 | AM76: 0.1202609426 | AN76: 0.1202609426 | AO76: 0.1202609426 | AP76: 0.1202609426 | AQ76: 0.1202609426 | AR76: 0.1202609426 | AS76: 0.1202609426 | AT76: 0.1202609426 | AU76: 0.1202609426
K77: Res PV - 16.1% - Low | L77: =$L$13 -> 0.1548960941 | M77: 0.1548960941 | N77: 0.1548960941 | O77: 0.1548960941 | P77: 0.1548960941 | Q77: 0.1548960941 | R77: 0.1548960941 | S77: 0.1548960941 | T77: 0.1548960941 | U77: 0.1548960941 | V77: 0.1548960941 | W77: 0.1548960941 | X77: 0.1548960941 | Y77: 0.1548960941 | Z77: 0.1548960941 | AA77: 0.1548960941 | AB77: 0.1548960941 | AC77: 0.1548960941 | AD77: 0.1548960941 | AE77: 0.1548960941 | AF77: 0.1548960941 | AG77: 0.1548960941 | AH77: 0.1548960941 | AI77: 0.1548960941 | AJ77: 0.1548960941 | AK77: 0.1548960941 | AL77: 0.1548960941 | AM77: 0.1548960941 | AN77: 0.1548960941 | AO77: 0.1548960941 | AP77: 0.1548960941 | AQ77: 0.1548960941 | AR77: 0.1548960941 | AS77: 0.1548960941 | AT77: 0.1548960941 | AU77: 0.1548960941
K78: Res PV - 16.1% - Mid | L78: 0.1548960941 | M78: 0.1548960941 | N78: 0.1548960941 | O78: 0.1548960941 | P78: 0.1548960941 | Q78: 0.1548960941 | R78: 0.1548960941 | S78: 0.1548960941 | T78: 0.1548960941 | U78: 0.1548960941 | V78: 0.1548960941 | W78: 0.1548960941 | X78: 0.1548960941 | Y78: 0.1548960941 | Z78: 0.1548960941 | AA78: 0.1548960941 | AB78: 0.1548960941 | AC78: 0.1548960941 | AD78: 0.1548960941 | AE78: 0.1548960941 | AF78: 0.1548960941 | AG78: 0.1548960941 | AH78: 0.1548960941 | AI78: 0.1548960941 | AJ78: 0.1548960941 | AK78: 0.1548960941 | AL78: 0.1548960941 | AM78: 0.1548960941 | AN78: 0.1548960941 | AO78: 0.1548960941 | AP78: 0.1548960941 | AQ78: 0.1548960941 | AR78: 0.1548960941 | AS78: 0.1548960941 | AT78: 0.1548960941 | AU78: 0.1548960941
K79: Res PV - 16.1% - High | L79: 0.1548960941 | M79: 0.1548960941 | N79: 0.1548960941 | O79: 0.1548960941 | P79: 0.1548960941 | Q79: 0.1548960941 | R79: 0.1548960941 | S79: 0.1548960941 | T79: 0.1548960941 | U79: 0.1548960941 | V79: 0.1548960941 | W79: 0.1548960941 | X79: 0.1548960941 | Y79: 0.1548960941 | Z79: 0.1548960941 | AA79: 0.1548960941 | AB79: 0.1548960941 | AC79: 0.1548960941 | AD79: 0.1548960941 | AE79: 0.1548960941 | AF79: 0.1548960941 | AG79: 0.1548960941 | AH79: 0.1548960941 | AI79: 0.1548960941 | AJ79: 0.1548960941 | AK79: 0.1548960941 | AL79: 0.1548960941 | AM79: 0.1548960941 | AN79: 0.1548960941 | AO79: 0.1548960941 | AP79: 0.1548960941 | AQ79: 0.1548960941 | AR79: 0.1548960941 | AS79: 0.1548960941 | AT79: 0.1548960941 | AU79: 0.1548960941
K80: Res PV - 20.7% - Low | L80: =$L$14 -> 0.199152121 | M80: 0.199152121 | N80: 0.199152121 | O80: 0.199152121 | P80: 0.199152121 | Q80: 0.199152121 | R80: 0.199152121 | S80: 0.199152121 | T80: 0.199152121 | U80: 0.199152121 | V80: 0.199152121 | W80: 0.199152121 | X80: 0.199152121 | Y80: 0.199152121 | Z80: 0.199152121 | AA80: 0.199152121 | AB80: 0.199152121 | AC80: 0.199152121 | AD80: 0.199152121 | AE80: 0.199152121 | AF80: 0.199152121 | AG80: 0.199152121 | AH80: 0.199152121 | AI80: 0.199152121 | AJ80: 0.199152121 | AK80: 0.199152121 | AL80: 0.199152121 | AM80: 0.199152121 | AN80: 0.199152121 | AO80: 0.199152121 | AP80: 0.199152121 | AQ80: 0.199152121 | AR80: 0.199152121 | AS80: 0.199152121 | AT80: 0.199152121 | AU80: 0.199152121
K81: Res PV - 20.7% - Mid | L81: 0.199152121 | M81: 0.199152121 | N81: 0.199152121 | O81: 0.199152121 | P81: 0.199152121 | Q81: 0.199152121 | R81: 0.199152121 | S81: 0.199152121 | T81: 0.199152121 | U81: 0.199152121 | V81: 0.199152121 | W81: 0.199152121 | X81: 0.199152121 | Y81: 0.199152121 | Z81: 0.199152121 | AA81: 0.199152121 | AB81: 0.199152121 | AC81: 0.199152121 | AD81: 0.199152121 | AE81: 0.199152121 | AF81: 0.199152121 | AG81: 0.199152121 | AH81: 0.199152121 | AI81: 0.199152121 | AJ81: 0.199152121 | AK81: 0.199152121 | AL81: 0.199152121 | AM81: 0.199152121 | AN81: 0.199152121 | AO81: 0.199152121 | AP81: 0.199152121 | AQ81: 0.199152121 | AR81: 0.199152121 | AS81: 0.199152121 | AT81: 0.199152121 | AU81: 0.199152121
K82: Res PV - 20.7% - High | L82: 0.199152121 | M82: 0.199152121 | N82: 0.199152121 | O82: 0.199152121 | P82: 0.199152121 | Q82: 0.199152121 | R82: 0.199152121 | S82: 0.199152121 | T82: 0.199152121 | U82: 0.199152121 | V82: 0.199152121 | W82: 0.199152121 | X82: 0.199152121 | Y82: 0.199152121 | Z82: 0.199152121 | AA82: 0.199152121 | AB82: 0.199152121 | AC82: 0.199152121 | AD82: 0.199152121 | AE82: 0.199152121 | AF82: 0.199152121 | AG82: 0.199152121 | AH82: 0.199152121 | AI82: 0.199152121 | AJ82: 0.199152121 | AK82: 0.199152121 | AL82: 0.199152121 | AM82: 0.199152121 | AN82: 0.199152121 | AO82: 0.199152121 | AP82: 0.199152121 | AQ82: 0.199152121 | AR82: 0.199152121 | AS82: 0.199152121 | AT82: 0.199152121 | AU82: 0.199152121
L84: 2015 | M84: 2016 | N84: 2017 | O84: 2018 | P84: 2019 | Q84: 2020 | R84: 2021 | S84: 2022 | T84: 2023 | U84: 2024 | V84: 2025 | W84: 2026 | X84: 2027 | Y84: 2028 | Z84: 2029 | AA84: 2030 | AB84: 2031 | AC84: 2032 | AD84: 2033 | AE84: 2034 | AF84: 2035 | AG84: 2036 | AH84: 2037 | AI84: 2038 | AJ84: 2039 | AK84: 2040 | AL84: 2041 | AM84: 2042 | AN84: 2043 | AO84: 2044 | AP84: 2045 | AQ84: 2046 | AR84: 2047 | AS84: 2048 | AT84: 2049 | AU84: 2050
J85: Annual Energy Production (kWh/kW) | K85: Res PV - 12.5% - Low | L85: =L74*8760 -> 1053.485857 | M85: 1053.485857 | N85: 1053.485857 | O85: 1053.485857 | P85: 1053.485857 | Q85: 1053.485857 | R85: 1053.485857 | S85: 1053.485857 | T85: 1053.485857 | U85: 1053.485857 | V85: 1053.485857 | W85: 1053.485857 | X85: 1053.485857 | Y85: 1053.485857 | Z85: 1053.485857 | AA85: 1053.485857 | AB85: 1053.485857 | AC85: 1053.485857 | AD85: 1053.485857 | AE85: 1053.485857 | AF85: 1053.485857 | AG85: 1053.485857 | AH85: 1053.485857 | AI85: 1053.485857 | AJ85: 1053.485857 | AK85: 1053.485857 | AL85: 1053.485857 | AM85: 1053.485857 | AN85: 1053.485857 | AO85: 1053.485857 | AP85: 1053.485857 | AQ85: 1053.485857 | AR85: 1053.485857 | AS85: 1053.485857 | AT85: 1053.485857 | AU85: 1053.485857
K86: Res PV - 12.5% - Mid | L86: 1053.485857 | M86: 1053.485857 | N86: 1053.485857 | O86: 1053.485857 | P86: 1053.485857 | Q86: 1053.485857 | R86: 1053.485857 | S86: 1053.485857 | T86: 1053.485857 | U86: 1053.485857 | V86: 1053.485857 | W86: 1053.485857 | X86: 1053.485857 | Y86: 1053.485857 | Z86: 1053.485857 | AA86: 1053.485857 | AB86: 1053.485857 | AC86: 1053.485857 | AD86: 1053.485857 | AE86: 1053.485857 | AF86: 1053.485857 | AG86: 1053.485857 | AH86: 1053.485857 | AI86: 1053.485857 | AJ86: 1053.485857 | AK86: 1053.485857 | AL86: 1053.485857 | AM86: 1053.485857 | AN86: 1053.485857 | AO86: 1053.485857 | AP86: 1053.485857 | AQ86: 1053.485857 | AR86: 1053.485857 | AS86: 1053.485857 | AT86: 1053.485857 | AU86: 1053.485857
K87: Res PV - 12.5% - High | L87: 1053.485857 | M87: 1053.485857 | N87: 1053.485857 | O87: 1053.485857 | P87: 1053.485857 | Q87: 1053.485857 | R87: 1053.485857 | S87: 1053.485857 | T87: 1053.485857 | U87: 1053.485857 | V87: 1053.485857 | W87: 1053.485857 | X87: 1053.485857 | Y87: 1053.485857 | Z87: 1053.485857 | AA87: 1053.485857 | AB87: 1053.485857 | AC87: 1053.485857 | AD87: 1053.485857 | AE87: 1053.485857 | AF87: 1053.485857 | AG87: 1053.485857 | AH87: 1053.485857 | AI87: 1053.485857 | AJ87: 1053.485857 | AK87: 1053.485857 | AL87: 1053.485857 | AM87: 1053.485857 | AN87: 1053.485857 | AO87: 1053.485857 | AP87: 1053.485857 | AQ87: 1053.485857 | AR87: 1053.485857 | AS87: 1053.485857 | AT87: 1053.485857 | AU87: 1053.485857
K88: Res PV - 16.1% - Low | L88: 1356.889784 | M88: 1356.889784 | N88: 1356.889784 | O88: 1356.889784 | P88: 1356.889784 | Q88: 1356.889784 | R88: 1356.889784 | S88: 1356.889784 | T88: 1356.889784 | U88: 1356.889784 | V88: 1356.889784 | W88: 1356.889784 | X88: 1356.889784 | Y88: 1356.889784 | Z88: 1356.889784 | AA88: 1356.889784 | AB88: 1356.889784 | AC88: 1356.889784 | AD88: 1356.889784 | AE88: 1356.889784 | AF88: 1356.889784 | AG88: 1356.889784 | AH88: 1356.889784 | AI88: 1356.889784 | AJ88: 1356.889784 | AK88: 1356.889784 | AL88: 1356.889784 | AM88: 1356.889784 | AN88: 1356.889784 | AO88: 1356.889784 | AP88: 1356.889784 | AQ88: 1356.889784 | AR88: 1356.889784 | AS88: 1356.889784 | AT88: 1356.889784 | AU88: 1356.889784
K89: Res PV - 16.1% - Mid | L89: 1356.889784 | M89: 1356.889784 | N89: 1356.889784 | O89: 1356.889784 | P89: 1356.889784 | Q89: 1356.889784 | R89: 1356.889784 | S89: 1356.889784 | T89: 1356.889784 | U89: 1356.889784 | V89: 1356.889784 | W89: 1356.889784 | X89: 1356.889784 | Y89: 1356.889784 | Z89: 1356.889784 | AA89: 1356.889784 | AB89: 1356.889784 | AC89: 1356.889784 | AD89: 1356.889784 | AE89: 1356.889784 | AF89: 1356.889784 | AG89: 1356.889784 | AH89: 1356.889784 | AI89: 1356.889784 | AJ89: 1356.889784 | AK89: 1356.889784 | AL89: 1356.889784 | AM89: 1356.889784 | AN89: 1356.889784 | AO89: 1356.889784 | AP89: 1356.889784 | AQ89: 1356.889784 | AR89: 1356.889784 | AS89: 1356.889784 | AT89: 1356.889784 | AU89: 1356.889784
K90: Res PV - 16.1% - High | L90: 1356.889784 | M90: 1356.889784 | N90: 1356.889784 | O90: 1356.889784 | P90: 1356.889784 | Q90: 1356.889784 | R90: 1356.889784 | S90: 1356.889784 | T90: 1356.889784 | U90: 1356.889784 | V90: 1356.889784 | W90: 1356.889784 | X90: 1356.889784 | Y90: 1356.889784 | Z90: 1356.889784 | AA90: 1356.889784 | AB90: 1356.889784 | AC90: 1356.889784 | AD90: 1356.889784 | AE90: 1356.889784 | AF90: 1356.889784 | AG90: 1356.889784 | AH90: 1356.889784 | AI90: 1356.889784 | AJ90: 1356.889784 | AK90: 1356.889784 | AL90: 1356.889784 | AM90: 1356.889784 | AN90: 1356.889784 | AO90: 1356.889784 | AP90: 1356.889784 | AQ90: 1356.889784 | AR90: 1356.889784 | AS90: 1356.889784 | AT90: 1356.889784 | AU90: 1356.889784
K91: Res PV - 20.7% - Low | L91: 1744.57258 | M91: 1744.57258 | N91: 1744.57258 | O91: 1744.57258 | P91: 1744.57258 | Q91: 1744.57258 | R91: 1744.57258 | S91: 1744.57258 | T91: 1744.57258 | U91: 1744.57258 | V91: 1744.57258 | W91: 1744.57258 | X91: 1744.57258 | Y91: 1744.57258 | Z91: 1744.57258 | AA91: 1744.57258 | AB91: 1744.57258 | AC91: 1744.57258 | AD91: 1744.57258 | AE91: 1744.57258 | AF91: 1744.57258 | AG91: 1744.57258 | AH91: 1744.57258 | AI91: 1744.57258 | AJ91: 1744.57258 | AK91: 1744.57258 | AL91: 1744.57258 | AM91: 1744.57258 | AN91: 1744.57258 | AO91: 1744.57258 | AP91: 1744.57258 | AQ91: 1744.57258 | AR91: 1744.57258 | AS91: 1744.57258 | AT91: 1744.57258 | AU91: 1744.57258
K92: Res PV - 20.7% - Mid | L92: 1744.57258 | M92: 1744.57258 | N92: 1744.57258 | O92: =O81*8760 -> 1744.57258 | P92: 1744.57258 | Q92: 1744.57258 | R92: 1744.57258 | S92: 1744.57258 | T92: 1744.57258 | U92: 1744.57258 | V92: 1744.57258 | W92: 1744.57258 | X92: 1744.57258 | Y92: 1744.57258 | Z92: 1744.57258 | AA92: 1744.57258 | AB92: 1744.57258 | AC92: 1744.57258 | AD92: 1744.57258 | AE92: 1744.57258 | AF92: 1744.57258 | AG92: 1744.57258 | AH92: 1744.57258 | AI92: 1744.57258 | AJ92: 1744.57258 | AK92: 1744.57258 | AL92: 1744.57258 | AM92: 1744.57258 | AN92: 1744.57258 | AO92: 1744.57258 | AP92: 1744.57258 | AQ92: 1744.57258 | AR92: 1744.57258 | AS92: 1744.57258 | AT92: 1744.57258 | AU92: 1744.57258
K93: Res PV - 20.7% - High | L93: =L82*8760 -> 1744.57258 | M93: 1744.57258 | N93: 1744.57258 | O93: 1744.57258 | P93: 1744.57258 | Q93: 1744.57258 | R93: 1744.57258 | S93: 1744.57258 | T93: 1744.57258 | U93: 1744.57258 | V93: 1744.57258 | W93: 1744.57258 | X93: 1744.57258 | Y93: 1744.57258 | Z93: 1744.57258 | AA93: 1744.57258 | AB93: 1744.57258 | AC93: 1744.57258 | AD93: 1744.57258 | AE93: 1744.57258 | AF93: 1744.57258 | AG93: 1744.57258 | AH93: 1744.57258 | AI93: 1744.57258 | AJ93: 1744.57258 | AK93: 1744.57258 | AL93: 1744.57258 | AM93: 1744.57258 | AN93: 1744.57258 | AO93: 1744.57258 | AP93: 1744.57258 | AQ93: 1744.57258 | AR93: 1744.57258 | AS93: 1744.57258 | AT93: 1744.57258 | AU93: 1744.57258
L95: 2015 | M95: 2016 | N95: 2017 | O95: 2018 | P95: 2019 | Q95: 2020 | R95: 2021 | S95: 2022 | T95: 2023 | U95: 2024 | V95: 2025 | W95: 2026 | X95: 2027 | Y95: 2028 | Z95: 2029 | AA95: 2030 | AB95: 2031 | AC95: 2032 | AD95: 2033 | AE95: 2034 | AF95: 2035 | AG95: 2036 | AH95: 2037 | AI95: 2038 | AJ95: 2039 | AK95: 2040 | AL95: 2041 | AM95: 2042 | AN95: 2043 | AO95: 2044 | AP95: 2045 | AQ95: 2046 | AR95: 2047 | AS95: 2048 | AT95: 2049 | AU95: 2050
J96: CAPEX ($/kW) | K96: Res PV - 12.5% - Low | L96: =$S$40*(L107+L152) -> 4024.774529 | M96: 2931.783029 | N96: 2477.466701 | O96: 2368.299218 | P96: 2219.155324 | Q96: 1995.140528 | R96: 1882.977471 | S96: 1770.814414 | T96: 1658.651356 | U96: 1546.488299 | V96: 1434.325242 | W96: 1387.460193 | X96: 1340.595145 | Y96: 1293.730097 | Z96: 1246.865048 | AA96: 1200 | AB96: 1183.014596 | AC96: 1166.029192 | AD96: 1149.043788 | AE96: 1132.058384 | AF96: 1115.07298 | AG96: 1098.087576 | AH96: 1081.102172 | AI96: 1064.116768 | AJ96: 1047.131364 | AK96: 1030.14596 | AL96: 1023.787035 | AM96: 1017.428109 | AN96: 1011.069183 | AO96: 1004.710258 | AP96: 998.351332 | AQ96: 991.9924063 | AR96: 985.6334806 | AS96: 979.274555 | AT96: 972.9156293 | AU96: 966.5567036
K97: Res PV - 12.5% - Mid | L97: =$S$40*(L108+L153) -> 4024.774529 | M97: 2931.783029 | N97: 2800 | O97: 2660.234863 | P97: 2541.119869 | Q97: 2400 | R97: 2310 | S97: 2220 | T97: 2130 | U97: 2040 | V97: 1950 | W97: 1860 | X97: 1770 | Y97: 1680 | Z97: 1590 | AA97: 1500 | AB97: 1475 | AC97: 1450 | AD97: 1425 | AE97: 1400 | AF97: 1375 | AG97: 1350 | AH97: 1325 | AI97: 1300 | AJ97: 1275 | AK97: 1250 | AL97: 1240 | AM97: 1230 | AN97: 1220 | AO97: 1210 | AP97: 1200 | AQ97: 1190 | AR97: 1180 | AS97: 1170 | AT97: 1160 | AU97: 1150
K98: Res PV - 12.5% - High | L98: =$S$40*(L109+L154) -> 4024.774529 | M98: 2931.783029 | N98: 2931.783029 | O98: 2931.783029 | P98: 2931.783029 | Q98: 2931.783029 | R98: 2931.783029 | S98: 2931.783029 | T98: 2931.783029 | U98: 2931.783029 | V98: 2931.783029 | W98: 2931.783029 | X98: 2931.783029 | Y98: 2931.783029 | Z98: 2931.783029 | AA98: 2931.783029 | AB98: 2931.783029 | AC98: 2931.783029 | AD98: 2931.783029 | AE98: 2931.783029 | AF98: 2931.783029 | AG98: 2931.783029 | AH98: 2931.783029 | AI98: 2931.783029 | AJ98: 2931.783029 | AK98: 2931.783029 | AL98: 2931.783029 | AM98: 2931.783029 | AN98: 2931.783029 | AO98: 2931.783029 | AP98: 2931.783029 | AQ98: 2931.783029 | AR98: 2931.783029 | AS98: 2931.783029 | AT98: 2931.783029 | AU98: 2931.783029
K99: Res PV - 16.1% - Low | L99: =$S$40*(L110+L155) -> 4024.774529 | M99: 2931.783029 | N99: 2477.466701 | O99: 2368.299218 | P99: 2219.155324 | Q99: 1995.140528 | R99: 1882.977471 | S99: 1770.814414 | T99: 1658.651356 | U99: 1546.488299 | V99: 1434.325242 | W99: 1387.460193 | X99: 1340.595145 | Y99: 1293.730097 | Z99: 1246.865048 | AA99: 1200 | AB99: 1183.014596 | AC99: 1166.029192 | AD99: 1149.043788 | AE99: 1132.058384 | AF99: 1115.07298 | AG99: 1098.087576 | AH99: 1081.102172 | AI99: 1064.116768 | AJ99: 1047.131364 | AK99: 1030.14596 | AL99: 1023.787035 | AM99: 1017.428109 | AN99: 1011.069183 | AO99: 1004.710258 | AP99: 998.351332 | AQ99: 991.9924063 | AR99: 985.6334806 | AS99: 979.274555 | AT99: 972.9156293 | AU99: 966.5567036
K100: Res PV - 16.1% - Mid | L100: 4024.774529 | M100: 2931.783029 | N100: 2800 | O100: 2660.234863 | P100: 2541.119869 | Q100: 2400 | R100: 2310 | S100: 2220 | T100: 2130 | U100: 2040 | V100: 1950 | W100: 1860 | X100: 1770 | Y100: 1680 | Z100: 1590 | AA100: 1500 | AB100: 1475 | AC100: 1450 | AD100: 1425 | AE100: 1400 | AF100: 1375 | AG100: 1350 | AH100: 1325 | AI100: 1300 | AJ100: 1275 | AK100: 1250 | AL100: 1240 | AM100: 1230 | AN100: 1220 | AO100: 1210 | AP100: 1200 | AQ100: 1190 | AR100: 1180 | AS100: 1170 | AT100: 1160 | AU100: 1150
K101: Res PV - 16.1% - High | L101: 4024.774529 | M101: 2931.783029 | N101: 2931.783029 | O101: 2931.783029 | P101: 2931.783029 | Q101: 2931.783029 | R101: 2931.783029 | S101: 2931.783029 | T101: 2931.783029 | U101: 2931.783029 | V101: 2931.783029 | W101: 2931.783029 | X101: 2931.783029 | Y101: 2931.783029 | Z101: 2931.783029 | AA101: 2931.783029 | AB101: 2931.783029 | AC101: 2931.783029 | AD101: 2931.783029 | AE101: 2931.783029 | AF101: 2931.783029 | AG101: 2931.783029 | AH101: 2931.783029 | AI101: 2931.783029 | AJ101: 2931.783029 | AK101: 2931.783029 | AL101: 2931.783029 | AM101: 2931.783029 | AN101: 2931.783029 | AO101: 2931.783029 | AP101: 2931.783029 | AQ101: 2931.783029 | AR101: 2931.783029 | AS101: 2931.783029 | AT101: 2931.783029 | AU101: 2931.783029
K102: Res PV - 20.7% - Low | L102: 4024.774529 | M102: 2931.783029 | N102: 2477.466701 | O102: 2368.299218 | P102: 2219.155324 | Q102: 1995.140528 | R102: 1882.977471 | S102: 1770.814414 | T102: 1658.651356 | U102: 1546.488299 | V102: 1434.325242 | W102: 1387.460193 | X102: 1340.595145 | Y102: 1293.730097 | Z102: 1246.865048 | AA102: 1200 | AB102: 1183.014596 | AC102: 1166.029192 | AD102: 1149.043788 | AE102: 1132.058384 | AF102: 1115.07298 | AG102: 1098.087576 | AH102: 1081.102172 | AI102: 1064.116768 | AJ102: 1047.131364 | AK102: 1030.14596 | AL102: 1023.787035 | AM102: 1017.428109 | AN102: 1011.069183 | AO102: 1004.710258 | AP102: 998.351332 | AQ102: 991.9924063 | AR102: 985.6334806 | AS102: 979.274555 | AT102: 972.9156293 | AU102: 966.5567036
K103: Res PV - 20.7% - Mid | L103: 4024.774529 | M103: 2931.783029 | N103: 2800 | O103: =$S$40*(O114+O159) -> 2660.234863 | P103: 2541.119869 | Q103: 2400 | R103: 2310 | S103: 2220 | T103: 2130 | U103: 2040 | V103: 1950 | W103: 1860 | X103: 1770 | Y103: 1680 | Z103: 1590 | AA103: 1500 | AB103: 1475 | AC103: 1450 | AD103: 1425 | AE103: 1400 | AF103: 1375 | AG103: 1350 | AH103: 1325 | AI103: 1300 | AJ103: 1275 | AK103: 1250 | AL103: 1240 | AM103: 1230 | AN103: 1220 | AO103: 1210 | AP103: 1200 | AQ103: 1190 | AR103: 1180 | AS103: 1170 | AT103: 1160 | AU103: 1150
K104: Res PV - 20.7% - High | L104: =$S$40*(L115+L160) -> 4024.774529 | M104: 2931.783029 | N104: 2931.783029 | O104: 2931.783029 | P104: 2931.783029 | Q104: 2931.783029 | R104: 2931.783029 | S104: 2931.783029 | T104: 2931.783029 | U104: 2931.783029 | V104: 2931.783029 | W104: 2931.783029 | X104: 2931.783029 | Y104: 2931.783029 | Z104: 2931.783029 | AA104: 2931.783029 | AB104: 2931.783029 | AC104: 2931.783029 | AD104: 2931.783029 | AE104: 2931.783029 | AF104: 2931.783029 | AG104: 2931.783029 | AH104: 2931.783029 | AI104: 2931.783029 | AJ104: 2931.783029 | AK104: 2931.783029 | AL104: 2931.783029 | AM104: 2931.783029 | AN104: 2931.783029 | AO104: 2931.783029 | AP104: 2931.783029 | AQ104: 2931.783029 | AR104: 2931.783029 | AS104: 2931.783029 | AT104: 2931.783029 | AU104: 2931.783029
L106: 2015 | M106: 2016 | N106: 2017 | O106: 2018 | P106: 2019 | Q106: 2020 | R106: 2021 | S106: 2022 | T106: 2023 | U106: 2024 | V106: 2025 | W106: 2026 | X106: 2027 | Y106: 2028 | Z106: 2029 | AA106: 2030 | AB106: 2031 | AC106: 2032 | AD106: 2033 | AE106: 2034 | AF106: 2035 | AG106: 2036 | AH106: 2037 | AI106: 2038 | AJ106: 2039 | AK106: 2040 | AL106: 2041 | AM106: 2042 | AN106: 2043 | AO106: 2044 | AP106: 2045 | AQ106: 2046 | AR106: 2047 | AS106: 2048 | AT106: 2049 | AU106: 2050
J107: Overnight Capital Cost ($/kW) | K107: Res PV - 12.5% - Low | L107: 4024.774529 | M107: 2931.783029 | N107: 2477.466701 | O107: 2368.299218 | P107: 2219.155324 | Q107: 1995.140528 | R107: 1882.977471 | S107: 1770.814414 | T107: 1658.651356 | U107: 1546.488299 | V107: 1434.325242 | W107: 1387.460193 | X107: 1340.595145 | Y107: 1293.730097 | Z107: 1246.865048 | AA107: 1200 | AB107: 1183.014596 | AC107: 1166.029192 | AD107: 1149.043788 | AE107: 1132.058384 | AF107: 1115.07298 | AG107: 1098.087576 | AH107: 1081.102172 | AI107: 1064.116768 | AJ107: 1047.131364 | AK107: 1030.14596 | AL107: 1023.787035 | AM107: 1017.428109 | AN107: 1011.069183 | AO107: 1004.710258 | AP107: 998.351332 | AQ107: 991.9924063 | AR107: 985.6334806 | AS107: 979.274555 | AT107: 972.9156293 | AU107: 966.5567036
K108: Res PV - 12.5% - Mid | L108: 4024.774529 | M108: 2931.783029 | N108: 2800 | O108: 2660.234863 | P108: 2541.119869 | Q108: 2400 | R108: 2310 | S108: 2220 | T108: 2130 | U108: 2040 | V108: 1950 | W108: 1860 | X108: 1770 | Y108: 1680 | Z108: 1590 | AA108: 1500 | AB108: 1475 | AC108: 1450 | AD108: 1425 | AE108: 1400 | AF108: 1375 | AG108: 1350 | AH108: 1325 | AI108: 1300 | AJ108: 1275 | AK108: 1250 | AL108: 1240 | AM108: 1230 | AN108: 1220 | AO108: 1210 | AP108: 1200 | AQ108: 1190 | AR108: 1180 | AS108: 1170 | AT108: 1160 | AU108: 1150
K109: Res PV - 12.5% - High | L109: 4024.774529 | M109: 2931.783029 | N109: 2931.783029 | O109: 2931.783029 | P109: 2931.783029 | Q109: 2931.783029 | R109: 2931.783029 | S109: 2931.783029 | T109: 2931.783029 | U109: 2931.783029 | V109: 2931.783029 | W109: 2931.783029 | X109: 2931.783029 | Y109: 2931.783029 | Z109: 2931.783029 | AA109: 2931.783029 | AB109: 2931.783029 | AC109: 2931.783029 | AD109: 2931.783029 | AE109: 2931.783029 | AF109: 2931.783029 | AG109: 2931.783029 | AH109: 2931.783029 | AI109: 2931.783029 | AJ109: 2931.783029 | AK109: 2931.783029 | AL109: 2931.783029 | AM109: 2931.783029 | AN109: 2931.783029 | AO109: 2931.783029 | AP109: 2931.783029 | AQ109: 2931.783029 | AR109: 2931.783029 | AS109: 2931.783029 | AT109: 2931.783029 | AU109: 2931.783029
K110: Res PV - 16.1% - Low | L110: =L107 -> 4024.774529 | M110: =M107 -> 2931.783029 | N110: 2477.466701 | O110: 2368.299218 | P110: 2219.155324 | Q110: 1995.140528 | R110: 1882.977471 | S110: 1770.814414 | T110: 1658.651356 | U110: 1546.488299 | V110: 1434.325242 | W110: 1387.460193 | X110: 1340.595145 | Y110: 1293.730097 | Z110: 1246.865048 | AA110: 1200 | AB110: 1183.014596 | AC110: 1166.029192 | AD110: 1149.043788 | AE110: 1132.058384 | AF110: 1115.07298 | AG110: 1098.087576 | AH110: 1081.102172 | AI110: 1064.116768 | AJ110: 1047.131364 | AK110: 1030.14596 | AL110: 1023.787035 | AM110: 1017.428109 | AN110: 1011.069183 | AO110: 1004.710258 | AP110: 998.351332 | AQ110: 991.9924063 | AR110: 985.6334806 | AS110: 979.274555 | AT110: 972.9156293 | AU110: 966.5567036
K111: Res PV - 16.1% - Mid | L111: =L108 -> 4024.774529 | M111: 2931.783029 | N111: 2800 | O111: 2660.234863 | P111: 2541.119869 | Q111: 2400 | R111: 2310 | S111: 2220 | T111: 2130 | U111: 2040 | V111: 1950 | W111: 1860 | X111: 1770 | Y111: 1680 | Z111: 1590 | AA111: 1500 | AB111: 1475 | AC111: 1450 | AD111: 1425 | AE111: 1400 | AF111: 1375 | AG111: 1350 | AH111: 1325 | AI111: 1300 | AJ111: 1275 | AK111: 1250 | AL111: 1240 | AM111: 1230 | AN111: 1220 | AO111: 1210 | AP111: 1200 | AQ111: 1190 | AR111: 1180 | AS111: 1170 | AT111: 1160 | AU111: 1150
K112: Res PV - 16.1% - High | L112: 4024.774529 | M112: 2931.783029 | N112: 2931.783029 | O112: 2931.783029 | P112: 2931.783029 | Q112: 2931.783029 | R112: 2931.783029 | S112: 2931.783029 | T112: 2931.783029 | U112: 2931.783029 | V112: 2931.783029 | W112: 2931.783029 | X112: 2931.783029 | Y112: 2931.783029 | Z112: 2931.783029 | AA112: 2931.783029 | AB112: 2931.783029 | AC112: 2931.783029 | AD112: 2931.783029 | AE112: 2931.783029 | AF112: 2931.783029 | AG112: 2931.783029 | AH112: 2931.783029 | AI112: 2931.783029 | AJ112: 2931.783029 | AK112: 2931.783029 | AL112: 2931.783029 | AM112: 2931.783029 | AN112: 2931.783029 | AO112: 2931.783029 | AP112: 2931.783029 | AQ112: 2931.783029 | AR112: 2931.783029 | AS112: 2931.783029 | AT112: 2931.783029 | AU112: 2931.783029
K113: Res PV - 20.7% - Low | L113: 4024.774529 | M113: 2931.783029 | N113: 2477.466701 | O113: 2368.299218 | P113: 2219.155324 | Q113: 1995.140528 | R113: 1882.977471 | S113: 1770.814414 | T113: 1658.651356 | U113: 1546.488299 | V113: 1434.325242 | W113: 1387.460193 | X113: 1340.595145 | Y113: 1293.730097 | Z113: 1246.865048 | AA113: 1200 | AB113: 1183.014596 | AC113: 1166.029192 | AD113: 1149.043788 | AE113: 1132.058384 | AF113: 1115.07298 | AG113: 1098.087576 | AH113: 1081.102172 | AI113: 1064.116768 | AJ113: 1047.131364 | AK113: 1030.14596 | AL113: 1023.787035 | AM113: 1017.428109 | AN113: 1011.069183 | AO113: 1004.710258 | AP113: 998.351332 | AQ113: 991.9924063 | AR113: 985.6334806 | AS113: 979.274555 | AT113: 972.9156293 | AU113: 966.5567036
K114: Res PV - 20.7% - Mid | L114: 4024.774529 | M114: 2931.783029 | N114: 2800 | O114: 2660.234863 | P114: 2541.119869 | Q114: 2400 | R114: 2310 | S114: 2220 | T114: 2130 | U114: 2040 | V114: 1950 | W114: 1860 | X114: 1770 | Y114: 1680 | Z114: 1590 | AA114: 1500 | AB114: 1475 | AC114: 1450 | AD114: 1425 | AE114: 1400 | AF114: 1375 | AG114: 1350 | AH114: 1325 | AI114: 1300 | AJ114: 1275 | AK114: 1250 | AL114: 1240 | AM114: 1230 | AN114: 1220 | AO114: 1210 | AP114: 1200 | AQ114: 1190 | AR114: 1180 | AS114: 1170 | AT114: 1160 | AU114: 1150
K115: Res PV - 20.7% - High | L115: 4024.774529 | M115: 2931.783029 | N115: 2931.783029 | O115: 2931.783029 | P115: 2931.783029 | Q115: 2931.783029 | R115: 2931.783029 | S115: 2931.783029 | T115: 2931.783029 | U115: 2931.783029 | V115: 2931.783029 | W115: 2931.783029 | X115: 2931.783029 | Y115: 2931.783029 | Z115: 2931.783029 | AA115: 2931.783029 | AB115: 2931.783029 | AC115: 2931.783029 | AD115: 2931.783029 | AE115: 2931.783029 | AF115: 2931.783029 | AG115: 2931.783029 | AH115: 2931.783029 | AI115: 2931.783029 | AJ115: 2931.783029 | AK115: 2931.783029 | AL115: 2931.783029 | AM115: 2931.783029 | AN115: 2931.783029 | AO115: 2931.783029 | AP115: 2931.783029 | AQ115: 2931.783029 | AR115: 2931.783029 | AS115: 2931.783029 | AT115: 2931.783029 | AU115: 2931.783029
L117: 2015 | M117: 2016 | N117: 2017 | O117: 2018 | P117: 2019 | Q117: 2020 | R117: 2021 | S117: 2022 | T117: 2023 | U117: 2024 | V117: 2025 | W117: 2026 | X117: 2027 | Y117: 2028 | Z117: 2029 | AA117: 2030 | AB117: 2031 | AC117: 2032 | AD117: 2033 | AE117: 2034 | AF117: 2035 | AG117: 2036 | AH117: 2037 | AI117: 2038 | AJ117: 2039 | AK117: 2040 | AL117: 2041 | AM117: 2042 | AN117: 2043 | AO117: 2044 | AP117: 2045 | AQ117: 2046 | AR117: 2047 | AS117: 2048 | AT117: 2049 | AU117: 2050
J118: Fixed Operation and Maintenance Expenses ($/kW-yr) | K118: Res PV - 12.5% - Low | L118: 24.29 | M118: 21.43 | N118: 18.58 | O118: 15.72 | P118: 12.86 | Q118: 10 | R118: 10 | S118: 10 | T118: 10 | U118: 10 | V118: 10 | W118: 10 | X118: 10 | Y118: 10 | Z118: 10 | AA118: 10 | AB118: 10 | AC118: 10 | AD118: 10 | AE118: 10 | AF118: 10 | AG118: 10 | AH118: 10 | AI118: 10 | AJ118: 10 | AK118: 10 | AL118: 10 | AM118: 10 | AN118: 10 | AO118: 10 | AP118: 10 | AQ118: 10 | AR118: 10 | AS118: 10 | AT118: 10 | AU118: 10
K119: Res PV - 12.5% - Mid | L119: 24.29 | M119: 22.86 | N119: 21.43 | O119: 20 | P119: 18.58 | Q119: 17.15 | R119: 15.72 | S119: 14.29 | T119: 12.86 | U119: 11.43 | V119: 10 | W119: 10 | X119: 10 | Y119: 10 | Z119: 10 | AA119: 10 | AB119: 10 | AC119: 10 | AD119: 10 | AE119: 10 | AF119: 10 | AG119: 10 | AH119: 10 | AI119: 10 | AJ119: 10 | AK119: 10 | AL119: 10 | AM119: 10 | AN119: 10 | AO119: 10 | AP119: 10 | AQ119: 10 | AR119: 10 | AS119: 10 | AT119: 10 | AU119: 10
K120: Res PV - 12.5% - High | L120: 24.29 | M120: 24.29 | N120: 24.29 | O120: 24.29 | P120: 24.29 | Q120: 24.29 | R120: 24.29 | S120: 24.29 | T120: 24.29 | U120: 24.29 | V120: 24.29 | W120: 24.29 | X120: 24.29 | Y120: 24.29 | Z120: 24.29 | AA120: 24.29 | AB120: 24.29 | AC120: 24.29 | AD120: 24.29 | AE120: 24.29 | AF120: 24.29 | AG120: 24.29 | AH120: 24.29 | AI120: 24.29 | AJ120: 24.29 | AK120: 24.29 | AL120: 24.29 | AM120: 24.29 | AN120: 24.29 | AO120: 24.29 | AP120: 24.29 | AQ120: 24.29 | AR120: 24.29 | AS120: 24.29 | AT120: 24.29 | AU120: 24.29
K121: Res PV - 16.1% - Low | L121: 24.29 | M121: 21.43 | N121: 18.58 | O121: 15.72 | P121: 12.86 | Q121: 10 | R121: 10 | S121: 10 | T121: 10 | U121: 10 | V121: 10 | W121: 10 | X121: 10 | Y121: 10 | Z121: 10 | AA121: 10 | AB121: 10 | AC121: 10 | AD121: 10 | AE121: 10 | AF121: 10 | AG121: 10 | AH121: 10 | AI121: 10 | AJ121: 10 | AK121: 10 | AL121: 10 | AM121: 10 | AN121: 10 | AO121: 10 | AP121: 10 | AQ121: 10 | AR121: 10 | AS121: 10 | AT121: 10 | AU121: 10
K122: Res PV - 16.1% - Mid | L122: 24.29 | M122: 22.86 | N122: 21.43 | O122: 20 | P122: 18.58 | Q122: 17.15 | R122: 15.72 | S122: 14.29 | T122: 12.86 | U122: 11.43 | V122: 10 | W122: 10 | X122: 10 | Y122: 10 | Z122: 10 | AA122: 10 | AB122: 10 | AC122: 10 | AD122: 10 | AE122: 10 | AF122: 10 | AG122: 10 | AH122: 10 | AI122: 10 | AJ122: 10 | AK122: 10 | AL122: 10 | AM122: 10 | AN122: 10 | AO122: 10 | AP122: 10 | AQ122: 10 | AR122: 10 | AS122: 10 | AT122: 10 | AU122: 10
K123: Res PV - 16.1% - High | L123: 24.29 | M123: 24.29 | N123: 24.29 | O123: 24.29 | P123: 24.29 | Q123: 24.29 | R123: 24.29 | S123: 24.29 | T123: 24.29 | U123: 24.29 | V123: 24.29 | W123: 24.29 | X123: 24.29 | Y123: 24.29 | Z123: 24.29 | AA123: 24.29 | AB123: 24.29 | AC123: 24.29 | AD123: 24.29 | AE123: 24.29 | AF123: 24.29 | AG123: 24.29 | AH123: 24.29 | AI123: 24.29 | AJ123: 24.29 | AK123: 24.29 | AL123: 24.29 | AM123: 24.29 | AN123: 24.29 | AO123: 24.29 | AP123: 24.29 | AQ123: 24.29 | AR123: 24.29 | AS123: 24.29 | AT123: 24.29 | AU123: 24.29
K124: Res PV - 20.7% - Low | L124: 24.29 | M124: 21.43 | N124: 18.58 | O124: 15.72 | P124: 12.86 | Q124: 10 | R124: 10 | S124: 10 | T124: 10 | U124: 10 | V124: 10 | W124: 10 | X124: 10 | Y124: 10 | Z124: 10 | AA124: 10 | AB124: 10 | AC124: 10 | AD124: 10 | AE124: 10 | AF124: 10 | AG124: 10 | AH124: 10 | AI124: 10 | AJ124: 10 | AK124: 10 | AL124: 10 | AM124: 10 | AN124: 10 | AO124: 10 | AP124: 10 | AQ124: 10 | AR124: 10 | AS124: 10 | AT124: 10 | AU124: 10
K125: Res PV - 20.7% - Mid | L125: 24.29 | M125: 22.86 | N125: 21.43 | O125: 20 | P125: 18.58 | Q125: 17.15 | R125: 15.72 | S125: 14.29 | T125: 12.86 | U125: 11.43 | V125: 10 | W125: 10 | X125: 10 | Y125: 10 | Z125: 10 | AA125: 10 | AB125: 10 | AC125: 10 | AD125: 10 | AE125: 10 | AF125: 10 | AG125: 10 | AH125: 10 | AI125: 10 | AJ125: 10 | AK125: 10 | AL125: 10 | AM125: 10 | AN125: 10 | AO125: 10 | AP125: 10 | AQ125: 10 | AR125: 10 | AS125: 10 | AT125: 10 | AU125: 10
K126: Res PV - 20.7% - High | L126: 24.29 | M126: 24.29 | N126: 24.29 | O126: 24.29 | P126: 24.29 | Q126: 24.29 | R126: 24.29 | S126: 24.29 | T126: 24.29 | U126: 24.29 | V126: 24.29 | W126: 24.29 | X126: 24.29 | Y126: 24.29 | Z126: 24.29 | AA126: 24.29 | AB126: 24.29 | AC126: 24.29 | AD126: 24.29 | AE126: 24.29 | AF126: 24.29 | AG126: 24.29 | AH126: 24.29 | AI126: 24.29 | AJ126: 24.29 | AK126: 24.29 | AL126: 24.29 | AM126: 24.29 | AN126: 24.29 | AO126: 24.29 | AP126: 24.29 | AQ126: 24.29 | AR126: 24.29 | AS126: 24.29 | AT126: 24.29 | AU126: 24.29
L128: 2015 | M128: 2016 | N128: 2017 | O128: 2018 | P128: 2019 | Q128: 2020 | R128: 2021 | S128: 2022 | T128: 2023 | U128: 2024 | V128: 2025 | W128: 2026 | X128: 2027 | Y128: 2028 | Z128: 2029 | AA128: 2030 | AB128: 2031 | AC128: 2032 | AD128: 2033 | AE128: 2034 | AF128: 2035 | AG128: 2036 | AH128: 2037 | AI128: 2038 | AJ128: 2039 | AK128: 2040 | AL128: 2041 | AM128: 2042 | AN128: 2043 | AO128: 2044 | AP128: 2045 | AQ128: 2046 | AR128: 2047 | AS128: 2048 | AT128: 2049 | AU128: 2050
J129: Variable Operation and Maintenance Expenses ($/MWh) | K129: Res PV - 12.5% - Low | L129: 0 | M129: 0 | N129: 0 | O129: 0 | P129: 0 | Q129: 0 | R129: 0 | S129: 0 | T129: 0 | U129: 0 | V129: 0 | W129: 0 | X129: 0 | Y129: 0 | Z129: 0 | AA129: 0 | AB129: 0 | AC129: 0 | AD129: 0 | AE129: 0 | AF129: 0 | AG129: 0 | AH129: 0 | AI129: 0 | AJ129: 0 | AK129: 0 | AL129: 0 | AM129: 0 | AN129: 0 | AO129: 0 | AP129: 0 | AQ129: 0 | AR129: 0 | AS129: 0 | AT129: 0 | AU129: 0
K130: Res PV - 12.5% - Mid | L130: 0 | M130: 0 | N130: 0 | O130: 0 | P130: 0 | Q130: 0 | R130: 0 | S130: 0 | T130: 0 | U130: 0 | V130: 0 | W130: 0 | X130: 0 | Y130: 0 | Z130: 0 | AA130: 0 | AB130: 0 | AC130: 0 | AD130: 0 | AE130: 0 | AF130: 0 | AG130: 0 | AH130: 0 | AI130: 0 | AJ130: 0 | AK130: 0 | AL130: 0 | AM130: 0 | AN130: 0 | AO130: 0 | AP130: 0 | AQ130: 0 | AR130: 0 | AS130: 0 | AT130: 0 | AU130: 0
K131: Res PV - 12.5% - High | L131: 0 | M131: 0 | N131: 0 | O131: 0 | P131: 0 | Q131: 0 | R131: 0 | S131: 0 | T131: 0 | U131: 0 | V131: 0 | W131: 0 | X131: 0 | Y131: 0 | Z131: 0 | AA131: 0 | AB131: 0 | AC131: 0 | AD131: 0 | AE131: 0 | AF131: 0 | AG131: 0 | AH131: 0 | AI131: 0 | AJ131: 0 | AK131: 0 | AL131: 0 | AM131: 0 | AN131: 0 | AO131: 0 | AP131: 0 | AQ131: 0 | AR131: 0 | AS131: 0 | AT131: 0 | AU131: 0
K132: Res PV - 16.1% - Low | L132: 0 | M132: 0 | N132: 0 | O132: 0 | P132: 0 | Q132: 0 | R132: 0 | S132: 0 | T132: 0 | U132: 0 | V132: 0 | W132: 0 | X132: 0 | Y132: 0 | Z132: 0 | AA132: 0 | AB132: 0 | AC132: 0 | AD132: 0 | AE132: 0 | AF132: 0 | AG132: 0 | AH132: 0 | AI132: 0 | AJ132: 0 | AK132: 0 | AL132: 0 | AM132: 0 | AN132: 0 | AO132: 0 | AP132: 0 | AQ132: 0 | AR132: 0 | AS132: 0 | AT132: 0 | AU132: 0
K133: Res PV - 16.1% - Mid | L133: 0 | M133: 0 | N133: 0 | O133: 0 | P133: 0 | Q133: 0 | R133: 0 | S133: 0 | T133: 0 | U133: 0 | V133: 0 | W133: 0 | X133: 0 | Y133: 0 | Z133: 0 | AA133: 0 | AB133: 0 | AC133: 0 | AD133: 0 | AE133: 0 | AF133: 0 | AG133: 0 | AH133: 0 | AI133: 0 | AJ133: 0 | AK133: 0 | AL133: 0 | AM133: 0 | AN133: 0 | AO133: 0 | AP133: 0 | AQ133: 0 | AR133: 0 | AS133: 0 | AT133: 0 | AU133: 0
K134: Res PV - 16.1% - High | L134: 0 | M134: 0 | N134: 0 | O134: 0 | P134: 0 | Q134: 0 | R134: 0 | S134: 0 | T134: 0 | U134: 0 | V134: 0 | W134: 0 | X134: 0 | Y134: 0 | Z134: 0 | AA134: 0 | AB134: 0 | AC134: 0 | AD134: 0 | AE134: 0 | AF134: 0 | AG134: 0 | AH134: 0 | AI134: 0 | AJ134: 0 | AK134: 0 | AL134: 0 | AM134: 0 | AN134: 0 | AO134: 0 | AP134: 0 | AQ134: 0 | AR134: 0 | AS134: 0 | AT134: 0 | AU134: 0
K135: Res PV - 20.7% - Low | L135: 0 | M135: 0 | N135: 0 | O135: 0 | P135: 0 | Q135: 0 | R135: 0 | S135: 0 | T135: 0 | U135: 0 | V135: 0 | W135: 0 | X135: 0 | Y135: 0 | Z135: 0 | AA135: 0 | AB135: 0 | AC135: 0 | AD135: 0 | AE135: 0 | AF135: 0 | AG135: 0 | AH135: 0 | AI135: 0 | AJ135: 0 | AK135: 0 | AL135: 0 | AM135: 0 | AN135: 0 | AO135: 0 | AP135: 0 | AQ135: 0 | AR135: 0 | AS135: 0 | AT135: 0 | AU135: 0
K136: Res PV - 20.7% - Mid | L136: 0 | M136: 0 | N136: 0 | O136: 0 | P136: 0 | Q136: 0 | R136: 0 | S136: 0 | T136: 0 | U136: 0 | V136: 0 | W136: 0 | X136: 0 | Y136: 0 | Z136: 0 | AA136: 0 | AB136: 0 | AC136: 0 | AD136: 0 | AE136: 0 | AF136: 0 | AG136: 0 | AH136: 0 | AI136: 0 | AJ136: 0 | AK136: 0 | AL136: 0 | AM136: 0 | AN136: 0 | AO136: 0 | AP136: 0 | AQ136: 0 | AR136: 0 | AS136: 0 | AT136: 0 | AU136: 0
K137: Res PV - 20.7% - High | L137: 0 | M137: 0 | N137: 0 | O137: 0 | P137: 0 | Q137: 0 | R137: 0 | S137: 0 | T137: 0 | U137: 0 | V137: 0 | W137: 0 | X137: 0 | Y137: 0 | Z137: 0 | AA137: 0 | AB137: 0 | AC137: 0 | AD137: 0 | AE137: 0 | AF137: 0 | AG137: 0 | AH137: 0 | AI137: 0 | AJ137: 0 | AK137: 0 | AL137: 0 | AM137: 0 | AN137: 0 | AO137: 0 | AP137: 0 | AQ137: 0 | AR137: 0 | AS137: 0 | AT137: 0 | AU137: 0
L140: 2015 | M140: 2016 | N140: 2017 | O140: 2018 | P140: 2019 | Q140: 2020 | R140: 2021 | S140: 2022 | T140: 2023 | U140: 2024 | V140: 2025 | W140: 2026 | X140: 2027 | Y140: 2028 | Z140: 2029 | AA140: 2030 | AB140: 2031 | AC140: 2032 | AD140: 2033 | AE140: 2034 | AF140: 2035 | AG140: 2036 | AH140: 2037 | AI140: 2038 | AJ140: 2039 | AK140: 2040 | AL140: 2041 | AM140: 2042 | AN140: 2043 | AO140: 2044 | AP140: 2045 | AQ140: 2046 | AR140: 2047 | AS140: 2048 | AT140: 2049 | AU140: 2050
H141: Finance | J141: Weighted Average Cost of Capital (WACC) (Nominal) (%) | K141: Res PV - 12.5% - Low | L141: =$S$37 -> 0.0537826696 | M141: 0.0537826696 | N141: 0.0537826696 | O141: 0.0537826696 | P141: 0.0537826696 | Q141: 0.0537826696 | R141: 0.0537826696 | S141: 0.0537826696 | T141: 0.0537826696 | U141: 0.0537826696 | V141: 0.0537826696 | W141: 0.0537826696 | X141: 0.0537826696 | Y141: 0.0537826696 | Z141: 0.0537826696 | AA141: 0.0537826696 | AB141: =$S$37 -> 0.0537826696 | AC141: 0.0537826696 | AD141: 0.0537826696 | AE141: 0.0537826696 | AF141: 0.0537826696 | AG141: 0.0537826696 | AH141: 0.0537826696 | AI141: 0.0537826696 | AJ141: 0.0537826696 | AK141: 0.0537826696 | AL141: 0.0537826696 | AM141: 0.0537826696 | AN141: 0.0537826696 | AO141: 0.0537826696 | AP141: 0.0537826696 | AQ141: 0.0537826696 | AR141: =$S$37 -> 0.0537826696 | AS141: 0.0537826696 | AT141: 0.0537826696 | AU141: 0.0537826696
K142: Res PV - 12.5% - Mid | L142: 0.0537826696 | M142: 0.0537826696 | N142: 0.0537826696 | O142: 0.0537826696 | P142: 0.0537826696 | Q142: 0.0537826696 | R142: 0.0537826696 | S142: 0.0537826696 | T142: 0.0537826696 | U142: 0.0537826696 | V142: 0.0537826696 | W142: 0.0537826696 | X142: 0.0537826696 | Y142: 0.0537826696 | Z142: 0.0537826696 | AA142: 0.0537826696 | AB142: 0.0537826696 | AC142: 0.0537826696 | AD142: 0.0537826696 | AE142: 0.0537826696 | AF142: 0.0537826696 | AG142: 0.0537826696 | AH142: 0.0537826696 | AI142: 0.0537826696 | AJ142: 0.0537826696 | AK142: 0.0537826696 | AL142: 0.0537826696 | AM142: 0.0537826696 | AN142: 0.0537826696 | AO142: 0.0537826696 | AP142: 0.0537826696 | AQ142: 0.0537826696 | AR142: 0.0537826696 | AS142: 0.0537826696 | AT142: 0.0537826696 | AU142: 0.0537826696
K143: Res PV - 12.5% - High | L143: 0.0537826696 | M143: 0.0537826696 | N143: 0.0537826696 | O143: 0.0537826696 | P143: 0.0537826696 | Q143: 0.0537826696 | R143: 0.0537826696 | S143: 0.0537826696 | T143: 0.0537826696 | U143: 0.0537826696 | V143: 0.0537826696 | W143: 0.0537826696 | X143: 0.0537826696 | Y143: 0.0537826696 | Z143: 0.0537826696 | AA143: 0.0537826696 | AB143: 0.0537826696 | AC143: 0.0537826696 | AD143: 0.0537826696 | AE143: 0.0537826696 | AF143: 0.0537826696 | AG143: 0.0537826696 | AH143: 0.0537826696 | AI143: 0.0537826696 | AJ143: 0.0537826696 | AK143: 0.0537826696 | AL143: 0.0537826696 | AM143: 0.0537826696 | AN143: 0.0537826696 | AO143: 0.0537826696 | AP143: 0.0537826696 | AQ143: 0.0537826696 | AR143: 0.0537826696 | AS143: 0.0537826696 | AT143: 0.0537826696 | AU143: 0.0537826696
K144: Res PV - 16.1% - Low | L144: 0.0537826696 | M144: 0.0537826696 | N144: 0.0537826696 | O144: 0.0537826696 | P144: 0.0537826696 | Q144: 0.0537826696 | R144: 0.0537826696 | S144: 0.0537826696 | T144: 0.0537826696 | U144: 0.0537826696 | V144: 0.0537826696 | W144: 0.0537826696 | X144: 0.0537826696 | Y144: 0.0537826696 | Z144: 0.0537826696 | AA144: 0.0537826696 | AB144: 0.0537826696 | AC144: 0.0537826696 | AD144: 0.0537826696 | AE144: 0.0537826696 | AF144: 0.0537826696 | AG144: 0.0537826696 | AH144: 0.0537826696 | AI144: 0.0537826696 | AJ144: 0.0537826696 | AK144: 0.0537826696 | AL144: 0.0537826696 | AM144: 0.0537826696 | AN144: 0.0537826696 | AO144: 0.0537826696 | AP144: 0.0537826696 | AQ144: 0.0537826696 | AR144: 0.0537826696 | AS144: 0.0537826696 | AT144: 0.0537826696 | AU144: 0.0537826696
K145: Res PV - 16.1% - Mid | L145: 0.0537826696 | M145: 0.0537826696 | N145: 0.0537826696 | O145: 0.0537826696 | P145: 0.0537826696 | Q145: 0.0537826696 | R145: 0.0537826696 | S145: 0.0537826696 | T145: 0.0537826696 | U145: 0.0537826696 | V145: 0.0537826696 | W145: 0.0537826696 | X145: 0.0537826696 | Y145: 0.0537826696 | Z145: 0.0537826696 | AA145: 0.0537826696 | AB145: 0.0537826696 | AC145: 0.0537826696 | AD145: 0.0537826696 | AE145: 0.0537826696 | AF145: 0.0537826696 | AG145: 0.0537826696 | AH145: 0.0537826696 | AI145: 0.0537826696 | AJ145: 0.0537826696 | AK145: 0.0537826696 | AL145: 0.0537826696 | AM145: 0.0537826696 | AN145: 0.0537826696 | AO145: 0.0537826696 | AP145: 0.0537826696 | AQ145: 0.0537826696 | AR145: 0.0537826696 | AS145: 0.0537826696 | AT145: 0.0537826696 | AU145: 0.0537826696
K146: Res PV - 16.1% - High | L146: 0.0537826696 | M146: 0.0537826696 | N146: 0.0537826696 | O146: 0.0537826696 | P146: 0.0537826696 | Q146: 0.0537826696 | R146: 0.0537826696 | S146: 0.0537826696 | T146: 0.0537826696 | U146: 0.0537826696 | V146: 0.0537826696 | W146: 0.0537826696 | X146: 0.0537826696 | Y146: 0.0537826696 | Z146: 0.0537826696 | AA146: 0.0537826696 | AB146: 0.0537826696 | AC146: 0.0537826696 | AD146: 0.0537826696 | AE146: 0.0537826696 | AF146: 0.0537826696 | AG146: 0.0537826696 | AH146: 0.0537826696 | AI146: 0.0537826696 | AJ146: 0.0537826696 | AK146: 0.0537826696 | AL146: 0.0537826696 | AM146: 0.0537826696 | AN146: 0.0537826696 | AO146: 0.0537826696 | AP146: 0.0537826696 | AQ146: 0.0537826696 | AR146: 0.0537826696 | AS146: 0.0537826696 | AT146: 0.0537826696 | AU146: 0.0537826696
K147: Res PV - 20.7% - Low | L147: 0.0537826696 | M147: 0.0537826696 | N147: 0.0537826696 | O147: 0.0537826696 | P147: 0.0537826696 | Q147: 0.0537826696 | R147: 0.0537826696 | S147: 0.0537826696 | T147: 0.0537826696 | U147: 0.0537826696 | V147: 0.0537826696 | W147: 0.0537826696 | X147: 0.0537826696 | Y147: 0.0537826696 | Z147: 0.0537826696 | AA147: 0.0537826696 | AB147: 0.0537826696 | AC147: 0.0537826696 | AD147: 0.0537826696 | AE147: 0.0537826696 | AF147: 0.0537826696 | AG147: 0.0537826696 | AH147: 0.0537826696 | AI147: 0.0537826696 | AJ147: 0.0537826696 | AK147: 0.0537826696 | AL147: 0.0537826696 | AM147: 0.0537826696 | AN147: 0.0537826696 | AO147: 0.0537826696 | AP147: 0.0537826696 | AQ147: 0.0537826696 | AR147: 0.0537826696 | AS147: 0.0537826696 | AT147: 0.0537826696 | AU147: 0.0537826696
K148: Res PV - 20.7% - Mid | L148: 0.0537826696 | M148: 0.0537826696 | N148: 0.0537826696 | O148: 0.0537826696 | P148: 0.0537826696 | Q148: 0.0537826696 | R148: 0.0537826696 | S148: 0.0537826696 | T148: 0.0537826696 | U148: 0.0537826696 | V148: 0.0537826696 | W148: 0.0537826696 | X148: 0.0537826696 | Y148: 0.0537826696 | Z148: 0.0537826696 | AA148: 0.0537826696 | AB148: 0.0537826696 | AC148: 0.0537826696 | AD148: 0.0537826696 | AE148: 0.0537826696 | AF148: 0.0537826696 | AG148: 0.0537826696 | AH148: 0.0537826696 | AI148: 0.0537826696 | AJ148: 0.0537826696 | AK148: 0.0537826696 | AL148: 0.0537826696 | AM148: 0.0537826696 | AN148: 0.0537826696 | AO148: 0.0537826696 | AP148: 0.0537826696 | AQ148: 0.0537826696 | AR148: 0.0537826696 | AS148: 0.0537826696 | AT148: 0.0537826696 | AU148: 0.0537826696
K149: Res PV - 20.7% - High | L149: 0.0537826696 | M149: 0.0537826696 | N149: 0.0537826696 | O149: 0.0537826696 | P149: 0.0537826696 | Q149: 0.0537826696 | R149: 0.0537826696 | S149: 0.0537826696 | T149: 0.0537826696 | U149: 0.0537826696 | V149: 0.0537826696 | W149: 0.0537826696 | X149: 0.0537826696 | Y149: 0.0537826696 | Z149: 0.0537826696 | AA149: 0.0537826696 | AB149: 0.0537826696 | AC149: 0.0537826696 | AD149: 0.0537826696 | AE149: 0.0537826696 | AF149: 0.0537826696 | AG149: 0.0537826696 | AH149: 0.0537826696 | AI149: 0.0537826696 | AJ149: 0.0537826696 | AK149: 0.0537826696 | AL149: 0.0537826696 | AM149: 0.0537826696 | AN149: 0.0537826696 | AO149: 0.0537826696 | AP149: 0.0537826696 | AQ149: 0.0537826696 | AR149: 0.0537826696 | AS149: 0.0537826696 | AT149: 0.0537826696 | AU149: 0.0537826696
L151: 2015 | M151: 2016 | N151: 2017 | O151: 2018 | P151: 2019 | Q151: 2020 | R151: 2021 | S151: 2022 | T151: 2023 | U151: 2024 | V151: 2025 | W151: 2026 | X151: 2027 | Y151: 2028 | Z151: 2029 | AA151: 2030 | AB151: 2031 | AC151: 2032 | AD151: 2033 | AE151: 2034 | AF151: 2035 | AG151: 2036 | AH151: 2037 | AI151: 2038 | AJ151: 2039 | AK151: 2040 | AL151: 2041 | AM151: 2042 | AN151: 2043 | AO151: 2044 | AP151: 2045 | AQ151: 2046 | AR151: 2047 | AS151: 2048 | AT151: 2049 | AU151: 2050
H152: Grid Connection Costs | J152: Grid Connection Costs (GCC) ($/kW) | K152: Res PV - 12.5% - Low | L152: 0 | M152: 0 | N152: 0 | O152: 0 | P152: 0 | Q152: 0 | R152: 0 | S152: 0 | T152: 0 | U152: 0 | V152: 0 | W152: 0 | X152: 0 | Y152: 0 | Z152: 0 | AA152: 0 | AB152: 0 | AC152: 0 | AD152: 0 | AE152: 0 | AF152: 0 | AG152: 0 | AH152: 0 | AI152: 0 | AJ152: 0 | AK152: 0 | AL152: 0 | AM152: 0 | AN152: 0 | AO152: 0 | AP152: 0 | AQ152: 0 | AR152: 0 | AS152: 0 | AT152: 0 | AU152: 0
K153: Res PV - 12.5% - Mid | L153: 0 | M153: 0 | N153: 0 | O153: 0 | P153: 0 | Q153: 0 | R153: 0 | S153: 0 | T153: 0 | U153: 0 | V153: 0 | W153: 0 | X153: 0 | Y153: 0 | Z153: 0 | AA153: 0 | AB153: 0 | AC153: 0 | AD153: 0 | AE153: 0 | AF153: 0 | AG153: 0 | AH153: 0 | AI153: 0 | AJ153: 0 | AK153: 0 | AL153: 0 | AM153: 0 | AN153: 0 | AO153: 0 | AP153: 0 | AQ153: 0 | AR153: 0 | AS153: 0 | AT153: 0 | AU153: 0
K154: Res PV - 12.5% - High | L154: 0 | M154: 0 | N154: 0 | O154: 0 | P154: 0 | Q154: 0 | R154: 0 | S154: 0 | T154: 0 | U154: 0 | V154: 0 | W154: 0 | X154: 0 | Y154: 0 | Z154: 0 | AA154: 0 | AB154: 0 | AC154: 0 | AD154: 0 | AE154: 0 | AF154: 0 | AG154: 0 | AH154: 0 | AI154: 0 | AJ154: 0 | AK154: 0 | AL154: 0 | AM154: 0 | AN154: 0 | AO154: 0 | AP154: 0 | AQ154: 0 | AR154: 0 | AS154: 0 | AT154: 0 | AU154: 0
K155: Res PV - 16.1% - Low | L155: 0 | M155: 0 | N155: 0 | O155: 0 | P155: 0 | Q155: 0 | R155: 0 | S155: 0 | T155: 0 | U155: 0 | V155: 0 | W155: 0 | X155: 0 | Y155: 0 | Z155: 0 | AA155: 0 | AB155: 0 | AC155: 0 | AD155: 0 | AE155: 0 | AF155: 0 | AG155: 0 | AH155: 0 | AI155: 0 | AJ155: 0 | AK155: 0 | AL155: 0 | AM155: 0 | AN155: 0 | AO155: 0 | AP155: 0 | AQ155: 0 | AR155: 0 | AS155: 0 | AT155: 0 | AU155: 0
K156: Res PV - 16.1% - Mid | L156: 0 | M156: 0 | N156: 0 | O156: 0 | P156: 0 | Q156: 0 | R156: 0 | S156: 0 | T156: 0 | U156: 0 | V156: 0 | W156: 0 | X156: 0 | Y156: 0 | Z156: 0 | AA156: 0 | AB156: 0 | AC156: 0 | AD156: 0 | AE156: 0 | AF156: 0 | AG156: 0 | AH156: 0 | AI156: 0 | AJ156: 0 | AK156: 0 | AL156: 0 | AM156: 0 | AN156: 0 | AO156: 0 | AP156: 0 | AQ156: 0 | AR156: 0 | AS156: 0 | AT156: 0 | AU156: 0
K157: Res PV - 16.1% - High | L157: 0 | M157: 0 | N157: 0 | O157: 0 | P157: 0 | Q157: 0 | R157: 0 | S157: 0 | T157: 0 | U157: 0 | V157: 0 | W157: 0 | X157: 0 | Y157: 0 | Z157: 0 | AA157: 0 | AB157: 0 | AC157: 0 | AD157: 0 | AE157: 0 | AF157: 0 | AG157: 0 | AH157: 0 | AI157: 0 | AJ157: 0 | AK157: 0 | AL157: 0 | AM157: 0 | AN157: 0 | AO157: 0 | AP157: 0 | AQ157: 0 | AR157: 0 | AS157: 0 | AT157: 0 | AU157: 0
K158: Res PV - 20.7% - Low | L158: 0 | M158: 0 | N158: 0 | O158: 0 | P158: 0 | Q158: 0 | R158: 0 | S158: 0 | T158: 0 | U158: 0 | V158: 0 | W158: 0 | X158: 0 | Y158: 0 | Z158: 0 | AA158: 0 | AB158: 0 | AC158: 0 | AD158: 0 | AE158: 0 | AF158: 0 | AG158: 0 | AH158: 0 | AI158: 0 | AJ158: 0 | AK158: 0 | AL158: 0 | AM158: 0 | AN158: 0 | AO158: 0 | AP158: 0 | AQ158: 0 | AR158: 0 | AS158: 0 | AT158: 0 | AU158: 0
K159: Res PV - 20.7% - Mid | L159: 0 | M159: 0 | N159: 0 | O159: 0 | P159: 0 | Q159: 0 | R159: 0 | S159: 0 | T159: 0 | U159: 0 | V159: 0 | W159: 0 | X159: 0 | Y159: 0 | Z159: 0 | AA159: 0 | AB159: 0 | AC159: 0 | AD159: 0 | AE159: 0 | AF159: 0 | AG159: 0 | AH159: 0 | AI159: 0 | AJ159: 0 | AK159: 0 | AL159: 0 | AM159: 0 | AN159: 0 | AO159: 0 | AP159: 0 | AQ159: 0 | AR159: 0 | AS159: 0 | AT159: 0 | AU159: 0
K160: Res PV - 20.7% - High | L160: 0 | M160: 0 | N160: 0 | O160: 0 | P160: 0 | Q160: 0 | R160: 0 | S160: 0 | T160: 0 | U160: 0 | V160: 0 | W160: 0 | X160: 0 | Y160: 0 | Z160: 0 | AA160: 0 | AB160: 0 | AC160: 0 | AD160: 0 | AE160: 0 | AF160: 0 | AG160: 0 | AH160: 0 | AI160: 0 | AJ160: 0 | AK160: 0 | AL160: 0 | AM160: 0 | AN160: 0 | AO160: 0 | AP160: 0 | AQ160: 0 | AR160: 0 | AS160: 0 | AT160: 0 | AU160: 0
L162: 2015 | M162: 2016 | N162: 2017 | O162: 2018 | P162: 2019 | Q162: 2020 | R162: 2021 | S162: 2022 | T162: 2023 | U162: 2024 | V162: 2025 | W162: 2026 | X162: 2027 | Y162: 2028 | Z162: 2029 | AA162: 2030 | AB162: 2031 | AC162: 2032 | AD162: 2033 | AE162: 2034 | AF162: 2035 | AG162: 2036 | AH162: 2037 | AI162: 2038 | AJ162: 2039 | AK162: 2040 | AL162: 2041 | AM162: 2042 | AN162: 2043 | AO162: 2044 | AP162: 2045 | AQ162: 2046 | AR162: 2047 | AS162: 2048 | AT162: 2049 | AU162: 2050
H163: LCOE | J163: Levelized Cost of Energy ($/MWh) | K163: Res PV - 12.5% - Low | L163: =(($S$44 * $S$42 * $S$40 * (L107 * 1 + L152) +L118) * 1000 / (L74 * 8760)) + L129 + 0 -> 297.8197688 | M163: 220.488717 | N163: 186.7681824 | O163: 176.6007487 | P163: 163.7042087 | Q163: 145.696388 | R163: 138.0392496 | S163: 130.3821111 | T163: 122.7249726 | U163: 115.0678341 | V163: 107.4106956 | W163: 104.2113163 | X163: 101.0119369 | Y163: 97.81255763 | Z163: 94.61317832 | AA163: 91.413799 | AB163: 90.25424082 | AC163: 89.09468265 | AD163: 87.93512447 | AE163: 86.77556629 | AF163: 85.61600811 | AG163: 84.45644993 | AH163: 83.29689175 | AI163: 82.13733357 | AJ163: 80.97777539 | AK163: 79.81821721 | AL163: 79.38410659 | AM163: 78.94999597 | AN163: 78.51588535 | AO163: 78.08177472 | AP163: 77.6476641 | AQ163: 77.21355348 | AR163: 76.77944286 | AS163: 76.34533223 | AT163: 75.91122161 | AU163: 75.47711099
K164: Res PV - 12.5% - Mid | L164: 297.8197688 | M164: 221.8461154 | N164: 211.4921639 | O164: 200.5932905 | P164: 191.1136517 | Q164: 180.1222935 | R164: 172.6207825 | S164: 165.1192714 | T164: 157.6177603 | U164: 150.1162492 | V164: 142.6147381 | W164: 136.4706254 | X164: 130.3265127 | Y164: 124.1824 | Z164: 118.0382874 | AA164: 111.8941747 | AB164: 110.1874767 | AC164: 108.4807787 | AD164: 106.7740807 | AE164: 105.0673828 | AF164: 103.3606848 | AG164: 101.6539868 | AH164: 99.94728886 | AI164: 98.24059089 | AJ164: 96.53389292 | AK164: 94.82719495 | AL164: 94.14451576 | AM164: 93.46183657 | AN164: 92.77915738 | AO164: 92.09647819 | AP164: 91.413799 | AQ164: 90.73111981 | AR164: 90.04844063 | AS164: 89.36576144 | AT164: 88.68308225 | AU164: 88.00040306
K165: Res PV - 12.5% - High | L165: 297.8197688 | M165: 223.2035138 | N165: 223.2035138 | O165: 223.2035138 | P165: 223.2035138 | Q165: 223.2035138 | R165: 223.2035138 | S165: 223.2035138 | T165: 223.2035138 | U165: 223.2035138 | V165: 223.2035138 | W165: 223.2035138 | X165: 223.2035138 | Y165: 223.2035138 | Z165: 223.2035138 | AA165: 223.2035138 | AB165: 223.2035138 | AC165: 223.2035138 | AD165: 223.2035138 | AE165: 223.2035138 | AF165: 223.2035138 | AG165: 223.2035138 | AH165: 223.2035138 | AI165: 223.2035138 | AJ165: 223.2035138 | AK165: 223.2035138 | AL165: 223.2035138 | AM165: 223.2035138 | AN165: 223.2035138 | AO165: 223.2035138 | AP165: 223.2035138 | AQ165: 223.2035138 | AR165: 223.2035138 | AS165: 223.2035138 | AT165: 223.2035138 | AU165: 223.2035138
K166: Res PV - 16.1% - Low | L166: 231.2265286 | M166: 171.1868921 | N166: 145.0063528 | O166: 137.1123826 | P166: 127.0995409 | Q166: 113.1183137 | R166: 107.1733304 | S166: 101.2283471 | T166: 95.28336379 | U166: 89.33838049 | V166: 83.39339718 | W166: 80.90940703 | X166: 78.42541688 | Y166: 75.94142673 | Z166: 73.45743658 | AA166: 70.97344643 | AB166: 70.07316834 | AC166: 69.17289025 | AD166: 68.27261216 | AE166: 67.37233407 | AF166: 66.47205598 | AG166: 65.5717779 | AH166: 64.67149981 | AI166: 63.77122172 | AJ166: 62.87094363 | AK166: 61.97066554 | AL166: 61.63362313 | AM166: 61.29658072 | AN166: 60.95953831 | AO166: 60.6224959 | AP166: 60.28545349 | AQ166: 59.94841109 | AR166: 59.61136868 | AS166: 59.27432627 | AT166: 58.93728386 | AU166: 58.60024145
K167: Res PV - 16.1% - Mid | L167: 231.2265286 | M167: 172.2407728 | N167: 164.2019906 | O167: 155.7401324 | P167: 148.3801643 | Q167: 139.8465012 | R167: 134.0223466 | S167: 128.1981921 | T167: 122.3740375 | U167: 116.5498829 | V167: 110.7257284 | W167: 105.9554545 | X167: 101.1851807 | Y167: 96.41490687 | Z167: 91.64463304 | AA167: 86.87435921 | AB167: 85.54928314 | AC167: 84.22420708 | AD167: 82.89913101 | AE167: 81.57405495 | AF167: 80.24897888 | AG167: 78.92390282 | AH167: 77.59882675 | AI167: 76.27375069 | AJ167: 74.94867462 | AK167: 73.62359856 | AL167: 73.09356813 | AM167: 72.56353771 | AN167: 72.03350728 | AO167: 71.50347686 | AP167: 70.97344643 | AQ167: 70.44341601 | AR167: 69.91338558 | AS167: 69.38335515 | AT167: 68.85332473 | AU167: 68.3232943
K168: Res PV - 16.1% - High | L168: 231.2265286 | M168: 173.2946536 | N168: 173.2946536 | O168: 173.2946536 | P168: 173.2946536 | Q168: 173.2946536 | R168: 173.2946536 | S168: 173.2946536 | T168: 173.2946536 | U168: 173.2946536 | V168: 173.2946536 | W168: 173.2946536 | X168: 173.2946536 | Y168: 173.2946536 | Z168: 173.2946536 | AA168: 173.2946536 | AB168: 173.2946536 | AC168: 173.2946536 | AD168: 173.2946536 | AE168: 173.2946536 | AF168: 173.2946536 | AG168: 173.2946536 | AH168: 173.2946536 | AI168: 173.2946536 | AJ168: 173.2946536 | AK168: 173.2946536 | AL168: 173.2946536 | AM168: 173.2946536 | AN168: 173.2946536 | AO168: 173.2946536 | AP168: 173.2946536 | AQ168: 173.2946536 | AR168: 173.2946536 | AS168: 173.2946536 | AT168: 173.2946536 | AU168: 173.2946536
K169: Res PV - 20.7% - Low | L169: 179.8428556 | M169: 133.1453605 | N169: 112.7827188 | O169: 106.6429642 | P169: 98.8551985 | Q169: 87.98091066 | R169: 83.35703475 | S169: 78.73315885 | T169: 74.10928295 | U169: 69.48540705 | V169: 64.86153114 | W169: 62.9295388 | X169: 60.99754646 | Y169: 59.06555413 | Z169: 57.13356179 | AA169: 55.20156945 | AB169: 54.50135315 | AC169: 53.80113686 | AD169: 53.10092057 | AE169: 52.40070428 | AF169: 51.70048799 | AG169: 51.0002717 | AH169: 50.3000554 | AI169: 49.59983911 | AJ169: 48.89962282 | AK169: 48.19940653 | AL169: 47.93726243 | AM169: 47.67511834 | AN169: 47.41297424 | AO169: 47.15083015 | AP169: 46.88868605 | AQ169: 46.62654196 | AR169: 46.36439786 | AS169: 46.10225376 | AT169: 45.84010967 | AU169: 45.57796557
K170: Res PV - 20.7% - Mid | L170: 179.8428556 | M170: 133.9650455 | N170: 127.7126594 | O170: =(($S$44 * $S$42 * $S$40 * (O114 * 1 + O159) +O125) * 1000 / (O81 * 8760)) + O136 + 0 -> 121.1312141 | P170: 115.4067945 | Q170: 108.7695009 | R170: 104.2396029 | S170: 99.70970494 | T170: 95.17980694 | U170: 90.64990895 | V170: 86.12001095 | W170: 82.40979797 | X170: 78.69958499 | Y170: 74.98937201 | Z170: 71.27915903 | AA170: 67.56894605 | AB170: 66.53833133 | AC170: 65.50771661 | AD170: 64.4771019 | AE170: 63.44648718 | AF170: 62.41587246 | AG170: 61.38525775 | AH170: 60.35464303 | AI170: 59.32402831 | AJ170: 58.2934136 | AK170: 57.26279888 | AL170: 56.85055299 | AM170: 56.43830711 | AN170: 56.02606122 | AO170: 55.61381533 | AP170: 55.20156945 | AQ170: 54.78932356 | AR170: 54.37707767 | AS170: 53.96483179 | AT170: 53.5525859 | AU170: 53.14034001
K171: Res PV - 20.7% - High | L171: =(($S$44 * $S$42 * $S$40 * (L115 * 1 + L160) +L126) * 1000 / (L82 * 8760)) + L137 + 0 -> 179.8428556 | M171: =(($S$44 * $S$42 * $S$40 * (M115 * 1 + M160) +M126) * 1000 / (M82 * 8760)) + M137 + 0 -> 134.7847306 | N171: 134.7847306 | O171: 134.7847306 | P171: 134.7847306 | Q171: 134.7847306 | R171: 134.7847306 | S171: 134.7847306 | T171: 134.7847306 | U171: 134.7847306 | V171: 134.7847306 | W171: 134.7847306 | X171: 134.7847306 | Y171: 134.7847306 | Z171: 134.7847306 | AA171: 134.7847306 | AB171: 134.7847306 | AC171: 134.7847306 | AD171: 134.7847306 | AE171: 134.7847306 | AF171: 134.7847306 | AG171: 134.7847306 | AH171: 134.7847306 | AI171: 134.7847306 | AJ171: 134.7847306 | AK171: 134.7847306 | AL171: 134.7847306 | AM171: 134.7847306 | AN171: 134.7847306 | AO171: 134.7847306 | AP171: 134.7847306 | AQ171: 134.7847306 | AR171: 134.7847306 | AS171: 134.7847306 | AT171: 134.7847306 | AU171: 134.7847306
E179: X | H179: Graphics
C389: X | G389: Data Sources for Default Inputs
H392: Current Costs:
H393: Available Capacity (GW) | M393: Pieter Gagnon, Robert Margolis, Jennifer Melius, Caleb Phillips, Ryan Elmore. (2016). Rooftop Solar Photovoltaic Technical Potential in the United States: A Detailed Assessment. NREL TP-6A20-65298
H394: Net Capacity Factor (%) | M394: National Renewable Energy Laboratory. PVWATTS v5. Representative of national range of capacity factors.
H395: Overnight Capital Cost ($/kW) | M395: Feldman et al (2015) Photovoltaic System Pricing Trends: 2015 Edition. NREL/PR-6A20-64898
H396: Fixed Operating Expenses ($/kW-yr) | M396: Jones-Albertus, R et al (2015). Technology Advances Needed for Photovoltaics to Achieve Widespread Grid Price Parity. Jones-Albertus, R et al (2015). Technology Advances Needed for Photovoltaics to Achieve Widespread Grid Price Parity. Jones-Albertus, R et al (2015). Technology Advances Needed for Photovoltaics to Achieve Widespread Grid Price Parity.
H397: Variable Operating Expenses ($/MWh) | M397: Jones-Albertus, R et al (2015). Technology Advances Needed for Photovoltaics to Achieve Widespread Grid Price Parity.
H398: Grid Feature Cost ($/kW) | M398: N/A
H399: Spur Line Cost ($/kW) | M399: N/A
H401: Future Projections Costs:
H402: Net Capacity Factor (%) | M402: Jones-Albertus, R et al (2015). Technology Advances Needed for Photovoltaics to Achieve Widespread Grid Price Parity.
H403: Overnight Capital Cost ($/kW) | M403: Feldman et al (2015) Photovoltaic System Pricing Trends: 2015 Edition. NREL/PR-6A20-64898
H404: Fixed Operating Expenses ($/kW-yr) | M404: Jones-Albertus, R et al (2015). Technology Advances Needed for Photovoltaics to Achieve Widespread Grid Price Parity.
H405: Variable Operating Expenses ($/MWh) | M405: Jones-Albertus, R et al (2015). Technology Advances Needed for Photovoltaics to Achieve Widespread Grid Price Parity.
H406: Grid Connection Cost ($/kW) | M406: N/A
H420: X

Sheet Solar - CSP
A1: Solar CSP Inputs | L1: https://atb.nrel.gov/electricity/2017/index.html?t=sc
T3: Inputs
J4: Take me to: | T4: Calculated
B10: X | G10: Current Costs
H12: Techno-Economic Cost and Performance Parameters | J12: Net Capacity Factor (%) | K12: CSP - no TES - Class 1 | O12: Basis Year: | Q12: 2015
K13: CSP - no TES - Class 3
K14: CSP - no TES - Class 3 | O14: Concentrating Solar Power
K15: CSP - 6hrs TES - Class 1 | O15: CSP technology is based on power towers with direct two-tank TES combined with a steam-Rankine power cycle running at 574°C and 41.2% gross efficiency in 2015.
K16: CSP - 6hrs TES - Class 3 | O16: The CSP plant is a 100MW AC as a Baseload configuration with a SM of 2.4 and 10hrs of storage.
K17: CSP - 6hrs TES - Class 5
K18: CSP - 10hrs TES - Class 1 | L18: 0.42
K19: CSP - 10hrs TES - Class 3 | L19: 0.56
K20: CSP - 10hrs TES - Class 5 | L20: 0.59
J22: Annual Energy Production (kWh/kW) | K22: CSP - no TES - Class 1
K23: CSP - no TES - Class 3
K24: CSP - no TES - Class 3
K25: CSP - 6hrs TES - Class 1 | L25: =L15*8760 -> 0 | S25: Available | T25: Available
K26: CSP - 6hrs TES - Class 3 | L26: 0 | S26: Capacity | T26: Generation
K27: CSP - 6hrs TES - Class 5 | L27: 0 | S27: (GW) | T27: (GWh)
K28: CSP - 10hrs TES - Class 1 | L28: 3679.2 | O28: Radiation Levels | R28: Value of DNI | S28: 38066 | T28: 116146245
K29: CSP - 10hrs TES - Class 3 | L29: 4905.6 | O29: 10 hrs TES at Class 1 (I.e. Abilene Regional Airport, TX, Class 1 = Fair Resource) | Q29: TMY3 = 5.59 kWh/m2/day | R29: 5.59
K30: CSP - 10hrs TES - Class 5 | L30: 5168.4 | O30: 10 hrs TES at Class 3 (I.e. Las Vegas, NV, Class 3 = Good Resource) | Q30: TMY3 = 7.1 kWh/m2/day | R30: 7.1
O31: 10 hrs TES at Class 5 (I.e. Daggett, CA, Class 5 = Excellent Resource) | Q31: TMY3 = 7.46 kWh/m2/day | R31: 7.46
J32: CAPEX ($/kWe) | K32: CSP - no TES - Class 1
K33: CSP - no TES - Class 3 | O33: Financial Assumptions:
K34: CSP - no TES - Class 3 | O34: Inflation Rate | S34: 0.025
K35: CSP - 6hrs TES - Class 1 | L35: =$S$46 * (L55 + L97) -> 0 | O35: Economic Lifetime (Years) | S35: 20
K36: CSP - 6hrs TES - Class 3 | L36: 0 | O36: Interest Rate - Nominal | S36: 0.04418536
K37: CSP - 6hrs TES - Class 5 | L37: 0 | O37: Calculated Interest Rate - Real | S37: =(1+S36)/(1+S34)-1 -> 0.01871742439
K38: CSP - 10hrs TES - Class 1 | L38: 8132.732438 | O38: Interest During Construction - Nominal | S38: 0.044
K39: CSP - 10hrs TES - Class 3 | L39: 8132.732438 | O39: Rate of Return on Equity - Nominal | S39: 0.09468985
K40: CSP - 10hrs TES - Class 5 | L40: 8132.732438 | O40: Calculated Rate of Return on Equity - Real | S40: =(1+S39)/(1+S34) - 1 -> 0.06799009756
O41: Debt Fraction | S41: 0.6
J42: Construction Financing Cost ($/kW) | K42: CSP - no TES - Class 1 | O42: Tax Rate (Federal and State) | S42: 0.4
K43: CSP - no TES - Class 3 | O43: WACC - Nominal | S43: =IF(S42>0,S41*S36*(1-S42)+(1-S41)*S39,S41*S36+(1-S41)*S39) -> 0.0537826696
K44: CSP - no TES - Class 3 | O44: WACC - Real | S44: =((1+((1-S41)*((1+S40)*(1+S34)-1)) + (S41*((1+S37)*(1+S34)-1)*(1-S42))) / (1+S34)) - 1 -> 0.02808065327
K45: CSP - 6hrs TES - Class 1 | L45: =(L55+L97)*($S$46-1) -> 0 | O45: Depreciation Period | S45: 5
K46: CSP - 6hrs TES - Class 3 | L46: 0 | O46: Construction Finance Factor | S46: =SUMPRODUCT(R55:R57,S55:S57) -> 1.021268962
K47: CSP - 6hrs TES - Class 5 | L47: 0 | O47: Present Value of Depreciation | S47: =SUMPRODUCT(O68:T68,O70:T70) -> 0.8661791251
K48: CSP - 10hrs TES - Class 1 | L48: 169.3723988 | O48: Project Finance Factor | S48: =(1 - S42 * S47) / (1 - S42) -> 1.089213917
K49: CSP - 10hrs TES - Class 3 | L49: 169.3723988 | O49: Capital Recovery Factor (CRF) - Nominal | S49: =S43 / (1 - (1 / (1 + S43)^S35)) -> 0.08283622233
K50: CSP - 10hrs TES - Class 5 | L50: 169.3723988 | O50: Capital Recovery Factor (CRF) - Real | S50: =S44 / (1 - (1 / (1 + S44)^S35)) -> 0.0660286156
J52: Overnight Capital Cost ($/kWe) | K52: CSP - no TES - Class 1 | M52: Turbine CC | N52: Storage CC | O52: Field CC | Q52: Construction Duration yrs | S52: 3
K53: CSP - no TES - Class 3 | M53: $/kWe | N53: $/kWhe | O53: $/kWe | Q53: Year | R53: Capital | S53: Accumulated
K54: CSP - no TES - Class 3 | Q54: Index | R54: Fraction | S54: Interest
K55: CSP - 6hrs TES - Class 1 | L55: =(100000*M55+(6*100000)*N55+(100000*2)*O55)/100000 -> 0 | Q55: 0 | R55: 0.8 | S55: =1+(1-S42)*((1+S38)^(Q55+0.5)-1) -> 1.013057909
K56: CSP - 6hrs TES - Class 3 | L56: =(100000*M56+(6*100000)*N56+(100000*2)*O56)/100000 -> 0 | Q56: 1 | R56: 0.1 | S56: =1+(1-S42)*((1+S38)^(Q56+0.5)-1) -> 1.040032457
K57: CSP - 6hrs TES - Class 5 | L57: =(100000*M57+(6*100000)*N57+(100000*2)*O57)/100000 -> 0 | Q57: 2 | R57: 0.1 | S57: =1+(1-S42)*((1+S38)^(Q57+0.5)-1) -> 1.068193885
K58: CSP - 10hrs TES - Class 1 | L58: =(100000*M58+(10*100000)*N58+(100000*2.4)*O58)/100000 -> 7963.360039 | M58: 2235.732615 | N58: 92.6043095 | O58: 2000.660137
K59: CSP - 10hrs TES - Class 3 | L59: =(100000*M59+(10*100000)*N59+(100000*2.4)*O59)/100000 -> 7963.360039 | M59: 2235.732615 | N59: 92.6043095 | O59: 2000.660137
K60: CSP - 10hrs TES - Class 5 | L60: =(100000*M60+(10*100000)*N60+(100000*2.4)*O60)/100000 -> 7963.360039 | M60: 2235.732615 | N60: 92.6043095 | O60: 2000.660137
N61: OCC=(turbine capacity*turbine cost+storage capacity*storage cost+field capacity*field cost)/turbine capacity
J62: Fixed Operation and Maintenance Expenses ($/kW year) | K62: CSP - no TES - Class 1 | O62: storage capacity = turbine capacity*TES
K63: CSP - no TES - Class 3 | O63: field capacity = turbine capacity * solar multiple
K64: CSP - no TES - Class 3 | O64: solar multiple of 2.5 for 12 hrs TES, 2.0 for 6 hrs TES
K65: CSP - 6hrs TES - Class 1
K66: CSP - 6hrs TES - Class 3
K67: CSP - 6hrs TES - Class 5 | N67: MACRS yr | O67: 1 | P67: 2 | Q67: 3 | R67: 4 | S67: 5 | T67: 6
K68: CSP - 10hrs TES - Class 1 | L68: 66 | N68: Depreciation | O68: 0.2 | P68: 0.32 | Q68: 0.192 | R68: 0.1152 | S68: 0.1152 | T68: 0.0576
K69: CSP - 10hrs TES - Class 3 | L69: 66 | N69: Fraction
K70: CSP - 10hrs TES - Class 5 | L70: 66 | N70: Depreciation | O70: =1/((1+S44)*(1+S34))^O67 -> 0.9489622755 | P70: =1/((1+S44)*(1+S34))^P67 -> 0.9005294003 | Q70: =1/((1+S44)*(1+S34))^Q67 -> 0.8545684288 | R70: =1/((1+S44)*(1+S34))^R67 -> 0.8109532008 | S70: =1/((1+S44)*(1+S34))^S67 -> 0.7695639947 | T70: =1/((1+S44)*(1+S34))^T67 -> 0.7302871995
N71: Factor
J72: Variable Operation and Maintenance Expenses ($/MWh) | K72: CSP - no TES - Class 1
K73: CSP - no TES - Class 3
K74: CSP - no TES - Class 3
K75: CSP - 6hrs TES - Class 1
K76: CSP - 6hrs TES - Class 3
K77: CSP - 6hrs TES - Class 5
K78: CSP - 10hrs TES - Class 1 | L78: 4
K79: CSP - 10hrs TES - Class 3 | L79: 4
K80: CSP - 10hrs TES - Class 5 | L80: 4
H83: Finance | J83: Weighted Average Cost of Capital (WACC) (Nominal) (%) | K83: CSP - no TES - Class 1
K84: CSP - no TES - Class 3
K85: CSP - no TES - Class 3
K86: CSP - 6hrs TES - Class 1
K87: CSP - 6hrs TES - Class 3
K88: CSP - 6hrs TES - Class 5 | L88: =$S$43 -> 0.0537826696
K89: CSP - 10hrs TES - Class 1 | L89: =$S$43 -> 0.0537826696
K90: CSP - 10hrs TES - Class 3 | L90: =$S$43 -> 0.0537826696
K91: CSP - 10hrs TES - Class 5 | L91: =$S$43 -> 0.0537826696
H94: Grid Connection Costs | J94: Grid Connection Costs (GCC) ($/kW) | K94: CSP - no TES - Class 1
K95: CSP - no TES - Class 3
K96: CSP - no TES - Class 3
K97: CSP - 6hrs TES - Class 1 | L97: =L107+L117 -> 0
K98: CSP - 6hrs TES - Class 3 | L98: 0
K99: CSP - 6hrs TES - Class 5 | L99: 0
K100: CSP - 10hrs TES - Class 1 | L100: 0
K101: CSP - 10hrs TES - Class 3 | L101: 0
K102: CSP - 10hrs TES - Class 5 | L102: 0
J104: Grid Feature Costs ($/kW) | K104: CSP - no TES - Class 1
K105: CSP - no TES - Class 3
K106: CSP - no TES - Class 3
K107: CSP - 6hrs TES - Class 1
K108: CSP - 6hrs TES - Class 3
K109: CSP - 6hrs TES - Class 5
K110: CSP - 10hrs TES - Class 1 | L110: 0
K111: CSP - 10hrs TES - Class 3 | L111: 0
K112: CSP - 10hrs TES - Class 5 | L112: 0
J114: Onshore Spur Line Costs ($/kW) | K114: CSP - no TES - Class 1
K115: CSP - no TES - Class 3
K116: CSP - no TES - Class 3
K117: CSP - 6hrs TES - Class 1
K118: CSP - 6hrs TES - Class 3
K119: CSP - 6hrs TES - Class 5
K120: CSP - 10hrs TES - Class 1 | L120: 0
K121: CSP - 10hrs TES - Class 3 | L121: 0
K122: CSP - 10hrs TES - Class 5 | L122: 0
H125: LCOE | J125: Levelized Cost of Energy ($/MWh) | K125: CSP - no TES - Class 1
K126: CSP - no TES - Class 3
K127: CSP - no TES - Class 3
K128: CSP - 6hrs TES - Class 1
K129: CSP - 6hrs TES - Class 3
K130: CSP - 6hrs TES - Class 5
K131: CSP - 10hrs TES - Class 1 | L131: =(($S$50 * $S$48 * $S$46 * (L58 * 1 + L100) +L68) * 1000 / (L18 * 8760)) + L78 + 0 -> 180.913546
K132: CSP - 10hrs TES - Class 3 | L132: =(($S$50 * $S$48 * $S$46 * (L59 * 1 + L101) +L69) * 1000 / (L19 * 8760)) + L79 + 0 -> 136.6851595
K133: CSP - 10hrs TES - Class 5 | L133: =(($S$50 * $S$48 * $S$46 * (L60 * 1 + L102) +L70) * 1000 / (L20 * 8760)) + L80 + 0 -> 129.9384565
